{"text_format":"1","workbook":"xlsx","n_sheets":8,"sheets":["OSNOVA","UVOD V PREDRAČUN","REKAPITULACIJA","VODOVOD IN KANANALIZACIJA","OGREVANJE IN HLAJENJE","PLINSKA INSTALACIJA","PREZRAČEVANJE","HPR_SD_stara verzija"],"not_rendered":{"charts":0,"images":0,"macros":1,"external_links":3,"defined_names":83,"comments":0,"pivot_tables":0},"unopened":[],"bounds":{"document_bytes":16777216,"sheet_cells":100000,"rows_first":2000,"rows_last":500,"rows_between":2000,"halvings":0,"cell_chars":16384,"cell_head_chars":4096},"cells_cut":0,"cells_raw":0,"read":"whole","date_system":"1900"}

{"sheet":"OSNOVA","index":0,"n_rows":46,"n_cols":11,"rows_kept":46,"cut":false,"hidden":false,"merged":[]}
[]
["POPIS DEL S PREDRAČUNOM - Strojne inštalacije"]
[]
["Osnovni podatki o projektni dokumentaciji:"]
[]
[]
["Številčna oznaka načrta in vrsta načrta:","4 - Načrt s področja strojništva"]
[]
[]
["Investitor:","OBČINA BOVEC"]
[null,"Trg golobarskih žrtev 8, "]
[null,"5230 Bovec"]
[]
[]
[]
["Vrsta projektne dokumentacije:","PZI"]
[]
[]
["Objekt:","DOM STAREJŠIH OBČANOV "]
[null," \"JEZERCA\" BOVEC"]
[]
["Številka načrta:","11826_4"]
[]
[]
["Kraj in datum izdelave načrta:","Nova Gorica, december 2021"]
[]
[]
[]
[null,null,null,"PODATKI O MAPAH IN POSTAVKAH",null,null,"PODATKI O MAPAH IN POSTAVKAH",null,null,"PODATKI O MAPAH IN POSTAVKAH"]
["Vrsta del","Strojne inštalacije",null,{"$f":"+OZN","v":"4."},{"$f":"+A2","v":"POPIS DEL S PREDRAČUNOM - Strojne inštalacije"},null,"4.","POPIS DEL - ELEKTRO",null,"3.","POPIS DEL - GRADBENI"]
[null,null,null,null,"Osnovni podatki o projektni dokumentaciji:"]
["Oznaka vrste načrta","4.",null,null,"REKAPITULACIJA"]
[null,null,null,null,"UVOD V PREDRAČUN"]
[]
["Faktor rasti del",1,null,"S1.","VODOVOD IN KANALIZACIJA"]
[null,null,null,"S2.","OGREVANJE IN HLAJENJE"]
[null,null,null,"S3.","PLINSKA INSTALCIJA"]
["Dobava montaža",1.05,null,"S4.","PREZRAČEVANJE"]
[]
["DDV",9.5000000000000001E-2]
[]
["Cene (DA=1 ali NE=0)",1]
[]
[]
[]
["OBVEZEN VPIS OSNOVNIH PODATKOV!!!"]

{"sheet":"UVOD V PREDRAČUN","index":1,"n_rows":26,"n_cols":2,"rows_kept":26,"cut":false,"hidden":false,"merged":[]}
[{"$f":"+OZN","v":"4."},"Projektantski popis strojnih inštalacij in strojne opreme s predračunom "]
[]
["SPLOŠNE OPOMBE K POPISU DEL"]
[]
[1,"Popis tvori celoto skupaj z grafičnim in tekstualnim delom načrta, zato ga je potrebno brati skupaj s celotnim načrtom (grafike, tehnična poročila)"]
[2,"V posameznih postavkah je zajeto: dobava materiala, vgradnja materiala in gradbena pomoč inštalaterjem, razen kjer je eksplicitno drugače navedeno"]
[3,"Ponudnik je dolžan o vsaki ugotovljeni neskladnosti med popisom in tehničnim poročilom/grafičnimi prikazi obvestiti projektanta in investitorja"]
[null,"Tam, kjer je v popisu določen kos opisan kot določen tip ali blagovna znamka (kot npr...), se to razume v smislu lažjega opisa: enakovreden ali boljši."]
[5,"Investitor bo zagotovil delovne površine v okviru ustreznega delovnega pasu. Na odsekih, kjer bo zaradi objektivnih vzrokov (v območju bližine objektov, konfiguracije terena, nepridobljenih soglasij ipd.) delovni pas ožji od običajnega se gradnja prilagodi dejanskim razmeram na terenu."]
[6,"Vse ostale površine, ki jih bo izvajalec potreboval za gradnjo in za organizacijo gradbišč, si bo moral priskrbeti sam na svoje stroške.   "]
[7,"Izvajalec mora omogočati stalen, prost in vzdrževan dostop za potrebe intervencije oz. vzdrževanja  "]
[8,"Izvajalec je dolžan izvesti vsa dela kvalitetno, v skladu s predpisi, projektom, tehničnimi pogoji in v skladu z dobro gradbeno prakso."]
[9,"Izkopi za jarke, kanale in jaške vključujejo odmet na rob jarka oz. na tovorno vozilo in odvoz na deponijo"]
[10,"Izvajalec mora v enotnih cenah upoštevati naslednje stroške, v kolikor le-ti niso upoštevani v posebnih postavkah:"]
[null,"- vse stroške za pridobitev začasnih površin za gradnjo  izven delovnega pasu (soglasja, odškodnine, itd.);"]
[null,"- vse stroške v zvezi z začasnim odvozom, deponiranjem in vračanjem izkopanega materiala na mestih, kjer ga ne bo možno deponirati na gradbišču;"]
[null,"- vse stroške za postavitev gradbišča, gradbiščnih objektov, ureditev začasnih deponij, tekoče vzdrževanje in odstranitev gradbišča;"]
[null,"- vse stroške za sanacijo in kultiviranje površin delovnega pasu in gradbiščnih površin po odstranitvi objektov;"]
[null,"- stroške za postavitev objekta s poslovnim prostorom vključno z opremo za dve delovni mesti in za skupne operativne sestanke vel. cca 20 m2 za potrebe investitorja, s tekočim vzdrževanjem in čiščenjem"]
[null,"- vse stroške v zvezi s transporti po javnih poteh in cestah: morebitne odškodnine, morebitne sanacije cestišč zaradi poškodb med gradnjo itd."]
[null,"- stroške odvoza in zagotovitev odstranjevanja odpadnega gradbenega materiala skladno z zakonodajo na področju ravnanja z odpadki (odvoz na urejene deponije s taksami itd.)"]
[null,"- vsi stroški za zagotavljanje varnosti in zdravja pri delu, zlasti stroške za vsa dela, ki izhajajo iz zahtev Varnostnega načrta"]
[null,"- stroški odvoda meteorne vode iz gradbene jame in vode, ki se izceja iz bočnih strani izkopa, če je potrebno"]
[null,"- stroški dela v kampadah zaradi oteženih geoloških razmer"]
[null,"- stroški dela v nagnjenem terenu"]
[null,"- stroški oteženega izkopa v mokrem terenu, izkop v vodi, prekop potokov itd."]

{"sheet":"REKAPITULACIJA","index":2,"n_rows":22,"n_cols":6,"rows_kept":22,"cut":false,"hidden":false,"merged":[]}
[{"$f":"+OZN","v":"4."},{"$f":"+OSNOVA!A2","v":"POPIS DEL S PREDRAČUNOM - Strojne inštalacije"}]
[]
[{"$f":"+OSNOVA!E32","v":"REKAPITULACIJA"}]
[]
["Vrednosti in zneski so v EUR brez DDV!"]
["Naziv posameznih sklopov popisa",null,null,null,null,"Vrednost"]
[]
[{"$f":"OSNOVA!D35","v":"S1."},{"$f":"OSNOVA!E35","v":"VODOVOD IN KANALIZACIJA"},null,null,null,{"$f":"'VODOVOD IN KANANALIZACIJA'!G637","v":0}]
[]
[{"$f":"OSNOVA!D36","v":"S2."},{"$f":"OSNOVA!E36","v":"OGREVANJE IN HLAJENJE"},null,null,null,{"$f":"'OGREVANJE IN HLAJENJE'!G951","v":0}]
[]
[{"$f":"OSNOVA!D37","v":"S3."},{"$f":"OSNOVA!E37","v":"PLINSKA INSTALCIJA"},null,null,null,{"$f":"'PLINSKA INSTALACIJA'!G124","v":0}]
[]
[{"$f":"OSNOVA!D38","v":"S4."},{"$f":"OSNOVA!E38","v":"PREZRAČEVANJE"},null,null,null,{"$f":"PREZRAČEVANJE!G1189","v":0}]
[]
[]
[null,null,null,"SKUPAJ:",null,{"$f":"IF(OSNOVA!$B$42=1,SUM(F8:F15),\"\")","v":0}]
[]
[null,null,{"$f":"DDV","v":9.5000000000000001E-2},"DDV:",null,{"$f":"IF(OSNOVA!$B$42=1,SUM(F17*C19),\"\")","v":0}]
[]
[]
[null,null,null,"SKUPAJ Z DDV:",null,{"$f":"IF(OSNOVA!$B$42=1,SUM(F16:F20),\"\")","v":0}]

{"sheet":"VODOVOD IN KANANALIZACIJA","index":3,"n_rows":638,"n_cols":7,"rows_kept":638,"cut":false,"hidden":false,"merged":[]}
[{"$f":"+OZN","v":"4."},null,{"$f":"+OSNOVA!A2","v":"POPIS DEL S PREDRAČUNOM - Strojne inštalacije"}]
[]
[{"$f":"OSNOVA!D35","v":"S1."},null,{"$f":"OSNOVA!E35","v":"VODOVOD IN KANALIZACIJA"}]
["Opombe:"]
[null,null,"Vse naprave in elemente se mora dobaviti z ustreznimi certifikati, atesti, garancijami, navodili za obratovanje, vzdrževanje, posluževanje in servisiranje ter funkcionalno shemo izvedenega stanja. Pri vseh napravah je potrebno upoštevati stroške vseh preizkusov, izpiranja in polnjenja cevnih sistemov, zagona, meritve in nastavitve obratovalnih količin vključno s pridobitvijo ustreznih certifikatov s strani pooblaščenih institucij pri izvedbi je potrebno upoštevati stroške vseh pripravljalnih in zaključnih del (vključno z usklajevanjem z ostalimi izvajalci na objektu) ter vse transportne, zavarovalne in ostale stroške. pri vseh elementih je potrebno upoštevati ves montažni in tesnilni material."]
["Cene na enoto, vrednosti in zneski so v EUR brez DDV!"]
["Poz.",null,"Opis postavke","Enota","Količina","Cena","Vrednost"]
[]
[null,"I.","VODOMERNI JAŠEK"]
[]
[{"$f":"$B$9","v":"I."},{"$f":"1","v":1},"Ureditev dokumentacije za priključitev na vodovodno omrežje","kpl",1,null,{"$f":"E11*F11","v":0}]
[null,null,"Priprava vloge za priključitev objekta na vodovofno omrežje,koordinacija aktivnosti za izvedbo vodovodnega priključka ( takse, priključnine in ostale pristojbine so strošek investitorja)",null,null,null,{"$f":"E12*F12","v":0}]
[null,null,null,null,null,null,0]
[{"$f":"$B$9","v":"I."},{"$f":"COUNT($A$11:$B13)+1","v":2},"Vodomer",null,null,null,0]
[null,null,"Dobava in montaža vodomera za hladno vodo z dalinskim odčitavanjem, skladnega z zahtevami upravljalca vodovodnega omrežja, komplet s holandci, tesnilnim in spojnim materialom.",null,null,null,0]
[null,null,"DN40","kos",1,null,0]
[null,null,null,null,null,null,0]
["I.",{"$f":"COUNT($A$11:$B17)+1","v":3},"Zasun",null,null,null,0]
[null,null,"Dobava in montaža zasuna za hladno sanitarno vodo , s kolesom za odpiranje/zapiranje, tlačne stopnje PN16, komplet s spojnim, vijačnim in tesnilnim materialom.",null,null,null,0]
[null,null,"DN65","kos",1,null,0]
[null,null,"DN100","kos",1,null,0]
[null,null,null,null,null,null,0]
["I.",{"$f":"COUNT($A$11:$B22)+1","v":4},"Čistilni kos prirobnični",null,null,null,0]
[null,null,"Dobava in montaža prirobničnega  čistilnega kosa, tlačne stopnje PN16, komplet s spojnim, vijačnim in tesnilnim materialom.",null,null,null,0]
[null,null,"DN100","kos",1,null,0]
[null,null,null,null,null,null,0]
["I.",{"$f":"COUNT($A$11:$B26)+1","v":5},"Nepovratni ventil prirobnični",null,null,null,0]
[null,null,"Dobava in montaža nepovratnega ventila s prirobničnimi priključki, tlačne stopnje PN16, komplet s spojnim, vijačnim in tesnilnim materialom.",null,null,null,0]
[null,null,"DN65","kos",1,null,0]
[null,null,null,null,null,null,0]
["I.",{"$f":"COUNT($A$11:$B30)+1","v":6},"Montažno demontažni kos",null,null,null,0]
[null,null,"Dobava in montaža montažno demontažnega kosa s prirobničnimi priključki, tlačne stopnje PN16, komplet s spojnim, vijačnim in tesnilnim materialom.",null,null,null,0]
[null,null,"DN65","kos",1,null,0]
[null,null,null,null,null,null,0]
["I.",{"$f":"COUNT($A$11:$B34)+1","v":7},"Kroglični ventil",null,null,null,0]
[null,null,"Dobava in montaža krogelne pipe za sanitarno vodo z ročico ali metulčkom. Izdelane iz medenine, kromirane, z dvojnim notranjim navojem, za temperaturo vode med 0 in85 °C, tlačne stopnje PN16, komplet s spojnim in tesnilnim materialom.",null,null,null,0]
[null,null,"DN15","kos",1,null,0]
[null,null,null,null,null,null,0]
["I.",{"$f":"COUNT($A$11:$B38)+1","v":8},"Fazonski kosi za izvedbo vodovodmernega jaška",null,null,null,0]
[null,null,"Dobava in montaža fazonskih kosov  za povezavo vodomernega jaška, komplet s spojnim, vijačnim in tesnilnim materialom (ocenjeno - obračun se izvede po dejansko vgrajenem materialu).",null,null,null,0]
[null,null,"FF DN 65-800","kos",1,null,0]
[null,null,"FFR DN 100/65","kos",1,null,{"$f":"E42*F42","v":0}]
[null,null,"T kos DN 65/50/65","kos",1,null,0]
[null,null,"X DN 65/1 1/2˝","kos",2,null,0]
[null,null,"X DN 50/2˝","kos",1,null,0]
[null,null,"Spojka za PE Cev DN 65/φ90","kos",1,null,0]
[null,null,null,null,null,null,0]
["I.",{"$f":"COUNT($A$11:$B47)+1","v":9},"Fitingi za izvedbo vodovodmernega jaška",null,null,null,0]
[null,null,"Dobava in montaža fitingov  za povezavo vodomernega jaška, komplet s spojnim in tesnilnim materialom (ocenjeno - obračun se izvede po dejansko vgrajenem materialu).",null,null,null,0]
[null,null,"Dvovijačnik DN15","kos",1,null,0]
[null,null,"Koleno DN15","kos",1,null,0]
[]
[null,null,{"$f":"CONCATENATE($B$9,\" \",$C$9,\" - SKUPAJ:\")","v":"I. VODOMERNI JAŠEK - SKUPAJ:"},null,null,null,{"$f":"SUM(G10:G52)","v":0}]
[]
[null,"II.","INTERNA VODOVODNA INSTALACIJA"]
[]
[{"$f":"$B$55","v":"II."},{"$f":"COUNT(#REF!)+1","v":1},"Zalogovnik sanitarne tople vode NT",null,null,null,{"$f":"E57*F57","v":0}]
[null,null,"Dobava in montaža zalogovnika sanitarne tople vode VT z vgrajenim cevnim toplotnim izmenjevalcem spodaj, za delovni tlak do 8 bar, protikorozijsko zaščitenega, z magnezijevo anodo, izolacijskim plaščem, komplet spojnim, tesnilnim in montažnim materialom. Pred nabavo se preverijo dimenzije za vnos v objekt.",null,null,null,{"$f":"E58*F58","v":0}]
[null,null,"V= 2000 l","kos",1,null,0]
[]
[{"$f":"$B$55","v":"II."},{"$f":"+COUNT($A$55:B60)+1","v":2},"Zalogovnik sanitarne tople vode VT"]
[null,null,"Dobava in montaža zalogovnika sanitarne tople vode VT z vgrajenim cevnim večjim toplotnim izmenjevalcem po celotni višini zalogovnika, minimalne površine 5,4 m2, za delovni tlak do 8 bar, protikorozijsko zaščitenega, z magnezijevo anodo, izolacijskim plaščem, komplet spojnim, tesnilnim in montažnim materialom. Pred nabavo se preverijo dimenzije za vnos v objekt."]
[null,null,"V= 500 l","kos",1,null,{"$f":"E63*F63","v":0}]
[null,null,null,null,null,null,0]
[{"$f":"$B$55","v":"II."},{"$f":"+COUNT($A$55:B64)+1","v":3},"Dozirna naprava DN","kos",1,null,0]
[null,null,"Dobava in montaža dozirne naprave za mehčanje vode vključno s spojnim, tesnilnim in montažnim materialom.\n- Elektronsko volumetrično krmiljenje\nVolumen ionskega izmenjevalca: 75 l\nVolumen solnika: 300 l\nPoraba soli: 13,5 kg/reg\nPriključek: 1˝\nKrmilni ventil: KERAMIS K63B-3\nDimenzije: 1.520 xfi315x1.340, solnik: 1140x fi610\nTlak: 2-6 bar\nPretok: max 3,75 m3/h\n- Ohišje filtra -transparentno-1\" -568x120\n- Vložek filtra 20micr. 4m3/h 508x63x27\n- Zagon mehčalne naprave (meritev vhodne in izhodne trdote, nastavitev regeneracije, seznanitev uporabnika z delovanjem naprave)\n",null,null,null,0]
[null,null,"Ustreza: CAESA, A750 V enojna + 3PL + vložek filtra ali enakovredno",null,null,null,0]
[null,null,null,null,null,null,0]
[{"$f":"$B$55","v":"II."},{"$f":"+COUNT($A$55:B68)+1","v":4},"Cevni ločevalnik",null,null,null,0]
[null,null,"Dobava in montaža cevnega ločevalnika izdelanaega po standardu  SIST EN 1717-2001, komplet s spojnim in prirtrdilnim materialom.",null,null,null,0]
[null,null,"DN 50","kos",1,null,0]
[null,null,null,null,null,null,0]
["II.",{"$f":"+COUNT($A$55:B72)+1","v":5},"Ekspanzijska posoda za sanitarno vodo",null,null,null,0]
[null,null,"Dobava in montaža membranske ekspanzijske posode primerne za stik s pitno vodo, za delovni tlak do 10 bar, delovno temperaturo do 70°C, komplet z nosilno konzolo, spojnim, tripotnim ventilom za ekspanzijsko posodo, tesnilnim in pritrdilnim materialom.",null,null,null,0]
[null,null,"V=150l","kpl",1,null,0]
[null,null,null,null,null,null,0]
["II.",{"$f":"+COUNT($A$55:B76)+1","v":6},"Cirkulacijska črpalka za sanitarno vodo ",null,null,null,0]
[null,null,"Dobava in montaža obtočne črpalke za cirkulacijo sanitarne tople vode, primerne za stik s pitno vodo, za delovno temperaturo do 70°C, energijski razred A, z motorjem odpornim na tok pri blokiranem rotorju, razred električne zaščite >= IP44, razred izolacije >= F, z navojnimi priključki, komplet s tesnili, holandci ter vsem potrebnim spojnim in tesnilnim materialom.         \nČrpalka ustreza naslednjim specifikacijam:",null,null,null,0]
[null,null,"Č.9\nDN20, V=1,5 m3/h (2,5 m3/h), dp= 25 kPa,\nU= 230V, f=50 Hz,",null,null,null,0]
[null,null,"Ustreza: WILLO, tip: Stratos PICO Z 20/1-6 ali enakovredno","kpl",1,null,0]
[null,null,"Č.10\nDN20, V=1,5 m3/h, dp= 50 kPa,\nU= 230V, f=50 Hz,",null,null,null,0]
[null,null,"Ustreza: WILLO, tip: TOP-Z 40/7 EM ali enakovredno","kpl",1,null,0]
[]
[{"$f":"$B$55","v":"II."},{"$f":"+COUNT($A$55:B83)+1","v":7},"Preklopna pipa PV"]
[null,null,"Dobava in montaža 3-potnega preklopne delilne krogelne pipe elektromotornim pogonom 230 V, za sanitarno pitno vodo-cirkulacija, tlačne stopnje PN 10, primerna za montažo med prirobnice, kompletno z tremi protiprirobnicami, tesnili ter spojnim in vijačnim materialom."]
[null,null,"PV\nDN25, V=1,5 m3/h\nkvs= 13 m3/h"]
[null,null,"Ustreza: Danfoss, tip: AMZ 113/230V DN25 ali enakovredno","kpl",1,null,{"$f":"E87*F87","v":0}]
[null,null,null,null,null,null,0]
[{"$f":"$B$55","v":"II."},{"$f":"+COUNT($A$55:B87)+1","v":8},"Večfunkcijski termostatski ventil",null,null,null,0]
[null,null,"Dobava in montaža večfunkcijskega termostatskega ventila za navojnima priključkoma, primernega za stik s pitno vodo, izdelanega iz medenine, za delovni tlak do 16 bar, z modulom za termično dezinfekcijo, komplet s spojnim in tesnilnim materialom.",null,null,null,0]
[null,null,"Ustreza: Danfoss, tip: MTCV-B ali enakovredno",null,null,null,0]
[null,null,"DN15","kos",11,null,0]
[null,null,null,null,null,null,0]
[{"$f":"$B$55","v":"II."},{"$f":"+COUNT($A$55:B93)+1","v":9},"Odštevalni vodomer za hladno vodo",null,null,null,0]
[null,null,"Dobava in montaža za odštevalnega vodomera za interno merjenje porabe hladne vode, navojne izvedbe, s privijalom  ter podaljšanim privajalom za demontažo vodomera, filtrom na dovodni strani, komplet s tesnili ter ostalim spojnim in tesnilnim materialom. Vodomer se dobavi z dajalnikom impulzov ali radijskim oddajnikom  za daljinsko odčitavanje stanja. ",null,null,null,0]
[null,null,"DN15","kos",2,null,0]
[null,null,null,null,null,null,0]
["II.",{"$f":"+COUNT($A$55:B97)+1","v":10},"Odštevalni vodomer za toplo vodo",null,null,null,0]
[null,null,"Dobava in montaža za odštevalnega vodomera za interno merjenje porabe tople vode, navojne izvedbe, s privijalom  ter podaljšanim privajalom za demontažo vodomera, filtrom na dovodni strani, komplet s tesnili ter ostalim spojnim in tesnilnim materialom. Vodomer se dobavi z dajalnikom impulzov ali radijskim oddajnikom  za daljinsko odčitavanje stanja. ",null,null,null,0]
[null,null,"DN15","kos",2,null,0]
[null,null,null,null,null,null,0]
["II.",{"$f":"+COUNT($A$55:B101)+1","v":11},"Ventil s plovcem","kos",1,null,0]
[null,null,"Dobava in montaža ventila s plovcem, primernega za zunanjo uporabo, ki služi za regulacijo nivoja vode v ribiniku, komplet s vsem potrebnim spojnim in tesnilnim materialom."]
[null,null,"DN25"]
[]
["II.",{"$f":"+COUNT($A$55:B105)+1","v":12},"Krogelna pipa - navojna",null,null,null,0]
[null,null,"Dobava in montaža krogelne pipe z notranjima navojema, primerne za stik s pitno vodo, izdelane iz medenine, kromirane, tlačne stopnje PN16, z ročico ali metuljčkom za odpiranje, za delovno temperaturo od 0 in 85°C. ",null,null,null,0]
[null,null,"DN15","kos",123,null,0]
[null,null,"DN20","kos",17,null,0]
[null,null,"DN25","kos",2,null,0]
[null,null,"DN32","kos",4,null,0]
[null,null,"DN40","kos",7,null,0]
[null,null,"DN50","kos",2,null,0]
[null,null,null,null,null,null,0]
[{"$f":"$B$55","v":"II."},{"$f":"+COUNT($A$55:B114)+1","v":13},"Nepovratni ventil - navojni",null,null,null,0]
[null,null,"Dobava in montaža nepovratnega ventila z notranjima navojnima priključkoma, primernega za stik s pitno vodo, izdelanega iz nedenine, tlačne stopnje PN16, komplet s spojnim in tesnilnim materialom, za delovne temperature od 0 do 85°C.",null,null,null,0]
[null,null,"DN 25","kos",1,null,0]
[null,null,"DN 32","kos",2,null,0]
[null,null,"DN40","kos",1,null,0]
[null,null,null,null,null,null,0]
[{"$f":"$B$55","v":"II."},{"$f":"+COUNT($A$55:B120)+1","v":14},"Varnostni ventil",null,null,null,0]
[null,null,"Dobava in motaža varnostno izpustnega ventila z notranjim navojem, primernega za stik s pitno vodo, izdelanega iz medenine, za tlak odpiranja 8 bar, komplet s spojnim in tesnilnim materialom, za delovne temperature od 0 do 85°C.",null,null,null,0]
[null,null,"DN 20","kos",1,null,{"$f":"E123*F123","v":0}]
[null,null,"DN 32","kos",1,null,0]
[null,null,null,null,null,null,0]
[{"$f":"$B$55","v":"II."},{"$f":"+COUNT($A$55:B125)+1","v":15},"Lovilnik nesnage - navojni",null,null,null,0]
[null,null,"Dobava in montaža lovilnika nesnage (čistilni kos) z navojnimi priključki, izdelanega iz medenine, primernega za stik s pitno vodo, tlačne stopnje PN16, komplet s spojnim in tesnilnim materialom.",null,null,null,{"$f":"E127*F127","v":0}]
[null,null,"DN32","kos",1,null,0]
[null,null,"DN40","kos",1,null,0]
[null,null,null,null,null,null,0]
["II.",{"$f":"+COUNT($A$55:B130)+1","v":16},"Polnilno izpustna pipa",null,null,null,0]
[null,null,"Dobava in montaža krogelne polnilne/ izpustne pipe z navojnim priključkom, primerne za stik s pitno vodo, izdelane iz medenine, za delovni tlak do 16 bar, z nastavkom za gumijasto cev, z metljčkom za odpiranje/zapiranje, navojnim zapornim čepom, komplet z spojnim in tesnilnim in materialom.",null,null,null,0]
[null,null,"DN 20","kos",7,null,0]
[null,null,null,null,null,null,0]
[{"$f":"$B$55","v":"II."},{"$f":"+COUNT($A$55:B134)+1","v":17},"Temperaturno tipalo",null,null,null,0]
[null,null,"Samo montaža potopne tuljke za vgradnjo temepraturnega tipala, komplet s dobavo vsega potrebnega spojnega in tesninega materiala.",null,null,null,0]
[null,null,"DN 15, l= 300 mm","kos",1,null,0]
[null,null,"DN 15, l= 100 mm","kos",2,null,0]
[null,null,null,null,null,null,0]
[{"$f":"$B$55","v":"II."},{"$f":"+COUNT($A$55:B139)+1","v":18},"Termometer","kos",6,null,0]
[null,null,"Dobava in montaža steklenega aksialnega  termometera, primernega za stik s pitno vodo, za merilno območje od 0 do 120°C, komplet z navojno potopno tuljko za vgradnjo na cevovod,potopna cev iz nerjavnega jekla premer okrova 100mm",null,null,null,0]
[null,null,null,null,null,null,0]
[{"$f":"$B$55","v":"II."},{"$f":"+COUNT($A$55:B142)+1","v":19},"Manometer","kos",2,null,0]
[null,null,"Dobava in montaža manometera primernega za stik s pitno vodo, vzmetni, premer okrova 100mm priključek 1/2\" radialno navzdol, merilna natančnost 1,6% od končne vrednosti skale - merilno območje 0-10 bar, komplet z tripotno manometersko pipo in vsem spojnim in tesnilnim materialom.",null,null,null,0]
[null,null,null,null,null,null,0]
[{"$f":"$B$55","v":"II."},{"$f":"+COUNT($A$55:B145)+1","v":20},"PE cev",null,null,null,0]
[null,null,"Dobava in montaža cevi izdelane iz polietilena gostote PE 100, primerne za pitno vodo. ",null,null,null,0]
[null,null,"PE 100 Φ 32 x 3,0 mm","m",15,null,0]
[null,null,"PE 100 Φ 75 x 6,0 mm","m",55,null,0]
[null,null,null,null,null,null,0]
["II.",{"$f":"+COUNT($A$55:B150)+1","v":21},"Cevi iz nerjavečega jekla za vodo",null,null,null,0]
[null,null,"Dobava in montaža cevi iz nerjavnega jekla št. 1.4401 po DIN EN 10088, za instalacijo pitne vode po DIN 1988, preverjene po DVGW delovnem listu W541, z DVGW preverjenimi fitingi za tehnologijo hladnega stiskanja in varnostno konturo, ki pri polnenju instalacije detektira nezatisnjene  spoje. Nezatisnjene spoje se pri mokrem preizkusu zagotovo odkrije z iztekanjem preizkusnega medija ali padanjem tlaka na preizkusnem manometru, v območju 1 bar do 6,5 bar, pri suhem preizkusu pa v območju 22 mbar do 3 bar. v postavki se zajame ves potrebni spojni in tesnilni material.",null,null,null,0]
[null,null,"Proizvod kot npr. Viega Sanpress Inox:",null,null,null,0]
[null,null,"DN12 oz. Ø15x1,0 mm","m",13,null,0]
[null,null,"DN15 oz. Ø18x1,0 mm","m",456,null,0]
[null,null,"DN20 oz. Ø22x1,2 mm","m",271,null,0]
[null,null,"DN25 oz. Ø28x1,2 mm","m",148,null,0]
[null,null,"DN32 oz. Ø35x1,5 mm","m",106,null,0]
[null,null,"DN40 oz. Ø42x1,5 mm","m",13,null,0]
[null,null,"DN50 oz. Ø54x1,5 mm","m",168,null,0]
[null,null,"DN65 oz. Ø76x2 mm","m",13,null,0]
[null,null,null,null,null,null,0]
[{"$f":"$B$55","v":"II."},{"$f":"+COUNT($A$55:B162)+1","v":22},"Večplastne cevi za vodovod",null,null,null,0]
[null,null,"Dobava in montaža cevovodov za razvod sanitarne vode po stavbi izvedeni iz difuzijsko tesnih večplastnih cevi (PE/RT-AL-PE/RT), za trajne obratovalne temperature od 0 do 70°C pri trajnem obratovalnem tlaku 10 bar, požarne klasifikacije E skladno s standardom DIN 13501-1, oba konca\ncevi opremljena z zaključno kapo za higienično tesnjenje vskladu z EN 806,s sistemom spajanja s stisljivimi spojkamiIzdelana iz galvansko kositrane medenine, s fiksno vstavljeno zatisno pušo, barvno označenim plastičnim obročkom, oznako zatisnjenosti in funkcijo varnosti pri tlačnem preizkusu, zunanjim navojem izdelanim vskladu s standardom DIN EN 10226-1 za tesnilno zvezo, z dodatkom za razrez in pritrditev. \nDobavljene predizolirane v kolutih komplet s pritrdilnim, spojnim intesnilnim  materialom, z okroglo ekstrudirano, zaprto celično, parozaporna izolacijo, na zunanji strani zaključena brezšivno folijo proti poškodbam, toplotne prevodnosti λ = 0,040 W/mK.\nSpojna mesta se izolira s parozaporno izolacijo ustrezne toplotne prevodnosti in debeline.",null,null,null,0]
[null,null,"Ustreza: cev Uponor MLC s sistemom spojk MLCP ali enakovredno.",null,null,null,0]
[null,null,"DN12 oz. ø16x2,0 - predizolirana S 9 mm","m",275,null,0]
[null,null,"DN15 oz. ø20x2,25  - predizolirana S 9 mm","m",289,null,0]
[null,null,"DN20 oz. ø25x2,5  - predizolirana S 9 mm","m",52,null,0]
[null,null,"DN25 oz. ø32x3  - predizolirana S 9 mm","m",5,null,0]
[null,null,"DN12 oz. ø16x2,0 - IZOLIRANA S 13mm","m",263,null,0]
[null,null,"DN15 oz. ø20x2,25  - IZOLIRANA S 13mm","m",281,null,0]
[null,null,"DN20 oz. ø25x2,5  - IZOLIRANA S 13mm","m",31,null,0]
[null,null,null,null,null,null,0]
[{"$f":"$B$55","v":"II."},{"$f":"+COUNT($A$55:B173)+1","v":23},"Nizkošumna odtočna cev",null,null,null,0]
[null,null,"Dobava in montaža polipropilenske troslojne nizkošumne odtočne cevi za vertikalni odtok iz nadstropja ter razvod pod stropom, spajana z obojkami, komplet s fazonskimi kosi, spojnim, tesnilnim in pritrdilnim materialom.",null,null,null,0]
[null,null,"Ustreza: proizvod VALSIR 3PLUS ali enakovreden izdelek",null,null,null,0]
[null,null,"Ø110","m",17,null,0]
[null,null,"Ø125","m",4,null,0]
[null,null,null,null,null,null,0]
[{"$f":"$B$55","v":"II."},{"$f":"+COUNT($A$55:B179)+1","v":24},"Razvodne cevi za odtočno kanalizacijo",null,null,null,0]
[null,null,"Dobava in montaža polipropilenske odtočne cevi izdelane skladno s standardom SIST EN1451-1, spajane z obojkami, komplet s fazonskimi kosi, spojnim, tesnilnim in pritrdilnim materialom.",null,null,null,0]
[null,null,"Ø50","m",418,null,0]
[null,null,"Ø75","m",89,null,0]
[null,null,"Ø110 ","m",236,null,0]
[null,null,"Ø125","m",18,null,0]
[null,null,null,null,null,null,0]
[{"$f":"$B$55","v":"II."},{"$f":"+COUNT($A$55:B186)+1","v":25},"Čistilni kos PP - nizkošumna izvedba",null,null,null,0]
[null,null,"Dobava in montaža čistilnega kosa za vertikalno ali horizontalno vgradnjo, izdelanega  iz polipropilena, nizkošumne izvedbe, vključno s spojnim in tesnilnim materialom.",null,null,null,0]
[null,null,"Ø110","kos",25,null,0]
[null,null,"Ø125","kos",1,null,{"$f":"E190*F190","v":0}]
[null,null,null,null,null,null,0]
["II.",{"$f":"+COUNT($A$55:B191)+1","v":26},"Talni sifon pretočni","kpl",23,null,0]
[null,null,"Dobava in montaža talnega sifona izdelanega iz polipropilena (pretočni), s koritom ɸ100 mm,  horizontalnima  priključkoma fi 50, s ploščico iz nerjavne pločevine dimenzij 150x150mm, komplet s spojnim in tesnilnim materialom.",null,null,null,0]
[null,null,null,null,null,null,0]
[{"$f":"$B$55","v":"II."},{"$f":"+COUNT($A$55:B193)+1","v":27},"Izolacija",null,null,null,0]
[null,null,"Dobava in montaža toplotne izolacije ceovovodov hladne sanitarne vode  s cevaki iz samougasljive fleksibilne elastomerne pene , z zaprto celično strukturo, z visoko upornostjo proti difuziji vodne pare, z nizko toplotno prevodnostjo.\n- parozaporni koeficient μ ≥ 10.000\n- področje uporabe od -50 do +105 °C\n- toplotna prevodnosti λ ≤ 0,035 W/mK pri 0 °C\n- razred požarne odpornosti B1 po EN klasifikaciji.",null,null,null,0]
[null,null,"DN12 oz. Ø17x13 mm ","m",13,null,0]
[null,null,"DN15 oz. Ø18x19 mm","m",456,null,0]
[null,null,"DN20 oz. Ø22x19 mm","m",306,null,0]
[null,null,"DN25 oz. Ø28x19 mm","m",148,null,0]
[null,null,"DN32 oz. Ø35x19 mm","m",106,null,0]
[null,null,"DN40 oz. Ø42x19 mm","m",28,null,0]
[null,null,"DN50 oz. Ø54x19 mm","m",133,null,0]
[null,null,"DN65 oz. Ø76x19 mm","m",13,null,0]
[null,null,null,null,null,null,0]
[{"$f":"$B$55","v":"II."},{"$f":"+COUNT($A$55:B205)+1","v":28},"Revizijska vratica",null,null,null,0]
[null,null,"Dobava in montaža revizijskih vratic iz nerjaveče pločevine debeline 0.5 -1 mm, z zaklepom brez ključavnice, z okvirjem za vgradnjo, namenjene za dostop do armatur vodovodne inštalacije in kanalizacije, komplet s pritrdilnim materialom.",null,null,null,0]
[null,null,"25x25 cm","kos",13,null,0]
[null,null,null,null,null,null,0]
["II.",{"$f":"+COUNT($A$55:B209)+1","v":29},"Požarna zatesnitev cevnih prebojev ",null,null,null,0]
[null,null,"Dobava in montaža požarne zaščite prehodov negorljivih/gorljivih cevi skozi steno in strop zatesnenih skladno z zahtevami smernice SZPV 408, požarno varno zatesnitev izvede usposobljena oseba, prehod označen s predpisano nalepko.",null,null,null,0]
[null,null,"Preboj za 2x jekleno cev v armirano betonski steni debeline 20 cm, dimenzija jeklene cevi 2x DN15 mm, cev je izolirana s parazaporno izolacijo debeline 19 mm.","kpl",8,null,0]
[null,null,"Preboj za 4x jekleno cev v armirano betonski steni debeline 20 cm, dimenzija jeklene cevi 4x DN15 mm, cev je izolirana s parazaporno izolacijo debeline 19 mm.","kpl",19,null,0]
[null,null,"Preboj za 3x jekleno cev v armirano betonski steni debeline 20 cm, dimenzija jeklene cevi 2x DN15 mm, cev je izolirana s parazaporno izolacijo debeline 19 mm in dimenzija jeklene cevi 1x DN12 mm, cev je izolirana s parazaporno izolacijo debeline 19 mm.","kpl",4,null,0]
[null,null,"Preboj za 3x jekleno cev v armirano betonski steni debeline 20 cm, dimenzija jeklene cevi 2x DN20 mm, cev je izolirana s parazaporno izolacijo debeline 19 mm in dimenzija jeklene cevi 1x DN15 mm, cev je izolirana s parazaporno izolacijo debeline 19 mm.","kpl",1,null,0]
[null,null,"Preboj za 4x jekleno cev v armirano betonski steni debeline 20 cm, dimenzija jeklene cevi 2x DN20 mm, cev je izolirana s parazaporno izolacijo debeline 19 mm in dimenzija jeklene cevi 2x DN15 mm, cev je izolirana s parazaporno izolacijo debeline 19 mm.","kpl",1,null,0]
[null,null,"Preboj za 3x jekleno cev v armirano betonski steni debeline 20 cm, dimenzija jeklene cevi 1x DN65 mm, cev je izolirana s parazaporno izolacijo debeline 19 mm, dimenzija jeklene cevi 1x DN20 mm, cev je izolirana s parazaporno izolacijo debeline 19 mm in dimenzija jeklene cevi 1x DN15 mm, cev je izolirana s parazaporno izolacijo debeline 19 mm.","kpl",1,null,0]
[null,null,"Preboj za 3x jekleno cev v armirano betonski steni debeline 20 cm, dimenzija jeklene cevi 1x DN40 mm, cev je izolirana s parazaporno izolacijo debeline 19 mm, dimenzija jeklene cevi 1x DN32 mm, cev je izolirana s parazaporno izolacijo debeline 19 mm in dimenzija jeklene cevi 1x DN25 mm, cev je izolirana s parazaporno izolacijo debeline 19 mm.","kpl",2,null,0]
[null,null,"Preboj za 1x jekleno cev v armirano betonski steni debeline 20 cm, dimenzija jeklene cevi 1x DN50 mm, cev je izolirana s parazaporno izolacijo debeline 19 mm.","kpl",2,null,0]
[null,null,"Preboj za 3x jekleno cev v v armirano betonski steni debeline 20 cm + dilatacija 6 cm + armiranobetonska stena 20 cm, dimenzija jeklene cevi 1x DN50 mm, cev je izolirana s parazaporno izolacijo debeline 19 mm, dimenzija jeklene cevi 1x DN32 mm, cev je izolirana s parazaporno izolacijo debeline 19 mm,  in dimenzija jeklene cevi 1x DN25 mm, cev je izolirana s parazaporno izolacijo debeline 19 mm.","kpl",1,null,0]
[null,null,"Preboj za 4x jekleno cev v v armirano betonski steni debeline 20 cm + dilatacija 6 cm + armiranobetonska stena 20 cm, dimenzija jeklene cevi 2x DN50 mm, cev je izolirana s parazaporno izolacijo debeline 19 mm, dimenzija jeklene cevi 1x DN32 mm, cev je izolirana s parazaporno izolacijo debeline 19 mm,  in dimenzija jeklene cevi 1x DN25 mm, cev je izolirana s parazaporno izolacijo debeline 19 mm.","kpl",1,null,0]
[null,null,"Preboj za 4x jekleno cev v armirano betonski steni debeline 20 cm, dimenzija jeklene cevi 2x DN50 mm, cev je izolirana s parazaporno izolacijo debeline 19 mm, dimenzija jeklene cevi 1x DN40 mm, cev je izolirana s parazaporno izolacijo debeline 19 mm,  dimenzija jeklene cevi 1x DN25 mm, cev je izolirana s parazaporno izolacijo debeline 19 mm.","kpl",2,null,0]
[null,null,"Preboj za PP cev v betonski steni debeline 25 cm, dimenzija cevi 1 x ø50 mm","kpl",3,null,0]
[null,null,"Preboj za PP cev v betonski steni debeline 25 cm, dimenzija cevi 1 x ø110 mm","kpl",3,null,0]
[null,null,"Preboj za PP cev v steni iz betonskih kvadrov debeline 15 cm, dimenzija cevi 1 x ø110 mm","kpl",38,null,0]
[null,null,"Preboj za PP cev v betonskem steni debeline 20 cm, dimenzija cevi 1 x ø110 mm","kpl",2,null,0]
[null,null,"Preboj za 2x večplastno in1x PP cev v v armirano betonskem stropu debeline 25cm, dimenzija PP cevi 1x ø50 mm, dimenzija jeklene cevi 1x DN25 mm, cev je izolirana s parazaporno izolacijo debeline 19 mm,  in dimenzija večplastne cevi 2x DN15 mm, cev je izolirana s parazaporno izolacijo debeline 19 mm.","kpl",3,null,0]
[null,null,"Preboj za 4x jekleno cev v armirano betonskem stropu debeline 25 cm, dimenzija jeklene cevi 1x DN50 mm, cev je izolirana s parazaporno izolacijo debeline 19 mm, dimenzija jeklene cevi 1x DN32 mm, cev je izolirana s parazaporno izolacijo debeline 19 mm,  dimenzija jeklene cevi 1x DN25 mm, cev je izolirana s parazaporno izolacijo debeline 19 mm in dimenzija jeklene cevi 1x DN20 mm, cev je izolirana s parazaporno izolacijo debeline 19 mm.","kpl",1,null,0]
[null,null,"Preboj za PP cev v betonskem stropu debeline 25 cm, dimenzija cevi 1 x ø110 mm","kpl",13,null,0]
[null,null,"Preboj za PP cev v betonskstropu debeline 25 cm, dimenzija cevi 1 x ø50 mm","kpl",6,null,0]
[null,null,"Preboj za 1x jekleno cev v armirano betonskem stropu debeline 25 cm, dimenzija jeklene cevi 1x DN50 mm, cev je izolirana s parazaporno izolacijo debeline 19 mm.","kpl",4,null,0]
[null,null,"Preboj za 1x jekleno cev v armirano betonskem stropu debeline 20 cm, dimenzija jeklene cevi 1x DN32 mm, cev je izolirana s parazaporno izolacijo debeline 19 mm.","kpl",2,null,0]
[null,null,null,null,null,null,0]
["II.",{"$f":"+COUNT($A$55:B233)+1","v":30},"Euro hidrant","kos",2,null,0]
[null,null,"Dobava in montaža EURO hidranta primernega za montažo na steno, sestavljnega iz omarice iz dekapirane pločevine, baravane v RAL 3000, priključni ventil DN50, armirane gumjaste cevi z notranjim premerom 19 mm, dolžine 30 m, navite v kolut, ročnika DN25, komplet s tesnilnim, spojnim in pritrdilnim materaialom.",null,null,null,0]
[null,null,null,null,null,null,0]
["II.",{"$f":"+COUNT($A$55:B236)+1","v":31},"Euro hidrant z omarico s prostorom za gasilni aparat","kos",7,null,0]
[null,null,"Dobava in montaža EURO hidranta primernega za montažo na steno, sestavljnega iz kombinirane omarice, skladne z EN 671-1, premerne za vgradnjo gasilnega aparata, dimenzija omarice 1090x740x250mm, izdelane  iz dekapirane pločevine, baravane v RAL 3000, priključni ventil DN50, armirane gumjaste cevi z notranjim premerom 19 mm, dolžine 30 m, navite v kolut, ročnika DN25, komplet s tesnilnim, spojnim in pritrdilnim materaialom.",null,null,null,0]
[null,null,null,null,null,null,0]
["II.",{"$f":"+COUNT($A$55:B239)+1","v":32},"Gasilni aparat",null,null,null,0]
[null,null,"Dobava in montaža ročnega gasilnega aparata polnjenega s ABC prahom, komplet s konzolo za pritrditev na zid in pritrdilnim materialom.",null,null,null,0]
[null,null,"Ustreza: proizvod GALLUS ali enakovredno",null,null,null,0]
[null,null,"9 enot gasila","kos",2,null,0]
[null,null,null,null,null,null,0]
["II.",{"$f":"+COUNT($A$55:B244)+1","v":33},"Gasilni aparat",null,null,null,0]
[null,null,"Dobava in montaža ročnega gasilnega aparata polnjenega s CO2, komplet s konzolo za pritrditev na zid in pritrdilnim materialom.",null,null,null,0]
[null,null,"Ustreza: proizvod GALLUS ali enakovredno",null,null,null,0]
[null,null,"5 enot gasila","kos",4,null,0]
[null,null,null,null,null,null,0]
["II.",{"$f":"+COUNT($A$55:B249)+1","v":34},"Gasilni aparat",null,null,null,0]
[null,null,"Dobava in montaža ročnega gasilnega aparata polnjenega s peno, komplet s konzolo za pritrditev na zid in pritrdilnim materialom.",null,null,null,0]
[null,null,"Ustreza: proizvod GALLUS ali enakovredno",null,null,null,0]
[null,null,"9 enot gasila","kos",15,null,0]
[null,null,null,null,null,null,0]
["II.",{"$f":"+COUNT($A$55:B254)+1","v":35},"Nalepka za označitev gasilnikov in hidrantov","kos",30,null,0]
[null,null,"Samolepilna nalepka z oznako gasilnega aparata, skladna s standardom SIST 1013, dimenzije 150 x 150 mm, nameščena 2 -2,2 m nad tlemi, nalepljena na  privijačeno podložno ploščo, komplet z dobavo podložne plošče dimenzije 150 x 150 mm in pritrdilnim materialom.",null,null,null,0]
[null,null,null,null,null,null,0]
[{"$f":"$B$55","v":"II."},{"$f":"+COUNT($A$55:B257)+1","v":36},"Kotni ventil - kuhinja","kos",16,null,0]
[null,null,"Dobava in montaža kotnega ventila za hladno/toplo vodo, primerne za priključitev umivalnika, dimnezije DN 15, s kromirano okrasno rozeto, z  nastavkom za priključitev 2x fleksibilne gumijaste cevi z navojem 3/4¨, komplet s spojnim in pritrdilnim materialom.",null,null,null,0]
[null,null,"Ustreza: proizvod Nobili ABC s filtrom (ident: AV00121CR) ali enakovreden proizvod.",null,null,null,0]
[null,null,null,null,null,null,{"$f":"E261*F261","v":0}]
["II.",{"$f":"+COUNT($A$55:B261)+1","v":37},"Sifon za umivalnik - kuhinja","kos",8,null,0]
[null,null,"Dobava in montaža PVC sifona, primernega za montažo na umivalnik, z odtočnim ventilom, zapornim čepom, manšeto za priključitev na odtočno cev, komplet s tesnilnim, spojnim in pritrdilnim materialom.",null,null,null,0]
[null,null,null,null,null,null,0]
["II.",{"$f":"+COUNT($A$55:B264)+1","v":38},"Talni sifon končni - kuhinja","kos",5,null,0]
[null,null,"Dobava in montaža končnega talnega sifona izdelanega iz nerjaveče pločevine, s koritom ɸ100 mm,  horizontalnim priključkom fi 50, s ploščico dimenzij 200x200mm, komplet s spojnim in tesnilnim materialom.",null,null,null,0]
[null,null,null,null,null,null,0]
["II.",{"$f":"+COUNT($A$55:B267)+1","v":39},"Talni sifon pretočni - kuhinja","kos",1,null,0]
[null,null,"Dobava in montaža pretočnega talnega sifona izdelanega iz nerjaveče pločevine, s koritom ɸ100 mm,  horizontalnim priključkoma fi 50, s ploščico dimenzij 200x200mm, komplet s spojnim in tesnilnim materialom.",null,null,null,0]
[null,null,null,null,null,null,0]
["II.",{"$f":"+COUNT($A$55:B270)+1","v":40},"Montaža talnih rešetk - kuhinja",null,null,null,0]
[null,null,"Samo montaža talnih rešetk (rešetke dobavi dobavitelj opreme kuhinje).",null,null,null,0]
[null,null,"300x300x120 mm; DN50","kos",3,null,0]
[null,null,"300x600x120 mm; DN70","kos",3,null,0]
[null,null,null,null,null,null,0]
["II.",{"$f":"+COUNT($A$55:B275)+1","v":41},"Priključitev armatur - kuhinja","kpl",9,null,0]
[null,null,"Montaža in priključitev armatur za potrebe kuhinje in bara, komplet z dobavo in montažo gikih cevi, komplet s vsem potrebnim spojnim in tesnilnim materialom.",null,null,null,0]
[null,null,null,null,null,null,0]
["II.",{"$f":"+COUNT($A$55:B278)+1","v":42},"Priključitev mehčalne naprave ","kpl",5,null,0]
[null,null,"Priključitev mehčalne naprave, dobavjene v sklopu kuhinjske opreme, priključek 1x DN20, komplet z dobavo vsega potrebnega spojnega in tesnilnega materiala",null,null,null,0]
[null,null,null,null,null,null,0]
["II.",{"$f":"+COUNT($A$55:B281)+1","v":43},"Priključitev kuhinskih naprav na vodovod","kpl",8,null,0]
[null,null,"Izvedba navezave kuhinjskih naprav na vodovodno omrežje komplet z dobavo vsega spojnega in tesnilnega materiala.",null,null,null,0]
[null,null,null,null,null,null,0]
["II.",{"$f":"+COUNT($A$55:B284)+1","v":44},"Priključitev kuhinjskih naprav na kanalizacijo","kpl",12,null,0]
[null,null,"Izvedba navezave kuhinjskih naprav na vodovodno omrežje komplet z dobavo vsega spojnega in tesnilnega materiala.",null,null,null,0]
[null,null,null,null,null,null,0]
["II.",{"$f":"+COUNT($A$55:B287)+1","v":45},"Priključitev negovalne kadi - negovalna kopalnica","kpl",4,null,0]
[null,null,"Dobava vsega potrebnega materiala in izvedba navezave negovalne kadi, dobavljen v sklopu notranje opreme), komplet s gibkimi cevmi, mašeto in vsem potrebnim spojnim ter tesnilnim materialom.\nDimenzije priključkov kadi:",null,null,null,0]
[null,null,"TSV DN20",null,null,null,0]
[null,null,"HSV DN20",null,null,null,0]
[null,null,"Ø50",null,null,null,0]
[null,null,null,null,null,null,0]
["II.",{"$f":"+COUNT($A$55:B293)+1","v":46},"Priključitev frizerskega stola","kos",1,null,0]
[null,null,"Dobava vsega potrebnega materiala in izvedba navezave frizerskega stola, dobavljen v sklopu notranje opreme, komplet s gibkimi cevmi, mašeto in vsem potrebnim spojnim ter tesnilnim materialom.\n",null,null,null,0]
[null,null,"TSV DN15",null,null,null,0]
[null,null,"HSV DN15",null,null,null,0]
[null,null,"Ø50",null,null,null,0]
[]
["II.",{"$f":"+COUNT($A$55:B299)+1","v":47},"Montažni material","kg",327,null,0]
[null,null,"Montažni in pritrdilni material sestaljen iz tipskih jeklenih vroče cinkanih konstrukcijskih elementov, s tipskimi spojnimi elementi z vijačnimi zvezami materiala 8.8. Kombinacije tipskih elementov se izbre skladno z navodili oz. priporočili proizvajalca o nosilnosti. Ves vgrajen montažni material mora imeti CE oznako. ",null,null,null,0]
[null,null,null,null,null,null,0]
["II.",{"$f":"+COUNT($A$55:B302)+1","v":48},"Tlačni preizkus instalacije","kpl",1,null,0]
[null,null,"Izpiranje instalacije pred izvebo tlačnega preizkusa, izvedba tlačnega preizkusa cevne instalcije z 1,5 x delovnim tlakom. V postavki je zajet ves potrebni material za izvedbo tlačnega prizkusa. Med preizkusom morajo biti porabniki odklopljeni od cevovoda. Po uspešno opravljenem tlačnem preizkusu se izdela zapisnik podpisan s strani izvajalca in nadzornega organa.",null,null,null,0]
[null,null,null,null,null,null,0]
["II.",{"$f":"+COUNT($A$55:B305)+1","v":49},"Izpiranje cevovoda po končanju del.","kpl",1,null,0]
[null,null,"Izpiranje instalacije po zaključenih delih, pred izvedbo dezinfekcije vodovodnega omrežja.",null,null,null,0]
[null,null,null,null,null,null,0]
["II.",{"$f":"+COUNT($A$55:B308)+1","v":50},"Dezinfekcija vodovodne instalacije","kpl",1,null,0]
[null,null,"Kloriranje in dezinfekcija notranje vodovodne instalacije s strani pooblaščene institucije, analiza pitne vode in pridobitev potrdila o ustreznosti vodovodne instalacije.",null,null,null,0]
[null,null,null,null,null,null,0]
["II.",{"$f":"+COUNT($A$55:B311)+1","v":51},"Izpiranje cevovoda po opravljeni dezinfekciji.","kpl",1,null,0]
[null,null,"Izpiranje vodovdne instalacije po opravljeni dezinfekciji, nevtralizacija s klorom onesnažene vode",null,null,null,0]
[null,null,null,null,null,null,0]
[{"$f":"$B$55","v":"II."},{"$f":"+COUNT($A$55:B314)+1","v":52},"Preiskusno obratovanje instalacije","kpl",1,null,0]
[null,null,"Poizkusno obratovanje, sestavljeno iz naslednjih dejavnosti:\n- polnjenje cevovodov\n-čiščenje perlatorjev\n- pregled instalacije\n- regulacija armatur\n- izdelava zapisnikov\n- izdelava navodil za obratovanje\n- meritve tlaka in temperatur",null,null,null,0]
[null,null,null,null,null,null,0]
[]
[null,null,{"$f":"CONCATENATE($B$55,\" \",$C$55,\" - SKUPAJ:\")","v":"II. INTERNA VODOVODNA INSTALACIJA - SKUPAJ:"},null,null,null,{"$f":"SUM(G57:G317)","v":0}]
[]
[null,"III.","SANITARNA KERAMIKA - SOBE"]
[]
[{"$f":"$B$321","v":"III."},{"$f":"1","v":1},"Viseča invalidska WC školjka -sobe","kos",38,null,{"$f":"E323*F323","v":0}]
[null,null,"Dobava in montaža stenske konzolne straniščne školjke prilagojene za invalide, z zadnjim iztokom, izdelana iz bele sanitarne keramike, dimenzije 770 x 380 mm, komplet s priključno garnituro za odtok, manšeto za priključitev na odtočno cev,  vključno  s pritrdilnim materialom in  vsemi potrebnimi nosilnimi elementimi za montažo na steno,skupaj z masivno leseno plastificirano sedežno desko s pokrovom in okovjem za pritrditev iz nerjavečega jekla. Pred nabavo se material  potrdi s strani arhitekta. Pri montaži se upošteva površinski načrt arihtekta.",null,null,null,{"$f":"E324*F324","v":0}]
[null,null,"Ustreza: proizvod  Fluidmaster LIV medica WC školjka  (ident: 679430) + sedežna deska AQUARIUS S (ident: 1409268301) ali enakovreden proizvod",null,null,null,0]
[null,null,null,null,null,null,0]
[{"$f":"$B$321","v":"III."},{"$f":"COUNT($A$323:$B326)+1","v":2},"Podometna konstrukcija s splakovalnim kotličkom, invalidski wc - sobe","kos",38,null,0]
[null,null,"Dobava in montaža podometna nosilne konstrukcije za invalidsko WC školjko, z razširitvijo za montažo držal za invalida, nastavljive po višini, antikorozijsko zaščitena,  s podometnim kotličkom, kotnim zapornim ventilom, fleksibilno cevko za priključitev na kotliček, cevjo za povezavo na WC školjko, komplet s spojnim in pritrdilnim materialom.",null,null,null,0]
[null,null,"Ustreza: Fluidmaster LIV   DUPLO WC 380 L SP (ident:4060452737) ali enakovreden proizvod",null,null,null,0]
[null,null,null,null,null,null,0]
[{"$f":"$B$321","v":"III."},{"$f":"COUNT($A$323:$B330)+1","v":3},"Aktivirna tipka za podometni kotliček - sobe","kos",38,null,0]
[null,null,"Dobava in montaža dvokoličinske aktivirne tipke za podometni kotliček, komplet z montažnim materialom. Pred nabavo se material  potrdi s strani arhitekta. Pri montaži se upošteva površinski načrt arihtekta. Pred nabavo se material potrdi s strani arhitekta. ",null,null,null,0]
[null,null,"Ustreza: Fluidmaster LIV OPAL DUO ANTIBAC art.7030414602 bela ali enakovreden proizvod",null,null,null,0]
[null,null,null,null,null,null,0]
[{"$f":"$B$321","v":"III."},{"$f":"COUNT($A$323:$B334)+1","v":4},"Fiksna invalidska konzola pri wc školjki - sobe","kos",38,null,0]
[null,null,"Dobava in montaža fiksne oporne konzole pri wc školjki, izdelane iz nerjavečega materiala, skupaj z drobnim montažnim materialom. Komplet s pritrdilnim materialom. Pred nabavo se material  potrdi s strani arhitekta. Pri montaži se upošteva površinski načrt arihtekta.",null,null,null,0]
[null,null,"l=700 mm",null,null,null,0]
[null,null,"Ustreza:Proizvod Ponte Giulio serija TUBOCOLOR G41JCS07 D2 ali enakovredno",null,null,null,0]
[null,null,null,null,null,null,0]
[{"$f":"$B$321","v":"III."},{"$f":"COUNT($A$323:$B339)+1","v":5},"Preklopna invalidska konzola pri wc školjki - sobe","kos",38,null,0]
[null,null,"Dobava in montaža oporne preklopne konzole pri wc škojlki, izdelane iz nerjavečega materiala,  skupaj z drobnim montažnim materialom. Komplet s pritrdilnim materialom. Pred nabavo se material  potrdi s strani arhitekta. Pri montaži se upošteva površinski načrt arihtekta.",null,null,null,0]
[null,null,"l=700 mm",null,null,null,0]
[null,null,"Ustreza:Proizvod Ponte Giulio serija TUBOCOLOR G41JCS10 D2 ali enakovredno",null,null,null,0]
[null,null,null,null,null,null,0]
[{"$f":"$B$321","v":"III."},{"$f":"COUNT($A$323:$B344)+1","v":6},"Umivalnik - sobe",null,null,null,0]
[null,null,"Dobava in montaža umivalnika izdelanega iz bele sanitarne keramike komplet z vijaki za pritrditev iz nerjavečega jekla. Pred nabavo se material potrdi s strani arhitekta. ",null,null,null,0]
[null,null,"Ustreza: proizvod Dolomite Gemma2  ali enakovreden proizvod",null,null,null,0]
[null,null,"velikost 800 x 440","kos",38,null,0]
[null,null,null,null,null,null,0]
[{"$f":"$B$321","v":"III."},{"$f":"COUNT($A$323:$B349)+1","v":7},"Podometna konstrukcija za umivalnik - sobe","kos",28,null,0]
[null,null,"Dobava in montaža podometne nosilne konstrukcije za umivalnik, nastavljiva po višini, antikorozijsko zaščitena, s priključki 1/2¨, odočnim kolenom ɸ50, gumijastim tesnilom za sifon, komplet s pritrdilnim materialom.",null,null,null,0]
[null,null,"Ustreza: proizvod Fluidmaster LIV-FIX WT FX umivalnik (ident: 4060452773)  ali enakovreden proizvod",null,null,null,0]
[null,null,null,null,null,null,0]
[{"$f":"$B$321","v":"III."},{"$f":"COUNT($A$323:$B353)+1","v":8},"Mešalna armatura za  umivalnik - sobe","kos",38,null,0]
[null,null,"Dobava in montaža mešalne armature za umivalnik,z kotnima ventiloma DN 15 z kromirano okrasno rozeto, zgornjim delom sifona, vključno z gibko cevjo in vsem potrebnim spojnim in pritrdilnim materialom. Pred nabavo se material  potrdi s strani arhitekta.",null,null,null,0]
[null,null,"Ustreza: proizvod NOBILI (ABC ident: ABH87118/1CR) ali enakovreden proizvod",null,null,null,0]
[null,null,null,null,null,null,0]
[{"$f":"$B$321","v":"III."},{"$f":"COUNT($A$323:$B357)+1","v":9},"Fiksna invalidska konzola pri umivalniku - sobe","kos",38,null,0]
[null,null,"Dobava in montaža fiksne oporne konzole pri umivalniku, izdelane iz nerjavečega materiala, skupaj z drobnim montažnim materialom. Komplet s pritrdilnim materialom. Pred nabavo se material  potrdi s strani arhitekta. Pri montaži se upošteva površinski načrt arihtekta.",null,null,null,0]
[null,null,"l=700 mm",null,null,null,0]
[null,null,"Ustreza:Proizvod Ponte Giulio serija TUBOCOLOR G41JCS07 D2 ali enakovredno",null,null,null,0]
[null,null,null,null,null,null,0]
[{"$f":"$B$321","v":"III."},{"$f":"COUNT($A$323:$B362)+1","v":10},"Ojačitev za fiksno stensko konzolo umivalnik - sobe","kos",38,null,0]
[null,null,"Izdelva ojačitve v mavčni steni za pritrditev fiksne invalidske konzole pri umivalniku, izdelane iz lesene deske, komplet z nosilnim in pritrdilnim materialom.",null,null,null,0]
[null,null,null,null,null,null,0]
[{"$f":"$B$321","v":"III."},{"$f":"COUNT($A$323:$B365)+1","v":11},"Talna odtočna rešetka - sobe",null,null,null,0]
[null,null,"Dobava in montaža talnega odtoka - kanalete za tuš ravne izvedbe, z vgrajeno protismradno zaporo, iztokom Ø50 skupaj s pohodno talno rešetko izdelano in nerjavne povržine, komplet s vsem potrebnim nosilnim, tesnilnim in pritrdilnim materialom. Pred nabavo se material potrdi s strani arhitekta. ",null,null,null,0]
[null,null,"Ustreza: proizvod Fluidmaster LIV kanaleta Vibe (ident: 674740) ali enakovreden proizvod.",null,null,null,0]
[null,null,"Dimenzije 350x60mm","kpl",38,null,0]
[null,null,null,null,null,null,0]
[{"$f":"$B$321","v":"III."},{"$f":"COUNT($A$323:$B370)+1","v":12},"Termostatska armatura za tuš kad - sobe",null,null,null,0]
[null,null,"Dobava in montaža stenske termostatske mešalne armature za toplo in mrzlo vodo, z vgrajenim nepovratnim ventilom, primerne za kad, opremljene z pršno glavo, fleksibilno vezno cevjo za pršno glavo, kromirano drsno stensko konzolo dolžine 80 cm za pritrditev pršne glave na steno,  kromiranima rozetama, komplet z montažnim, pritrdilnim,  spojnim in tesnilnim materialom. Pred nabavo se material  potrdi s strani arhitekta.",null,null,null,0]
[null,null,"Ustreza: NOBILI NOBI art. NB84130CR + AD140/60CR ali enakovreden proizvod","kos",38,null,0]
[null,null,null,null,null,null,0]
[{"$f":"$B$321","v":"III."},{"$f":"COUNT($A$323:$B374)+1","v":13},"Fiksna invalidska konzola za tuš - sobe","kpl",38,null,0]
[null,null,"Dobava in montaža fiksne oporne konzole v tuš kabini, izdelane iz nerjavečega materiala, skupaj z drobnim montažnim materialom. Komplet s pritrdilnim materialom. Pred nabavo se material  potrdi s strani arhitekta. Pri montaži se upošteva površinski načrt arihtekta.",null,null,null,0]
[null,null,"l=760x760x1200 mm",null,null,null,0]
[null,null,"Ustreza: PONTE GIULIO  art. G01JOS04 D2 ali enakovreden proizvod"]
[null,null,null,null,null,null,0]
[{"$f":"$B$321","v":"III."},{"$f":"COUNT($A$323:$B379)+1","v":14},"Invalidsko ogledalo","kos",38,null,0]
[null,null,"Dobava in montaža ogledala prilagojenega za funkcionalno ovirane osebe, z možnostjo prilagajanja kota, dimenzij: 69,5 x 74,9 [cm], spodnji rob 114 cm, vključno z montažo in pritrdilnim materialom. Pred nabavo se material potrdi s strani arhitekta.",null,null,null,0]
[null,null,"Ustreza:Proizvod Ponte Giulio F41JPS29 ali enakovreden proizvod",null,null,null,0]
[null,null,null,null,null,null,{"$f":"E383*F383","v":0}]
[{"$f":"$B$321","v":"III."},{"$f":"COUNT($A$323:$B383)+1","v":15},"WC ščetka","kos",38,null,0]
[null,null,"Dobava in montaža WC ščetke sestavljene iz plastične posodice, metlice, držala za pritrditev na steno, komplet s pritdilnim materialom. Pred nabavo se material potrdi s strani arhitekta.",null,null,null,0]
[null,null,"Ustreza : Gedy model: 523303 ali enakovreden proizvod",null,null,null,0]
[null,null,null,null,null,null,0]
[{"$f":"$B$321","v":"III."},{"$f":"COUNT($A$323:$B387)+1","v":16},"Obešalna kljukica ","kos",38,null,0]
[null,null,"Dobava in montaža obešalnih kljukic,  vključno  s pritrdilnim materialom. Pred nabavo se material potrdi s strani arhitekta. Pri montaži se upošteva površinski načrt arihtekta.",null,null,null,0]
[null,null,"Ustreza : Gedy model: 5426 ali enakovreden proizvod"]
[null,null,null,null,null,null,0]
[{"$f":"$B$321","v":"III."},{"$f":"COUNT($A$323:$B391)+1","v":17},"Držalo za milo","kos",38,null,0]
[null,null,"Dobava in montaža držala za milo,  vključno  s pritrdilnim materialom. Pred nabavo se material potrdi s strani arhitekta.. Pri montaži se upošteva površinski načrt arihtekta.",null,null,null,0]
[null,null,"Ustreza : Gedy model: 5411 ali enakovreden proizvod"]
[null,null,null,null,null,null,0]
[{"$f":"$B$321","v":"III."},{"$f":"COUNT($A$323:$B395)+1","v":18},"Držalo brisač","kos",38,null,0]
[null,null,"Dobava in montaža držala brisač, komplet  z montažnim in pritrdilnim materialom. Pred nabavo se material potrdi s strani arhitekta. Pri montaži se upošteva površinski načrt arihtekta.",null,null,null,0]
[null,null,"Ustreza : Gedy model: 5421-60 ali enakovreden proizvod",null,null,null,0]
[null,null,null,null,null,null,0]
[{"$f":"$B$321","v":"III."},{"$f":"COUNT($A$323:$B399)+1","v":19},"Podajalnik toaletnega papirja lističi","kos",38,null,0]
[null,null,"Dobava in montaža podajalnika toaletnega papirja , komplet s pritdilnim materialom. Pred nabavo se material potrdi s strani arhitekta. Pri montaži se upošteva površinski načrt arihtekta.",null,null,null,0]
[null,null,"Ustreza : Gedy model: 2443 ali enakovreden proizvod",null,null,null,0]
[null,null,null,null,null,null,0]
[{"$f":"$B$321","v":"III."},{"$f":"COUNT($A$323:$B403)+1","v":20},"Koš za smeti","kos",38,null,0]
[null,null,"Dobava in montaža kovinskega koša za smeti, s predalom volumna 14l. Pred nabavo se material potrdi s strani arhitekta. Pri montaži se upošteva površinski načrt arhitekture.",null,null,null,0]
[null,null,"Ustreza : Gedy model: 5309 ali enakovreden proizvod"]
[]
[null,null,{"$f":"CONCATENATE($B$321,\" \",$C$321,\" - SKUPAJ:\")","v":"III. SANITARNA KERAMIKA - SOBE - SKUPAJ:"},null,null,null,{"$f":"SUM(G323:G406)","v":0}]
[]
[null,"IV.","SANITARNA KERAMIKA - OSTALI PROSTORI"]
[]
[{"$f":"$B$410","v":"IV."},{"$f":"1","v":1},"Viseča invalidska WC školjka - negovalna kopalnica","kos",4,null,{"$f":"E412*F412","v":0}]
[null,null,"Dobava in montaža stenske konzolne straniščne školjke prilagojene za invalide, z zadnjim iztokom, izdelana iz bele sanitarne keramike, dimenzije 770 x 380 mm, komplet s priključno garnituro za odtok, manšeto za priključitev na odtočno cev,  vključno  s pritrdilnim materialom in  vsemi potrebnimi nosilnimi elementimi za montažo na steno,skupaj z masivno leseno plastificirano sedežno desko s pokrovom in okovjem za pritrditev iz nerjavečega jekla. Pred nabavo se material  potrdi s strani arhitekta. Pri montaži se upošteva površinski načrt arihtekta.",null,null,null,{"$f":"E413*F413","v":0}]
[null,null,"LIV Medica viseča WC školjka rimless ident: 9100901911 l=700mm  ali enakovreden proizvod","kos",4,null,0]
[null,null,"sedežna deka CARE ident: 1409267701  ali enakovreden proizvod","kos",4,null,0]
[null,null,null,null,null,null,0]
[{"$f":"$B$410","v":"IV."},{"$f":"COUNT($A$412:$B416)+1","v":2},"Podometna konstrukcija s splakovalnim kotličkom, invalidski wc - negovalna kopalnica","kos",4,null,0]
[null,null,"Dobava in montaža podometna nosilne konstrukcije za invalidsko WC školjko, z razširitvijo za montažo držal za invalida, nastavljive po višini, antikorozijsko zaščitena,  s podometnim kotličkom, kotnim zapornim ventilom, fleksibilno cevko za priključitev na kotliček, cevjo za povezavo na WC školjko, komplet s spojnim in pritrdilnim materialom.",null,null,null,0]
[null,null,"Ustreza: Fluidmaster LIV   DUPLO WC 380 L SP (ident:4060452737) ali enakovreden proizvod",null,null,null,0]
[null,null,null,null,null,null,0]
[{"$f":"$B$410","v":"IV."},{"$f":"COUNT($A$412:$B420)+1","v":3},"Aktivirna tipka za podometni kotliček - negovalna kopalnica","kos",4,null,0]
[null,null,"Dobava in montaža dvokoličinske aktivirne tipke za podometni kotliček, komplet z montažnim materialom. Pred nabavo se material  potrdi s strani arhitekta. Pri montaži se upošteva površinski načrt arihtekta. Pred nabavo se material potrdi s strani arhitekta. ",null,null,null,0]
[null,null,"Ustreza: Fluidmaster LIV OPAL DUO ANTIBAC art.7030414602 bela ali enakovreden proizvod",null,null,null,0]
[null,null,null,null,null,null,0]
[{"$f":"$B$410","v":"IV."},{"$f":"COUNT($A$412:$B424)+1","v":4},"Fiksna invalidska konzola pri wc školjki - negovalna kopalnica","kos",4,null,0]
[null,null,"Dobava in montaža fiksne oporne konzole pri wc školjki, izdelane iz nerjavečega materiala, skupaj z drobnim montažnim materialom. Komplet s pritrdilnim materialom. Pred nabavo se material  potrdi s strani arhitekta. Pri montaži se upošteva površinski načrt arihtekta.",null,null,null,0]
[null,null,"l=700 mm",null,null,null,0]
[null,null,"Ustreza:Proizvod Ponte Giulio serija TUBOCOLOR G41JCS07 D2 ali enakovredno",null,null,null,0]
[null,null,null,null,null,null,0]
[{"$f":"$B$410","v":"IV."},{"$f":"COUNT($A$412:$B429)+1","v":5},"Preklopna invalidska konzola pri wc školjki - negovalna kopalnica","kos",4,null,0]
[null,null,"Dobava in montaža oporne preklopne konzole pri wc škojlki, izdelane iz nerjavečega materiala,  skupaj z drobnim montažnim materialom. Komplet s pritrdilnim materialom. Pred nabavo se material  potrdi s strani arhitekta. Pri montaži se upošteva površinski načrt arihtekta.",null,null,null,0]
[null,null,"l=700 mm",null,null,null,0]
[null,null,"Ustreza:Proizvod Ponte Giulio serija TUBOCOLOR G41JCS10 D2 ali enakovredno",null,null,null,0]
[null,null,null,null,null,null,0]
[{"$f":"$B$410","v":"IV."},{"$f":"COUNT($A$412:$B433)+1","v":6},"Umivalnik invalidski - negovalna kopalnica","kos",4,null,0]
[null,null,"Dobava in montaža umivalnika prilagojenega za invalide ,izdelanega iz bele sanitarne keramike, velikosti 670 x 600 mm, komplet z vijaki za pritrditev iz nerjavečega jekla. Pred nabavo se material potrdi pri arhitektu.",null,null,null,0]
[null,null,"Ustreza: PONTE GIULIO Umivalnik 64 cm za invalide art. B40CMS07 ali enakovreden proizvod",null,null,null,0]
[null,null,null,null,null,null,0]
[{"$f":"$B$410","v":"IV."},{"$f":"COUNT($A$412:$B438)+1","v":7},"Armatura za invalidski umivalnik - negovalna kopalnica",null,null,null,0]
[null,null,"Dobava in montaža stoječe enoročne mešalne armature za toplo in hladno vodo, s podaljšano ročico za odpiranje vode, z gibkimi veznimi cevimi, dvema kromiranima medeninastima kotnima ventiloma DN 15, kromiranima rozetama, komplet z montažnim, spojnim in tesnilnim materialom. Pred nabavo se material potrdi s strani arhitekta.",null,null,null,0]
[null,null,"Ustreza: NOBILI NOBI art. AS84118/1CCR ali enakovreden proizvod","kos",4,null,0]
[null,null,null,null,null,null,0]
[{"$f":"$B$410","v":"IV."},{"$f":"COUNT($A$412:$B442)+1","v":8},"Sifon za invalidski umivalnik - negovalna kopalnica","kos",4,null,0]
[null,null,"Dobava in montaža PVC sifona, primernega za montažo na invalidski umivalnik, z odtočnim ventilom, zapornim čepom, manšeto za priključitev na odtočno cev, komplet s tesnilnim, spojnim in pritrdilnim materialom.",null,null,null,0]
[null,null,"Ustreza: BONOMINI 1 1/4 \" 32 250 ali enakovreden proizvod"]
[null,null,null,null,null,null,0]
[{"$f":"$B$410","v":"IV."},{"$f":"COUNT($A$412:$B446)+1","v":9},"Fiksna invalidska konzola pri umivalniku - negovalna kopalnica","kos",4,null,0]
[null,null,"Dobava in montaža fiksne oporne konzole pri umivalniku, izdelane iz nerjavečega materiala, skupaj z drobnim montažnim materialom. Komplet s pritrdilnim materialom. Pred nabavo se material  potrdi s strani arhitekta. Pri montaži se upošteva površinski načrt arihtekta.",null,null,null,0]
[null,null,"l=700 mm",null,null,null,0]
[null,null,"Ustreza:Proizvod Ponte Giulio serija TUBOCOLOR G41JCS07 D2 ali enakovredno",null,null,null,0]
[null,null,null,null,null,null,0]
[{"$f":"$B$410","v":"IV."},{"$f":"COUNT($A$412:$B451)+1","v":10},"Viseča WC školjka - ostali prostori","kos",13,null,0]
[null,null,"Dobava in montaža stenske konzolne straniščne školjke prilagojene za invalide, z zadnjim iztokom, izdelana iz bele sanitarne keramike, dimenzije 770 x 380 mm, komplet s priključno garnituro za odtok, manšeto za priključitev na odtočno cev,  vključno  s pritrdilnim materialom in  vsemi potrebnimi nosilnimi elementimi za montažo na steno,skupaj z masivno leseno plastificirano sedežno desko s pokrovom in okovjem za pritrditev iz nerjavečega jekla. Pred nabavo se material  potrdi s strani arhitekta. Pri montaži se upošteva površinski načrt arihtekta.",null,null,null,0]
[null,null,"Ustreza: proizvod  Fluidmaster LIV medica WC školjka  (ident: 679430) + sedežna deska AQUARIUS S (ident: 1409268301) ali enakovreden proizvod",null,null,null,0]
[null,null,null,null,null,null,0]
[{"$f":"$B$410","v":"IV."},{"$f":"COUNT($A$412:$B455)+1","v":11},"Podometna konstrukcija s splakovalnim kotličkom - ostali prostori","kos",13,null,0]
[null,null,"Dobava in montaža podometne nosilne konstrukcije za WC školjko, nastavljiva po višini, antikorozijsko zaščitena,  s podometnim kotličkom, kotnim zapornim ventilom, fleksibilno cevko za priključitev na kotliček, cevjo za povezavo na WC školjko, komplet s spojnim, tesnilnim in pritrdilnim materialom.",null,null,null,0]
[null,null,"Ustreza: proizvod Fluidmaster-LIV LIV FIX WC 3800 ali enakovreden proizvod",null,null,null,0]
[null,null,null,null,null,null,0]
[{"$f":"$B$410","v":"IV."},{"$f":"COUNT($A$412:$B459)+1","v":12},"Viseča invalidska WC školjka - ostali prostori","kos",4,null,0]
[null,null,"Dobava in montaža stenske konzolne straniščne školjke prilagojene za invalide, z zadnjim iztokom, izdelana iz bele sanitarne keramike, dimenzije 770 x 380 mm, komplet s priključno garnituro za odtok, manšeto za priključitev na odtočno cev,  vključno  s pritrdilnim materialom in  vsemi potrebnimi nosilnimi elementimi za montažo na steno,skupaj z masivno leseno plastificirano sedežno desko s pokrovom in okovjem za pritrditev iz nerjavečega jekla. Pred nabavo se material  potrdi s strani arhitekta. Pri montaži se upošteva površinski načrt arihtekta.",null,null,null,0]
[null,null,"Ustreza: LIV Medica viseča WC školjka rimless ident: 9100901911 l=700mm, sedežna deka CARE ident: 1409267701 ali enakovreden proizvod",null,null,null,0]
[null,null,null,null,null,null,0]
[{"$f":"$B$410","v":"IV."},{"$f":"COUNT($A$412:$B463)+1","v":13},"Podometna konstrukcija s splakovalnim kotličkom, invalidski wc - ostali prostori","kos",4,null,0]
[null,null,"Dobava in montaža podometna nosilne konstrukcije za invalidsko WC školjko, z razširitvijo za montažo držal za invalida, nastavljive po višini, antikorozijsko zaščitena,  s podometnim kotličkom, kotnim zapornim ventilom, fleksibilno cevko za priključitev na kotliček, cevjo za povezavo na WC školjko, komplet s spojnim in pritrdilnim materialom.",null,null,null,0]
[null,null,"Ustreza: Fluidmaster LIV   DUPLO WC 380 L SP (ident:4060452737) ali enakovreden proizvod",null,null,null,0]
[null,null,null,null,null,null,0]
[{"$f":"$B$410","v":"IV."},{"$f":"COUNT($A$412:$B467)+1","v":14},"Aktivirna tipka za podometni kotliček - ostali prostori","kos",17,null,0]
[null,null,"Dobava in montaža dvokoličinske aktivirne tipke za podometni kotliček, komplet z montažnim materialom. Pred nabavo se material  potrdi s strani arhitekta. Pri montaži se upošteva površinski načrt arihtekta. Pred nabavo se material potrdi s strani arhitekta. ",null,null,null,0]
[null,null,"Ustreza: Fluidmaster LIV OPAL DUO bela ali enakovreden proizvod",null,null,null,0]
[null,null,null,null,null,null,0]
[{"$f":"$B$410","v":"IV."},{"$f":"COUNT($A$412:$B471)+1","v":15},"Fiksna invalidska konzola pri wc školjk - ostali prostori","kos",4,null,0]
[null,null,"Dobava in montaža fiksne oporne konzole pri wc školjki, izdelane iz nerjavečega materiala, skupaj z drobnim montažnim materialom. Komplet s pritrdilnim materialom. Pred nabavo se material  potrdi s strani arhitekta. Pri montaži se upošteva površinski načrt arihtekta.",null,null,null,0]
[null,null,"l=700 mm",null,null,null,0]
[null,null,"Ustreza:Proizvod Ponte Giulio serija TUBOCOLOR G41JCS07 D2 ali enakovredno",null,null,null,0]
[null,null,null,null,null,null,0]
[{"$f":"$B$410","v":"IV."},{"$f":"COUNT($A$412:$B476)+1","v":16},"Preklopna invalidska konzola pri wc školjk - ostali prostori","kos",4,null,{"$f":"E477*F477","v":0}]
[null,null,"Dobava in montaža oporne preklopne konzole pri wc škojlki, izdelane iz nerjavečega materiala, z držalom toaletnega papirja,  skupaj z drobnim montažnim materialom. Komplet s pritrdilnim materialom. Pred nabavo se material  potrdi s strani arhitekta. Pri montaži se upošteva površinski načrt arihtekta.",null,null,null,0]
[null,null,"l=700 mm",null,null,null,0]
[null,null,"Ustreza:Proizvod Ponte Giulio serija TUBOCOLOR G41JCS10 D2 ali enakovredno",null,null,null,0]
[null,null,null,null,null,null,0]
[{"$f":"$B$410","v":"IV."},{"$f":"COUNT($A$412:$B481)+1","v":17},"Umivalniki - ostali prostori",null,null,null,0]
[null,null,"Dobava in montaža umivalnika izdelanega iz bele sanitarne keramike komplet z vijaki za pritrditev iz nerjavečega jekla. Pred nabavo se material potrdi s strani arhitekta. ",null,null,null,0]
[null,null,"Ustreza: proizvod Fluidmaster LIV Sydney  ali enakovreden proizvod",null,null,null,0]
[null,null,"Garderobe: Sydney Umivalnik 60 x 44 cm ident: 9100901709  ali enakovreden proizvod","kos",15,null,0]
[null,null,"Ostali prostori: Sydney Umivalnik 50 x 32 cm ident: 9100901794  ali enakovreden proizvod","kos",3,null,0]
[null,null,null,null,null,null,0]
[{"$f":"$B$410","v":"IV."},{"$f":"COUNT($A$412:$B487)+1","v":18},"Umivalniki okrogli - ostali prostori",null,null,null,0]
[null,null,"Dobava in montaža umivalnika izdelanega iz bele sanitarne keramike, primernega za vgradnjo v pult, komplet z vijaki za pritrditev iz nerjavečega jekla. Pred nabavo se material potrdi s strani arhitekta. ",null,null,null,0]
[null,null,"velikost  Φ340","kos",1,null,0]
[null,null,null,null,null,null,0]
["IV.",{"$f":"COUNT($A$412:$B491)+1","v":19},"Umivalnik invalidski brez preliva - ostali prostori","kos",5,null,0]
[null,null,"Dobava in montaža umivalnika  prilagojenega za invalide, izdelanega iz bele sanitarne keramike, velikosti 670 x 600 mm, komplet z vijaki za pritrditev iz nerjavečega jekla. Pred nabavo se material potrdi pri arhitektu. ",null,null,null,0]
[null,null,"Ustreza: PONTE GIULIO umivalnik 64 cm za invalide art. B40CMS07 ali enakovreden proizvod",null,null,null,0]
[null,null,null,null,null,null,0]
[{"$f":"$B$410","v":"IV."},{"$f":"COUNT($A$412:$B495)+1","v":20},"Podometna konstrukcija za umivalnik - ostali prostori","kos",7,null,0]
[null,null,"Dobava in montaža podometne nosilne konstrukcije za umivalnik, nastavljiva po višini, antikorozijsko zaščitena, s priključki 1/2¨, odočnim kolenom ɸ50, gumijastim tesnilom za sifon, komplet s pritrdilnim materialom.",null,null,null,0]
[null,null,"Ustreza: proizvod Fluidmaster LIV-FIX WT FX umivalnik (ident: 4060452773)  ali enakovreden proizvod",null,null,null,0]
[null,null,null,null,null,null,0]
[{"$f":"$B$410","v":"IV."},{"$f":"COUNT($A$412:$B499)+1","v":21},"Mešalna armatura za  umivalnik","kos",19,null,0]
[null,null,"Dobava in montaža mešalne armature za umivalnik,z kotnima ventiloma DN 15 z kromirano okrasno rozeto, zgornjim delom sifona, vključno z gibko cevjo in vsem potrebnim spojnim in pritrdilnim materialom. Pred nabavo se material  potrdi s strani arhitekta.",null,null,null,0]
[null,null,"Ustreza: proizvod NOBILI (NOBI art. NBE84118/1CR) ali enakovreden proizvod",null,null,null,0]
[null,null,null,null,null,null,0]
[{"$f":"$B$410","v":"IV."},{"$f":"COUNT($A$412:$B503)+1","v":22},"Armatura za invalidski umivalnik - ostali prostori","kos",5,null,0]
[null,null,"Dobava in montaža enoročne stoječe mešalne armature s podaljšano ročico, primerna za invalidski umivalnik, komplet z dvema kotnima ventiloma in  vsem potrebnim spojnim, tesnilnim in pritrdilnim materialom. Pred nabavo se material  potrdi s strani arhitekta.",null,null,null,0]
[null,null,"Ustreza: NOBILI NOBI art. AS84118/1CCR ali enakovreden proizvod",null,null,null,0]
[null,null,null,null,null,null,0]
[{"$f":"$B$410","v":"IV."},{"$f":"COUNT($A$412:$B507)+1","v":23},"Sifon za umivalnik ali korito","kos",19,null,0]
[null,null,"Dobava in montaža medeninastega kromiranega sifona za umivalnik, z odtočnim ventilom, zapornim čepom, manšeto za priključitev na odtočno cev, komplet s tesnilnim, spojnim in pritrdilnim materialom.",null,null,null,0]
[null,null,"Ustreza: BONOMINI ali enakovreden proizvod"]
[null,null,"1 1/4 \" 32 250"]
[null,null,null,null,null,null,0]
[{"$f":"$B$410","v":"IV."},{"$f":"COUNT($A$412:$B512)+1","v":24},"Sifon za invalidski umivalnik - ostali prostori","kos",5,null,0]
[null,null,"Dobava in montaža PVC sifona, primernega za montažo na invalidski umivalnik, z odtočnim ventilom, zapornim čepom, manšeto za priključitev na odtočno cev, komplet s tesnilnim, spojnim in pritrdilnim materialom.",null,null,null,0]
[null,null,"Ustreza: BONOMINI 1 1/4 \" 32 250 ali enakovreden proizvod",null,null,null,0]
[null,null,null,null,null,null,0]
[{"$f":"$B$410","v":"IV."},{"$f":"COUNT($A$412:$B516)+1","v":25},"Fiksna invalidska konzola pri umivalniku - ostali prostori","kos",5,null,0]
[null,null,"Dobava in montaža fiksne oporne konzole pri umivalniku, izdelane iz nerjavečega materiala, skupaj z drobnim montažnim materialom. Komplet s pritrdilnim materialom. Pred nabavo se material  potrdi s strani arhitekta. Pri montaži se upošteva površinski načrt arihtekta.",null,null,null,0]
[null,null,"l=700 mm",null,null,null,0]
[null,null,"Ustreza:Proizvod Ponte Giulio serija TUBOCOLOR G41JCS07 D2 ali enakovredno"]
[]
[{"$f":"$B$410","v":"IV."},{"$f":"COUNT($A$412:$B521)+1","v":26},"Pisoar","kos",4,null,0]
[null,null,"Dobava in montaža pisoarja izdelanega iz bele sanitarne keramike, primernega za montažo na steno, z dotokom in odtokom na zadnji strani, komplet z vijaki za pritrditev iz nerjavečega jekla. Pred nabavo se material potrdi s strani arhitekta.",null,null,null,0]
[null,null,"Ustreza: FLUIDMASTER - LIV Set IR HALITE za pisoar, 230V ident: 195079 ali enakovreden proizvod",null,null,null,0]
[null,null,null,null,null,null,0]
[{"$f":"$B$410","v":"IV."},{"$f":"COUNT($A$412:$B525)+1","v":27},"Senzorska splakovalna garnitura za pisoar","kos",4,null,0]
[null,null,"Dobava in montaža senzorske splakovalne garniture za pisoar sestavljena iz  ohišja za podometno vgradnjo, magnetnega ventila DN 15, zapornega ventila DN 15, IR senzorja, trnasformatorja za napajanje, zaščitne plošče  ter vsem potrebnim spojnim in pritrdilnim matetrialom.",null,null,null,0]
[null,null,"Ustreza:Proizvod Fluidmaster LIV Set IR HALITE za pisoar, 230V ident: 195079 ali enakovredno",null,null,null,0]
[null,null,null,null,null,null,0]
[{"$f":"$B$410","v":"IV."},{"$f":"COUNT($A$412:$B529)+1","v":28},"Nosilna konstrukcija za pisoar","kos",4,null,0]
[null,null,"Dobava in montaža podometne nosilne konstrukcije za pisoar, nastavljiva po višini, antikorozijsko zaščitena, z zapornim in dušilnim ventilom 1/2¨, fleksibilno dotočno cevjo,reduciranim odtočnim kolenom ɸ63/57-50/44 in sifonom, komplet s pritrdilnim in tesnilnim materialom.",null,null,null,0]
[null,null,"Ustreza: proizvod Fluidmaster  LIV-FIX UR 135 IR 230V (ident: 4060452775) ali enakovreden proizvod",null,null,null,0]
[null,null,null,null,null,null,0]
[{"$f":"$B$410","v":"IV."},{"$f":"COUNT($A$412:$B533)+1","v":29},"Sifon za pisoar","kpl",4,null,0]
[null,null,"Dobava in montaža sifona za pisoar za skrito vgradnjo, komplet s spojnim in pritrdilnim materialom.",null,null,null,0]
[null,null,"Ustreza: FLUIDMASTER - LIV SIFON ZA PISOAR, ident: 195477 ali enakovreden proizvod",null,null,null,0]
[null,null,null,null,null,null,0]
[{"$f":"$B$410","v":"IV."},{"$f":"COUNT($A$412:$B537)+1","v":30},"Tuš kad",null,null,null,0]
[null,null,"Dobava in montaža tuš pravokotne  kadi izdelane iz litega sanitarnega akrila, primerne za vgradnjo v nivo tal, z odtočno rešetko iz nerjavečega materiala diminzije 200x 200 mm, z vsem potrebnim nosilnim, tesnilnim in pritrdilnim materialom. Pred  nabavo se material potrdi s strani arhitekta.",null,null,null,0]
[null,null,"Ustreza: proizvod Ponte Giulio ali enakovreden proizvod",null,null,null,0]
[null,null,"Dimenzije: 1100x900 mm ","kos",1,null,0]
[null,null,"Dimenzije: 900x900 mm ","kos",2,null,0]
[null,null,null,null,null,null,0]
[{"$f":"$B$410","v":"IV."},{"$f":"COUNT($A$412:$B543)+1","v":31},"Armatura za tuš kad",null,null,null,0]
[null,null,"Dobava in montaža stenske termostatske mešalne armature za toplo in mrzlo vodo, opremljene z pršno glavo, fleksibilno vezno cevjo za pršno glavo, kromirano drsno stensko konzolo dolžine 80 cm za pritrditev pršne glave na steno, kromiranima rozetama, komplet z montažnim, pritrdilnim, spojnim in tesnilnim materialom. Pred nabavo se material potrdi s strani arhitekta.",null,null,null,0]
[null,null,"Ustreza: NOBILI NOBI art. NB84130CR + AD140/60CR ali enakovreden proizvod","kos",3,null,0]
[null,null,null,null,null,null,0]
[{"$f":"$B$410","v":"IV."},{"$f":"COUNT($A$412:$B547)+1","v":32},"Sifon za tuš kad","kos",3,null,0]
[null,null,"Dobava in montaža sifona za tuš kad, z odtočnim ventilom, zapornim čepom, manšeto za priključitev na odtočno cev, komplet s tesnilnim, spojnim in pritrdilnim materialom.",null,null,null,{"$f":"E549*F549","v":0}]
[null,null,"Ustreza: proizvod Fluidmaster LIV sifon za tuš (ident: 605926) ali enakovreden proizvod.",null,null,null,0]
[null,null,null,null,null,null,0]
[{"$f":"$B$410","v":"IV."},{"$f":"COUNT($A$412:$B551)+1","v":33},"Ojačitev za armaturo za tuš kad","kos",1,null,0]
[null,null,"Izdelva ojačitve v mavčni steni za pritrditev armature tuš kadi, izdelane iz lesene deske, komplet z nosilnim in pritrdilnim materialom.",null,null,null,0]
[null,null,null,null,null,null,0]
[{"$f":"$B$410","v":"IV."},{"$f":"COUNT($A$412:$B554)+1","v":34},"Trokadero","kos",4,null,0]
[null,null,"Dobava in montaža trokadera izdelanega iz bele sanitarne keramike, primernega za montažo na tla, z odtokom na spodnji strani, dimenzije 535x460 mm, komplet z vijaki za pritrditev iz nerjavečega jekla. Pred nabavo se material potrdi s strani arhitekta.",null,null,null,0]
[null,null,"Ustreza: INKER ZOOM ali enakovreden proizvod",null,null,null,0]
[null,null,null,null,null,null,0]
[{"$f":"$B$410","v":"IV."},{"$f":"COUNT($A$412:$B558)+1","v":35},"Rešetka za trokadero","kos",4,null,0]
[null,null,"Dobava in montaža rešetke za trokadero izdelane iz nerjavečega jekla, komplet s pritrdilnim materialom.",null,null,null,0]
[null,null,"Ustreza: INKER ZOOM ali enakovreden proizvod",null,null,null,0]
[null,null,null,null,null,null,0]
[{"$f":"$B$410","v":"IV."},{"$f":"COUNT($A$412:$B562)+1","v":36},"Armatura za trokadero in izpirač","kos",4,null,0]
[null,null,"Dobava in montaža stenske enoročne mešalne armature za toplo in hladno vodo, z dvema ekscentričnima dvovijačnikoma, kromiranima rozetama, fleksibilno cevjo in pršno glavo, podaljšano izlivno cevjo, hitrim izpiračem 3/4\", komplet s spojnim in tesnilnim materialom. Pred nabavo se material potrdi s strani arhitekta.",null,null,null,0]
[null,null,"Ustreza: BLITZ ali enakovreden proizvod",null,null,null,0]
[null,null,null,null,null,null,0]
[{"$f":"$B$410","v":"IV."},{"$f":"COUNT($A$412:$B566)+1","v":37},"Ojačitev za armaturo za trokadero","kos",4,null,0]
[null,null,"Izdelva ojačitve v mavčni steni za pritrditev armature in izpirača trokadera, izdelane iz lesene deske, komplet z nosilnim in pritrdilnim materialom.",null,null,null,0]
[null,null,null,null,null,null,0]
[{"$f":"$B$410","v":"IV."},{"$f":"COUNT($A$412:$B569)+1","v":38},"Armatura za kuhinjsko korito - stoječa","kos",8,null,0]
[null,null,"Dobava in montaža stoječe enoročne mešalne armature za toplo in hladno vodo, z gibkimi veznimi cevmi, dvema kromiranima medeninastima kotnima ventiloma DN 15, kromiranima rozetama, komplet z montažnim, spojnim in tesnilnim materialom.",null,null,null,0]
[null,null,"Ustreza: proizvod Nobili (ident: ABH87133CR) ali enakovreden proizvod.",null,null,null,0]
[null,null,null,null,null,null,0]
[{"$f":"$B$410","v":"IV."},{"$f":"COUNT($A$412:$B573)+1","v":39},"Sifon za kuhinjsko korito s priključkom za PS","kos",5,null,0]
[null,null,"Dobava in montaža sifona za kuhinjsko korito s priključkom za PS, izdelanega iz PP, z odtočnim ventilom, zapornim čepom, prelivom s fleksibilno cevko, manšeto za priključitev na odtočno cev, komplet s tesnilnim, spojnim in pritrdilnim materialom.",null,null,null,0]
[null,null,null,null,null,null,0]
[{"$f":"$B$410","v":"IV."},{"$f":"COUNT($A$412:$B576)+1","v":40},"Sifon za kuhinjsko korito","kos",3,null,0]
[null,null,"Dobava in montaža sifona za kuhinjsko korito, izdelanega iz PP, z odtočnim ventilom, zapornim čepom, prelivom s fleksibilno cevko, manšeto za priključitev na odtočno cev, komplet s tesnilnim, spojnim in pritrdilnim materialom.",null,null,null,0]
[null,null,null,null,null,null,0]
[{"$f":"$B$410","v":"IV."},{"$f":"COUNT($A$412:$B579)+1","v":41},"Pipa za pomivalni / pralni stroj","kos",5,null,0]
[null,null,"Pipa za hladno vodo, primerna za priključitev pralnega/pomivalnega stroja, dimnezije DN 15, z  nastavkom za priključitev fleksibilne gumijaste cevi z navojem 3/4¨, komplet s spojnim in pritrdilnim materialom.",null,null,null,0]
[null,null,"Ustreza: proizvod Nobili (ident: AV00121/1CR) ali enakovreden proizvod.",null,null,null,0]
[null,null,null,null,null,null,0]
[{"$f":"$B$410","v":"IV."},{"$f":"COUNT($A$412:$B583)+1","v":42},"PVC korito s sifonom","kos",3,null,0]
[null,null,"Dobava in montaža PVC korita, dimenzij cca 50x35 [cm], s sifonom, vključno z odlivnim ventilom,  montažnim, pritrdilnim in tesnilnim materialom.",null,null,null,0]
[null,null,null,null,null,null,0]
[{"$f":"$B$410","v":"IV."},{"$f":"COUNT($A$412:$B586)+1","v":43},"Armatura za hladno vodo","kos",3,null,0]
[null,null,"Dobava in montaža armature za hladno vodo  DN15, primerna za montažo na steno, z nastavkom za priključitev fleksibilne cevi, komplet s spojnim, tesnilnim in pritrdilnim materialom.",null,null,null,0]
[null,null,"Ustreza: proizvod Kovina Hertz ali enakovreden proizvod",null,null,null,0]
[null,null,null,null,null,null,0]
[{"$f":"$B$410","v":"IV."},{"$f":"COUNT($A$412:$B590)+1","v":44},"Invalidsko ogledalo","kos",9,null,0]
[null,null,"Dobava in montaža ogledala prilagojenega za funkcionalno ovirane osebe, z možnostjo prilagajanja kota, dimenzij: 69,5 x 74,9 [cm], spodnji rob 114 cm, vključno z montažo in pritrdilnim materialom. Pred nabavo se material potrdi s strani arhitekta.",null,null,null,0]
[null,null,"Ustreza:Proizvod Ponte Giulio F41JPS29 ali enakovreden proizvod",null,null,null,0]
[null,null,null,null,null,null,0]
[{"$f":"$B$410","v":"IV."},{"$f":"COUNT($A$412:$B594)+1","v":45},"Ogledalo ","kos",17,null,0]
[null,null,"Dobava in montaža ogledala z brušenimi robovi, vgrajenega nad umivalnikom, komplet s pritrdilnim materialom. Pred nabavo se material potrdi s strani arhitekta. Pri montaži se upošteva površinski načrt arihtekta.",null,null,null,0]
[null,null,"Ustreza : Gedy 65 X 50 model: 8400 G DAKOTA ali enakovreden proizvod",null,null,null,0]
[null,null,null,null,null,null,0]
[{"$f":"$B$410","v":"IV."},{"$f":"COUNT($A$412:$B598)+1","v":46},"WC ščetka","kos",21,null,0]
[null,null,"Dobava in montaža WC ščetke sestavljene iz plastične posodice, metlice, držala za pritrditev na steno, komplet s pritdilnim materialom. Pred nabavo se material potrdi s strani arhitekta.",null,null,null,0]
[null,null,"Ustreza : Gedy model: 5233-03 ali enakovreden proizvod",null,null,null,0]
[null,null,null,null,null,null,0]
[{"$f":"$B$410","v":"IV."},{"$f":"COUNT($A$412:$B602)+1","v":47},"Obešalna kljukica ","kos",21,null,0]
[null,null,"Dobava in montaža obešalnih kljukic,  vključno  s pritrdilnim materialom. Pred nabavo se material potrdi s strani arhitekta. Pri montaži se upošteva površinski načrt arihtekta.",null,null,null,0]
[null,null,"Ustreza : Gedy model: 5426 ali enakovreden proizvod"]
[null,null,null,null,null,null,0]
[{"$f":"$B$410","v":"IV."},{"$f":"COUNT($A$412:$B606)+1","v":48},"Dispanzer za tekoče milo","kos",27,null,0]
[null,null,"Dobava in montaža dispanzerja za tekoče milo, montaža ob sanitarni umivalnik, komplet z montažnim in pritrdilnim materialom. Pred nabavo se material potrdi s strani arhitekta. Pri montaži se upošteva površinski načrt arihtekta.",null,null,null,0]
[null,null,"Ustreza: GEDY art. 2294 ali enakovreden proizvod",null,null,null,0]
[null,null,null,null,null,null,0]
[{"$f":"$B$410","v":"IV."},{"$f":"COUNT($A$412:$B610)+1","v":49},"Podajalnik papirnatih brisač v lističih","kos",27,null,0]
[null,null,"Dobava in montaža podajalnika brisač v lističih, komplet  z montažnim in pritrdilnim materialom. Pred nabavo se material potrdi s strani arhitekta. Pri montaži se upošteva površinski načrt arihtekta.",null,null,null,0]
[null,null,"Ustreza: GEDY model: 2427 ali enakovreden proizvod",null,null,null,0]
[null,null,null,null,null,null,{"$f":"E614*F614","v":0}]
[{"$f":"$B$410","v":"IV."},{"$f":"COUNT($A$412:$B614)+1","v":50},"Podajalnik toaletnega papirja lističi","kos",21,null,0]
[null,null,"Dobava in montaža podajalnika toaletnega papirja , komplet s pritdilnim materialom. Pred nabavo se material potrdi s strani arhitekta. Pri montaži se upošteva površinski načrt arihtekta.",null,null,null,0]
[null,null,"Ustreza : Gedy model: 2443 ali enakovreden proizvod",null,null,null,0]
[null,null,null,null,null,null,0]
[{"$f":"$B$410","v":"IV."},{"$f":"COUNT($A$412:$B618)+1","v":51},"Koš za smeti","kos",27,null,0]
[null,null,"Dobava in montaža kovinskega koša za smeti, s predalom volumna 14l. Pred nabavo se material potrdi s strani arhitekta. Pri montaži se upošteva površinski načrt arhitekture.",null,null,null,0]
[null,null,"Ustreza : Gedy model: 5309 ali enakovreden proizvod",null,null,null,0]
[null,null,null,null,null,{"$f":"H622","v":0},{"$f":"E622*F622","v":0}]
[null,null,{"$f":"CONCATENATE($B$410,\" \",$C$410,\" - SKUPAJ:\")","v":"IV. SANITARNA KERAMIKA - OSTALI PROSTORI - SKUPAJ:"},null,null,null,{"$f":"SUM(G412:G622)","v":0}]
[]
[{"$f":"CONCATENATE(\"DELNA REKAPITULACIJA - \",A3,C3)","v":"DELNA REKAPITULACIJA - S1.VODOVOD IN KANALIZACIJA"}]
[null,null,null,null,null,{"$f":"H626*DobMont","v":0}]
["Cena na enoto in znesek so v EUR brez DDV!",null,null,null,null,{"$f":"H627*DobMont","v":0}]
[]
[null,{"$f":"B9","v":"I."},{"$f":"C9","v":"VODOMERNI JAŠEK"},null,null,null,{"$f":"G53","v":0}]
[]
[null,{"$f":"$B$55","v":"II."},{"$f":"C55","v":"INTERNA VODOVODNA INSTALACIJA"},null,null,{"$f":"H631*DobMont","v":0},{"$f":"G319","v":0}]
[]
[null,{"$f":"$B$321","v":"III."},{"$f":"C321","v":"SANITARNA KERAMIKA - SOBE"},null,null,{"$f":"H633*DobMont","v":0},{"$f":"G408","v":0}]
[]
[null,{"$f":"B410","v":"IV."},{"$f":"C410","v":"SANITARNA KERAMIKA - OSTALI PROSTORI"},null,null,null,{"$f":"G623","v":0}]
[]
[null,null,{"$f":"CONCATENATE(A3,\"\",C3,\" - SKUPAJ:\")","v":"S1.VODOVOD IN KANALIZACIJA - SKUPAJ:"},null,null,null,{"$f":"SUM(G628:G636)","v":0}]
[null,null,null,null,null,{"$f":"H638*DobMont","v":0}]

{"sheet":"OGREVANJE IN HLAJENJE","index":4,"n_rows":951,"n_cols":7,"rows_kept":951,"cut":false,"hidden":false,"merged":[[3,10,5,10]]}
["4.",null,"POPIS DEL S PREDRAČUNOM - Strojne inštalacije"]
[]
["S2.",null,"OGREVANJE IN HLAJENJE"]
["Opombe:"]
[null,null,"Vse naprave in elemente se mora dobaviti z ustreznimi certifikati, atesti, garancijami, navodili za obratovanje, vzdrževanje, posluževanje in servisiranje ter funkcionalno shemo izvedenega stanja. Pri vseh napravah je potrebno upoštevati stroške vseh preizkusov, izpiranja in polnjenja cevnih sistemov, zagona, meritve in nastavitve obratovalnih količin vključno s pridobitvijo ustreznih certifikatov s strani pooblaščenih institucij pri izvedbi je potrebno upoštevati stroške vseh pripravljalnih in zaključnih del (vključno z usklajevanjem z ostalimi izvajalci na objektu) ter vse transportne, zavarovalne in ostale stroške. pri vseh elementih je potrebno upoštevati ves montažni in tesnilni material."]
["Cene na enoto, vrednosti in zneski so v EUR brez DDV!"]
["Poz.",null,"Opis postavke","Enota","Količina","Cena","Vrednost"]
[]
[null,"I.","KOTLOVNICA IN TOPLOTNA POSTAJA"]
[]
["I.",1,"Toplotna črpalka","kpl",1,null,{"$f":"E11*F11","v":0}]
[null,null,"Dobava in montaža hladilnega agregata - toplotne črpalke za proizvodnjo hladne/tople vode kompaktne izvedbe z zračno hlajenim kondenzatorjem za zunanjo postavitev, TIHE izvedbe z visokim izkoristkom za delovanje pri temperaturah okolice od -20 do 48°C ter proizvodnjo tople vode do 65°C (pri okolici -10°C), mikroprocesorsko voden, s preverjenimi tehničnimi podatki s strani priznane neodvisne inštitucije EUROVENT, z listinami o skladnosti EC. ",null,null,null,0]
[null,null,"Izdelan po Evropskih predpisih in standardih.",null,null,null,0]
[null,null,"- OKVIR",null,null,null,0]
[null,null,"Okvir je izjemno trden in samonosilen, da dovoli oporo na tleh na 4 točkah, brez deformacije. Zaradi zunanje postavitve je odporen na vremenske pogoje in korozijo, okvir in paneli so izvedeni brez varjenja iz pocinkane pločevine ter praškasto barvani s poliestersko barvo. Zunanja termična izolacija je odporna na UV žarke.",null,null,null,0]
[null,null,"Dostop do tehničnih komponent je izveden z lahko in enostavno snemljivimi paneli. ",null,null,null,0]
[null,null,"Tehnični predel vključno s kompresorji je ločen in zvočno izoliran od kondenzatorja, da preprečimo prehod hrupa v okolico in zaradi lažjega dostopa do vgrajenih komponent, tudi med obratovanjem.",null,null,null,0]
[null,null,"- SPIRALNI KOMPRESORJI",null,null,null,0]
[null,null,"Spiralni (scroll) kompresorji z EVI tehnologijo, hermetične izvedbe s tesnjenjem delovnega prostora z drsnimi tesnili in zasučne sklopke z ekscentrično vrtečo se obtočno spiralo. V sled razmakljivih drsnih plošč je neobčutljiv za tekočinske udare.",null,null,null,0]
[null,null,"Mazalni sitem s pomočjo dinamične oljne črpalke, gretje olja in pokaznim okencem nivostaja.",null,null,null,0]
[null,null,"Dvopolni elektromotor z mehkim zagonom, hlajen z vsesanim hladilnim sredstvom, elektronsko zaščiten proti pregretju, izpadu faze in zamenjavi faz.",null,null,null,0]
[null,null,"Kompresorji so montirani na dodatne protivibracijske podloge, zaradi prenosa vibracij na okvir naprave in s tem posledično zmanjšanje hrupa. Nameščeni so v tehničnem predelu naprave.",null,null,null,0]
[null,null,"So direktno trdno spajkani na cevni razvod hladilnega sredstva, da se prepreči možnost puščanja hladilnega sredstva.",null,null,null,0]
[null,null,"- ZRAČNI KONDENZATOR / UPARJALNIK",null,null,null,0]
[null,null,"Vertikalno postavljen, toplotni menjalnik iz bakrenih cevi s tesno nasajenimi aluminijastimi lamelami.",null,null,null,0]
[null,null,"Opremljen s kontrolo tlaka kondenzacije/uparjanja, za celoletno delovanje pri zunanjih temperatur od -20 do 48°C.",null,null,null,0]
[null,null,"- VENTILATORJI",null,null,null,0]
[null,null,"Naprava je standardno opremljena s frekvenčno reguliranimi ventilatorskimi elektromotorji. Lopatice ventilatorjev so kovinske, da so odporne na visoke temperature zaradi sončnega sevanja, brez deformacije. Zaščita motorjev ventilatorjev je IP54.",null,null,null,0]
[null,null,"- VODNI UPARJALNIK / KONDENZATOR",null,null,null,0]
[null,null,"Visoko učinkovit ploščni izmenjevalec za hladilni krog, sestavljen iz med seboj varjenimi rebrastimi ploščami iz nerjavečega jekla 316. Uparjalnik je izoliran z visoko kvalitetno toplotno izolacijo. Hidravlični priključek je izveden s »VICTAULIC« načinom spajanja. Opremljen s:",null,null,null,0]
[null,null," - termostatskim ekspanzijskim ventilom",null,null,null,0]
[null,null," - senzorjem izstopne in vstopne vode",null,null,null,0]
[null,null," - pretočnim stikalom na vodni strani ",null,null,null,0]
[null,null," - protizamrzovalnim senzorjem",null,null,null,0]
[null,null," - protizamrzovalnim el. grelnikom",null,null,null,0]
[null,null,"- HLADILNI KROG",null,null,null,0]
[null,null,"Vsak hladilni krog vključuje: filtrni sušilnik, pokazno okence z indikatorjem vlažnosti hladiva, elektromagnetni ventil, zaporni ventil na tekočinskem vodu, zaporni ventil v tlačnem vodu, izoliran sesalni vod, senzorjem visokega in nizkega tlaka.",null,null,null,0]
[null,null,"- HIDRAVLIČNI DEL",null,null,null,0]
[null,null,"Hidravlični modul z obtočno črpalko vgrajeno v zvočno izoliranem tehničnem predelu naprave zaradi zmanjšanja prehoda hrupa v okolico, lovilcem nesnage, ekspanzijsko posodo, pretočnim stikalom, odzračevalnim in izpustnim ventilom.",null,null,null,0]
[null,null,"DELNA REKUPERACIJA",null,null,null,0]
[null,null,"Visoko učinkovit ploščni izmenjevalec vgrajen na vsakem hladilni krogu, sestavljen iz med seboj varjenimi rebrastimi ploščami iz nerjavečega jekla 316. Uparjalnik je izoliran z visoko kvalitetno toplotno izolacijo. Možno je uporabiti do 25% odpadne toplote.",null,null,null,0]
[null,null,"- VKLOPNA IN KRMILNA PLOŠČA",null,null,null,0]
[null,null,"Vklopna plošča je narejena po predpisih EN 60-204 in vsebuje: zaščito elektromotorjev kompresorjev, tokovno zaščito pred preobremenitvijo, vrstne sponke, vklopnim varnostnim stikalom z ročico na zunanji strani in vezalne sheme.",null,null,null,0]
[null,null,"Krmilna plošča vsebuje  regulacijski krmilnik z mikroprocesorskim vodenjem, ki ustreza priporočilom 89/336/EC.",null,null,null,0]
[null,null,"- MIKROPROCESORSKI KRMILNIK",null,null,null,0]
[null,null,"Krmilnik  ima štirivrstični LCD prikazovalnik in je tovarniško nameščen. ",null,null,null,0]
[null,null,"Omogoča:",null,null,null,0]
[null,null,"- direktni dostop do prebiranja vrednosti",null,null,null,0]
[null,null,"- kontrolo temperature vode (vstopno ali izstopno)",null,null,null,0]
[null,null,"- možnost nastavitve kontrole temperature vode glede na zunanjo temperaturo",null,null,null,0]
[null,null,"- kontrola tlaka kondenzacije",null,null,null,0]
[null,null,"- programska zaščita pred kratkimi vklopi kompresorjev",null,null,null,0]
[null,null,"- računanje in balansiranje časovnega delovanja kompresorja",null,null,null,0]
[null,null,"- kontroliranje števila zagonov kompresorja",null,null,null,0]
[null,null,"- zaščito elektromotorjev kompresorjev"]
[null,null," - opcijsko opremljen s komunikacijskim protokolom MODBUS, RS 485 izhod, za priklop na CNS sisteme",null,null,null,0]
[null,null,"Prosto napetostni vhodi:",null,null,null,0]
[null,null,"- zunanji ON/OFF kontakti",null,null,null,0]
[null,null,"- Preklop med nastavno točko 1 in 2 (hlajenja/gretje)",null,null,null,0]
[null,null,"Prosto napetostni izhodi:",null,null,null,0]
[null,null,"- Splošne napake",null,null,null,0]
[null,null,"- PREIZKUSNI ZAGON",null,null,null,0]
[null,null,"Naprava je kompletno sestavljena, električno zvezana, napolnjena s hladilom in preizkušena v tovarni, tako da na lokaciji napravo samo hidravlično in električno priključimo.",null,null,null,0]
[null,null," - TEHNIČNE KARAKTERISTIKE (certificirane po EUROVENT), tu navedene pri projektnih pogojih:",null,null,null,0]
[null,null," - hladilna moč:    126,8 kW",null,null,null,0]
[null,null," - skupna delovna električna moč:    49,3 kW (kompresorji, ventilatorji, črpalka)",null,null,null,0]
[null,null," - hladilno število EER:      2,57",null,null,null,0]
[null,null," - sistem hlajenega medija:      7/12 °C, glikol 35%",null,null,null,0]
[null,null," - temperatura okolice:      35 °C",null,null,null,0]
[null,null," - grelna moč:    124,0 kW",null,null,null,0]
[null,null," - skupna delovna električna moč:    60,2 kW (kompresorji, ventilatorji, črpalka)",null,null,null,0]
[null,null," - grelno število COP:      2,06",null,null,null,0]
[null,null," - sistem gretega medija:      60/55, -5 °C, glikol 35%",null,null,null,0]
[null,null," - temperatura okolice:      -5 °C",null,null,null,0]
[null,null," - grelna moč odpadne toplote:    31,7 kW",null,null,null,{"$f":"E75*F75","v":0}]
[null,null," - sistem gretega medija:      60/50 °C, glikol 35%",null,null,null,0]
[null,null," - TEHNIČNI PODATKI:",null,null,null,0]
[null,null," - hlajeni medij:       R410A",null,null,null,0]
[null,null," - število kompresorjev:     4",null,null,null,0]
[null,null," - število hladilnih krogov:     2",null,null,null,0]
[null,null," - število ventilatorjev:      3",null,null,null,0]
[null,null," - pretok zraka:      31900 m3/h",null,null,null,0]
[null,null," - električno napajanje:     400/3/50 V/Ph/Hz",null,null,null,0]
[null,null," - max. el. tok:    148,53 A  (brez korektorja cosfi)",null,null,null,0]
[null,null," - zagonski el. tok :    289,53 A",null,null,null,0]
[null,null," - zvočni tlak na 10m:     45 dB(A)",null,null,null,0]
[null,null," - zvočna moč:    77 dB(A)",null,null,null,0]
[null,null," - hidravlični priključek:    2˝1/2",null,null,null,0]
[null,null," - velikost raztezne posode:     24 L",null,null,null,0]
[null,null," - dimenzije DxŠxV:     4330x1100x1880 mm",null,null,null,0]
[null,null," - teža samo naprava:     1562 kg",null,null,null,0]
[null,null,"- DODATNA OPREMA",null,null,null,0]
[null,null," - moduli oz. oprema: korektor cosfi RIF, mehki zagon DRE, vmesnik ModBus",null,null,null,0]
[null,null," - amortizerji VT",null,null,null,0]
[null,null," - daljinski tablo",null,null,null,0]
[null,null,"Ustreza: AERMEC, tip NRK 0650 HDE 01 ali enakovredno",null,null,null,0]
[null,null,null,null,null,null,0]
["I.",{"$f":"COUNT($A$11:B97)+1","v":2},"Postavitev TČ","kpl",1,null,0]
[null,null,"Postavitev toplotne črpalke iz postavke I.1(teža cca 1600 kg) na predpripravljen podstavek ob objektu. V postavki je zajet transport in razkladanje opreme s transportnega stredstva.",null,null,null,0]
[null,null,null,null,null,null,0]
["I.",{"$f":"COUNT($A$11:B100)+1","v":3},"Zagon toplotne črpalke","kpl",1,null,0]
[null,null,"Zagon toplotne črpalke s strani pooblaščenega serviserja, nastavitve, meritve in izdelava zapisnika o opravljenem posegu.",null,null,null,0]
[]
["I.",{"$f":"COUNT($A$11:B103)+1","v":4},"Protizmrzovalna tekočina","l",140,null,{"$f":"E104*F104","v":0}]
[null,null,"Dobava in polnenje glikola za pripravo mešanice 35% mešanice glikol-voda za polnjenje primarnega kroga toplotnih črpalk. Popisna količina opredeljuje količino nerazredčenega propilen glikola (količina je ocenjena na projektiran razvod)."]
[null,null,null,null,null,null,0]
["I.",{"$f":"COUNT($A$11:B106)+1","v":5},"Plinski kondenzacijski kotel","kpl",2,null,0]
[null,null,"Dobava in montaža stenskrga kondenzacijskega kombinirani grelnika vode za plin zemeljski plin ali UNP na prisilni vlek, z zaprto zgorevalno komoro, za pripravo ogrevne vode. Plinsko trošilo izvedba B in C kategorije. Plinski grelnik je sestavljen iz:\n",null,null,null,0]
[null,null,"zgorevanje predhodno pripravljene mešanice zraka in plina v cilindrični zgorevalni komori opremljeni z vžigalnimi elektrodami in kontrolno sondo,",null,null,null,0]
[null,null,"zgorevalna komora iz nerjaveče pločevine znotraj toplotno izolirana s keramiko,",null,null,null,0]
[null,null,"toplotni izmenjevalec plin/voda iz nerjavečega jekla AISI 316L,",null,null,null,0]
[null,null,"pnevmatski plinski ventil,",null,null,null,0]
[null,null,"odvodni ventilator zgorelih dimnih plinov z elektronsko kontrolo števila vrtljajev,",null,null,null,0]
[null,null,"sistema za odvod kondenza sestavljen iz zajemne posode, sifona in gibke odvodne cevi,",null,null,null,0]
[null,null,"hidravlični sklop sestavljen iz dovodnega razdelilca, presostata na primarnem krogu, obtočne črpalke z regulatorjem hitrosti in vgrajenim odzračevanjem,",null,null,null,0]
[null,null,"varnostni ventil (4 bar) in manometer,",null,null,null,0]
[null,null,"varnostni termostat na vodni strani,",null,null,null,0]
[null,null,"mikroproscesorsko krmiljen upravljalni tablo z moduliranim krmiljenjem delovanja plamena preko 2 senzorjev (sanitarni in ogrevni),",null,null,null,0]
[null,null,"tipalo na dovodu ogrevne vode,",null,null,null,0]
[null,null,"tipalo na povratku ogrevna vode,",null,null,null,0]
[null,null,"gumb za nastavitev temperature ogrevne vode20÷85°C,",null,null,null,0]
[null,null,"elektronski vžig, zakasnjen vžig pri ogrevanju, protizmrzovalna zaščita,",null,null,null,0]
[null,null,"stopnja električne zaščite IPX5D,",null,null,null,0]
[null,null,"Dodatna oprema:",null,null,null,0]
[null,null,"povezava kaskada kotličkov na MOD BUS",null,null,null,0]
[null,null,"Vključno z vsem drobnim montažnim, pritrdilnim in tesnilnim materialom.",null,null,null,0]
[null,null,"Qgmin = 7,2 kW (pri temp 80/60 oziroma 8,1 pri temp. 50/30)",null,null,null,0]
[null,null,"Qgmax = 73,0 kW (pri temp 80/60 oziroma 80,3 pri temp. 50/30)",null,null,null,0]
[null,null,"Ustreza: Imerrgas, tip: Victrix PRO 80 2 ErP GPL ali enakovredno",null,null,null,0]
[null,null,null,null,null,null,0]
["I.",{"$f":"COUNT($A$11:B130)+1","v":6},"Zagon kotla","kpl",1,null,0]
[null,null,"Zagon kotla s strani pooblaščenega serviserja, nastavitve, meritve in izdelava zapisnika o opravljenem posegu.",null,null,null,0]
[null,null,null,null,null,null,0]
["I.",{"$f":"COUNT($A$11:B133)+1","v":7},"Stenska konzola","kpl",2,null,0]
[null,null,"Dobava in montaža stenske konzole za pritrditev plinskega kotla na steno.",null,null,null,0]
[null,null,null,null,null,null,0]
["I.",{"$f":"COUNT($A$11:B136)+1","v":8},"Hidravlični kolektor","kpl",1,null,0]
[null,null,"Dobava in montaža hidravličnega kolektorja za 2 grelnika zgoraj navedenih plinskih kotlov s vsem pritlrdilnim, spojnim in montažnim materialom.",null,null,null,0]
[null,null,null,null,null,null,0]
["I.",{"$f":"COUNT($A$11:B139)+1","v":9},"Naprava za nevtralizacijo kondenzata","kpl",1,null,0]
[null,null,"Dobava in montaža naprave za nevtralizacijo (povišanje pH vrednosti nad 6,5) kondenzata v plinsko kurjenih proizvajalcih toplote (kondenzacijski kotli) in/ali dimovodnih sistemih iz plemenitega jekla za kaskadni sistem zgoraj navedenih kotlov, umetne mase, grafita, stekla in keramike v skladu z ATV-DVWK-A 251, DVGW-VP 114, DIN 4716-2.\nIzvedba:\n1 zbiralnik iz um.mase s pokr.\nnevtralizacijskega granulata\n5 m Posebna gibka cev za kondenzat DN20\n3 cevne objemke 20-32 1 paket pH\nindikatorskih palčk",null,null,null,0]
[null,null,null,null,null,null,{"$f":"E142*F142","v":0}]
["I.",{"$f":"COUNT($A$11:B142)+1","v":10},"Sistem za odvod dimnih plinov",null,null,null,0]
[null,null,"Dobava in montaža koaksialnega dimnika za dovod zgorevalnega zraka in odvod dimnih plinov iz kondenzacijskega plinskega kotla, zunanja cev izdelana iz aluminija in barvana z zunanje strani, notranja cev izdelana iz kislinsko odpornega materiala, komplet  s tesnili, spojnim in pritrdilnim materialom.",null,null,null,0]
[null,null,"Revizijski t-kos","kpl",2,null,0]
[null,null,"Priključna prirobnica 125/80","kpl",2,null,0]
[null,null,"Koleno 125/80-90°","kpl",2,null,0]
[null,null,"Cevni podaljšek 125/80 0,5m","kpl",2,null,0]
[null,null,"Cevni podaljšek 125/80 1m","kpl",2,null,0]
[null,null,"Cevni podaljšek 125/80 1,95m","kpl",8,null,0]
[null,null,"Strešna kapa za ravno streho, sestavljena iz obrobe, 1m izoliranega cevnega podaljška, izpušno zajemnega kolektorja in pokrivne kape","kpl",2,null,0]
[null,null,"V postavki je potrebno zajeti ves potrebni pritrdilni, spojni in tesnilni material.",null,null,null,0]
[null,null,null,null,null,null,0]
["I.",{"$f":"COUNT($A$11:B153)+1","v":11},"Pregled dimnika","kpl",2,null,0]
[null,null,"Pregled dimnika s strani pooblaščene organizacije, izvedba meritev ter izdaj potrdila o ustreznosti dimovodne naprave",null,null,null,0]
[null,null,null,null,null,null,0]
["I.",{"$f":"COUNT($A$11:B156)+1","v":12},"Naprava za vzdrževanje tlaka","kpl",1,null,0]
[null,null,"Dobava in montaža postaje za vzdrževanje tlaka za pripravo vode v cirkulacijskem krožnem toku po DIN 4751 s funkcijami"]
[null,null,"– Sprejema raztezne vode"]
[null,null,"– Adiabatnega izločanja plinov/vakuumskega razplinjevanja "]
[null,null,"– Umirjevalne in usedalne posode za železov oksid in zemeljsko-alkalne kovine iz omrežja"]
[null,null,"– S samodejnim dopolnjevanjem sveže vode zunaj ekspanzijske posode, skladno z DIN 1988 in certifikatom DVGW"]
[null,null,"– Posoda iz nerjavnega jekla (1.4301), zaprta proti atmosferi in brez gumijaste membrane"]
[null,null,"– Okence za kontrolo ravni z nivojskim stikalom"]
[null,null,"– Montaža krmilne opreme na vrhu posode, z armaturami za vzdrževanje tlaka po DIN 4751 "]
[null,null,"– Stikalna shema, prikazovalnik tlaka z nastavitvijo zahtevane vrednosti"]
[null,null,"– Toplotna izolacija iz mehke pene, ki ne vsebuje kloroogljikovodikov, s kaširano sivo \n\t    PVC-folijo, na zadrgo"]
[null,null,"Posebne armature:"]
[null,null,"– Prelivni ventil"]
[null,null,"– Črpalka za vzdrževanje tlaka, normalno sesalna in z neposredno priključenim \n\t\t  pogonskim motorjem, tiha izvedba"]
[null,null,"– Sistemska ločitev"]
[null,null,"– Elektronika z glavnim in krmilnimi stikali, varovalke, krmilni program z mikroprocesorjem, kompletno ožičenje, brezpotencialni izhod za javljanje motenj"]
[null,null,"– Priključna napetost  230V / 50Hz"]
[null,null,"Pribor Z1E za naprave za priklop sveže vode\nkomplet s protipovratnim ventilom 1/2\"\", zapornim ventilom 1/2\", lovilnikom nesnage 1/2\", vodnim števcem in fleksibilno cevjo dolžine 1m.\nPribor Z2 za naprave za priklop naprave na\nogrevalni ali hladilni sistem, ki vsebuje lovilnik nesnage 1/2\", kapasti ventil 1/2\", zaporni ventil 1/2\" in dve fleksibilni cevi dolžine 0,5m skupaj z povezovalnim modulom.\nPribor Z4 - revizijska odprtina za ročno čiščenje v breztlačni posodi, pričvrščena z vodotesnim pokrovom.\nZagon in nastavitev regulacije.",null,null,null,0]
[null,null,"Ustreza: AIR-SEP, AS-E 48/4-M  ali enakovredno",null,null,null,0]
[]
["I.",{"$f":"COUNT($A$11:B176)+1","v":13},"Patronski ionski mehčalec vode","kos",1,null,{"$f":"E177*F177","v":0}]
[null,null,"Dobava in montaža patronskega ionskega mehčalca vode\n- tlačno posodo iz armiranega polietilena\n- distributorjem\n- močno kislim ionskim izmenjevalcem\n- priključno gibljivo cevjo kos 2\n- vodomerom\n- montažo\nTIP: MINMEH 2\nDimenzije D206x762 mm\nVolumen ionske smole 18 l\nVolumen tlačne posode 21,4 l\nHidravlična kapaciteta do 0,9 m3/h\nKapaciteta 4000l\nKapac. (do prev. 10 mS/cm) 24,8 mol/reg\nPriključki vhod/izhod 20 DN\nDelovni tlak 10 bar\nDelovna temperatura do 40 oC"]
[null,null,"Ustreza: MakCMC, MINMEH 2 ali enakovredno"]
[null,null,null,null,null,null,0]
["I.",{"$f":"COUNT($A$11:B180)+1","v":14},"Hidravlična kretnica","kpl",1,null,0]
[null,null,"Dobava in montaža jeklene črne cevi iz celega dolžine cca 0,5 m dimenzije DN200 za pretok iz kretnice 12 m3/h proti korozijsko zaščitena in izolirana, komplet z izpustom in odzračevanjem ter z vsem potrebnim nosilnim, tesnilnim materialom.",null,null,null,0]
[null,null,"Ustreza: kot npr. SIMON d.o.o. Grosuplje ali enakovredno",null,null,null,0]
[null,null,null,null,null,null,0]
["I.",{"$f":"COUNT($A$11:B184)+1","v":15},"Hranilnik - ogrevanje","kos",1,null,0]
[null,null,"Dobava in montaža hranilnika ogrevne vode prostornine 1000 L, delovni tlak max. 6 bar, delavna temperatura max. 95°C, izdelan iz jeklene pločevine, zunanja in notranja stran zaščitena pred korozijo, dobavljen z izolacije. Pred naročilom je potrebno priključke uskladiti z vezalno shemo strojnih instalacij in preveriti dimenzijo odprtine za vnos v toplotno postajo. Hranilnik ima najmanj priključke :           \n3 x DN 80\n1 x DN 20 - izpust\n2 x DN 15 - tipala, termometri. ",null,null,null,0]
[null,null,"Ustreza: kot npr. SIMON d.o.o. Grosuplje ali enakovredno",null,null,null,0]
[null,null,null,null,null,null,0]
["I.",{"$f":"COUNT($A$11:B188)+1","v":16},"Hranilnik - hlajenje","kos",1,null,0]
[null,null,"Dobava in montaža hranilnika ogrevne vode prostornine 200 L, delovni tlak max. 6 bar, delavna temperatura max. 50°C, izdelan iz jeklene pločevine, zunanja in notranja stran zaščitena pred korozijo, dobavljen brez izolacije. Pred naročilom je potrebno priključke uskladiti z vezalno shemo strojnih instalacij in preveriti dimenzijo odprtine za vnos v toplotno postajo. Hranilnik ima najmanj priključke :           \n4 x DN 80\n1 x DN 20 - izpust\n2 x DN 15 - tipala, termometri. ",null,null,null,0]
[null,null,"Ustreza: kot npr. SIMON d.o.o. Grosuplje ali enakovredno",null,null,null,0]
[null,null,null,null,null,null,0]
["I.",{"$f":"COUNT($A$11:B192)+1","v":17},"Raztezna posoda",null,null,null,0]
[null,null,"Dobava in montaža raztezne posode s fiksno zračno blazino, jeklena, varjena, za ogrevalne in hladilne vodne sisteme, komplet s spojnim, nosilnim, tesnilnim in pritrdilnim materialom. Po montaži se nastavi ustrezen tlak zračne blazine.",null,null,null,0]
[null,null,"Volumen: 50 L","kpl",1,null,0]
[null,null,"Volumen: 18 L","kpl",3,null,0]
[null,null,null,null,null,null,0]
["I.",{"$f":"COUNT($A$11:B197)+1","v":18},"Servisni ventil",null,null,null,0]
[null,null,"Dobava in montaža servisnega ventila za raztezno posodo, z ročico za zaščito proti nepooblaščenemu odpiranju, komplet s spojnim in tesnilnim materialom.",null,null,null,0]
[null,null,"DN15","kos",3,null,0]
[null,null,"DN 20","kos",1,null,0]
[null,null,null,null,null,null,0]
["I.",{"$f":"COUNT($A$11:B202)+1","v":19},"Varnostni ventil",null,null,null,0]
[null,null,"Dobava in montaža varnostnega ventila, za tlak odpiranja 3 bar, z ohišjem tlačne stopnje PN10, izdelan iz medenine, z navojnimi priključki, komplet s spojnim in tesnilnim materialom.",null,null,null,0]
[null,null,"DN15, 3,5 bar","kos",1,null,0]
[null,null,"DN20, 3,5 bar","kos",3,null,0]
[null,null,null,null,null,null,0]
["I.",{"$f":"COUNT($A$11:B207)+1","v":20},"Obtočna črpalka",null,null,null,0]
[null,null,"Dobava in montaža obtočne črpalke s potopljenim rotorjem, za cevno vgradnjo za delovanje z medijem voda ali mešanico glikol/voda. Uporabna za vse vrste ogrevanja, prezračevanja, klimatizacije (-10 °C do +110 °C). Z integrirano elektronsko regulacijo zmogljivosti za konstanten/variabilen diferenčni tlak ter funcijo izklopa črpalke pri ničnem pretoku.\nZa črpalko se dobavi modul za eksterni vklop/izklop ter javljanje napake. \n",null,null,null,0]
[null,null,"Č1 KLIMATI\nvoda\nV = 4655 l/h, H = 6 m\nP el = 5 - 190 W; U = 230 V\nUstreza: WILO; YONOS MAXO 25/0,5-10 ali enakovredno","kos",1,null,0]
[null,null,"Č2 KONVEKTORJI\nvoda\nV = 20480 l/h, H = 9 m\nP el = 10 - 1250 W; U = 230 V\nUstreza: WILO; YONOS MAXO 50/0,5-16 ali enakovredno","kos",1,null,0]
[null,null,"Č3 RADIATORJI\nvoda\nV = 1930 l/h, H = 6 m\nP el = 7 - 160 W; U = 230 V\nUstreza: WILO; STRATOS MAXO 25/0,5-8 ali enakovredno","kos",1,null,0]
[null,null,"Č4 TALNO\nvoda\nV = 6940 l/h, H = 8,5 m\nP el = 7 - 340 W; U = 230 V\nUstreza: WILO; STRATOS MAXO 30/0,5-14 ali enakovredno","kos",1,null,0]
[null,null,"Č5 TČ\nvoda + glikol\nV = 21375 l/h, H = 6 m\nP el = 40 - 800 W; U = 230 V\nUstreza: WILO; YONOS MAXO 65/0,5-12 ali enakovredno","kos",1,null,0]
[null,null,"Č6 TČ OT\nvoda + glikol\nV = 3006 l/h, H = 3,5 m\nP el = 5 - 120 W; U = 230 V\nUstreza: WILO; YONOS MAXO 25/0,5-7 ali enakovredno","kos",1,null,0]
[null,null,"Č7 PT2 STV NT\nvoda\nV = 5240 l/h, H = 5,5 m\nP el = 5 - 190 W; U = 230 V\nUstreza: WILO; YONOS MAXO 30/0,5-10 ali enakovredno","kos",1,null,0]
[null,null,"Č8 STV VT\nvoda\nV = 2600 l/h, H = 3,5 m\nP el = 5 - 120 W; U = 230 V\nUstreza: WILO; YONOS MAXO 25/0,5-7 ali enakovredno","kos",1,null,0]
[null,null,null,null,null,null,0]
["I.",{"$f":"COUNT($A$11:B218)+1","v":21},"Prenosnik toplote PT1 OG-HL",null,null,null,0]
[null,null,"Dobava in montaža prenosnika toplote za hidravlično ločitev tokokroga toplotne črpalke in sistema ogrevanja / hlajenja. Ploščni prenosnik toplote lotane izvedbe, z varilnimi polholenderji, montažno konzolo, izoliran na mestu vgradnje s parozaporno izolacijo iz sintetične gume debeline 25 mm.\nProjektni pogoji:\nHLAJENJE\nprimar: 129 kW, 7/12 °C, 35/65% glikol/voda, \nsekundar: 129 kW,9/14 °C, 100% mehka voda,\nGRETJE\nprimar: 122 kW,  60/55 °C, 35/65% glikol/voda, \nsekundar: 122 kW, 55/50 °C, 100% mehka voda \ndpmax-primar= 24 kPa\ndpmax-sekundar= 17 kPa",null,null,null,0]
[null,null,"Ustreza:  Danfoss, tip XB 59M-1-160 PN25 G2 Ax52mm  + Montažna konzola XB59 ali enakovredno","kos",1,null,0]
[null,null,null,null,null,null,0]
["I.",{"$f":"COUNT($A$11:B222)+1","v":22},"Prenosnik toplote PT2 STV NT",null,null,null,0]
[null,null,"Dobava in montaža prenosnika toplote za hidravlično ločitev tokokroga ogrevne vode in sanitarne vode. Ploščni prenosnik toplote lotane izvedbe, z varilnimi polholenderji, montažno konzolo.\nProjektni pogoji:\nGRETJE\nprimar: 60 kW,  55/45 °C, mehka voda, \nsekundar: 60 kW, 15/50 °C, sanitarna voda \ndpmax-primar= 26 kPa\ndpmax-sekundar= 2 kPa",null,null,null,0]
[null,null,"Ustreza:  Danfoss, tip XB 12L-1-36 G11/4\" x 25mm + izolacija EPP XB 12L:36-60 + Montažna konzola XB12 ali enakovredno","kos",1,null,{"$f":"E225*F225","v":0}]
[null,null,null,null,null,null,0]
["I.",{"$f":"COUNT($A$11:B226)+1","v":23},"Krogelna pipa s podaljšanim vretenom",null,null,null,0]
[null,null,"Dobava in montaža krogelne zaporne pipe s podaljšanim vretenom, z ročico za odpiranje, za delovne temperature  0°C do 120°C, tlačne stopnje PN10, komplet s spojnim in tesnilnim materialom.",null,null,null,0]
[null,null,"DN50","kos",5,null,0]
[null,null,null,null,null,null,0]
["I.",{"$f":"COUNT($A$11:B230)+1","v":24},"Krogelna pipa ",null,null,null,0]
[null,null,"Dobava in montaža krogelne zaporne pipe, z ročico za odpiranje, za delovne temperature  0°C do 120°C, tlačne stopnje PN10, komplet s spojnim in tesnilnim materialom.",null,null,null,0]
[null,null,"DN50","kos",9,null,0]
[null,null,"DN40","kos",6,null,0]
[null,null,"DN32","kos",6,null,0]
[null,null,"DN25","kos",1,null,0]
[null,null,"DN20","kos",2,null,0]
[null,null,"DN15","kos",2,null,0]
[null,null,"DN10","kos",10,null,0]
[null,null,null,null,null,null,0]
["I.",{"$f":"COUNT($A$11:B240)+1","v":25},"Krogelna pipa P",null,null,null,0]
[null,null,"Dobava in montaža prirobnične zaporne pipe, z ročico za odpiranje, primerne za sistem ogrevanja in hlajena, tlačne stopnje PN10, za delovne temperature  0°C do 120°C, komplet s protiprirobnicam, vsem potrebnim spojnim tesnilnim in vijačnim materialom.",null,null,null,0]
[null,null,"DN80","kos",19,null,0]
[null,null,null,null,null,null,0]
["I.",{"$f":"COUNT($A$11:B244)+1","v":26},"Nepovratna loputa ",null,null,null,0]
[null,null,"Dobava in montaža nepovratne lopute, primerne za vodoravno ali navpično vgradnjo, za delovne temperature  0°C do 120°C, tlačne stopnje PN10, komplet s tesnilnim ter spojnim materialom.  ",null,null,null,0]
[null,null,"DN50","kos",3,null,0]
[null,null,"DN40","kos",1,null,{"$f":"E248*F248","v":0}]
[null,null,"DN32","kos",2,null,0]
[null,null,null,null,null,null,0]
["I.",{"$f":"COUNT($A$11:B250)+1","v":27},"Nepovratna loputa P",null,null,null,0]
[null,null,"Dobava in montaža nepovratne lopute prirobnične izvedbe z protiprirobnicami, primerne za vodoravno ali navpično vgradnjo, za delovne temperature  0°C do 120°C, tlačne stopnje PN10, komplet s tesnilnim ter spojnim materialom.  ",null,null,null,0]
[null,null,"DN80","kos",3,null,0]
[null,null,null,null,null,null,0]
["I.",{"$f":"COUNT($A$11:B254)+1","v":28},"Lovilnik nesnage",null,null,null,0]
[null,null,"Dobava in montaža lovilnika nesnage, primernega za delovne temperature  od 0°C do 120°C, tlačne stopnje PN10, komplet  s spojnim in tesnilnim materialom.  ",null,null,null,0]
[null,null,"DN40","kos",1,null,0]
[null,null,null,null,null,null,0]
["I.",{"$f":"COUNT($A$11:B258)+1","v":29},"Lovilnik nesnage P",null,null,null,0]
[null,null,"Dobava in montaža lovilnika nesnage prirobnične izvedbe , primernega za delovne temperature  od 0°C do 120°C, tlačne stopnje PN10, primerna za montažo med prirobnice z dvema protiprirobnicama komplet  s spojnim in tesnilnim materialom.  ",null,null,null,0]
[null,null,"DN80","kos",2,null,0]
[null,null,null,null,null,null,0]
["I.",{"$f":"COUNT($A$11:B262)+1","v":30},"Motorna loputa prirobnična",null,null,null,0]
[null,null,"Dobava in montaža zaporne prirobnične lopute z elektromotornim pogonom 230 V, ON-OFF in končnima stikaloma za indikacijo lege, za sisteme gretja in hlajenja, tlačne stopnje PN 10, primerna za montažo med prirobnice, kompletno z dvema protiprirobnicama, tesnilnim in vijačnim materialom. ",null,null,null,0]
[null,null,"DN80","kos",8,null,0]
[null,null,null,null,null,null,0]
["I.",{"$f":"COUNT($A$11:B266)+1","v":31},"Mešalni 3P ventil"]
[null,null,"Dobava in montaža 3-potnega mešalnega ventila, s tritočkovnim motornim pogonom z napajnjem 230 V, 50 Hz, komplet s holandci, tesnili ter spojnim in vijačnim materialom.\nZa karakteristike:\n- kvs 25 m3/h,\n- DN 40.",null,null,null,0]
[null,null,"za talno ogrevanje, MV2\n- kvs 25 m3/h,\n- DN 40.","kos",1,null,{"$f":"E269*F269","v":0}]
[null,null,"za TČ in PK, MV1\n- kvs 63 m3/h,\n- DN 65.","kos",1,null,{"$f":"E270*F270","v":0}]
[]
["I.",{"$f":"COUNT($A$11:B271)+1","v":32},"Merilnik toplotne energije"]
[null,null,"Merilnik toplotne energije hladu in toplote - KOMBI z vmesnim kosom, navojne/prirobnične izvedbe, tlačne stopnje PN16, s holandci in tesnili, skupaj z računsko enoto z zunanjim napajanjem 230V, baterijo, parom potopnih temperaturnih tipal, spojkami za privaritev na cevovode (tipala), opcijsko kartico MBUS, z vsem tesnilnim in pritrdilnim materialom."]
[null,null,"TČ - ogrevanje in hlajenje ME1\ndimenzija kalorimetra: DN65\nQn= 25 m3/h, Qmax= 50 m3/h\nvgradna dolžina: 200 mm\npriključek: P DN65\nvgradnja v toplotni postaji\nUstreza: Itron Allmess, Axonic 25F KOMBI ali enakovredno","kos",1,null,{"$f":"E274*F274","v":0}]
[null,null,"PK1 - ogrevanje ME2\ndimenzija kalorimetra: DN40\nQn= 10 m3/h, Qmax= 20 m3/h\nvgradna dolžina: 300 mm\npriključek: 2\"\nvgradnja v toplotni postaji\nUstreza: Itron Allmes,  CF-ECHO II - 10-300-D - KO ali enakovredno","kos",1,null,{"$f":"E275*F275","v":0}]
[null,null,null,null,null,null,0]
["I.",{"$f":"COUNT($A$11:B276)+1","v":33},"Polnilna/praznilna pipa",null,null,null,0]
[null,null,"Dobava in montaža polnilne/praznilne pipe z nastavkom za gumijasto cev, navojni priključek, zaporno ročico in navojnim zapornim čepom, tlačne stopnje PN10, komplet s spojnim in tesnilnim materialom",null,null,null,0]
[null,null,"DN 15","kos",15,null,0]
[null,null,"DN 20","kos",6,null,0]
[null,null,null,null,null,null,0]
["I.",{"$f":"COUNT($A$11:B281)+1","v":34},"Termometer","kos",7,null,{"$f":"E282*F282","v":0}]
[null,null,"Dobava in montaža steklenega aksialnega  termometera za merilno območje od 0 do 120°C,  s potopno tuljko iz nerjavnega jekla, s premerom okrova 100mm, komplet s spojnim in tesnilnim materialom.",null,null,null,0]
[null,null,null,null,null,null,0]
["I.",{"$f":"COUNT($A$11:B284)+1","v":35},"Manometer","kos",2,null,0]
[null,null,"Dobava in montaža vzmetnega manometera s premerom okrova 100mm, priključekom 1/2\" radialno navzdol, z merilno natančnostjo 1,6% od končne vrednosti skale, za merilno območje 0-6 bar, komplet z manometersko pipo in vsem spojnim in tesnilnim materialom.",null,null,null,0]
[null,null,null,null,null,null,0]
["I.",{"$f":"COUNT($A$11:B287)+1","v":36},"Odzračevalno korito","kos",1,null,0]
[null,null,"Dobava in montaža lovilnega korita za 12 odzračevalnih vej in zbiranje kondenza, z odtokom ø50 s sifonom, izdelano iz nerjaveče pločevine AISI 304 debeline 1.0 mm, komplet s pritrdilnim materialom in sifonom, okvirne dimenzije 750x300x120 mm (točne dimenzije preveriti na objektu pred naročilom).",null,null,null,0]
[null,null,null,null,null,null,0]
["I.",{"$f":"COUNT($A$11:B290)+1","v":37},"Odzračevalni lonec","kos",10,null,0]
[null,null,"Dobava in montaža odzračevalnega lonca izdelanega iz jeklene cevi DN80 dolžine 20 cm, dveh podnic DN 80, jeklene cevi DN 15 dolžine 10 - 20 cm za privaritev na cevovod, varilne spojke DN 15 ali cevi DN 10 dolžine 10 cm, komplet s spojnim, tesnilnim in varilnim materialom.",null,null,null,0]
[null,null,null,null,null,null,0]
["I.",{"$f":"COUNT($A$11:B293)+1","v":38},"Odzračevalni lonček","kos",3,null,0]
[null,null,"Dobava in montaža avtomatskega odzračevalnega lončka z navojnim priključkom, za delovne temperature od 0-120°C, tlačne stopnje PN10, komplet s spojnim in tesnilnim materialom.",null,null,null,0]
[null,null,null,null,null,null,0]
["I.",{"$f":"COUNT($A$11:B296)+1","v":39},"Jeklene cevi ",null,null,null,0]
[null,null,"Jeklena črna šivna cev za varjenje in vrezovanje navojev, po SIST EN 10255, komplet s fazonskimi kosi, plamensko varjena, vključno z razrezom in varilnim materialom. ",null,null,null,0]
[null,null,"DN10","m",32,null,0]
[null,null,"DN15","m",4,null,0]
[null,null,"DN20","m",12,null,0]
[null,null,"DN25","m",6,null,0]
[null,null,"DN32","m",6,null,0]
[null,null,"DN40","m",16,null,0]
[null,null,"DN50","m",26,null,0]
[null,null,"DN65","m",12,null,0]
[null,null,"DN80","m",36,null,0]
[null,null,null,null,null,null,0]
["I.",{"$f":"COUNT($A$11:B308)+1","v":40},"Cevi TČ vodene v zemlji",null,null,null,0]
[null,null,"Dobava in montaža predizolirane cevi za toplovodno ogrevanje ter za hlajenje s difuzijsko zaporo za kisik, večslojne polietilenske mrežne pene z zaprto celično strukturo in zunanjo zaščitnim ovojem iz rebraste HDPE, za temperature od 5 do 90 °C. Cev se dobavi skupaj s prehodnimi spojkami, koleni, odcepi. Cev se polaga v predpripravljeni gradbeni jašek, na peščeno posteljico, skladno z navodili proizvajalca.",null,null,null,0]
[null,null,"DN 40, ø50x4,6, out ø160","m",54,null,0]
[null,null,"DN 80, ø90x8,2, out ø200","m",54,null,0]
[null,null,null,null,null,null,0]
["I.",{"$f":"COUNT($A$11:B313)+1","v":41},"PP cev za kondenz",null,null,null,0]
[null,null,"Dobava in montaža polipropilenskih cevi za odvod kondenzata, z dodatkom za razrez, oblikovnimi kosi kot so kolena, odcepi, razširitve, prehodni kosi, ipd., komplet z vsem spojnim in tesnilnim materialom.",null,null,null,0]
[null,null,"PP cevi:",null,null,null,0]
[null,null,"ɸ32","m",12,null,0]
[null,null,"ɸ50","m",5,null,0]
[null,null,null,null,null,null,0]
["I.",{"$f":"COUNT($A$11:B319)+1","v":42},"Antikorozijska zaščita - jeklene cevi","m2",18,null,0]
[null,null,"Zaščita jeklenih cevovodov in nosilne konstrukcije s temeljno zaščitno barvo za kovino po predhodnem čiščenju rje in maščob. Dvakratno pelskanje!",null,null,null,0]
[null,null,null,null,null,null,0]
["I.",{"$f":"COUNT($A$11:B322)+1","v":43},"Izolacija jeklenih cevovodov",null,null,null,0]
[null,null,"Dobava in montaža toplotne izolacije ceovovodov ogrevanja in hlajenja s cevaki iz samougasljive fleksibilne elastomerne pene, z zaprto celično strukturo, z visoko upornostjo proti difuziji vodne pare, z nizko toplotno prevodnostjo.\n- parozaporni koeficient μ ≥ 10.000\n- področje uporabe od -50 do +105 °C\n- toplotna prevodnosti λ ≤ 0,034 W/mK pri 0 °C\n- razred požarne odpornosti B1 po EN klasifikaciji.",null,null,null,0]
[null,null,"Ustreza: BOSSPLAST KAIFLEX ST",null,null,null,0]
[null,null,"DN10 oz. 13 x 18 mm","m",32,null,0]
[null,null,"DN15 oz. 19 x 22 mm","m",4,null,0]
[null,null,"DN20 oz. 19 x 28 mm","m",12,null,0]
[null,null,"DN25 oz. 19 x 35 mm","m",6,null,0]
[null,null,"DN32 oz. 19 x 42 mm","m",6,null,0]
[null,null,"DN40 oz. 19 x 48 mm","m",16,null,0]
[null,null,"DN50 oz. 19 x 60 mm","m",26,null,0]
[null,null,"DN65 oz. 19 x 76 mm,","m",12,null,0]
[null,null,"DN80 oz. 19 x 89 mm,","m",36,null,0]
[null,null,null,null,null,null,0]
["I.",{"$f":"COUNT($A$11:B335)+1","v":44},"Izolacijski cevni nosilci",null,null,null,0]
[null,null,"Izolacijski cevni nosilci, z nizko toplotno prevodnostjo, namestitev na mestih obešanja cevovodov hladilne vode za preprečitev toplotnih mostov, sestavljen iz izolacijske objemke, nosilne objemke, komplet z vsem potrebnim vijačnim in pritrdilnim materialom.",null,null,null,0]
[null,null,"Ustreza: BOSSPLAST objemka 2S in objemka 2S/HD",null,null,null,0]
[null,null,"DN80 oz. 19 x 89 mm,","kos",16,null,0]
[null,null,null,null,null,null,0]
["I.",{"$f":"COUNT($A$11:B340)+1","v":45},"Izolacijska plošča","m2",20,null,0]
[null,null,"Dobava in montaža toplotne izolacijske plošče iz samougasljive elastomerne pene z zaprto celično strukturo, za izvedbo izolacije posod, razdelilcev, cevnih nosilcev, armatur (toplotna postaja in konvektorji) in ostalih večjih površin, z visoko upornostjo proti difuziji vodne pare, z nizko toplotno prevodnostjo.\n- parozaporni koeficient μ ≥ 10.000\n- področje uporabe od -50 do +105 °C.\n- toplotna prevodnosti λ ≤ 0,035 W/mK pri 0 °C\n- razred požarne odpornosti B1 po EN klasifikaciji.",null,null,null,0]
[null,null,"Vpostavki se upošteva ves potrebni spojni in pritrdilni material material za izvedbo izolacije.",null,null,null,0]
[null,null,null,null,null,null,0]
["I.",{"$f":"COUNT($A$11:B344)+1","v":46},"Razdelilec ogrevanja","kos",2,null,0]
[null,null,"Dobava in montaža dovodnega razdelilca oz. povratnega zbiralnika, izdelanega iz okroglih črnih cevi DN80, komplet z bombiranima pokrovoma in priključkom za manometer/termometer, z vsem varilnim, tesnilnim in spojnim materialom.",null,null,null,{"$f":"E346*F346","v":0}]
[null,null,"Priključki na dovodu oziroma povratku:",null,null,null,0]
[null,null,"1x DN 20 (izpust),",null,null,null,0]
[null,null,"1x DN 32,",null,null,null,0]
[null,null,"2x DN 50,",null,null,null,0]
[]
["I.",{"$f":"COUNT($A$11:B351)+1","v":47},"Razdelilec hlajenja","kos",2,null,{"$f":"E352*F352","v":0}]
[null,null,"Dobava in montaža dovodnega razdelilca oz. povratnega zbiralnika, izdelanega iz okroglih črnih cevi DN125, komplet z bombiranima pokrovoma in priključkom za manometer/termometer, z vsem varilnim, tesnilnim in spojnim materialom.",null,null,null,0]
[null,null,"Priključki na dovodu oziroma povratku:",null,null,null,0]
[null,null,"1x DN 20 (izpust),",null,null,null,0]
[null,null,"2x DN 50,",null,null,null,0]
[null,null,"2x DN 80",null,null,null,0]
[null,null,null,null,null,null,0]
["I.",{"$f":"COUNT($A$11:B358)+1","v":48},"Izpiranje sistema","kpl",1,null,0]
[null,null,"Izpiranje ogrevalnega in hladilnega sistema po končanih varilskih in ostalih montažnih delih.",null,null,null,0]
[null,null,null,null,null,null,0]
["I.",{"$f":"COUNT($A$11:B361)+1","v":49},"Tlačni preizkus sistema","kpl",1,null,0]
[null,null,"Izvedba tlačnega preizkusa cevovodov, s hladno vodo, s tlakom 1,5 x delovni tlak oziroma po navodilih proizvajalca cevnega sistema. Po uspešnem preizkusu se izdela zapisnik podpisan s strani izvajalaca preizkusa in nadzornega organa.",null,null,null,0]
[null,null,null,null,null,null,0]
["I.",{"$f":"COUNT($A$11:B364)+1","v":50},"Polnjenje in odzračevanje sistemov ogrevanja in hlajenja","ur",8,null,0]
[null,null,null,null,null,null,0]
["I.",{"$f":"COUNT($A$11:B366)+1","v":51},"Označitev in shema","kpl",1,null,0]
[null,null,"Označitev strojnih inštalacij objekta v obliki napisnih tablic  z imenom linije, smernimi puščicami v ustrezni barvi skladno z DIN 2403, skupaj z generalno shemo sistema, tiskana v barvni tehniki, v plastificiranem prozornem ovoju, nameščena na vidno mesto v toplotni postaji na višino 1.5 m. Vse glavne naprave se opremi z vizitkami izdelovalca in kontakti za servisno službo.",null,null,null,0]
[null,null,null,null,null,null,0]
["I.",{"$f":"COUNT($A$11:B369)+1","v":52},"Montažni material","kg",125,null,0]
[null,null,"Dobava in montaža montažnega in pritrdilnega materiala sestavljenega iz tipskih jeklenih vroče cinkanih konstrukcijskih elementov, s tipskimi spojnimi elementi z vijačnimi zvezami materiala 8.8. Kombinacije tipskih elementov se izbere skladno z navodili oz. priporočili proizvajalca o nosilnosti. Ves vgrajen montažni material mora imeti CE oznako. ",null,null,null,0]
[null,null,null,null,null,null,0]
["I.",{"$f":"COUNT($A$11:B372)+1","v":53},"Zagon ogrevalnega in hladilnega sistema","kpl",1,null,0]
[null,null,"Zagon ogrevalnega in hladilnega sistema vobsegu :\n- zagon in nastavitev črpalk,\n- nastavitev regulacijskih armatur,\n- poučevanje uporabnika.",null,null,null,{"$f":"E374*F374","v":0}]
[]
[null,null,"I. KOTLOVNICA IN TOPLOTNA POSTAJA - SKUPAJ:",null,null,null,{"$f":"SUM(G11:G374)","v":0}]
[]
[null,"II.","KONVEKTORSKO OGREVANJE IN HLAJENJE"]
[]
["II.",1,"Ventilatorski konvektor - parapetni z nogicami",null,null,null,{"$f":"E380*F380","v":0}]
[null,null,"Dobava in montaža parapetnega ventilatorskega konvektorja za ogrevanje in hlajenje prostorov z vgrajenim tripotnim preklopnim ventilom z elekromotornim pogonom, s 3 hitrostnim ventilatorjem, elektronsko krmilno ploščo - termostatom, krmiljen preko zunanjega žičnega termostata, z grelnim/hladilnim registrom, banjico za lovljenje kondenza, zaščitno masko, nastavljivimi rešetkami za vpih zraka, tipskimi nogicami za postavite konvektorja na tla, komplet z spojnim in pritrdilnim materialom.",null,null,null,0]
[null,null,"OPOMBA: Pred naročilom konvektorjev je potrebno na objektu preveriti stran priključkov.",null,null,null,0]
[null,null,"Qgr= 1,37-2,51 kW (55/45°C-20°C)",null,null,null,0]
[null,null,"Qhl= 0,74-1,32 kW (9/14°C-26°C)",null,null,null,0]
[null,null,"Ustreza: Aermec, tip: FCZ-200 + nogice ZXZ ali enakovredno","kpl",5,null,0]
[null,null,"Qgr= 2,35-3,73 kW (55/45°C-20°C)",null,null,null,0]
[null,null,"Qhl= 1,39-2,19 kW (9/14°C-26°C)",null,null,null,0]
[null,null,"Ustreza: Aermec, tip: FCZ-300 + nogice ZXZ ali enakovredno","kpl",1,null,0]
[null,null,null,null,null,null,0]
["II.",{"$f":"COUNT($A$380:B389)+1","v":2},"Ventilatorski konvektor - parapetni brez maske",null,null,null,0]
[null,null,"Dobava in montaža parapetnega ventilatorskega konvektorja za ogrevanje in hlajenje prostorov  z vgrajenim tripotnim preklopnim ventilom z elekromotornim pogonom, s 3 hitrostnim ventilatorjem, elektronsko krmilno ploščo, krmiljen preko zunanjega žičnega termostata, z grelnim/hladilnim registrom, banjico za lovljenje kondenza, brez zaščitne maske, konzolami za pritrditev na strop, komplet s spojnim in pritrdilnim materialom.",null,null,null,0]
[null,null,"Qgr= 3,58-5,77 kW (55/45°C-20°C)\nQhl= 2,21-3,51 kW (9/14°C-26°C)",null,null,null,0]
[null,null,"Ustreza: Aermec, tip: FCZ-P-500 ali enakovredno","kpl",4,null,0]
[null,null,null,null,null,null,0]
["II.",{"$f":"COUNT($A$380:B394)+1","v":3},"Ventilatorski konvektor -  kasetni",null,null,null,0]
[null,null,"Dobava in montaža kasetnega stropnnega ventilatorskega konvektorja za ogrevanje in hlajenje prostorov z vgrajenim tripotnim preklopnim ventilom z elekromotornim pogonom, odzračevalno in izpustno pipico, s štiri stranskim izpihom, s 3 hitrostnim ventilatorjem, elektronsko krmilno ploščo, krmiljen preko zunanjega žičnega termostata, črpalko za odvod kondenzata, komplet z masko, nosilnimi konzolami in vsem potrebnim pritrdilnim in spojnim materialom. ",null,null,null,0]
[null,null,"Qgr= 2,32-4,26 kW (55/45°C-20°C)",null,null,null,0]
[null,null,"Qhl= 1,37-2,3 kW (9/14°C-26°C)",null,null,null,0]
[null,null,"Ustreza: Aermec, tip: FCL-36 + GLL10 (maska) ali enakovredno","kpl",4,null,0]
[null,null,"Qgr= 2,25-4,98 kW (55/45°C-20°C)",null,null,null,0]
[null,null,"Qhl= 1,62-3,26 kW (9/14°C-26°C)",null,null,null,0]
[null,null,"Ustreza: Aermec, tip: FCL-42 + GLL10 (maska) ali enakovredno","kpl",3,null,0]
[null,null,"Qgr= 3,53-7,12 kW (55/45°C-20°C)",null,null,null,0]
[null,null,"Qhl= 2,2-4,11 kW (9/14°C-26°C)",null,null,null,0]
[null,null,"Ustreza: Aermec, tip: FCL-62 + GLL10 (maska) ali enakovredno","kpl",1,null,0]
[null,null,"Qgr= 4,17-7,69 kW (55/45°C-20°C)",null,null,null,0]
[null,null,"Qhl= 2,32-4,5 kW (9/14°C-26°C)",null,null,null,0]
[null,null,"Ustreza: Aermec, tip: FCL-72 + GLL10 (maska) ali enakovredno","kpl",1,null,0]
[null,null,"Qgr= 2,25-4,98 kW (55/45°C-20°C)",null,null,null,0]
[null,null,"Qhl= 1,62-3,26 kW (9/14°C-26°C)",null,null,null,0]
[null,null,"Ustreza: Aermec, tip: FCL-42 + GLF10 (maska) ali enakovredno","kpl",4,null,0]
[null,null,"Qgr= 3,53-7,12 kW (55/45°C-20°C)",null,null,null,0]
[null,null,"Qhl= 2,2-4,11 kW (9/14°C-26°C)",null,null,null,0]
[null,null,"Ustreza: Aermec, tip: FCL-62 + GLF10 (maska) ali enakovredno","kpl",8,null,0]
[null,null,"Qgr= 4,17-7,69 kW (55/45°C-20°C)",null,null,null,0]
[null,null,"Qhl= 2,32-4,5 kW (9/14°C-26°C)",null,null,null,0]
[null,null,"Ustreza: Aermec, tip: FCL-72 + GLF10 (maska) ali enakovredno","kpl",5,null,0]
[null,null,null,null,null,null,0]
["II.",{"$f":"COUNT($A$380:B418)+1","v":4},"Hladilna enota v ločeni izvedbi - SERVER","kpl",1,null,0]
[null,null,"Zunajnja enota",null,null,null,0]
[null,null,"Zunanja enota klimatskega sistema v split izvedbi polnjena s hladivom R32, z inverter kompresorjem, uparjalnikom ter zračno hlajenim kondenzatorjem. Stroj je kompletne izvedbe z vso interno cevno in elektro instalacijo, varnostno ter funkcijsko mikroprocesorsko avtomatiko - vključno z instrumenti za nadzor in kontrolo delovanja.\nTEHNIČNI PODATKI:\nNazivna moč: hlajenje: 2.5 (0,89-3,2) kW // gretje: 3.2 (0,9-4,8) kW\nEnergetski razred: SEER: 8,6 - A+++ // SCOP: 5,1 - A+++\nElektrični priključek: 230V/1F/50Hz // 10A\nZvočni tlak: hlajenje: 53 dB(A) - gretje: 53 dB(A)\nDimenzije (V x Š x G): 550 x 780 x 290 mm\nTeža: 30 kg\nMedij: R32\nDimenzija priključne instalacije: Cu 6.35/9.52 mm\nMax. dolžinska / max. višinska razlika: 20 / 12 m\nObmočje delovanja: hlajenje od -15°C do 46°C, gretje od -15° do 24°C",null,null,null,0]
[null,null,"Notranja enota",null,null,null,0]
[null,null,"Notranja stenska kompaktna enota v beli barvi z možnostjo vgradnje WiFi modula v ohišje naprave. Energetsko učinkovita naprava, samodejnim uravnavanjem hitrosti ventilatorja ter možnostjo usmerjanja izpihovalnih loput z prioženim IR upravljalnikom.",null,null,null,0]
[null,null,"- petstopenjski ventilator",null,null,null,0]
[null,null,"- samodejni preklop med hlajenjem in ogrevanjem",null,null,null,0]
[null,null,"- samodejni vklop naprave po izgubi električne energije",null,null,null,0]
[null,null,"- elektrostatičen anti-alergijski filter",null,null,null,0]
[null,null,"- termostat za odčitavanje dejanske temperature v prostoru",null,null,null,0]
[null,null,"- popolna elektronska regulacija s pomočjo priloženega IR upravljalnika s tedenskim časovnikom",null,null,null,0]
[null,null,"TEHNIČNI PODATKI:",null,null,null,0]
[null,null,"Nazivna moč: hlajenje: 2,5 kW // gretje: 3,2 kW",null,null,null,0]
[null,null,"Zvočni tlak: hlajenje: 19/22/40 dB(A) // gretje: 19/23/40 dB(A)",null,null,null,0]
[null,null,"Električni priključek: 230V/1F/50Hz iz zunanje enote",null,null,null,0]
[null,null,"Dimenzije (V x Š x G): 293 x 800 x 226 mm",null,null,null,0]
[null,null,"Teža: 10 kg",null,null,null,0]
[null,null,"Ustreza: Toshiba Shorai Edge RAS-B10J2KVSG-E/-10J2AVSG ali enakovredno",null,null,null,0]
[null,null,null,null,null,null,0]
["II.",{"$f":"COUNT($A$380:B437)+1","v":5},"Hladilna enota v ločeni izvedbi - TK in MRTVAŠNICA","kpl",2,null,0]
[null,null,"Zunajnja enota",null,null,null,0]
[null,null,"Dobava in montaža visokoučinkovite zunanje enote split sistema za profesionalno rabo, ",null,null,null,0]
[null,null,"z variabilno količino hladiva tipa RAV, predvidena za ogrevanje in hlajenje zraka z okolju prijaznim hladilnim sredstvom R32.\nZunanja enota, sestavljena iz:",null,null,null,0]
[null,null,"hermetičnega kompresorja, tipa \"Scroll\" in elektromotorja, z variabilnim številom vrtljajev (inverter), z zaščito pred preobremenitvijo in zamrzovanjem, optimiranim za delovanje s hladilnim sredstvom R32",null,null,null,0]
[null,null,"zračno hlajenega kondenzatorja, optimiranega za delovanje z R32, z visokoučinkovitimi Al lamelami in Cu cevmi, popolnoma dostopen za čiščenje brez potrebne demontaže iz ohišja",null,null,null,{"$f":"E443*F443","v":0}]
[null,null,"enim ventilatorjem za odvod kondenzacijske toplote, za največjo možno učinkovitost pri najmanjšem hrupu, statično in dinamično uravnovešena, z elektromotorjem primernim za zvezno krmiljenje kapacitete",null,null,null,0]
[null,null,"hladilnega kroga z vsemi perifernimi elementi za varno in stabilno delovanje, vključno z integriranim elektronskim ekspanzijskim ventilom (EEV) za kontrolo pretoka hladilnega sredstva in posledično kapacitete enote",null,null,null,0]
[null,null,"vsemi elektronskimi elementi potrebnimi za delovanje, skupaj z elektroniko za povezavo h klimatski napravi, opisano spodaj",null,null,null,0]
[null,null,"območje delovanja pri temp. okolice od -15°C do +52°C v režimu hlajenja in -15°C do +15°C v režimu gretja",null,null,null,0]
[null,null,"NOMINALNI TEHNIČNI PODATKI:",null,null,null,0]
[null,null,"nominalna hladilna zmogljivost: 3,6 kW",null,null,null,0]
[null,null,"nominalna grelna zmogljivost: 4,0 kW",null,null,null,0]
[null,null,"pretok zraka: 2200m3/h",null,null,null,0]
[null,null,"električni priklop: 1~ 220-240V/50Hz",null,null,null,0]
[null,null,"maksimalni el. delovni tok 9,1A",null,null,null,0]
[null,null,"maksimalni zvočni tlak v razdalji 1m od enote in 1.5m od tal 49 dB(A)",null,null,null,0]
[null,null,"dimenzije (vxšxg):550 x 780 x 290 mm   ",null,null,null,0]
[null,null,"teža 39 kg",null,null,null,0]
[null,null,"Notranja enota",null,null,null,0]
[null,null,"Dobava in montaža visokouinkovite notranje stenske enote, vključno s filtrom, samodejnim zagonom v primeru izpada elektrike, ter funkcijo samočiščenja za preprečevanje nastanka plesni. Ventilator je direktno gnan, statično in dinamično balansiran. Naprava omogoča priklop na zunanjo enoto s hladivom R32 ali R410! Vključno z lokalnin krmilnim panelom.",null,null,null,0]
[null,null,"nominalna hladilna zmogljivost: 3,6 kW",null,null,null,0]
[null,null,"nominalna grelna zmogljivost: 4,0 kW",null,null,null,0]
[null,null,"Zvočni tlak Lp od 30 - 40dB(A)",null,null,null,0]
[null,null,"Električna moč motorja ventilatorja od 180W - 2kW",null,null,null,0]
[null,null,"Napajanje 1f/230V/50Hz",null,null,null,0]
[null,null,"Dimenzije (V × Š × D) 293 x 798 x 230 mm",null,null,null,0]
[null,null,"Teža 10 kg",null,null,null,0]
[null,null,"Ustreza: Toshiba RAV-GM401ATP-E/RAV-RM401KRTP-E ali enakovredno",null,null,null,0]
[]
["II.",{"$f":"COUNT($A$380:B467)+1","v":6},"Merilnik toplotne energije"]
[null,null,"Merilnik toplotne energije hladu in toplote - KOMBI z vmesnim kosom, navojne izvedbe, tlačne stopnje PN16, s holandci in tesnili, skupaj z računsko enoto, baterijo, parom potopnih temperaturnih tipal, spojkami za privaritev na cevovode (tipala), verzija z MBUS, z vsem tesnilnim in pritrdilnim materialom."]
[null,null,"POMOČ NA DOMU - ogrevanje in hlajenje ME3\ndimenzija kalorimetra: DN15\nQn= 1,5 m3/h, Qmax= 3 m3/h\nvgradna dolžina: 110 mm\npriključek: 3/4\"\nvgradnja pred konvektorjem v prostoru\nUstreza: Itron, Integral-V UltraMaXX qp1,5 TH6-1,2M M-Bus -KO ali enakovredno","kos",1,null,{"$f":"E470*F470","v":0}]
[null,null,"FRIZER - ogrevanje in hlajenje ME4\ndimenzija kalorimetra: DN15\nQn= 1,5 m3/h, Qmax= 3 m3/h\nvgradna dolžina: 110 mm\npriključek: 3/4\"\nvgradnja pred konvektorjem v prostoru\nUstreza: Itron, Integral-V UltraMaXX qp1,5 TH6-1,2M M-Bus -KO ali enakovredno","kos",1,null,{"$f":"E471*F471","v":0}]
[null,null,null,null,null,null,0]
["II.",{"$f":"COUNT($A$380:B472)+1","v":7},"Krogelna pipa s podaljšanim vretenom",null,null,null,0]
[null,null,"Dobava in montaža krogelne zaporne pipe s podaljšanim vretenom za kasetne konvektorje in parapetne kanalske, z ročico za odpiranje, za delovne temperature  0°C do 120°C, tlačne stopnje PN10, komplet s spojnim in tesnilnim materialom.",null,null,null,0]
[null,null,"DN25","kos",19,null,0]
[null,null,"DN20","kos",11,null,0]
[null,null,null,null,null,null,0]
["II.",{"$f":"COUNT($A$380:B477)+1","v":8},"Krogelna pipa ",null,null,null,0]
[null,null,"Dobava in montaža krogelne zaporne pipe za parapetne konvektorje, z ročico za odpiranje, za delovne temperature  0°C do 120°C, tlačne stopnje PN10, komplet s spojnim in tesnilnim materialom.",null,null,null,0]
[null,null,"DN15","kos",6,null,0]
[]
["II.",{"$f":"COUNT($A$380:B481)+1","v":9},"Radiatorsko zapiralo"]
[null,null,"Dobava in montaža radiatorskega zapirala, ravno, tlačne stopnje PN10, zaključek za prehod na večplastno cev komplet z vsem spojnim in tesnilnim materialom."]
[null,null,"DN25","kos",19,null,{"$f":"E484*F484","v":0}]
[null,null,"DN20","kos",11,null,0]
[null,null,"DN15","kos",6,null,0]
[null,null,null,null,null,null,0]
["II.",{"$f":"COUNT($A$380:B487)+1","v":10},"Polnilna/praznilna pipa",null,null,null,0]
[null,null,"Dobava in montaža polnilne/praznilne pipe z nastavkom za gumijasto cev, navojni priključek, zaporno ročico in navojnim zapornim čepom, tlačne stopnje PN10, komplet s spojnim in tesnilnim materialom",null,null,null,0]
[null,null,"DN 15","kos",4,null,0]
[null,null,null,null,null,null,0]
["II.",{"$f":"COUNT($A$380:B491)+1","v":11},"Odzračevalni lonec","kos",8,null,0]
[null,null,"Dobava in montaža odzračevalnega lonca izdelanega iz jeklene cevi DN80 dolžine 20 cm, dveh podnic DN 80, jeklene cevi DN 15 dolžine 10 - 20 cm za privaritev na cevovod, varilne spojke DN 15 ali cevi DN 10 dolžine 10 cm, komplet s spojnim, tesnilnim in varilnim materialom.",null,null,null,0]
[null,null,null,null,null,null,0]
["II.",{"$f":"COUNT($A$380:B494)+1","v":12},"Odzračevalni lonček","kos",8,null,0]
[null,null,"Dobava in montaža avtomatskega odzračevalnega lončka z navojnim priključkom, za delovne temperature od 0-120°C, tlačne stopnje PN10, komplet s spojnim in tesnilnim materialom.",null,null,null,0]
[null,null,null,null,null,null,0]
["II.",{"$f":"COUNT($A$380:B497)+1","v":13},"Izvedba fleksibilnega priključka konvektorja",null,null,null,0]
[null,null,"Izvedba fleksibilnega priključka konvektorja na dovodu in povratku z večplastnimi cevmi komplet s spojkami za spajanje po sistemu press. Dolžina priključka do cca. 30 cm. V postavki se upošteva prehodne kose in kolena (dvocevni sistem).",null,null,null,0]
[null,null,"DN25","kos",20,null,0]
[null,null,"DN20","kos",9,null,0]
[null,null,"DN15","kos",7,null,0]
[null,null,null,null,null,null,0]
["II.",{"$f":"COUNT($A$380:B503)+1","v":14},"Izvedba priključka kondenzata na konvektor",null,null,null,0]
[null,null,"Izvedba priključka konvektorja na cevovod za odvod  kondenzata po navodilih proizvajalca, iz armirane PVC cevi, komplet s spojkami, objemkami in ostalim potrebnim materialom.",null,null,null,0]
[null,null,"PP cevi",null,null,null,0]
[null,null,"ɸ32","kpl",6,null,0]
[null,null,"Bakrene cevi",null,null,null,0]
[null,null,"DN25 oz.ɸ28x1,2","kpl",30,null,0]
[null,null,null,null,null,null,0]
["II.",{"$f":"COUNT($A$380:B510)+1","v":15},"Demontaža/montaža konvektorja","kos",6,null,0]
[null,null,"Demontaža in ponovna montaža radiatorjev in konvektorjev za potrebe slikopleskarskih del.",null,null,null,0]
[null,null,null,null,null,null,0]
["II.",{"$f":"COUNT($A$380:B513)+1","v":16},"Jeklene press cevi ",null,null,null,0]
[null,null,"Dobava in montaža cevi iz nelegiranega jekla št. 1.0308 (E235), zunaj galvansko pocinkane s slojem cinka debeline 8-15µm,  izdelane po EN 10305-3 z pripadajočimi fitingi za hladno stiskanje in sigurnostjo konturo, ki pri polnenju instalacije detektira nezatisnjene spoje, vključno s tesnilnim in spojnim materialom. Nezatisnjene spoje se pri mokrem preizkusu zagotovo odkrije z iztekanjem preizkusnega medija ali padanjem tlaka na preizkusnem manometru, v območju 1 bar do 6,5 bar, pri suhem preizkusu pa v območju 22 mbar do 3 bar.",null,null,null,0]
[null,null,"Ustreza:Viega Prestabo ali enakovredno",null,null,null,0]
[null,null,"DN15 ɸ18x1,2 mm","m",15,null,0]
[null,null,"DN20 ɸ22x1,5 mm","m",37,null,{"$f":"E518*F518","v":0}]
[null,null,"DN25 ɸ28x1,5 mm","m",217,null,0]
[null,null,"DN32 ɸ35x1,5 mm","m",117,null,0]
[null,null,"DN50 ɸ54x1,5 mm","m",44,null,0]
[null,null,"DN65 ɸ76,1x2 mm","m",66,null,0]
[null,null,"DN80 ɸ88,9x2 mm","m",81,null,0]
[null,null,null,null,null,null,0]
["II.",{"$f":"COUNT($A$380:B524)+1","v":17},"Večpalstna cev predizolirana",null,null,null,0]
[null,null,"Dobava in montaža cevovoda iz difuzijsko tesnih večplastnih cevi (PE-AL-PE), spajanih s stisljivimi spojkami, z dodatkom za razrez in pritrditev. \nDobavljene predizolirane v kolutih komplet s pritrdilnim, spojnim, tesnilnim  materialom. Okroglo ekstrudirana, zaprto celična, parozaporna izolacija, na zunanji strani zaključena brezšivno folijo proti poškodbam, toplotne prevodnosti λ = 0,040 W/mK.\nSpoje in odcepe se izolira z izolacijo armaflex ustrezne toplotne prevodnosti in debeline.",null,null,null,0]
[null,null,"Ustreza: cevi Uponor MLCP",null,null,null,0]
[null,null,"DN15 ɸ20x2,25 mm, izolacija 6 mm","m",18,null,0]
[null,null,"DN20 ɸ25x2,5 mm, izolacija 6 mm","m",34,null,0]
[null,null,null,null,null,null,0]
["II.",{"$f":"COUNT($A$380:B530)+1","v":18},"Razvodne cevi za hladivo",null,null,null,0]
[null,null,"Dobava in montaža bakrene mehke cevi, tovarniško predizolirane z mehko izolacijo, primerne za stik s hladivi (freoni). Cevi certificirane po EN 13501-1. Cevi zaključene s konusi in tipsko zatezno matico skladno z navodili proizvajalca toplotne črpalke.",null,null,null,0]
[null,null,"1/4\" oz. Ø6.35x0.8","m",16,null,0]
[null,null,"1/2\" oz. Ø9.52x0.8","m",16,null,0]
[null,null,null,null,null,null,0]
["II.",{"$f":"COUNT($A$380:B535)+1","v":19},"PP cev za kondenz",null,null,null,0]
[null,null,"Dobava in montaža polipropilenskih cevi za odvod kondenzata, z dodatkom za razrez, oblikovnimi kosi kot so kolena, odcepi, razširitve, prehodni kosi, ipd., komplet z vsem spojnim in tesnilnim materialom. Všteta je tudi cev za odvod kondenza do ponikovalnice oziroma meterone kanalizacije.",null,null,null,0]
[null,null,"PP cevi:",null,null,null,0]
[null,null,"ɸ32","m",154,null,0]
[null,null,null,null,null,null,0]
["II.",{"$f":"COUNT($A$380:B540)+1","v":20},"Cu cev za kondenz",null,null,null,0]
[null,null,"Dobava in montaža trdih bakrenih cevi za odvod kondenzata, spajanje s tehniko zatisnjenih spojev, skupaj z dodatkom za razrez, oblikovnimi kosi kot so kolena, odcepi, razširitve, prehodni kosi, ipd., z vsem spojnim, tesnilnim in pritrdilnim materialom. Cevi spajene z pregledanim stiskalnim orodjem, s strani monterja s pridobljenim certifikatom za dotičen sistem cevovodov in spojk.",null,null,null,0]
[null,null,"ɸ28","m",195,null,0]
[null,null,null,null,null,null,0]
["II.",{"$f":"COUNT($A$380:B544)+1","v":21},"Zaščitni premaz cevovodov","m2",81,null,0]
[null,null,"Dobava in barvanje zaščitnih jeklenih cevovodov in nosilne konstrukcije s temeljno zaščitno barvo kot npr. Hempadur 15553 ali enakovredno in zaključnim zaščitnim premazom kot npr. Hempadur 45143 ali enakovredno. Količina je naveda za vsak premaz posebej.",null,null,null,0]
[null,null,null,null,null,null,0]
["II.",{"$f":"COUNT($A$380:B547)+1","v":22},"Izolacija press cevovodov",null,null,null,0]
[null,null,"Dobava in montaža toplotne izolacije ceovovodov ogrevanja in hlajenja s cevaki iz samougasljive fleksibilne elastomerne pene, z zaprto celično strukturo, z visoko upornostjo proti difuziji vodne pare, z nizko toplotno prevodnostjo.\n- parozaporni koeficient μ ≥ 10.000\n- področje uporabe od -50 do +105 °C\n- toplotna prevodnosti λ ≤ 0,034 W/mK pri 0 °C\n- razred požarne odpornosti B1 po EN klasifikaciji.",null,null,null,0]
[null,null,"Ustreza: BOSSPLAST KAIFLEX ST",null,null,null,0]
[null,null,"DN25 oz. 6 x 28 za Cu kondenz","m",195,null,0]
[null,null,"DN15 oz. 19 x 18","m",15,null,0]
[null,null,"DN20 oz. 19 x 22","m",37,null,0]
[null,null,"DN25 oz. 19 x 28","m",217,null,0]
[null,null,"DN32 oz. 19 x 35","m",117,null,0]
[null,null,"DN50 oz. 19 x 54","m",44,null,0]
[null,null,"DN65 oz. 19 x 76","m",66,null,0]
[null,null,"DN80 oz. 19 x 89","m",81,null,0]
[null,null,null,null,null,null,0]
["II.",{"$f":"COUNT($A$380:B559)+1","v":23},"Izolacijski cevni nosilci",null,null,null,0]
[null,null,"Izolacijski cevni nosilci, z nizko toplotno prevodnostjo, namestitev na mestih obešanja cevovodov hladilne vode za preprečitev toplotnih mostov, sestavljen iz izolacijske objemke, nosilne objemke, komplet z vsem potrebnim vijačnim in pritrdilnim materialom.",null,null,null,0]
[null,null,"Ustreza: BOSSPLAST objemka 2S in objemka 2S/HD",null,null,null,0]
[null,null,"DN15 oz. 19 x 18","kos",6,null,0]
[null,null,"DN20 oz. 19 x 22","kos",18,null,0]
[null,null,"DN25 oz. 19 x 28","kos",102,null,0]
[null,null,"DN32 oz. 19 x 35","kos",46,null,0]
[null,null,"DN50 oz. 19 x 54","kos",18,null,0]
[null,null,"DN65 oz. 19 x 76","kos",22,null,0]
[null,null,"DN80 oz. 19 x 89","kos",26,null,0]
[null,null,null,null,null,null,0]
["II.",{"$f":"COUNT($A$380:B570)+1","v":24},"Izolacijska plošča","m2",2,null,0]
[null,null,"Dobava in montaža toplotne izolacijske plošče iz samougasljive elastomerne pene z zaprto celično strukturo, za izvedbo izolacije posod, razdelilcev, cevnih nosilcev, armatur (toplotna postaja in konvektorji) in ostalih večjih površin, z visoko upornostjo proti difuziji vodne pare, z nizko toplotno prevodnostjo.\n- parozaporni koeficient μ ≥ 10.000\n- področje uporabe od -50 do +105 °C.\n- toplotna prevodnosti λ ≤ 0,035 W/mK pri 0 °C\n- razred požarne odpornosti B1 po EN klasifikaciji.",null,null,null,0]
[null,null,"Vpostavki se upošteva ves potrebni spojni in pritrdilni material material za izvedbo izolacije.",null,null,null,0]
[null,null,null,null,null,null,0]
["II.",{"$f":"COUNT($A$380:B574)+1","v":25},"Rešetka dovodna","kos",4,null,0]
[null,null,"Dobava in montaža aluminijaste dovodne prezračevalne rešetke primerne za montažo na kanal okvirnih dimenzij 1200x200, z dvostransko nastavljivimi lamelami, komplet z vijačnim, spojnim in tesnilnim materialom. Točne mere se določijo na objektu.",null,null,null,0]
[null,null,null,null,null,null,0]
["II.",{"$f":"COUNT($A$380:B577)+1","v":26},"Rešetka odvodna","kos",8,null,0]
[null,null,"Dobava in montaža aluminijaste odvodne prezračevalne rešetke primerne za montažo na strop okvirnih dimenzij 600x300, komplet z vijačnim, spojnim in tesnilnim materialom. Točne mere se določijo na objektu.",null,null,null,0]
[null,null,null,null,null,null,0]
["II.",{"$f":"COUNT($A$380:B580)+1","v":27},"Prezračevalni kanali in oblikovni kosi","kg",80,null,0]
[null,null,"Dobava in montaža pravokotnih prezračevalnih kanalov, komor in oblikovnih kosov izdelanih  iz pocinkane pločevine skladno s standardom SIST EN 1505 oziroma 1506 za priključitev konvektorja-dovod in rešetke. Komplet s spojnim, vijačnim, tesnilnim, obešalnim, materialom ter antivibracijskimi vložki.",null,null,null,{"$f":"E582*F582","v":0}]
[null,null,null,null,null,null,0]
["II.",{"$f":"COUNT($A$380:B583)+1","v":28},"Toplotna izolacija prezračevalnih kanalov","m2",12,null,0]
[null,null,"Dobava in montaža toplotne in protikondenzne izolacije prezračevalnih kanalov pri konvektorjih, ki se izvede s penasto toplotno izolacijo na bazi sintetičnega kavčuka.\nToplotna prevodnost λ ≤ 0,034 W/mK,\nParozapornostni koeficient μ ≥ 10.000,\nPožarna klasifikacija B-s3, d0 po DIN EN 13501.",null,null,null,0]
[null,null,"Ustreza: KAIFLEX ST - PL 19 / E ali enakovredno",null,null,null,0]
[null,null,null,null,null,null,0]
["II.",{"$f":"COUNT($A$380:B587)+1","v":29},"Požarna zatesnitev cevnih prebojev ",null,null,null,0]
[null,null,"Dobava in montaža požarne zaščite prehodov negorljivih/gorljivih cevi skozi steno in strop zatesnenih skladno z zahtevami smernice SZPV 408, požarno varno zatesnitev izvede usposobljena oseba, prehod označen s predpisano nalepko.",null,null,null,0]
[null,null,"požarna odpornost 60 minut:",null,null,null,0]
[null,null,"Preboj za 2x jekleno cev v armiranobetonski steni debeline 20 cm, dimenzija jeklene cevi 2x DN80 mm, cev je izolirana s parazaporno izolacijo debeline 19 mm.","kos",3,null,0]
[null,null,"Preboj za 2x jekleno cev v armiranobetonski steni debeline 20 cm, dimenzija jeklene cevi 2x DN15 mm, cev je izolirana s parazaporno izolacijo debeline 19 mm.","kos",1,null,0]
[null,null,"Preboj za 2x jekleno cev v armiranobetonski steni debeline 20 cm, dimenzija jeklene cevi 2x DN65 mm, cev je izolirana s parazaporno izolacijo debeline 19 mm.","kos",2,null,0]
[null,null,"Preboj za 2x jekleno cev v armiranobetonski steni debeline 20 cm, dimenzija jeklene cevi 2x DN32 mm, cev je izolirana s parazaporno izolacijo debeline 19 mm.","kos",1,null,0]
[null,null,"Preboj za 2x jekleno cev v armiranobetonski steni debeline 20 cm + dilatacija 6 cm + armiranobetonska stena 20 cm, dimenzija jeklene cevi 2x DN65 mm, cev je izolirana s parazaporno izolacijo debeline 19 mm.","kos",1,null,0]
[null,null,"Preboj za 2x jekleno cev in 1x polipropilensko cev v armiranobetonski steni debeline 20 cm, dimenzija jeklene cevi 2x DN25 mm, cev je izolirana s parazaporno izolacijo debeline 19 mm, dimenzija polipropilenske cevi Ø 32 mm.","kos",1,null,0]
[null,null,"Preboj za 2x jekleno cev in 1x polipropilensko cev v armiranobetonski steni debeline 25 cm + 3 cm izolacije + 12 cm estriha, dimenzija jeklene cevi 2x DN25 mm, cev je izolirana s parazaporno izolacijo debeline 19 mm, dimenzija polipropilenske cevi Ø 32 mm.","kos",3,null,0]
[null,null,"Preboj za 2x jekleno cev v mavčno kartonski steni debeline 20 cm, dimenzija jeklene cevi 2x DN32 mm, cev je izolirana s parazaporno izolacijo debeline 19 mm.","kos",1,null,0]
[null,null,"Preboj za 2x jekleno cev in 1x polipropilensko cev v armiranobetonski steni debeline 25 cm + 3 cm izolacije + 12 cm estriha, dimenzija jeklene cevi 2x DN50 mm, cev je izolirana s parazaporno izolacijo debeline 19 mm, dimenzija polipropilenske cevi Ø 32 mm.","kos",1,null,0]
[null,null,"Preboj za 2x jekleno cev in 1x polipropilensko cev v armiranobetonski steni debeline 25 cm + 3 cm izolacije + 12 cm estriha, dimenzija jeklene cevi 2x DN32 mm, cev je izolirana s parazaporno izolacijo debeline 19 mm, dimenzija polipropilenske cevi Ø 32 mm.","kos",5,null,0]
[null,null,"Preboj za 2x jekleno cev in 1x bakreno cev v armiranobetonski steni debeline 25 cm, dimenzija jeklene cevi 2x DN25 mm, cev je izolirana s parazaporno izolacijo debeline 19 mm, dimenzija bakrene cevi Ø 28 mm.","kos",2,null,0]
[null,null,"Preboj za 2x jekleno cev in 1x bakreno cev v armiranobetonski steni debeline 20 cm, dimenzija jeklene cevi 2x DN32 mm, cev je izolirana s parazaporno izolacijo debeline 19 mm, dimenzija polipropilenske cevi Ø 28 mm.","kos",2,null,0]
[null,null,"Preboj za 1x bakreno cev v armiranobetonski steni debeline 20 cm, dimenzija bakrene cevi Ø 28 mm.","kos",3,null,0]
[null,null,"Preboj za 2x bakreno cev v armirano betonski steni debeline 20 cm + izolacija debeline 16 cm, dimenzija bakrene cevi 1x Ø 6,35 x 0,80 mm + 1x Ø 9,52 x 0,80 mm, cev je predizolirana s parazaporno izolacijo debeline 15 mm.","kos",3,null,0]
[null,null,"Preboj za 2x bakreno cev v armirano betonski steni debeline 25 cm + 3 cm izolacije + 12 cm estriha, dimenzija bakrene cevi 1x Ø 6,35 x 0,80 mm + 1x Ø 9,52 x 0,80 mm, cev je predizolirana s parazaporno izolacijo debeline 15 mm.","kos",1,null,0]
[null,null,"požarna odpornost 90 minut:"]
[null,null,"Preboj za 2x jekleno cev v armiranobetonski steni debeline 20 cm, dimenzija jeklene cevi 2x DN80 mm, cev je izolirana s parazaporno izolacijo debeline 19 mm.","kos",1,null,0]
[null,null,null,null,null,null,0]
["II.",{"$f":"COUNT($A$380:B608)+1","v":30},"Vakumiranje sistema hladilnih povezav","kpl",3,null,0]
[null,null,"Vakumiranje plinskega razvodnega sistema split enote SERVER in TK, tesnostni preizkus, polnjenje hladiva R410A, priklop elektro vodnikov in zagon naprav skladno z navodili proizvajalca. Po opravljenem uspešnem zagonu sistema se izdela zapisnik.",null,null,null,0]
[null,null,null,null,null,null,0]
["II.",{"$f":"COUNT($A$380:B611)+1","v":31},"Izpiranje sistema","kpl",1,null,0]
[null,null,"Izpiranje ogrevalnega in hladilnega sistema po končanih varilskih in ostalih montažnih delih.",null,null,null,0]
[null,null,null,null,null,null,0]
["II.",{"$f":"COUNT($A$380:B614)+1","v":32},"Tlačni preizkus sistema","kpl",1,null,0]
[null,null,"Izvedba tlačnega preizkusa cevovodov, s hladno vodo, s tlakom 1,5 x delovni tlak oziroma po navodilih proizvajalca cevnega sistema. Po uspešnem preizkusu se izdela zapisnik podpisan s strani izvajalaca preizkusa in nadzornega organa.",null,null,null,0]
[null,null,null,null,null,null,0]
["II.",{"$f":"COUNT($A$380:B617)+1","v":33},"Polnjenje in odzračevanje sistemov ogrevanja in hlajenja","ur",8,null,0]
[null,null,null,null,null,null,0]
["II.",{"$f":"COUNT($A$380:B619)+1","v":34},"Označitev in shema","kpl",1,null,0]
[null,null,"Označitev strojnih inštalacij objekta v obliki napisnih tablic  z imenom linije, smernimi puščicami v ustrezni barvi skladno z DIN 2403, skupaj z generalno shemo sistema, tiskana v barvni tehniki, v plastificiranem prozornem ovoju, nameščena na vidno mesto v toplotni postaji na višino 1.5 m. Vse glavne naprave se opremi z vizitkami izdelovalca in kontakti za servisno službo.",null,null,null,0]
[null,null,null,null,null,null,0]
["II.",{"$f":"COUNT($A$380:B622)+1","v":35},"Montažni material","kg",192,null,0]
[null,null,"Dobava in montaža montažnega in pritrdilnega materiala sestavljenega iz tipskih jeklenih vroče cinkanih konstrukcijskih elementov, s tipskimi spojnimi elementi z vijačnimi zvezami materiala 8.8. Kombinacije tipskih elementov se izbere skladno z navodili oz. priporočili proizvajalca o nosilnosti. Ves vgrajen montažni material mora imeti CE oznako. ",null,null,null,0]
[null,null,null,null,null,null,0]
["II.",{"$f":"COUNT($A$380:B625)+1","v":36},"Zagon ogrevalnega in hladilnega sistema","kpl",1,null,0]
[null,null,"Zagon ogrevalnega in hladilnega sistema vobsegu :\n- zagon in nastavitev konvektorjev,\n- poučevanje uporabnika.",null,null,null,{"$f":"E627*F627","v":0}]
[]
[null,null,"II. KONVEKTORSKO OGREVANJE IN HLAJENJE - SKUPAJ:",null,null,null,{"$f":"SUM(G380:G627)","v":0}]
[]
[null,"III.","RADIATORSKO OGREVANJE"]
[]
["III.",1,"Radiator",null,null,null,{"$f":"E633*F633","v":0}]
[null,null,"Dobava in montaža kompaktnega radiatorja izdelanega iz hladno valjane jeklene pločevine s spodnjim sredinskim priklopom. Sestoji iz ravnih jeklenih plošč in valovite pločevine. Pločevina zaščitena in pobarvana v skladu z DIN 55900. Radiator tovarniško opremljen s termostatskim ventilom z možnostjo nastavitve kv vrednosti, z odzračevalnim in izpustnim navojnim čepom. Serijsko opremljen z zidnimi pritrdili na zadnji strani za montažo na steno. Vrhnji pokrov perforiran, snemljive izvedbe, stranici zaprti. Toplotne karakteristike v skladu z EN 442. \nTehnični podatki:\n- obratovalni tlak: 10 bar\n- obratovalna temperatura: do 110°C",null,null,null,0]
[null,null,"Ustreza: Vogel & Noot ali enakovredno",null,null,null,0]
[null,null,"21 - 600 - 400","kos",11,null,0]
[null,null,"21 - 600 - 600","kos",4,null,0]
[null,null,"21 - 600 - 800","kos",4,null,0]
[null,null,"21 - 600 - 1000","kos",1,null,0]
[null,null,"21 - 600 - 1200","kos",1,null,0]
[null,null,"21 - 600 - 1400","kos",3,null,0]
[null,null,"21 - 900 - 400","kos",1,null,0]
[null,null,"21 - 900 - 800","kos",1,null,0]
[null,null,"21 - 900 - 1000","kos",1,null,0]
[null,null,"21 - 900 - 1200","kos",1,null,0]
[null,null,"21 - 900 - 2000","kos",1,null,0]
[null,null,null,null,null,null,0]
["III.",{"$f":"COUNT($A$633:B647)+1","v":2},"Kopalniški cevni radiator",null,null,null,0]
[null,null,"Dobava in montaža kopalniškega radiatorja sestavljen iz okroglih jeklenih cevi s spodnjim priklopom - priključitev na večplastne cevi iz stene na razdalji 450mm. Radiator tovarniško opremljen z odzračevalnim in izpustnim navojnim čepom ter slepimi čepi. Serijsko opremljen z zidnimi pritrdili na zadnji strani za montažo na steno. Toplotne karakteristike v skladu z EN 442. \nTehnični podatki:\n- obratovalni tlak: 10 bar\n- obratovalna temperatura: do 110°C",null,null,null,0]
[null,null,"Ustreza: Cordivari ali enakovredno",null,null,null,0]
[null,null,"450x1160 - 55/45/24°C, 180W","kos",29,null,0]
[null,null,null,null,null,null,0]
["III.",{"$f":"COUNT($A$633:B652)+1","v":3},"Konzola za radiator - stenska",null,null,null,0]
[null,null,"Dobava in montaža kompleta sestavljenega iz dveh konzol za pritrditev radiatorja na steno komplet z vijaki in vložki za pritrditev. Za radiator 2m se upošteva 3 konzole.",null,null,null,0]
[null,null,"za radiator višine 900","kos",5,null,0]
[null,null,"za radiator višine 600","kos",25,null,0]
[null,null,null,null,null,null,0]
["III.",{"$f":"COUNT($A$633:B657)+1","v":4},"Spodnji priključek za radiatorje","kos",29,null,0]
[null,null,"Dobava in montaža spodnjega dvojnega kotnega ali ravnega priključka za radiatorje z vgrajenim ventilom, z možnostjo zapiranja, za dvocevne sisteme, komplet z matico, tesnilo in adapterjem za priključitev na večpalstno cev ter ostalim spojnim in tesnilnim materialom.",null,null,null,0]
[null,null,null,null,null,null,0]
["III.",{"$f":"COUNT($A$633:B660)+1","v":5},"Termostatski radiatorski ventil","kos",38,null,0]
[null,null,"Dobava in montaža radiatorski termostatski ventil, kotni, s prednastavitvijo, dimenzije DN15, tlačne stopnje PN10, zaključek za prehod na večplastno cev komplet z vsem spojnim in tesnilnim materialom.",null,null,null,0]
[null,null,null,null,null,null,0]
["III.",{"$f":"COUNT($A$633:B663)+1","v":6},"Radiatorsko zapiralo","kos",38,null,0]
[null,null,"Dobava in montaža radiatorskega zapirala, kotno, dimenzije DN15, tlačne stopnje PN10, zaključek za prehod na večplastno cev komplet z vsem spojnim in tesnilnim materialom..",null,null,null,0]
[null,null,null,null,null,null,0]
["III.",{"$f":"COUNT($A$633:B666)+1","v":7},"Radiatorska termostatska glava","kos",67,null,0]
[null,null,"Dobava in montaža radiatorske termostaske glave z možnostjo nastavitve temperature, s funkcijo protizmrzovalne zaščite, dobava in montaža komplet z vsem spojnim in tesnilnim materialom.",null,null,null,0]
[null,null,null,null,null,null,0]
["III.",{"$f":"COUNT($A$633:B669)+1","v":8},"Cevna rozeta","kos",67,null,0]
[null,null,"Dobava in montaža cevne rozete za alumplast cev Ø16, dvojna, za razmak cevi 50 mm, dvodelna, bele barve, izdelana iz PVC.",null,null,null,0]
[null,null,null,null,null,null,0]
["III.",{"$f":"COUNT($A$633:B672)+1","v":9},"Matica z adapterjem","kos",134,null,0]
[null,null,"Dobava in montaža matice z adapterjem za pritrditev alumplast cevi Ø16 na radiatorski ventil.",null,null,null,0]
[null,null,null,null,null,null,0]
["III.",{"$f":"COUNT($A$633:B675)+1","v":10},"Demontaža/montaža radiatorja","kos",29,null,0]
[null,null,"Demontaža in ponovna montaža radiatorjev in konvektorjev za potrebe slikopleskarskih del.",null,null,null,0]
[null,null,null,null,null,null,0]
["III.",{"$f":"COUNT($A$633:B678)+1","v":11},"Jeklene press cevi ",null,null,null,0]
[null,null,"Dobava in montaža cevi iz nelegiranega jekla št. 1.0308 (E235), zunaj galvansko pocinkane s slojem cinka debeline 8-15µm,  izdelane po EN 10305-3 z pripadajočimi fitingi za hladno stiskanje in sigurnostjo konturo, ki pri polnenju instalacije detektira nezatisnjene spoje, vključno s tesnilnim in spojnim materialom. Nezatisnjene spoje se pri mokrem preizkusu zagotovo odkrije z iztekanjem preizkusnega medija ali padanjem tlaka na preizkusnem manometru, v območju 1 bar do 6,5 bar, pri suhem preizkusu pa v območju 22 mbar do 3 bar.",null,null,null,0]
[null,null,"Ustreza:Viega Prestabo ali enakovredno",null,null,null,0]
[null,null,"DN12 ɸ15x1,2 mm","m",681,null,0]
[null,null,"DN15 ɸ18x1,2 mm","m",58,null,0]
[null,null,"DN20 ɸ22x1,5 mm","m",26,null,0]
[null,null,"DN25 ɸ28x1,5 mm","m",94,null,0]
[null,null,"DN32 ɸ35x1,5 mm","m",54,null,0]
[null,null,null,null,null,null,0]
["III.",{"$f":"COUNT($A$633:B687)+1","v":12},"Večpalstna cev predizolirana",null,null,null,0]
[null,null,"Dobava in montaža cevovoda iz difuzijsko tesnih večplastnih cevi (PE-AL-PE), spajanih s stisljivimi spojkami, z dodatkom za razrez in pritrditev. \nDobavljene predizolirane v kolutih komplet s pritrdilnim, spojnim, tesnilnim  materialom. Okroglo ekstrudirana, zaprto celična, parozaporna izolacija, na zunanji strani zaključena brezšivno folijo proti poškodbam, toplotne prevodnosti λ = 0,040 W/mK.\nSpoje in odcepe se izolira z izolacijo armaflex ustrezne toplotne prevodnosti in debeline.",null,null,null,0]
[null,null,"Ustreza: cevi Uponor MLCP",null,null,null,0]
[null,null,"DN12 ɸ18x2 mm, izolacija 6 mm","m",137,null,0]
[null,null,null,null,null,null,0]
["III.",{"$f":"COUNT($A$633:B692)+1","v":13},"Izolacija press cevovodov",null,null,null,0]
[null,null,"Dobava in montaža toplotne izolacije ceovovodov ogrevanja in hlajenja s cevaki iz samougasljive fleksibilne elastomerne pene, z zaprto celično strukturo, z visoko upornostjo proti difuziji vodne pare, z nizko toplotno prevodnostjo.\n- parozaporni koeficient μ ≥ 10.000\n- področje uporabe od -50 do +105 °C\n- toplotna prevodnosti λ ≤ 0,034 W/mK pri 0 °C\n- razred požarne odpornosti B1 po EN klasifikaciji.",null,null,null,0]
[null,null,"Ustreza: BOSSPLAST KAIFLEX ST",null,null,null,0]
[null,null,"DN12 oz. 19 x 15","m",681,null,0]
[null,null,"DN15 oz. 19 x 18","m",58,null,{"$f":"E697*F697","v":0}]
[null,null,"DN20 oz. 19 x 22","m",26,null,0]
[null,null,"DN25 oz. 19 x 28","m",94,null,0]
[null,null,"DN32 oz. 19 x 35","m",54,null,0]
[null,null,null,null,null,null,0]
["III.",{"$f":"COUNT($A$633:B701)+1","v":14},"Odzračevalni lonec","kos",3,null,0]
[null,null,"Dobava in montaža odzračevalnega lonca izdelanega iz jeklene cevi DN80 dolžine 20 cm, dveh podnic DN 80, jeklene cevi DN 15 dolžine 10 - 20 cm za privaritev na cevovod, varilne spojke DN 15 ali cevi DN 10 dolžine 10 cm, komplet s spojnim, tesnilnim in varilnim materialom.",null,null,null,0]
[null,null,null,null,null,null,0]
["III.",{"$f":"COUNT($A$633:B704)+1","v":15},"Odzračevalni lonček","kos",3,null,0]
[null,null,"Dobava in montaža avtomatskega odzračevalnega lončka z navojnim priključkom, za delovne temperature od 0-120°C, tlačne stopnje PN10, komplet s spojnim in tesnilnim materialom.",null,null,null,0]
[null,null,null,null,null,null,0]
["III.",{"$f":"COUNT($A$633:B707)+1","v":16},"Požarna zatesnitev cevnih prebojev ",null,null,null,0]
[null,null,"Dobava in montaža požarne zaščite prehodov negorljivih/gorljivih cevi skozi steno in strop zatesnenih skladno z zahtevami smernice SZPV 408, požarno varno zatesnitev izvede usposobljena oseba, prehod označen s predpisano nalepko.",null,null,null,0]
[null,null,"požarna odpornost 60 minut:",null,null,null,0]
[null,null,"Preboj za 2x jekleno cev v armirano betonski steni debeline 20 cm, dimenzija jeklene cevi 2x DN12, cev je predizolirana s parazaporno izolacijo debeline 19 mm.","kos",16,null,0]
[null,null,"Preboj za 2x jekleno cev v podložno betonski steni debeline 15 cm, dimenzija jeklene cevi 2x DN12, cev je predizolirana s parazaporno izolacijo debeline 19 mm.","kos",7,null,0]
[null,null,"Preboj za 2x jekleno cev v armirano betonski steni debeline 20 cm, dimenzija jeklene cevi 2x DN15, cev je predizolirana s parazaporno izolacijo debeline 19 mm.","kos",1,null,0]
[null,null,"Preboj za 2x jekleno cev v armiranobetonski steni debeline 25 cm + 3 cm izolacije + 12 cm estriha, dimenzija jeklene cevi 2x DN12, cev je izolirana s parazaporno izolacijo debeline 19 mm.","kos",9,null,0]
[null,null,"Preboj za 2x jekleno cev v armirano betonski steni debeline 20 cm, dimenzija jeklene cevi 2x DN32, cev je predizolirana s parazaporno izolacijo debeline 19 mm.","kos",2,null,0]
[null,null,"Preboj za 2x jekleno cev v armiranobetonski steni debeline 20 cm + dilatacija 6 cm + armiranobetonska stena 20 cm, dimenzija jeklene cevi 2x DN25, cev je izolirana s parazaporno izolacijo debeline 19 mm.","kos",2,null,0]
[null,null,"Preboj za 2x jekleno cev v armiranobetonski steni debeline 20 cm + dilatacija 6 cm + armiranobetonska stena 20 cm, dimenzija jeklene cevi 2x DN12, cev je izolirana s parazaporno izolacijo debeline 19 mm.","kos",1,null,0]
[null,null,"Preboj za 2x jekleno cev v armiranobetonski steni debeline 20 cm, dimenzija jeklene cevi 2x DN25, cev je izolirana s parazaporno izolacijo debeline 19 mm.","kos",1,null,0]
[null,null,"Preboj za 2x jekleno cev v armirano betonski steni debeline 20 cm, dimenzija jeklene cevi 2x DN20, cev je predizolirana s parazaporno izolacijo debeline 19 mm.","kos",1,null,0]
[null,null,"Preboj za 2x jekleno cev v mavčnokartonski steni debeline 8 cm, dimenzija jeklene cevi 2x DN12, cev je predizolirana s parazaporno izolacijo debeline 19 mm.","kos",1,null,0]
[null,null,"požarna odpornost 90 minut:"]
[null,null,"Preboj za 2x jekleno cev v armirano betonski steni debeline 20 cm, dimenzija jeklene cevi 2x DN20, cev je predizolirana s parazaporno izolacijo debeline 19 mm.","kos",1,null,0]
[null,null,"Preboj za 2x jekleno cev v armirano betonski steni debeline 20 cm, dimenzija jeklene cevi 2x DN32, cev je predizolirana s parazaporno izolacijo debeline 19 mm.","kos",1,null,0]
[null,null,null,null,null,null,0]
["III.",{"$f":"COUNT($A$633:B724)+1","v":17},"Izpiranje sistema","kpl",1,null,0]
[null,null,"Izpiranje ogrevalnega in hladilnega sistema po končanih varilskih in ostalih montažnih delih.",null,null,null,0]
[null,null,null,null,null,null,0]
["III.",{"$f":"COUNT($A$633:B727)+1","v":18},"Tlačni preizkus sistema","kpl",1,null,0]
[null,null,"Izvedba tlačnega preizkusa cevovodov, s hladno vodo, s tlakom 1,5 x delovni tlak oziroma po navodilih proizvajalca cevnega sistema. Po uspešnem preizkusu se izdela zapisnik podpisan s strani izvajalaca preizkusa in nadzornega organa.",null,null,null,0]
[null,null,null,null,null,null,0]
["III.",{"$f":"COUNT($A$633:B730)+1","v":19},"Polnjenje in odzračevanje sistemov ogrevanja in hlajenja","ur",8,null,0]
[null,null,null,null,null,null,0]
["III.",{"$f":"COUNT($A$633:B732)+1","v":20},"Označitev in shema","kpl",1,null,0]
[null,null,"Označitev strojnih inštalacij objekta v obliki napisnih tablic  z imenom linije, smernimi puščicami v ustrezni barvi skladno z DIN 2403, skupaj z generalno shemo sistema, tiskana v barvni tehniki, v plastificiranem prozornem ovoju, nameščena na vidno mesto v toplotni postaji na višino 1.5 m. Vse glavne naprave se opremi z vizitkami izdelovalca in kontakti za servisno službo.",null,null,null,0]
[null,null,null,null,null,null,0]
["III.",{"$f":"COUNT($A$633:B735)+1","v":21},"Montažni material","kg",186,null,0]
[null,null,"Dobava in montaža montažnega in pritrdilnega materiala sestavljenega iz tipskih jeklenih vroče cinkanih konstrukcijskih elementov, s tipskimi spojnimi elementi z vijačnimi zvezami materiala 8.8. Kombinacije tipskih elementov se izbere skladno z navodili oz. priporočili proizvajalca o nosilnosti. Ves vgrajen montažni material mora imeti CE oznako. ",null,null,null,0]
[null,null,null,null,null,null,0]
["III.",{"$f":"COUNT($A$633:B738)+1","v":22},"Zagon ogrevalnega in hladilnega sistema","kpl",1,null,0]
[null,null,"Zagon ogrevalnega sistema vobsegu:\n- nastavitev regulacijskih armatur.",null,null,null,{"$f":"E740*F740","v":0}]
[]
[null,null,"III. RADIATORSKO OGREVANJE - SKUPAJ:",null,null,null,{"$f":"SUM(G633:G740)","v":0}]
[]
[null,"IV.","TALNO OGREVANJE OGREVANJE"]
[]
["IV.",1,"Podometna omarica",null,null,null,{"$f":"E746*F746","v":0}]
[null,null,"Dobava in montaža podometne omarice z vratci, nogicami, ključavnico za zapiranje, okvir in vratca lakirana v barvo v RAL lestvici po navodilih arhitekta, komplet s pritrdilnim materialom.",null,null,null,0]
[null,null,"965 x 575 x 110 mm / 12 vej, 13vej","kpl",5,null,0]
[null,null,"795 x 575 x 110 mm / 11 vej","kpl",2,null,0]
[null,null,"795 x 575 x 110 mm / 10 vej","kpl",1,null,0]
[null,null,"565 x 575 x 110 mm / 6 vej","kpl",1,null,0]
[null,null,"1550 x 575 x 110 mm / 2 x 9 vej - 2 razdelilca v isti omarici - dvojna omarica","kpl",1,null,0]
[null,null,null,null,null,null,0]
["IV.",{"$f":"COUNT($A$746:B753)+1","v":2},"Razdelilnik talnega ogrevanja",null,null,null,0]
[null,null,"Dobava in montaža dovodnega razdelilnika in povratnega zbiralnika razvoda talnega ogrevanja izdelanega iz nerjavečega materiala, z regulatorji pretoka za posamezno zanko na dovodni strani, ventilom za montažo termoelektričmega pogona na povratku, zapornimi krogelnimi ventili na dovodni in povratni priključni cevi, izpustnimi pipicami, odzračevalnimi pipicami, čepi ter vsem spojnim tesnilnim pritrdilnim materialom.",null,null,null,0]
[null,null,"13 zank","kpl",1,null,{"$f":"E756*F756","v":0}]
[null,null,"12 zank","kpl",4,null,0]
[null,null,"11 zank","kpl",2,null,0]
[null,null,"10 zank","kpl",1,null,0]
[null,null,"6 zank","kpl",1,null,0]
[null,null,"9 zank","kpl",2,null,0]
[null,null,null,null,null,null,0]
["IV.",{"$f":"COUNT($A$746:B762)+1","v":3},"Matica za priključitev zanke talnega ogrevanja",null,null,null,0]
[null,null,"Dobava in montaža matice za priključitev zanke talnega ogrevanja na razdelilnik oziroma zbiralnik, komplet s tesnili in ostalim spojnim in tesnilnim materialom.",null,null,null,0]
[null,null,"Za cev φ 16 x 2mm","kos",234,null,0]
[null,null,null,null,null,null,0]
["IV.",{"$f":"COUNT($A$746:B766)+1","v":4},"Termelektrični pogon","kos",117,null,0]
[null,null,"Dobava in montaža termelektričnega pogona za montažo na ventil na razdelilniku, s pogonom za delovno napetost 230V, komplet z montažnim materialom.",null,null,null,0]
[null,null,null,null,null,null,0]
["IV.",{"$f":"COUNT($A$746:B769)+1","v":5},"Polnilna/praznilna pipa",null,null,null,0]
[null,null,"Dobava in montaža polnilne/praznilne pipe z nastavkom za gumijasto cev, navojni priključek, zaporno ročico in navojnim zapornim čepom, tlačne stopnje PN10, komplet s spojnim in tesnilnim materialom",null,null,null,0]
[null,null,"DN 15","kos",4,null,0]
[null,null,null,null,null,null,0]
["IV.",{"$f":"COUNT($A$746:B773)+1","v":6},"Odzračevalni lonec","kos",6,null,0]
[null,null,"Dobava in montaža odzračevalnega lonca izdelanega iz jeklene cevi DN80 dolžine 20 cm, dveh podnic DN 80, jeklene cevi DN 15 dolžine 10 - 20 cm za privaritev na cevovod, varilne spojke DN 15 ali cevi DN 10 dolžine 10 cm, komplet s spojnim, tesnilnim in varilnim materialom.",null,null,null,0]
[null,null,null,null,null,null,0]
["IV.",{"$f":"COUNT($A$746:B776)+1","v":7},"Odzračevalni lonček","kos",6,null,0]
[null,null,"Dobava in montaža avtomatskega odzračevalnega lončka z navojnim priključkom, za delovne temperature od 0-120°C, tlačne stopnje PN10, komplet s spojnim in tesnilnim materialom.",null,null,null,0]
[null,null,null,null,null,null,0]
["IV.",{"$f":"COUNT($A$746:B779)+1","v":8},"Cev za talno ogrevanje",null,null,null,0]
[null,null,"PE-Xb cev z difuzijskim slojem iz EVOH-a (etil-vinil-alkohol) z dodatnim zunanjim zaščitnim slojem. Ustreza standardu EN ISO 15875 \"Plastični cevni sistemi za instalacije s toplo in hladno vodo - zamrežen polietilen\" in ustreza zahtevam za tesnost na kisik v skladu s standardom DIN 4726.\nRazred uporabe: 5/8 bar\nMaksimalna načrtovana temperatura: 70 °C\nTemperatura, pri kateri nastanejo poškodbe: 100 °C\nV postavki vključene pritrdile objemke za pritrditev cevi na multifoljo oziroma izolacijo ter zaščitna cev za prehode skozi dilatacijska polja.",null,null,null,0]
[null,null,"ϕ 16x2 mm","m",12866,null,0]
[null,null,null,null,null,null,0]
["IV.",{"$f":"COUNT($A$746:B783)+1","v":9},"Multifolija za talno ogrevanje","m2",1982,null,0]
[null,null,"Dobava in polaganje multifolije debeline 4 mm, namenjena za povečanje toplotne odbojnosti v prostor, zmanjšanje toplotnih izgub proti spodnjemu prostoruin zaščito proti vlagi. Folija ima natiskano mrežo za lažji razvod cevi talnega ogrevanja.",null,null,null,0]
[null,null,null,null,null,null,0]
["IV.",{"$f":"COUNT($A$746:B786)+1","v":10},"Plastifikator","l",68,null,0]
[null,null,"Dobava in priprava dodatka za estrih za povečanje plastičnosti.",null,null,null,0]
[null,null,null,null,null,null,0]
["IV.",{"$f":"COUNT($A$746:B789)+1","v":11},"Jeklene press cevi ",null,null,null,0]
[null,null,"Dobava in montaža cevi iz nelegiranega jekla št. 1.0308 (E235), zunaj galvansko pocinkane s slojem cinka debeline 8-15µm,  izdelane po EN 10305-3 z pripadajočimi fitingi za hladno stiskanje in sigurnostjo konturo, ki pri polnenju instalacije detektira nezatisnjene spoje, vključno s tesnilnim in spojnim materialom. Nezatisnjene spoje se pri mokrem preizkusu zagotovo odkrije z iztekanjem preizkusnega medija ali padanjem tlaka na preizkusnem manometru, v območju 1 bar do 6,5 bar, pri suhem preizkusu pa v območju 22 mbar do 3 bar.",null,null,null,0]
[null,null,"Ustreza:Viega Prestabo ali enakovredno",null,null,null,0]
[null,null,"DN20 ɸ22x1,5 mm","m",46,null,0]
[null,null,"DN25 ɸ28x1,5 mm","m",31,null,0]
[null,null,"DN32 ɸ35x1,5 mm","m",17,null,0]
[null,null,"DN40 ɸ42x1,5 mm","m",130,null,0]
[null,null,"DN50 ɸ54x1,5 mm","m",70,null,0]
[null,null,null,null,null,null,0]
["IV.",{"$f":"COUNT($A$746:B798)+1","v":12},"Izolacija cevovodov",null,null,null,0]
[null,null,"Dobava in montaža toplotne izolacije razvodov talnega ogrevanja s cevaki iz samougasljive fleksibilne elastomerne pene, z zaprto celično strukturo, z visoko upornostjo proti difuziji vodne pare, z nizko toplotno prevodnostjo.\n- parozaporni koeficient μ ≥ 10.000\n- področje uporabe od -50 do +105 °C\n- toplotna prevodnosti λ ≤ 0,034 W/mK pri 0 °C\n- razred požarne odpornosti B1 po EN klasifikaciji.",null,null,null,0]
[null,null,"Ustreza: BOSSPLAST KAIFLEX ST",null,null,null,0]
[null,null,"DN20 oz. 19 x 22","m",46,null,0]
[null,null,"DN25 oz. 19 x 28","m",31,null,0]
[null,null,"DN32 oz. 19 x 35","m",17,null,0]
[null,null,"DN40 oz. 19 x 42","m",130,null,0]
[null,null,"DN50 oz. 19 x 54","m",70,null,0]
[null,null,null,null,null,null,0]
["IV.",{"$f":"COUNT($A$746:B807)+1","v":13},"Požarna zatesnitev cevnih prebojev ",null,null,null,0]
[null,null,"Dobava in montaža požarne zaščite prehodov negorljivih/gorljivih cevi skozi steno in strop zatesnenih skladno z zahtevami smernice SZPV 408, požarno varno zatesnitev izvede usposobljena oseba, prehod označen s predpisano nalepko.",null,null,null,0]
[null,null,"požarna odpornost 60 minut:"]
[null,null,"Preboj za 2x jekleno cev v armirano betonski steni debeline 20 cm, dimenzija jeklene cevi 2x DN50, cev je predizolirana s parazaporno izolacijo debeline 19 mm.","kos",2,null,0]
[null,null,"Preboj za 2x jekleno cev v armirano betonski steni debeline 20 cm, dimenzija jeklene cevi 2x DN20, cev je predizolirana s parazaporno izolacijo debeline 19 mm.","kos",1,null,0]
[null,null,"Preboj za 2x jekleno cev v armirano betonski steni debeline 20 cm, dimenzija jeklene cevi 2x DN25, cev je predizolirana s parazaporno izolacijo debeline 19 mm.","kos",3,null,{"$f":"E813*F813","v":0}]
[null,null,"Preboj za 2x jekleno cev v armiranobetonski steni debeline 20 cm + dilatacija 6 cm + armiranobetonska stena 20 cm, dimenzija jeklene cevi 2x DN40, cev je izolirana s parazaporno izolacijo debeline 19 mm.","kos",2,null,0]
[null,null,"Preboj za 2x jekleno cev v armirano betonski steni debeline 20 cm, dimenzija jeklene cevi 2x DN40, cev je predizolirana s parazaporno izolacijo debeline 19 mm.","kos",1,null,0]
[null,null,"Preboj za 2x jekleno cev v armiranobetonski steni debeline 25 cm + 3 cm izolacije + 12 cm estriha, dimenzija jeklene cevi 2x DN25, cev je izolirana s parazaporno izolacijo debeline 19 mm.","kos",1,null,0]
[null,null,"Preboj za 2x jekleno cev v armiranobetonski steni debeline 25 cm + 3 cm izolacije + 12 cm estriha, dimenzija jeklene cevi 2x DN32, cev je izolirana s parazaporno izolacijo debeline 19 mm.","kos",2,null,0]
[null,null,"Preboj za 2x jekleno cev v armiranobetonski steni debeline 25 cm + 3 cm izolacije + 12 cm estriha, dimenzija jeklene cevi 2x DN40, cev je izolirana s parazaporno izolacijo debeline 19 mm.","kos",1,null,0]
[null,null,"požarna odpornost 90 minut:"]
[null,null,"Preboj za 2x jekleno cev v armirano betonski steni debeline 20 cm, dimenzija jeklene cevi 2x DN50, cev je predizolirana s parazaporno izolacijo debeline 19 mm.","kos",1,null,0]
[null,null,null,null,null,null,{"$f":"E821*F821","v":0}]
["IV.",{"$f":"COUNT($A$746:B821)+1","v":14},"Izpiranje sistema","kpl",1,null,0]
[null,null,"Izpiranje sistema ogrevalnega po končanih varilskih in ostalih montažnih delih.",null,null,null,0]
[null,null,null,null,null,null,0]
["IV.",{"$f":"COUNT($A$746:B824)+1","v":15},"Tlačni preizkus sistema","kpl",1,null,0]
[null,null,"Izvedba tlačnega preizkusa cevovodov, s hladno vodo, s tlakom 1,5 x delovni tlak oziroma po navodilih proizvajalca cevnega sistema. Po uspešnem preizkusu se izdela zapisnik podpisan s strani izvajalaca preizkusa in nadzornega organa.",null,null,null,0]
[null,null,null,null,null,null,0]
["IV.",{"$f":"COUNT($A$746:B827)+1","v":16},"Polnjenje in odzračevanje sistemov talnega ogrevanja","ur",8,null,0]
[null,null,null,null,null,null,0]
["IV.",{"$f":"COUNT($A$746:B829)+1","v":17},"Označitev zank talnega ogrevanja","kpl",1,null,0]
[null,null,"Označitev zank talnega ogrevanja z oznako prostora, ki posamezna veja ogreva.",null,null,null,0]
[null,null,null,null,null,null,0]
["IV.",{"$f":"COUNT($A$746:B832)+1","v":18},"Montažni material","kg",98,null,0]
[null,null,"Dobava in montaža montažnega in pritrdilnega materiala sestavljenega iz tipskih jeklenih vroče cinkanih konstrukcijskih elementov, s tipskimi spojnimi elementi z vijačnimi zvezami materiala 8.8. Kombinacije tipskih elementov se izbere skladno z navodili oz. priporočili proizvajalca o nosilnosti. Ves vgrajen montažni material mora imeti CE oznako. ",null,null,null,0]
[null,null,null,null,null,null,0]
["IV.",{"$f":"COUNT($A$746:B835)+1","v":19},"Zagon ogrevalnega in hladilnega sistema","kpl",1,null,0]
[null,null,"Zagon sistema talnega ogrevanja v obsegu :\n- regulacija zank talnega ogrevanja,\n- nastavitev regulacijski elemnetov,\n- test delovanja vgrajene oprme,\n- spremljanje delovanja in korekcija nastavitev po otrebi,\n- poučevanje uporabnika.",null,null,null,{"$f":"E837*F837","v":0}]
[]
[null,null,"IV. TALNO OGREVANJE OGREVANJE - SKUPAJ:",null,null,null,{"$f":"SUM(G746:G837)","v":0}]
[]
[null,"V.","OGREVANJE IN HLAJENJE KLIMATSKIH NAPRAV"]
[]
["V.",1,"Obtočna črpalka",null,null,null,{"$f":"E843*F843","v":0}]
[null,null,"Dobava in montaža obtočne črpalke s potopljenim rotorjem, za cevno vgradnjo za delovanje z medijem voda ali mešanico glikol/voda. Uporabna za vse vrste ogrevanja, prezračevanja, klimatizacije (-10 °C do +110 °C). Z integrirano elektronsko regulacijo zmogljivosti za konstanten/variabilen diferenčni tlak ter funcijo izklopa črpalke pri ničnem pretoku. \nZa črpalko se dobavi modul za eksterni vklop/izklop ter javljanje napake. ",null,null,null,{"$f":"E844*F844","v":0}]
[null,null,"Č.K1\nvoda\nV= 260 l/h, dp=25 kPa\nP el= 4-40 W; I=0,44A; U=220V/50 Hz / 1F\nUstreza: WILO; Yonos PICO1.0 15/1-6 ali enakovredno","kos",1,null,0]
[null,null,"Č.K2\nvoda\nV= 880 l/h, dp=30 kPa\nP el= 4-40 W; I=0,44A; U=220V/50 Hz / 1F\nUstreza: WILO; Yonos PICO1.0 15/1-6 ali enakovredno","kos",1,null,0]
[null,null,"Č.K3\nvoda\nV= 330 l/h, dp=25 kPa\nP el= 4-40 W; I=0,44A; U=220V/50 Hz / 1F\nUstreza: WILO; Yonos PICO1.0 15/1-6 ali enakovredno","kos",1,null,0]
[null,null,"Č.K4\nvoda\nV= 1500 l/h, dp=30 kPa\nP el= 4-40 W; I=0,44A; U=220V/50 Hz / 1F\nUstreza: WILO; Yonos PICO 15/1-6 ali enakovredno","kos",1,null,0]
[null,null,"Č.K5\nvoda\nV= 705 l/h, dp=30 kPa\nP el= 4-40 W; I=0,44A; U=220V/50 Hz / 1F\nUstreza: WILO; Yonos PICO 15/1-6 ali enakovredno","kos",1,null,0]
[null,null,null,null,null,null,0]
["V.",{"$f":"COUNT($A$843:B850)+1","v":2},"3-potni mešalni ventil s pogonom",null,null,null,0]
[null,null,"Montaža in dobava 3-potnega mešalnega ventila s tritočkovnim elektro motornim pogonom, z napajanjem 230V, komplet s holandci ter ostalim tesnilnim, spojnim in montažnim materialom.    ",null,null,null,0]
[null,null,"MV.K1\n3P, DN15, Kvs= 1,6 m3/h, \nU= 230V\nregulacija: 3T\nUstreza:  DANFOSS, tip: VRG3 15/1,6 + AMV 435/230V ali enakovredno ","kos",1,null,0]
[null,null,"MV.K2\n3P, DN15, Kvs= 14 m3/h, \nU= 230V\nregulacija: 3T\nUstreza:  DANFOSS, tip: VRG3 15/4 + AMV 435/230V ali enakovredno ","kos",1,null,0]
[null,null,"MV.K3\n3P, DN15, Kvs= 1,6 m3/h, \nU= 230V\nregulacija: 3T\nUstreza:  DANFOSS, tip: VRG3 15/1,6 + AMV 435/230V ali enakovredno ","kos",1,null,0]
[null,null,"MV.K4\n3P, DN20, Kvs= 6,3 m3/h, \nU= 230V\nregulacija: 3T\nUstreza:  DANFOSS, tip: VRG3 20/6,3 + AMV 435/230V ali enakovredno ","kos",1,null,0]
[null,null,"MV.K5\n3P, DN15, Kvs= 2,5 m3/h, \nU= 230V\nregulacija: 3T\nUstreza:  DANFOSS, tip: VRG3 15/2,5 + AMV 435/230V ali enakovredno ","kos",1,null,0]
[null,null,null,null,null,null,0]
["V.",{"$f":"COUNT($A$843:B858)+1","v":3},"Krogelna pipa - navojna",null,null,null,0]
[null,null,"Dobava in montaža krogelne zaporne pipe, z ročico za odpiranje, za delovne temperature  0°C do 120°C, tlačne stopnje PN10, komplet s spojnim in tesnilnim materialom.",null,null,null,0]
[null,null,"DN10","kos",5,null,0]
[null,null,"DN15","kos",4,null,0]
[null,null,"DN20","kos",4,null,0]
[null,null,"DN25","kos",2,null,0]
[null,null,null,null,null,null,0]
["V.",{"$f":"COUNT($A$843:B865)+1","v":4},"Lovilnik nesnage",null,null,null,0]
[null,null,"Dobava in montaža lovilnika nesnage, primernega za delovne temperature  od 0°C do 120°C, tlačne stopnje PN10, komplet  s spojnim in tesnilnim materialom.  ",null,null,null,0]
[null,null,"DN15","kos",2,null,0]
[null,null,"DN20","kos",2,null,0]
[null,null,"DN25","kos",1,null,0]
[null,null,null,null,null,null,0]
["V.",{"$f":"COUNT($A$843:B871)+1","v":5},"Polnilna/praznilna pipa",null,null,null,0]
[null,null,"Dobava in montaža polnilne/praznilne pipe z nastavkom za gumijasto cev, navojni priključek, zaporno ročico in navojnim zapornim čepom, tlačne stopnje PN10, komplet s spojnim in tesnilnim materialom",null,null,null,0]
[null,null,"DN 15","kos",5,null,0]
[null,null,null,null,null,null,0]
["V.",{"$f":"COUNT($A$843:B875)+1","v":6},"Termometer",null,null,null,0]
[null,null,"Dobava in montaža steklenega aksialnega  termometera, potopna cev iz nerjavnega jekla premer okrova 100mm. Montaža na navarilno spojko DN15.",null,null,null,0]
[null,null,"Merilno območje  0°C do 120°C","kos",5,null,0]
[null,null,null,null,null,null,0]
["V.",{"$f":"COUNT($A$843:B879)+1","v":7},"Odzračevalni lonec","kos",10,null,0]
[null,null,"Dobava in montaža odzračevalnega lonca izdelanega iz jeklene cevi DN80 dolžine 20 cm, dveh podnic DN 80, jeklene cevi DN 15 dolžine 10 - 20 cm za privaritev na cevovod, varilne spojke DN 15 ali cevi DN 10 dolžine 10 cm, komplet s spojnim, tesnilnim in varilnim materialom.",null,null,null,0]
[null,null,null,null,null,null,0]
["V.",{"$f":"COUNT($A$843:B882)+1","v":8},"Jeklene press cevi ",null,null,null,0]
[null,null,"Dobava in montaža cevi iz nelegiranega jekla št. 1.0308 (E235), zunaj galvansko pocinkane s slojem cinka debeline 8-15µm,  izdelane po EN 10305-3 z pripadajočimi fitingi za hladno stiskanje in sigurnostjo konturo, ki pri polnenju instalacije detektira nezatisnjene spoje, vključno s tesnilnim in spojnim materialom. Nezatisnjene spoje se pri mokrem preizkusu zagotovo odkrije z iztekanjem preizkusnega medija ali padanjem tlaka na preizkusnem manometru, v območju 1 bar do 6,5 bar, pri suhem preizkusu pa v območju 22 mbar do 3 bar.",null,null,null,0]
[null,null,"Ustreza:Viega Prestabo ali enakovredno",null,null,null,0]
[null,null,"DN15 ɸ18x1,2 mm","m",22,null,0]
[null,null,"DN20 ɸ22x1,5 mm","m",6,null,0]
[null,null,"DN25 ɸ28x1,5 mm","m",75,null,0]
[null,null,"DN32 ɸ35x1,5 mm","m",102,null,0]
[null,null,"DN40 ɸ42x1,5 mm","m",26,null,0]
[null,null,"DN50 ɸ54x1,5 mm","m",80,null,0]
[null,null,null,null,null,null,0]
["V.",{"$f":"COUNT($A$843:B892)+1","v":9},"Zaščitni premaz cevovodov","m2",41,null,0]
[null,null,"Dobava in barvanje zaščitnih jeklenih cevovodov in nosilne konstrukcije s temeljno zaščitno barvo kot npr. Hempadur 15553 ali enakovredno in zaključnim zaščitnim premazom kot npr. Hempadur 45143 ali enakovredno. Količina je naveda za vsak premaz posebej.",null,null,null,0]
[null,null,null,null,null,null,0]
["V.",{"$f":"COUNT($A$843:B895)+1","v":10},"Izolacija press cevovodov",null,null,null,0]
[null,null,"Dobava in montaža toplotne izolacije ceovovodov ogrevanja in hlajenja s cevaki iz samougasljive fleksibilne elastomerne pene, z zaprto celično strukturo, z visoko upornostjo proti difuziji vodne pare, z nizko toplotno prevodnostjo.\n- parozaporni koeficient μ ≥ 10.000\n- področje uporabe od -50 do +105 °C\n- toplotna prevodnosti λ ≤ 0,034 W/mK pri 0 °C\n- razred požarne odpornosti B1 po EN klasifikaciji.",null,null,null,0]
[null,null,"Ustreza: BOSSPLAST KAIFLEX ST",null,null,null,0]
[null,null,"DN15 oz. 19 x 18","m",22,null,0]
[null,null,"DN20 oz. 19 x 22","m",6,null,0]
[null,null,"DN25 oz. 19 x 28","m",75,null,0]
[null,null,"DN32 oz. 19 x 35","m",102,null,0]
[null,null,"DN40 oz. 19 x 42","m",26,null,0]
[null,null,"DN50 oz. 19 x 54","m",80,null,0]
[null,null,null,null,null,null,0]
["V.",{"$f":"COUNT($A$843:B905)+1","v":11},"Požarna zatesnitev cevnih prebojev ",null,null,null,0]
[null,null,"Dobava in montaža požarne zaščite prehodov negorljivih/gorljivih cevi skozi steno in strop zatesnenih skladno z zahtevami smernice SZPV 408, požarno varno zatesnitev izvede usposobljena oseba, prehod označen s predpisano nalepko.",null,null,null,0]
[null,null,"požarna odpornost 60 minut:",null,null,null,{"$f":"E908*F908","v":0}]
[null,null,"Preboj za 2x jekleno cev v armirano betonski steni debeline 20 cm, dimenzija jeklene cevi 2x DN50, cev je predizolirana s parazaporno izolacijo debeline 19 mm.","kos",2,null,0]
[null,null,"Preboj za 2x jekleno cev v armiranobetonski steni debeline 20 cm + dilatacija 6 cm + armiranobetonska stena 20 cm, dimenzija jeklene cevi 2x DN40, cev je izolirana s parazaporno izolacijo debeline 19 mm.","kos",1,null,0]
[null,null,"Preboj za 2x jekleno cev v armirano betonski steni debeline 20 cm, dimenzija jeklene cevi 2x DN25, cev je predizolirana s parazaporno izolacijo debeline 19 mm.","kos",1,null,0]
[null,null,"Preboj za 2x jekleno cev v armiranobetonski steni debeline 20 cm + dilatacija 6 cm + armiranobetonska stena 20 cm, dimenzija jeklene cevi 2x DN32, cev je izolirana s parazaporno izolacijo debeline 19 mm.","kos",1,null,0]
[null,null,"Preboj za 2x jekleno cev v armirano betonski steni debeline 20 cm, dimenzija jeklene cevi 2x DN32, cev je predizolirana s parazaporno izolacijo debeline 19 mm.","kos",2,null,0]
[null,null,"Preboj za 2x jekleno cev v armiranobetonski steni debeline 25 cm + 3 cm izolacije + 12 cm estriha, dimenzija jeklene cevi 2x DN25, cev je izolirana s parazaporno izolacijo debeline 19 mm.","kos",2,null,0]
[null,null,"požarna odpornost 90 minut:"]
[null,null,"Preboj za 2x jekleno cev v armirano betonski steni debeline 20 cm, dimenzija jeklene cevi 2x DN50, cev je predizolirana s parazaporno izolacijo debeline 19 mm.","kos",1,null,0]
[null,null,null,null,null,null,0]
["V.",{"$f":"COUNT($A$843:B917)+1","v":12},"Izpiranje sistema","kpl",1,null,0]
[null,null,"Izpiranje ogrevalnega in hladilnega sistema po končanih varilskih in ostalih montažnih delih.",null,null,null,0]
[null,null,null,null,null,null,0]
["V.",{"$f":"COUNT($A$843:B920)+1","v":13},"Tlačni preizkus sistema","kpl",1,null,0]
[null,null,"Izvedba tlačnega preizkusa cevovodov, s hladno vodo, s tlakom 1,5 x delovni tlak oziroma po navodilih proizvajalca cevnega sistema. Po uspešnem preizkusu se izdela zapisnik podpisan s strani izvajalaca preizkusa in nadzornega organa.",null,null,null,0]
[null,null,null,null,null,null,0]
["V.",{"$f":"COUNT($A$843:B923)+1","v":14},"Polnjenje in odzračevanje sistemov ogrevanja in hlajenja","ur",8,null,0]
[null,null,null,null,null,null,0]
["V.",{"$f":"COUNT($A$843:B925)+1","v":15},"Označitev in shema","kpl",1,null,0]
[null,null,"Označitev strojnih inštalacij objekta v obliki napisnih tablic  z imenom linije, smernimi puščicami v ustrezni barvi skladno z DIN 2403, skupaj z generalno shemo sistema, tiskana v barvni tehniki, v plastificiranem prozornem ovoju, nameščena na vidno mesto v toplotni postaji na višino 1.5 m. Vse glavne naprave se opremi z vizitkami izdelovalca in kontakti za servisno službo.",null,null,null,0]
[null,null,null,null,null,null,0]
["V.",{"$f":"COUNT($A$843:B928)+1","v":16},"Montažni material","kg",110,null,0]
[null,null,"Dobava in montaža montažnega in pritrdilnega materiala sestavljenega iz tipskih jeklenih vroče cinkanih konstrukcijskih elementov, s tipskimi spojnimi elementi z vijačnimi zvezami materiala 8.8. Kombinacije tipskih elementov se izbere skladno z navodili oz. priporočili proizvajalca o nosilnosti. Ves vgrajen montažni material mora imeti CE oznako. ",null,null,null,0]
[null,null,null,null,null,null,0]
["V.",{"$f":"COUNT($A$843:B931)+1","v":17},"Zagon ogrevalnega in hladilnega sistema","kpl",1,null,0]
[null,null,"Zagon ogrevalnega in hladilnega sistema vobsegu :\n- zagon in nastavitev črpalk,\n- poučevanje uporabnika.",null,null,null,0]
[]
[null,null,"V. OGREVANJE IN HLAJENJE KLIMATSKIH NAPRAV - SKUPAJ:",null,null,null,{"$f":"SUM(G843:G933)","v":0}]
[]
["DELNA REKAPITULACIJA - S2.OGREVANJE IN HLAJENJE"]
[null,null,null,null,null,0]
["Cena na enoto in znesek so v EUR brez DDV!",null,null,null,null,0]
[]
[null,"I.","KOTLOVNICA IN TOPLOTNA POSTAJA",null,null,0,{"$f":"G376","v":0}]
[]
[null,"II.","KONVEKTORSKO OGREVANJE IN HLAJENJE",null,null,0,{"$f":"G629","v":0}]
[]
[null,"III.","RADIATORSKO OGREVANJE",null,null,null,{"$f":"G742","v":0}]
[]
[null,"IV.","TALNO OGREVANJE OGREVANJE",null,null,null,{"$f":"G839","v":0}]
[]
[null,"V.","OGREVANJE IN HLAJENJE KLIMATSKIH NAPRAV",null,null,null,{"$f":"G935","v":0}]
[]
[null,null,"S2.OGREVANJE IN HLAJENJE - SKUPAJ:",null,null,null,{"$f":"SUM(G941:G949)","v":0}]

{"sheet":"PLINSKA INSTALACIJA","index":5,"n_rows":124,"n_cols":7,"rows_kept":124,"cut":false,"hidden":false,"merged":[[3,10,8,10],[3,11,4,11]]}
[{"$f":"+OZN","v":"4."},null,"POPIS DEL S PREDRAČUNOM - Strojne inštalacije"]
[]
[{"$f":"OSNOVA!D37","v":"S3."},null,{"$f":"OSNOVA!E37","v":"PLINSKA INSTALCIJA"}]
["Opombe:"]
[null,null,"Vse naprave in elemente se mora dobaviti z ustreznimi certifikati, atesti, garancijami, navodili za obratovanje, vzdrževanje, posluževanje in servisiranje ter funkcionalno shemo izvedenega stanja. Pri vseh napravah je potrebno upoštevati stroške vseh preizkusov, izpiranja in polnjenja cevnih sistemov, zagona, meritve in nastavitve obratovalnih količin vključno s pridobitvijo ustreznih certifikatov s strani pooblaščenih institucij pri izvedbi je potrebno upoštevati stroške vseh pripravljalnih in zaključnih del (vključno z usklajevanjem z ostalimi izvajalci na objektu) ter vse transportne, zavarovalne in ostale stroške. pri vseh elementih je potrebno upoštevati ves montažni in tesnilni material."]
["Cene na enoto, vrednosti in zneski so v EUR brez DDV!"]
["Poz.",null,"Opis postavke","Enota","Količina","Cena","Vrednost"]
[]
[null,"I.","ZUNANJA PLINSKA INSTALACIJA"]
[]
[{"$f":"$B$9","v":"I."},{"$f":"COUNT(#REF!)+1","v":1},"Rezervoar UNP","kpl",1,null,{"$f":"E11*F11","v":0}]
[null,null,"Dobava in montaža podzemnega rezervoarja za UNP V= 4800l, izdelan iz jeklene pločevine, zaščiten proti koroziji, z vso varnostno in tehnično opremo z atestom. Cisterna je opremljena z nogami za postavitev na betonski podstavek, ušesci za dvigovanje, in zaščitena proti koroziji. Oprema rezervoarja:\n- priključki za praznjenje plinske in tekoče faze s pripadajočim protilomnim ventilom ter spojkami za hitro spajanje,\n- varnostni vzmetni ventil,\n- merilnik nivoja,\n- manometer,\n- ventil za polnjenje,\n- revizijska odprtina,\n- poliesterski jašek za dostop in namestitev opreme, s pokrovom in ključavnico za zaklepanje,\n- regulacijski sklop prve stopnje 16,7-0,7 bar,\n- zaporni ventil na odvzemni cevi,\n- AKZ zaščitena jeklena cev DN25 cca 2m s prehodno spojko na PE.",null,null,null,{"$f":"E12*F12","v":0}]
[null,null,"Popisna postavka vključuje dobavo, transport, postavitev na mesto vgradnje z avtodvigalom.",null,null,null,0]
[null,null,"Ustreza: proizvod FIPIS d.o.o. ali enakovredno"]
[]
[{"$f":"$B$9","v":"I."},{"$f":"COUNT($A$11:B15)+1","v":2},"Pregled plinskega rezervoarja","kpl",1,null,{"$f":"E16*F16","v":0}]
[null,null,"Pregled plinskega rezervoarja s strani pooblaščene organizacije in izdaja potrdila o ustreznosti vgradnje."]
[]
[{"$f":"$B$9","v":"I."},{"$f":"COUNT($A$11:B18)+1","v":3},"Prehodni kos PE-HD/JEKLO","kos",2,null,{"$f":"E19*F19","v":0}]
[null,null,"Dobava in montaža prehodnega kosa plastika - jeklo z zaščitno cevjo, tlačno preizkušen"]
[null,null,"PE32x3 / DN25"]
[]
[{"$f":"$B$9","v":"I."},{"$f":"COUNT($A$11:B21)+1","v":4},"Plinovodna cev iz PEHD","m",24,null,{"$f":"E23*F23","v":0}]
[null,null,"Dobava in polaganje polietilenske cevi za distribucijo plina izdelana iz (PEHD) polietilena visoke gostote po MRS klasifikaciji tip PE100. Kakovost materiala mora odgovarjat ustreznim mednarodnim standardom, oziroma mora biti izdelana po SIST EN12007 in sicer za tlake do 4 bar.                                                                                              "]
[null,null,"PE100 32x 3,4 mm"]
[]
[{"$f":"$B$9","v":"I."},{"$f":"COUNT($A$11:B25)+1","v":5},"Zaščitna cev","m",24,null,{"$f":"E27*F27","v":0}]
[null,null,"Dobava in polaganje zaščitne rebraste cev Stigmaflex Dulight."]
[null,null,"φ 50 mm - notranji premer"]
[]
[{"$f":"$B$9","v":"I."},{"$f":"COUNT($A$11:B29)+1","v":6},"Priključni sklop  DN 25","kpl",1,null,{"$f":"E31*F31","v":0}]
[null,null,"Dobava in montaža priključnega sklopa za prehod plinske cevi iz podzemnega voda do omarice s plinsko požarno pipo,  sestavljen  iz:\n- prehodnega kosa PE 32/jeklo DN 25, \n- jeklene brezšivne srednjetežke črne cevi po EN 10208-1 in ENV 10220,  material  St 38.5, DN 25 antikorozijsko zaščitena, \n- zaščitne pocinkane cevi,\n- zaporne pipe DN 25 navojne izvedbe,  za maksimalni delovni tlak 5 bar, standardne dolžine, atestirana  za zemeljski plin, z ročko za posluževanje, skupaj z izolirnim kosom in tesnilnim materialom, zaprta s čepom v času montaže."]
[]
[{"$f":"$B$9","v":"I."},{"$f":"COUNT($A$11:B33)+1","v":7},"Omarica za plinsko požarno pipo","kpl",1,null,{"$f":"E34*F34","v":0}]
[null,null,"Dobava in montaža omarice izdelane iz nerjaveče pločevine, prirejene za pritrditev na zid, z napisom: GLAVNA PLINSKA ZAPORNA PIPA. V omarici predvidena glavna zaporna požarna pipa, filter, varnostno zaporni ventil in regulator tlaka 2. stopnje."]
[]
[{"$f":"$B$9","v":"I."},{"$f":"COUNT($A$11:B36)+1","v":8},"Izpihovalni nastavek s krogelno pipo","kos",1,null,{"$f":"E37*F37","v":0}]
[null,null,"Dobava in montaža izpihovalnega nastavka s krogelno pipo DN15 zaprta s čepom in plombirana vključno z vsem potrebnim spojnim, varilskim in tesnilnim materialom."]
[]
[{"$f":"$B$9","v":"I."},{"$f":"COUNT($A$11:B39)+1","v":9},"Filter","kos",1,null,{"$f":"E40*F40","v":0}]
[null,null,"Dobava in montaža plinskega filtera za plin UNP, navojni, opremljen s podatkovno tablico in CE certifikatom. Pvmax=1 bar, Tmax=80°C, Tmin=-15°C, za delovni tlak 0,7 bar in pretok 8 m3/h, komplet s spojnim, pritrdilnim in tesnilnim materialom."]
[]
[{"$f":"$B$9","v":"I."},{"$f":"COUNT($A$11:B42)+1","v":10},"Varnostno zaporni ventil","kos",1,null,{"$f":"E43*F43","v":0}]
[null,null,"Dobava in montaža varnostno zapornega ventila za plin UNP. Pvmax=1 bar, pretok 8 m3/h, Tmax=80°C, Tmin=-15°C, zapora 35 mbar, komplet s spojnim, pritrdilnim in tesnilnim materialom."]
[]
[{"$f":"$B$9","v":"I."},{"$f":"COUNT($A$11:B45)+1","v":11},"Regulator tlaka plina","kos",1,null,{"$f":"E46*F46","v":0}]
[null,null,"Regulator tlaka plina UNP z območjem delovanja Pv=0,7 bar, Pi=30/35 mbar, pretok plina 8 m3/h temperaturno območje -20°C do +60°C, navojne izvedbe, komplet s spojnim, tesnilnim in montažnim materialom."]
[null,null,null,null,null,null,0]
[{"$f":"$B$9","v":"I."},{"$f":"COUNT($A$11:B48)+1","v":12},"Manometer ","kos",1,null,{"$f":"E49*F49","v":0}]
[null,null,"Dobava in montaža manometra, priključek radialno spodaj G1/2 B medenina, ohišje Ø 80, klase 1.6 po EN 837-1, merilno območje 0-100 mbar.",null,null,null,0]
[]
[{"$f":"$B$9","v":"I."},{"$f":"COUNT($A$11:B50)+1","v":13},"Impulzni manometrski ventil","kos",1,null,{"$f":"E52*F52","v":0}]
[null,null,"Dobava in montaža impulznega manometerskega ventila z ročnim aktiviranjem po DIN 3537-1 dimenzije DN15, ohišje medenina."]
[null,null,null,null,null,null,{"$f":"E54*F54","v":0}]
[{"$f":"$B$9","v":"I."},{"$f":"COUNT($A$11:B54)+1","v":14},"Montažni material","kg",12,null,0]
[null,null,"Montažni in pritrdilni material sestavljen iz tipskih jeklenih vroče cinkanih konstrukcijskih elementov, s tipskimi spojnimi elementi z vijačnimi zvezami materiala 8.8. Kombinacije tipskih elementov se izbere skladno z navodili oz. priporočili proizvajalca o nosilnosti. Ves vgrajen montažni material mora imeti CE oznako. Vsi elementi pritrdilnega materiala za plinsko instalacijo morajo biti iz negorljivih materialov.",null,null,null,0]
[null,null,"Ustreza: HILTI ali enakovredno",null,null,null,0]
[]
["I.",{"$f":"COUNT($A$11:B58)+1","v":15},"Tlačni in tesnostni preizkus","kpl",1,null,{"$f":"E59*F59","v":0}]
[null,null,"Priprava posameznih sklopov za trdnostni in tesnostni preiskus, izvedba tlačnega in tesnostnega preiskusa skladno z DVGW G600, izdelava zapisnikov o uspešno opravljenih tlačnih preiskusih.",null,null,null,0]
[]
[null,null,{"$f":"CONCATENATE($B$9,\" \",$C$9,\" - SKUPAJ:\")","v":"I. ZUNANJA PLINSKA INSTALACIJA - SKUPAJ:"},null,null,null,{"$f":"SUM(G11:G61)","v":0}]
[]
[null,"II.","NOTRANJA PLINSKA INSTALACIJA"]
[]
[{"$f":"$B$64","v":"II."},{"$f":"COUNT(#REF!)+1","v":1},"Regulator tlaka plina - nizkotlačni","kpl",2,null,{"$f":"E66*F66","v":0}]
[null,null,"Dobava in montaža regulatorja tlaka plina z območjem delovanja Pv=30/35 mbar, Pi=20-25 mbar, pretok plina UNP 6,5 m3/h in 1,1 m3/h temperaturno območje -20°C do +60°C, navojne izvedbe, komplet s spojnim, tesnilnim in montažnim materialom."]
[null,null,"DN 25"]
[]
[{"$f":"$B$64","v":"II."},{"$f":"COUNT($A$64:B68)+1","v":2},"Magnetni ventil","kpl",1,null,{"$f":"E70*F70","v":0}]
[null,null,"Dobava in montaža elektro magnetnega ventila za zaporo dovoda plina UNP, za  delovni tlak do 200 mbar, aluminjasto ohišje, brez napetosti v zaprtem stanju (NC), komplet s spojnim, tesnilnim in pritrdilnim materialom."]
[null,null,"DN 25"]
[null,null,null,null,null,null,{"$f":"E73*F73","v":0}]
["II.",{"$f":"COUNT($A$64:B73)+1","v":3},"Varnostni sklop","kpl",1,null,0]
[null,null,"Varnostni zaščitni sklop za plin Kirchner, primeren za zemeljski plin, varovanje kuhinje, navojne izvedbe DN 25, maks. vstopni tlak 500 mbar, sestavljen iz zaporne pipe in dveh elektromagnetnih ventilov, 230V AC, 50/60Hz, tip FSA 25 R05 ali enakovredno. \nStikalno komandna omarica za nadzor varovanja kuhinje, nadometna izvedba, Kirchner, 230V AC, 50/60Hz, tip KCU 100 ADW ali enakovredno. \nTlačno stikalo Kromschröder za vgradnjo na kanal nape, tip DL 3A-3 ali enakovredno, z delovnim območjem med  0.2 in 3 mbar, max. vstopni tlak 150 mbar. \nKotnik z vijaki za pritrditev tlačnega stikala za zrak tipa DL ali enakovredno. \nPriključni set za DL (2 m PVC cevka + nastavki za priključitev). ",null,null,null,0]
[null,null,"Ustreza: Kromschroder ali enakovredno"]
[]
["II.",{"$f":"COUNT($A$64:B76)+1","v":4},"Termično varovalo"]
[null,null,"Dobava in montaža termičnega varovala primernega za instalacije plina UNP, komplet s spojnim, tesnilnim io pritrdilnim materialom.",null,null,null,{"$f":"E79*F79","v":0}]
[null,null,"DN 20","kos",4,null,0]
[null,null,null,null,null,null,0]
["II.",{"$f":"COUNT($A$64:B81)+1","v":5},"Krogelna zaporna pipa",null,null,null,0]
[null,null,"Dobava in montaža krogelne zaporne pipe primerne za instalacije plina UNP, za delovni tlak 100 mbar, komplet s tesnilnim, spojnim in pritrdilnim materialom.",null,null,null,0]
[null,null,"DN20","kos",3,null,0]
[null,null,null,null,null,null,0]
["II.",{"$f":"COUNT($A$64:B85)+1","v":6},"Fleksibilna cev za povezavo plinskega kotla","kos",3,null,0]
[null,null,"Dobava in montaža fleksibilne cevi atestirane za plinske instalcije, za povezavo plinskih seval, dimenzije DN 20/DN15 (točno dimenzijo se preveri na objektu), dolžine 50 cm, komplet s spojnim, tesnilnim in pritrdilnim materialom.",null,null,null,0]
[null,null,null,null,null,null,0]
["II.",{"$f":"COUNT($A$64:B88)+1","v":7},"Jeklena cev iz materiala",null,null,null,0]
[null,null,"Dobava in montaža jeklene brezšivne srednje težke cevi izdelana po SIST EN 10255, iz materiala po SIST EN 10216-1 komplet z loki in odcepi, vsem varilnim, tesnilnim in spojnim materialom.",null,null,null,0]
[null,null,"DN25","m",74,null,0]
[null,null,"DN20","m",11,null,0]
[null,null,null,null,null,null,0]
["II.",{"$f":"COUNT($A$64:B93)+1","v":8},"Pleskanje s temeljno barvo","m2",17,null,0]
[null,null,"Dvakratno pleskanje plinskih cevovdov s temeljno zaščitno barvo po predhodnem čiščenju cevi.",null,null,null,0]
[null,null,null,null,null,null,0]
["II.",{"$f":"COUNT($A$64:B96)+1","v":9},"Pleskanje z zaščitno barvo","m2",17,null,0]
[null,null,"Dvakratno pleskanje plinskih cevovodov z rumeno prekrivno barvo, po predhodnem plesaknju s temeljno zaščitno barvo.",null,null,null,0]
[null,null,null,null,null,null,0]
["II.",{"$f":"COUNT($A$64:B99)+1","v":10},"Jeklena zaščitna cev za cevne preboje"]
[null,null,"Dobava in montaža jeklene črne cevi iz celega dolžine cca 0,5 m (točno dolžino preveriti na objektu), komplet z nosilnim materialom in požarno tesnilnim materialom, proti korozijsko zaščitena in opleskana z rumeno barvo na vidnih delih."]
[null,null,"DN40","kos",5,null,{"$f":"E102*F102","v":0}]
[null,null,null,null,null,null,0]
[{"$f":"$B$64","v":"II."},{"$f":"COUNT($A$64:B103)+1","v":11},"Požarna zaščita prebojev","kpl",5,null,0]
[null,null,"Dobava in izvedba požarne zaščite plinske cevi pri prehodu skozi požarni sektor EI60, skladno z detajli v risbah: cev v cevi DN1 + DN2 polnjen s požarno vrvico, trajno elastičnim kitom in 2x 2mm požarnim trakom, upoštevajoč navodila proizvajalca produkta pasivne požarne zaščite. "]
[null,null,null,null,null,null,0]
[{"$f":"$B$64","v":"II."},{"$f":"COUNT($A$64:B106)+1","v":12},"Montažni material","kg",39,null,0]
[null,null,"Montažni in pritrdilni material sestavljen iz tipskih jeklenih vroče cinkanih konstrukcijskih elementov, s tipskimi spojnimi elementi z vijačnimi zvezami materiala 8.8. Kombinacije tipskih elementov se izbere skladno z navodili oz. priporočili proizvajalca o nosilnosti. Ves vgrajen montažni material mora imeti CE oznako. Vsi elementi pritrdilnega materiala za plinsko instalacijo morajo biti iz negorljivih materialov.",null,null,null,0]
[null,null,"Ustreza: HILTI ali enakovredno",null,null,null,0]
[]
[{"$f":"$B$64","v":"II."},{"$f":"COUNT($A$64:B109)+1","v":13},"Tlačni in tesnostni preizkus","kpl",1,null,{"$f":"E111*F111","v":0}]
[null,null,"Priprava posameznih sklopov za trdnostni in tesnostni preiskus, izvedba tlačnega in tesnostnega preiskusa skladno z DVGW G600, izdelava zapisnikov o uspešno opravljenih tlačnih preiskusih.",null,null,null,0]
[]
[null,null,{"$f":"CONCATENATE($B$64,\" \",$C$64,\" - SKUPAJ:\")","v":"II. NOTRANJA PLINSKA INSTALACIJA - SKUPAJ:"},null,null,null,{"$f":"SUM(G66:G113)","v":0}]
[]
[{"$f":"CONCATENATE(\"DELNA REKAPITULACIJA - \",A3,C3)","v":"DELNA REKAPITULACIJA - S3.PLINSKA INSTALCIJA"}]
[null,null,null,null,null,{"$f":"H117*DobMont","v":0}]
["Cena na enoto in znesek so v EUR brez DDV!",null,null,null,null,{"$f":"H118*DobMont","v":0}]
[]
[null,{"$f":"$B$9","v":"I."},{"$f":"C9","v":"ZUNANJA PLINSKA INSTALACIJA"},null,null,{"$f":"H120*DobMont","v":0},{"$f":"G62","v":0}]
[]
[null,{"$f":"$B$64","v":"II."},{"$f":"C64","v":"NOTRANJA PLINSKA INSTALACIJA"},null,null,{"$f":"H122*DobMont","v":0},{"$f":"G114","v":0}]
[]
[null,null,{"$f":"CONCATENATE(A3,\"\",C3,\" - SKUPAJ:\")","v":"S3.PLINSKA INSTALCIJA - SKUPAJ:"},null,null,null,{"$f":"SUM(G119:G123)","v":0}]

{"sheet":"PREZRAČEVANJE","index":6,"n_rows":1190,"n_cols":7,"rows_kept":1190,"cut":false,"hidden":false,"merged":[[3,10,5,10]]}
[{"$f":"+OZN","v":"4."},null,{"$f":"+OSNOVA!A2","v":"POPIS DEL S PREDRAČUNOM - Strojne inštalacije"}]
[]
[{"$f":"OSNOVA!D38","v":"S4."},null,{"$f":"OSNOVA!E38","v":"PREZRAČEVANJE"}]
["Opombe:"]
[null,null,"Vse naprave in elemente se mora dobaviti z ustreznimi certifikati, atesti, garancijami, navodili za obratovanje, vzdrževanje, posluževanje in servisiranje ter funkcionalno shemo izvedenega stanja. Pri vseh napravah je potrebno upoštevati stroške vseh preizkusov, izpiranja in polnjenja cevnih sistemov, zagona, meritve in nastavitve obratovalnih količin vključno s pridobitvijo ustreznih certifikatov s strani pooblaščenih institucij pri izvedbi je potrebno upoštevati stroške vseh pripravljalnih in zaključnih del (vključno z usklajevanjem z ostalimi izvajalci na objektu) ter vse transportne, zavarovalne in ostale stroške. pri vseh elementih je potrebno upoštevati ves montažni in tesnilni material."]
["Cene na enoto, vrednosti in zneski so v EUR brez DDV!"]
["Poz.",null,"Opis postavke","Enota","Količina","Cena","Vrednost"]
[]
[null,"I.","PREZRAČEVANJE SOBE ZAHOD"]
[]
[{"$f":"$B$9","v":"I."},{"$f":"COUNT(#REF!)+1","v":1},"Naprava KN1, sobe zahod",null,null,null,{"$f":"E11*F11","v":0}]
[null,null,"Dobava in montaža modulne klimatske naprave vključno z krmilno avtomatiko, internimi kabelskimi povezavami in zagonom. Napravo je potrbno dvigniti na streho ( višina cca. 12m)",null,null,null,{"$f":"E12*F12","v":0}]
[null,null,"SPLOŠNE INFORMACIJE:",null,null,null,0]
[null,null,"Kompaktna prezračevalna naprava skladna z EUROVENT cerifikatom za dovod in odvod zraka, v izoliranem ohišju 50mm, notranja izvedba, za montažo na tla z čelnimi priključki, z vsemi perifernimi elementi, ki so gotovo ožičeni. Presostati povezani z PVC cevkami. V enoto je vgrajena vsa avtomatika za avtonomno delovanje naprave, skupaj z elektro krmilno omaro. Prezračevalna naprava sestavljena iz naslednjih modulov:"]
[null,null,"filter na dovodu F7, na odvodu M5, filtri so opremljeni s presostati za signalizacijo zamašenosti filtra. "]
[null,null,"prostotekoči EC ventilatorji IE5 s funkcijo konstantnega pretoka zraka. Pretok zraka dovod 900 m3/h, dp ext=350 Pa, pretok zraka odvod 900 m3/h, dp ext=350 Pa"]
[null,null,"Ploščni Al izmenjevalnik toplote z izkoristkom nad 84,80% po EU regulation 1253/2014 - \"Suhi izkoristek\" Prenosnik je opremljen s presostatom, ki signalizira zamrzovanje prenosnika. Prenosnik je opremljen z banjo za odvod kondenza ter eliminatorjem vodnih kapljic. "]
[null,null,"Avtomatski by-pass 100%, skupaj z loputo in motornim pogonom"]
[null,null,"Hladilni/Grelni register 2,9 kW 55°C/45°C  // 1,24 kW 7°C/12°C "]
[null,null,"Vgrajen kompleten krmilno-nadzorni sistem (plug&play, elektro-krmilna naprava), servisno stikalo, ožičeni vsi elementi."]
[null,null,"Sobni žični daljinski upravljalnik"]
[null,null,"Regulacijske žaluzije na zajemu in izpuhu zraka z vzmetnimi motornimi pogoni ter zaščitnimi haubami. "]
[null,null,"Jadrovinasti nastavki na vseh priključkih naprave"]
[null,null,"Gumi kompenzatorji na podnožju naprave"]
[null,null,"Sifoni za odvod kondenzata "]
[null,null,"Temperaturno tipalo (zunaji zrak, dovodni zrak - konstantna temperatura vpiha)."]
[null,null,"CO2 senzor "]
[null,null,"Vgrajena (plug&play) regulacija naprave omogoča:"]
[null,null,"Delovanje ventilatorjev s konstantnim pretokom zraka (regulacija hitrosti EC ventilatorja preko diferenčnega tlačnega stikala na obroču ventilatorja), hitrost možno nastaviti v treh stopnjah regulacija na koncentracijo CO2"]
[null,null,"Nastavljanje obratovalnih parametrov zimskega /poletnega (grelnega/hladilnega) režima delovanja,"]
[null,null,"Ročna izbira delovanja ali avtomatski tedenski program delovanja,"]
[null,null,"Spremljanje parametrov preko spletne aplikacije. "]
[null,null,"Režim prostega  hlajenja (free cooling) v prehodnem  in poletnem času pri pogoju, da je temperaturna razlika med zunanjim in notranjim zrakom dovolj velika,  "]
[null,null,"-  izpis dejanskih in želenih stanj,"]
[null,null,"-  vodenje žaluzij,"]
[null,null,"-  krmiljenje grelnega ventila,"]
[null,null,"-  protizmrzovalno zaščita,"]
[null,null,"-  nadzor nad čistočo filtrov,"]
[null,null,"-  diagnosticiranje alarmov,"]
[null,null,"-  kontakt za požarni alarm oz. sponko za priklop požarne centrale,"]
[null,null,"-  brezpotencialni kontakt za daljinsko javljanje napake,"]
[null,null,"-  omogoča kominikacijo z BAC NET"]
[null,null,"Nastavitev parametrov naprave na projektne zahteve ter pooblaščen zagon z šolanjem uporabnika. "]
[null,null,"Pred naročilom naprave je potrebno s skico definirati smer posluževanja naprave in velikost modulov zaradi vnosa naprave preko odprtin predvidenih za transport. "]
[null,null,"Ustreza: Tip, KLIMOR EVO-S COMPACT 5100 935 ali enakovreden proizvod.","kpl",1,null,{"$f":"E45*F45","v":0}]
[null,null,null,null,null,null,0]
[{"$f":"$B$9","v":"I."},{"$f":"+COUNT($A$11:B46)+1","v":2},"Dušilec zvoka",null,null,null,0]
[null,null,"Dobava in vgradnja dušilca zvoka, primernega za vgradnjo v kanalsko mrežo, izdelan iz pocinkane pločevine. V ohišje so vgrajene dušilne kulise pri katerih so v okvirje iz jeklene pocinkane pločevine vstavljena posebna polnila  iz učinkovitega absorbcijskega materijala. Komplet z tesnilnim in pritrdilnim materialom. Pred naročilom nujno preveriti dimenzije in akustične karaktersitike.",null,null,null,0]
[null,null,"Ustreza: TROX MSA ali enakovredno",null,null,null,0]
[null,null,"500/300x1500","kos",2,null,0]
[null,null,null,null,null,null,0]
[{"$f":"$B$9","v":"I."},{"$f":"COUNT($A$11:B51)+1","v":3},"Požarna loputa",null,null,null,0]
[null,null,"Dobava in montaža dimotesne požarne lopute za preprečevanje širjenja požara skozi zračne kanale, izdelana iz jeklene pocinkane pločevine, z elektromotornim pogonom 230 V, termičnim sprožilom, končnimi stikali za detekcijo odprte in zaprte lege, komplet s spojnim, tesnilnim, pritrdilnim in ostalim montažnim materialom.",null,null,null,0]
[null,null,"Loputa  požarne odpornosti 60 minut. ",null,null,null,0]
[null,null,"Ustreza: proizvod Trox ali enakovredno",null,null,null,0]
[null,null,"dimenzij:",null,null,null,0]
[null,null,"Φ100","kos",25,null,0]
[null,null,"Φ125","kos",9,null,0]
[null,null,"Φ200","kos",5,null,0]
[null,null,"400x250","kos",2,null,0]
[null,null,null,null,null,null,0]
["I.",{"$f":"COUNT($A$11:B61)+1","v":4},"Požarna tesnenje požarnih loput s požarno odpornostjo 60 minut",null,null,null,0]
[null,null,"Ivedba ognjevarne zažčite pob požarnih loputah, požarne odpornosti 60 minut komplet z dobavopotrebnega materiala, s potrebnimi certifikati in označitvijo s samolepilno nalepko.\n",null,null,null,0]
[null,null,"Ustreza: Promat Promatect AD ali enakovredno",null,null,null,0]
[null,null,"Za požarno loputo dimenzij:",null,null,null,0]
[null,null,"Φ100","kos",25,null,0]
[null,null,"Φ125","kos",9,null,0]
[null,null,"Φ200","kos",5,null,0]
[null,null,"400x250x500","kos",2,null,0]
[null,null,null,null,null,null,0]
["I.",{"$f":"COUNT($A$11:B70)+1","v":5},"Požarna obloga prezračevalnega kanala","m2",24,null,0]
[null,null,"Izdelava ognjevarne zažčite prezračevalnega kanala, požarne odpornosti 30 minut komplet z dobavo lahke samonosilne požarne plošče izdelane na silikatni osnovi s cementnim vezivom, neobčutljive na vlago,  odporna na razjedanje kislin in lugov, kopmplet z dobavo in montažo potrebnih ognjevarnih nosilnih podkonstrukcij, z vsem pritrdilnim in montažnim materialom, potrebnimi certifikati in označitvijo s samolepilno nalepko.",null,null,null,0]
[null,null,"Ustreza: Promat Promatect AD ali enakovredno",null,null,null,0]
[null,null,null,null,null,null,0]
["I.",{"$f":"COUNT($A$11:B74)+1","v":6},"Prezračevalni ventil odvodni",null,null,null,0]
[null,null,"Dobava in montaža prezračevalnega ventila za odvod zraka s fiksnim difuzijskim obročem ter nastavljvim krožnikom za odpiranje in zapiranje ventila,  izdelan jeklene pločevine, pobarvan s prašno barvo v RAL 9010, ter vsem potrebnim pritrdilnim, tesnilnim, spojnim in montažnim materialom.\n",null,null,null,0]
[null,null,"Ustreza:  proizvod: Bossplast ali enakovredno\ntip: LVS",null,null,null,0]
[null,null,"Ventil za odvod zraka Φ100 mm","kos",15,null,0]
[null,null,null,null,null,null,0]
["I.",{"$f":"COUNT($A$11:B79)+1","v":7},"Prezračevalni ventil dovodni",null,null,null,0]
[null,null,"Dobava in montaža prezračevalnega ventila za dovod zraka s fiksnim difuzijskim obročem ter nastavljvim krožnikom za odpiranje in zapiranje ventila,  izdelan jeklene pločevine, pobarvan s prašno barvo v RAL 9010, ter vsem potrebnim pritrdilnim, tesnilnim, spojnim in montažnim materialom.\n",null,null,null,0]
[null,null,"Ustreza:  proizvod: Bossplast ali enakovredno\ntip: LVS",null,null,null,0]
[null,null,"Ventil za odvod zraka Φ100 mm","kos",15,null,0]
[null,null,null,null,null,null,0]
["I.",{"$f":"COUNT($A$11:B84)+1","v":8},"Prezračevalni kanali in oblikovni kosi","kg",645,null,0]
[null,null,"Dobava in montaža pravokotnih prezračevalnih kanalov, komor in oblikovnih kosov izdelanih  iz pocinkane pločevine skladno s standardom SIST EN 1505 oziroma 1506.  Komplet s spojnim, vijačnim, tesnilnim, obešalnim, materialom ter antivibracijskimi vložki.",null,null,null,0]
[null,null,null,null,null,null,0]
["I.",{"$f":"COUNT($A$11:B87)+1","v":9},"Okrogli prezračevalni kanali",null,null,null,0]
[null,null,"Dobava in montaža okroglih przračevalnih kanalov, izdelanih iz spiralno robljenih cevi, iz jeklene pocinkane pločevine, komplet s spojkami, ostalim spojnim, tesnilnim, vijačnim materialom ter dodatkom za razrez.",null,null,null,0]
[null,null,"Spiro kanal Φ100","m",210,null,0]
[null,null,"Spiro kanal Φ125","m",63,null,0]
[null,null,"Spiro kanal Φ160","m",8,null,0]
[null,null,"Spiro kanal Φ200","m",40,null,0]
[null,null,null,null,null,null,0]
["I.",{"$f":"COUNT($A$11:B94)+1","v":10},"Fleksibilne cevi",null,null,null,0]
[null,null,"Dobava in montaža fleksibilnih cevi za povezavo zračnih kanalov in distribucijskih elementov, komplet s spojkami, ostalim spojnim, tesnilnim, vijačnim materialom ter dodatkom za razrez.",null,null,null,0]
[null,null,"Ustreza: Sonodec Non-woven, 25mm, 100mm ali enakovredno",null,null,null,0]
[null,null," Φ100","m",23,null,0]
[null,null,null,null,null,null,0]
["I.",{"$f":"COUNT($A$11:B99)+1","v":11},"Fleksibilne cevi izolirane",null,null,null,0]
[null,null,"Dobava in montaža fleksibilnih cevi za povezavo zračnih kanalov in distribucijskih elementov, komplet s spojkami, ostalim spojnim, tesnilnim, vijačnim materialom ter dodatkom za razrez.",null,null,null,0]
[null,null,"Ustreza: Air Connections; tip Sonodec Non-woven, 25mm, 100mm ali enakovredno",null,null,null,0]
[null,null," Φ100","m",23,null,0]
[null,null,null,null,null,null,0]
[{"$f":"$B$9","v":"I."},{"$f":"COUNT($A$11:B104)+1","v":12},"Toplotna izolacija prezračevalnih kanalov","m2",255,null,0]
[null,null,"Dobava in montaža toplotne in protikondenzne izolacije prezračevalnih kanalov, ki se izvede s penasto toplotno izolacijo na bazi sintetičnega kavčuka.\nToplotna prevodnost λ ≤ 0,034 W/mK,\nParozapornostni koeficient μ ≥ 10.000,\nPožarna klasifikacija B-s3, d0 po DIN EN 13501.",null,null,null,0]
[null,null,"Ustreza: KAIFLEX ST - PL 19 / E ali enakovredno",null,null,null,0]
[null,null,null,null,null,null,0]
["I.",{"$f":"COUNT($A$11:B108)+1","v":13},"Montažni material","kg",50,null,0]
[null,null,"Dobava in montaža montažnega in pritrdilnega materiala sestavljenega iz tipskih jeklenih vroče cinkanih konstrukcijskih elementov, s tipskimi spojnimi elementi z vijačnimi zvezami materiala 8.8. Kombinacije tipskih elementov se izbere skladno z navodili oz. priporočili proizvajalca o nosilnosti. Ves vgrajen montažni material mora imeti CE oznako.  VKLJUČENI ANTIVIBRACIJSKI VLOŽKI ZA PRITRJEVANJE. PREZRAČEVALNIH KANALOV",null,null,null,0]
[null,null,"Ustreza: HILTI ali enakovredno",null,null,null,0]
[null,null,null,null,null,null,0]
["I.",{"$f":"COUNT($A$11:B112)+1","v":14},"Mertive in nastavitev","kpl",1,null,0]
[null,null,"Meritve in fina nastavitev dovodnih in odvodnih količin skladno s projektno dokumentacijo, regulacija sistema in naprav, izdelava zapisnika o opravljenih nastavitvah, izdelava poročila o izmerjenih količinah s strani pooblaščene organizacije.",null,null,null,0]
[null,null,null,null,null,null,0]
["I.",{"$f":"COUNT($A$11:B115)+1","v":15},"Shema in označitev","klp",1,null,0]
[null,null,"Izdelava funcionalne sheme delovanja klimatske naprave, z vsemi podatki o periferni opremi, motorni pogoni, tipala, ipd. Fizična označitev vseh pogonov in tipal z oznakami iz sheme. Izdela se mapa z omenjeno shemo ter navodili za uporabo in vzdrževanje v slovenskem jeziku. En izvod sheme in navodil se vstavi v krmilno omaro naprave, en izvod se preda uporabiku.",null,null,null,0]
[]
[null,null,{"$f":"CONCATENATE($B$9,\" \",$C$9,\" - SKUPAJ:\")","v":"I. PREZRAČEVANJE SOBE ZAHOD - SKUPAJ:"},null,null,null,{"$f":"SUM(G11:G118)","v":0}]
[]
[null,"II.","PREZRAČEVANJE SKUPNI PROSTORI ZAHOD"]
[]
[{"$f":"$B$121","v":"II."},{"$f":"1","v":1},"Naprava KN2, skupni prostori zahod",null,null,null,{"$f":"E123*F123","v":0}]
[null,null,"Dobava in montaža modulne klimatske naprave vključno z krmilno avtomatiko, internimi kabelskimi povezavami in zagonom.  Napravo je potrbno dvigniti na streho ( višina cca. 12m)",null,null,null,{"$f":"E124*F124","v":0}]
[null,null,"SPLOŠNE INFORMACIJE:",null,null,null,0]
[null,null,"Kompaktna prezračevalna naprava skladna z EUROVENT cerifikatom za dovod in odvod zraka, v izoliranem ohišju 50mm, notranja izvedba, za montažo na tla z čelnimi priključki, z vsemi perifernimi elementi, ki so gotovo ožičeni. Presostati povezani z PVC cevkami. V enoto je vgrajena vsa avtomatika za avtonomno delovanje naprave, skupaj z elektro krmilno omaro. Prezračevalna naprava sestavljena iz naslednjih modulov:"]
[null,null,"filter na dovodu F7, na odvodu M5, filtri so opremljeni s presostati za signalizacijo zamašenosti filtra. "]
[null,null,"prostotekoči EC ventilatorji IE5 s funkcijo konstantnega pretoka zraka. Pretok zraka dovod 2780 m3/h, dp ext=350 Pa, pretok zraka odvod 2780 m3/h, dp ext=350 Pa"]
[null,null,"Ploščni Al izmenjevalnik toplote z izkoristkom nad 80,20% po EU regulation 1253/2014 - \"Suhi izkoristek\" Prenosnik je opremljen s presostatom, ki signalizira zamrzovanje prenosnika. Prenosnik je opremljen z banjo za odvod kondenza ter eliminatorjem vodnih kapljic. "]
[null,null,"Avtomatski by-pass 100%, skupaj z loputo in motornim pogonom"]
[null,null,"Hladilni/Grelni register 9,27 kW 55°C/45°C  // 4,24 kW 7°C/12°C "]
[null,null,"Vgrajen kompleten krmilno-nadzorni sistem (plug&play, elektro-krmilna naprava), servisno stikalo, ožičeni vsi elementi."]
[null,null,"Sobni žični daljinski upravljalnik"]
[null,null,"Regulacijske žaluzije na zajemu in izpuhu zraka z vzmetnimi motornimi pogoni ter zaščitnimi haubami. "]
[null,null,"Jadrovinasti nastavki na vseh priključkih naprave"]
[null,null,"Gumi kompenzatorji na podnožju naprave"]
[null,null,"Sifoni za odvod kondenzata "]
[null,null,"Temperaturno tipalo (zunaji zrak, dovodni zrak - konstantna temperatura vpiha)."]
[null,null,"CO2 senzor "]
[null,null,"Vgrajena (plug&play) regulacija naprave omogoča:"]
[null,null,"Delovanje ventilatorjev s konstantnim pretokom zraka (regulacija hitrosti EC ventilatorja preko diferenčnega tlačnega stikala na obroču ventilatorja), hitrost možno nastaviti v treh stopnjah regulacija na koncentracijo CO2"]
[null,null,"Nastavljanje obratovalnih parametrov zimskega /poletnega (grelnega/hladilnega) režima delovanja,"]
[null,null,"Ročna izbira delovanja ali avtomatski tedenski program delovanja,"]
[null,null,"Spremljanje parametrov preko spletne aplikacije. "]
[null,null,"Režim prostega  hlajenja (free cooling) v prehodnem  in poletnem času pri pogoju, da je temperaturna razlika med zunanjim in notranjim zrakom dovolj velika,  "]
[null,null,"-  izpis dejanskih in želenih stanj,"]
[null,null,"-  vodenje žaluzij,"]
[null,null,"-  krmiljenje grelnega ventila,"]
[null,null,"-  protizmrzovalno zaščita,"]
[null,null,"-  nadzor nad čistočo filtrov,"]
[null,null,"-  diagnosticiranje alarmov,"]
[null,null,"-  kontakt za požarni alarm oz. sponko za priklop požarne centrale,"]
[null,null,"-  brezpotencialni kontakt za daljinsko javljanje napake,"]
[null,null,"-  omogoča kominikacijo z BAC NET"]
[null,null,"Nastavitev parametrov naprave na projektne zahteve ter pooblaščen zagon z šolanjem uporabnika. "]
[null,null,"Pred naročilom naprave je potrebno s skico definirati smer posluževanja naprave in velikost modulov zaradi vnosa naprave preko odprtin predvidenih za transport. "]
[null,null,"Ustreza: Tip, KLIMOR EVO-S COMPACT 300 2735 ali enakovreden proizvod.","kpl",1,null,{"$f":"E157*F157","v":0}]
[null,null,null,null,null,null,{"$f":"E158*F158","v":0}]
[{"$f":"$B$121","v":"II."},{"$f":"COUNT($A$123:$B158)+1","v":2},"Dušilec zvoka",null,null,null,0]
[null,null,"Dobava in vgradnja dušilca zvoka, primernega za vgradnjo v kanalsko mrežo, izdelan iz pocinkane pločevine. V ohišje so vgrajene dušilne kulise pri katerih so v okvirje iz jeklene pocinkane pločevine vstavljena posebna polnila  iz učinkovitega absorbcijskega materijala. Komplet z tesnilnim in pritrdilnim materialom. Pred naročilom nujno preveriti dimenzije in akustične karaktersitike.",null,null,null,0]
[null,null,"Ustreza: TROX MSA ali enakovredno",null,null,null,0]
[null,null,"600/300x1250","kos",1,null,0]
[null,null,"600/400x1250","kos",1,null,0]
[null,null,"300/350x1250","kos",2,null,0]
[null,null,null,null,null,null,0]
[{"$f":"$B$121","v":"II."},{"$f":"COUNT($A$123:$B165)+1","v":3},"Požarna loputa",null,null,null,0]
[null,null,"Dobava in montaža dimotesne požarne lopute za preprečevanje širjenja požara skozi zračne kanale, izdelana iz jeklene pocinkane pločevine, z elektromotornim pogonom 230 V, termičnim sprožilom, končnimi stikali za detekcijo odprte in zaprte lege, komplet s spojnim, tesnilnim, pritrdilnim in ostalim montažnim materialom.",null,null,null,0]
[null,null,"Loputa  požarne odpornosti 60 minut. ",null,null,null,0]
[null,null,"Ustreza: proizvod Trox ali enakovredno",null,null,null,0]
[null,null,"dimenzij:",null,null,null,0]
[null,null,"Φ100","kos",7,null,0]
[null,null,"Φ125","kos",3,null,0]
[null,null,"Φ200","kos",1,null,0]
[null,null,"200/200","kos",2,null,0]
[null,null,"250/200","kos",3,null,0]
[null,null,"300/200","kos",1,null,0]
[null,null,"400/200","kos",1,null,0]
[null,null,"500/200","kos",1,null,0]
[null,null,"300/250","kos",2,null,0]
[null,null,"500/250","kos",1,null,0]
[null,null,"500/300","kos",1,null,0]
[null,null,null,null,null,null,0]
["II.",{"$f":"COUNT($A$123:$B182)+1","v":4},"Požarna tesnenje požarnih loput s požarno odpornostjo 60 minut",null,null,null,0]
[null,null,"Ivedba ognjevarne zažčite pob požarnih loputah, požarne odpornosti 60 minut komplet z dobavopotrebnega materiala, s potrebnimi certifikati in označitvijo s samolepilno nalepko.\n",null,null,null,0]
[null,null,"Ustreza: Promat Promatect AD ali enakovredno",null,null,null,0]
[null,null,"Za požarno loputo dimenzij:",null,null,null,0]
[null,null,"Φ100","kos",9,null,0]
[null,null,"Φ125","kos",3,null,0]
[null,null,"Φ200","kos",1,null,0]
[null,null,"200/200","kos",2,null,0]
[null,null,"250/200","kos",3,null,0]
[null,null,"300/200","kos",1,null,0]
[null,null,"400/200","kos",1,null,0]
[null,null,"500/200","kos",1,null,0]
[null,null,"300/250","kos",2,null,0]
[null,null,"500/250","kos",1,null,0]
[null,null,"500/300","kos",1,null,0]
[null,null,null,null,null,null,0]
["II.",{"$f":"COUNT($A$123:$B198)+1","v":5},"Vrtinčni difuzor ",null,null,null,0]
[null,null,"Dobava in montaža kvadratnega stropnega difuzorja izdelanega iz jeklene pločevine, prašno barvan, komplet s komoro z regulacijsko loputo, priključnim nastavkom (dimenzijo preveriti na objektu pred naročilom) ter vsem potrebnim pritrdilnim, tesnilnim, spojnim in montažnim materialom.",null,null,null,0]
[null,null,"Ustreza: Bossplast tip: BD-9 ali enakovredno",null,null,null,0]
[null,null,"Dovodni difuzor",null,null,null,0]
[null,null,"400/270; priključnim nastavkom ɸ200","kos",6,null,0]
[null,null,"400/270; priključnim nastavkom ɸ160","kos",2,null,0]
[null,null,"odvodni difuzor",null,null,null,0]
[null,null,"500/270; priključnim nastavkom ɸ 200","kos",4,null,0]
[null,null,"400/270; priključnim nastavkom ɸ160","kos",2,null,0]
[null,null,null,null,null,null,0]
["II.",{"$f":"COUNT($A$123:$B208)+1","v":6},"Požarna loputa",null,null,null,0]
[null,null,"Dobava in montaža vstavljive okrogla požarne lopute z dvema polkrožnima lamelama, termičnim členom in intumescenčnim materialom v postelji lamel, ki tesno zapre prehod v primeru požara. Certificirano po EN 15650, vključno z materialom za vgradnjo (pritrdilni kotniki).\n\n",null,null,null,0]
[null,null,"Ustreza:  MANDIK tip: CFDM/100-.15/EI60S ali enakovredno.","kos",2,null,0]
[null,null,null,null,null,null,0]
["II.",{"$f":"COUNT($A$123:$B212)+1","v":7},"Okrogla rešetka",null,null,null,0]
[null,null,"Dobava in montaža aluminijaste fasadne rešetke vkjučno, ter vsem potrebnim pritrdilnim, tesnilnim, spojnim in montažnim materialom. Pred nabavo se material  potrdi s strani arhitekta. Rešetka  barvanav RAL lestvici po izboru arhitekta arhitekta.",null,null,null,0]
[null,null,"Odvodna rešetka dimenzije Φ125 mm","kos",2,null,0]
[null,null,null,null,null,null,0]
["II.",{"$f":"COUNT($A$123:$B216)+1","v":8},"Prezračevalni ventil dovodni",null,null,null,0]
[null,null,"Dobava in montaža prezračevalnega ventila za dovod zraka s fiksnim difuzijskim obročem ter nastavljvim krožnikom za odpiranje in zapiranje ventila,  izdelan jeklene pločevine, pobarvan s prašno barvo v RAL 9010, ter vsem potrebnim pritrdilnim, tesnilnim, spojnim in montažnim materialom.\n",null,null,null,0]
[null,null,"Ustreza:  proizvod: Bossplast ali enakovredno\ntip: LVS",null,null,null,0]
[null,null,"Ventil za dovod zraka Φ100 mm","kos",13,null,0]
[null,null,"Ventil za dovod zraka Φ125 mm","kos",5,null,0]
[null,null,null,null,null,null,{"$f":"E222*F222","v":0}]
["II.",{"$f":"COUNT($A$123:$B222)+1","v":9},"Prezračevalni ventil odvodni",null,null,null,0]
[null,null,"Dobava in montaža prezračevalnega ventila za odvod zraka s fiksnim difuzijskim obročem ter nastavljvim krožnikom za odpiranje in zapiranje ventila,  izdelan jeklene pločevine, pobarvan s prašno barvo v RAL 9010, ter vsem potrebnim pritrdilnim, tesnilnim, spojnim in montažnim materialom.\n",null,null,null,0]
[null,null,"Ustreza:  proizvod: Bossplast ali enakovredno\ntip: LVS",null,null,null,0]
[null,null,"Ventil za odvod zraka Φ100 mm","kos",11,null,0]
[null,null,"Ventil za odvod zraka Φ125 mm","kos",5,null,0]
[null,null,null,null,null,null,0]
[{"$f":"$B$121","v":"II."},{"$f":"COUNT($A$123:$B228)+1","v":10},"Rešetka - fasadna",null,null,null,0]
[null,null,"Dobava in montaža aluminijaste fasadne rešetke, z mrežico proti mrčesu, ter vsem potrebnim pritrdilnim, tesnilnim, spojnim in montažnim materialom. Pred nabavo se material  potrdi s strani arhitekta. Rešetka  barvanav RAL lestvici po izboru arhitekta arhitekta.",null,null,null,0]
[null,null,"dimenzije 1500 x 50 mm","kos",1,null,0]
[null,null,"dimenzije 800 x 500 mm","kos",1,null,0]
[null,null,"dimenzije 700 x 600 mm","kos",1,null,{"$f":"E233*F233","v":0}]
[null,null,null,null,null,null,0]
[{"$f":"$B$121","v":"II."},{"$f":"COUNT($A$123:$B234)+1","v":11},"Fasadna rešetka - okrogla",null,null,null,0]
[null,null,"Dobava in montaža aluminijaste fasadne rešetke vkjučno z mrežico proti mrčesom, ter vsem potrebnim pritrdilnim, tesnilnim, spojnim in montažnim materialom. Pred nabavo se material  potrdi s strani arhitekta. Rešetka  barvanav RAL lestvici po izboru arhitekta arhitekta.",null,null,null,0]
[null,null,"Dovodna rešetka dimenzije Φ 250mm","kos",4,null,0]
[null,null,null,null,null,null,0]
["II.",{"$f":"COUNT($A$123:$B238)+1","v":12},"Prezračevalni kanali in oblikovni kosi","kg",2210,null,0]
[null,null,"Dobava in montaža pravokotnih prezračevalnih kanalov, komor in oblikovnih kosov izdelanih  iz pocinkane pločevine skladno s standardom SIST EN 1505 oziroma 1506.  Komplet s spojnim, vijačnim, tesnilnim, obešalnim, materialom ter antivibracijskimi vložki.",null,null,null,0]
[null,null,null,null,null,null,0]
[{"$f":"$B$121","v":"II."},{"$f":"COUNT($A$123:$B241)+1","v":13},"Okrogli prezračevalni kanali",null,null,null,0]
[null,null,"Dobava in montaža okroglih przračevalnih kanalov, izdelanih iz spiralno robljenih cevi, iz jeklene pocinkane pločevine, komplet s spojkami, ostalim spojnim, tesnilnim, vijačnim materialom ter dodatkom za razrez.",null,null,null,0]
[null,null,"Spiro kanal Φ100","m",72,null,0]
[null,null,"Spiro kanal Φ125","m",50,null,0]
[null,null,"Spiro kanal Φ160","m",43,null,0]
[null,null,"Spiro kanal Φ200","m",57,null,0]
[null,null,null,null,null,null,0]
[{"$f":"$B$121","v":"II."},{"$f":"COUNT($A$123:$B248)+1","v":14},"Fleksibilne cevi",null,null,null,0]
[null,null,"Dobava in montaža fleksibilnih cevi za povezavo zračnih kanalov in distribucijskih elementov, komplet s spojkami, ostalim spojnim, tesnilnim, vijačnim materialom ter dodatkom za razrez.",null,null,null,0]
[null,null,"Ustreza: Air Connections; tip ALUCONNECT ali enakovredno",null,null,null,0]
[null,null," Φ100","m",17,null,0]
[null,null," Φ125","m",5,null,0]
[null,null," Φ160","m",3,null,0]
[null,null," Φ200","m",6,null,0]
[null,null,null,null,null,null,0]
[{"$f":"$B$121","v":"II."},{"$f":"COUNT($A$123:$B256)+1","v":15},"Fleksibilne cevi izolirane",null,null,null,0]
[null,null,"Dobava in montaža fleksibilnih cevi za povezavo zračnih kanalov in distribucijskih elementov, komplet s spojkami, ostalim spojnim, tesnilnim, vijačnim materialom ter dodatkom za razrez.",null,null,null,0]
[null,null,"Ustreza: Sonodec Non-woven, 25mm, 100mm ali enakovredno",null,null,null,0]
[null,null," Φ100","m",20,null,0]
[null,null," Φ125","m",8,null,0]
[null,null," Φ160","m",3,null,0]
[null,null," Φ200","m",9,null,0]
[null,null,null,null,null,null,0]
[{"$f":"$B$121","v":"II."},{"$f":"COUNT($A$123:$B264)+1","v":16},"Toplotna izolacija prezračevalnih kanalov","m2",339,null,0]
[null,null,"Dobava in montaža toplotne in protikondenzne izolacije prezračevalnih kanalov, ki se izvede s penasto toplotno izolacijo na bazi sintetičnega kavčuka.\nToplotna prevodnost λ ≤ 0,034 W/mK,\nParozapornostni koeficient μ ≥ 10.000,\nPožarna klasifikacija B-s3, d0 po DIN EN 13501.",null,null,null,0]
[null,null,"Ustreza: KAIFLEX ST - PL 19 / E ali enakovredno",null,null,null,0]
[null,null,null,null,null,null,0]
[{"$f":"$B$121","v":"II."},{"$f":"COUNT($A$123:$B268)+1","v":17},"Montažni material","kg",255,null,0]
[null,null,"Dobava in montaža montažnega in pritrdilnega materiala sestavljenega iz tipskih jeklenih vroče cinkanih konstrukcijskih elementov, s tipskimi spojnimi elementi z vijačnimi zvezami materiala 8.8. Kombinacije tipskih elementov se izbere skladno z navodili oz. priporočili proizvajalca o nosilnosti. Ves vgrajen montažni material mora imeti CE oznako.  VKLJUČENI ANTIVIBRACIJSKI VLOŽKI ZA PRITRJEVANJE. PREZRAČEVALNIH KANALOV",null,null,null,0]
[null,null,"Ustreza: HILTI ali enakovredno",null,null,null,0]
[null,null,null,null,null,null,0]
[{"$f":"$B$121","v":"II."},{"$f":"COUNT($A$123:$B272)+1","v":18},"Mertive in nastavitev","kpl",1,null,0]
[null,null,"Meritve in fina nastavitev dovodnih in odvodnih količin skladno s projektno dokumentacijo, regulacija sistema in naprav, izdelava zapisnika o opravljenih nastavitvah, izdelava poročila o izmerjenih količinah s strani pooblaščene organizacije.",null,null,null,0]
[null,null,null,null,null,null,0]
[{"$f":"$B$121","v":"II."},{"$f":"COUNT($A$123:$B275)+1","v":19},"Shema in označitev","klp",1,null,0]
[null,null,"Izdelava funcionalne sheme delovanja klimatske naprave, z vsemi podatki o periferni opremi, motorni pogoni, tipala, ipd. Fizična označitev vseh pogonov in tipal z oznakami iz sheme. Izdela se mapa z omenjeno shemo ter navodili za uporabo in vzdrževanje v slovenskem jeziku. En izvod sheme in navodil se vstavi v krmilno omaro naprave, en izvod se preda uporabiku.",null,null,null,0]
[null,null,null,null,null,null,0]
[null,null,{"$f":"CONCATENATE($B$121,\" \",$C$121,\" - SKUPAJ:\")","v":"II. PREZRAČEVANJE SKUPNI PROSTORI ZAHOD - SKUPAJ:"},null,null,null,{"$f":"SUM(G123:G278)","v":0}]
[]
[null,"III.","PREZRAČEVANJE SIVE CONE"]
[]
[{"$f":"$B$281","v":"III."},{"$f":"1","v":1},"Naprava PN2, siva cona","kpl",1,null,{"$f":"E283*F283","v":0}]
[null,null,"Dobava in montaža kompaktne klimatske naprave vključno z krmilno avtomatiko, internimi kabelskimi povezavami in zagonom.  Napravo je potrbno dvigniti na streho ( višina cca. 12m)",null,null,null,{"$f":"E284*F284","v":0}]
[null,null,"SPLOŠNE INFORMACIJE:",null,null,null,0]
[null,null,"Kompaktna prezračevalna naprava za dovod in odvod zraka v izoliranem ohišju 30mm, zunanja izvedba, za montažo na streho, z vsemi perifernimi elementi, ki so gotovo ožičeni. Presostati povezani z PVC cevkami. V enoto je vgrajena vsa avtomatika za avtonomno delovanje naprave, skupaj z elektro krmilno omaro, sestavljena iz naslednjih modulov:"]
[null,null,"Količine zraka  Vdov= 440 m3/h,dp ext=250 Pa Vodv= 440 m3/h, dp ext=250 Pa"]
[null,null,"-  avtomatski by-pass, skupaj z loputo in motornim pogonom"]
[null,null,"vgrajen električni grelnik ( 3kW )  "]
[null,null,"-  vgrajen kompleten krmilno-nadzorni sistem (plug&play, elektro-krmilna naprava), servisno stikalo, ožičeni vsi elementi."]
[null,null,"-  sobni žični daljinski upravljalnik (tablo)."]
[null,null,"- temperaturno tipalo (zunaji zrak, dovodni zrak - konstantna temperatura vpiha)."]
[null,null,"velikost: D x Š x V; 1.475 x 739 x 917 mm"]
[null,null,"Regulacija naprave omogoča:"]
[null,null,"-  delovanje ventilatorjev s konstantnim pretokom zraka (regulacija hitrosti EC ventilatorja preko diferenčnega tlačnega stikala na obroču ventilatorja), hitrost možno nastaviti v treh stopnjah,"]
[null,null,"-  nastavljanje obratovalnih parametrov zimskega /poletnega (grelnega/hladilnega) režima delovanja,"]
[null,null,"-  ročna izbira delovanja ali avtomatski tedenski program delovanja,"]
[null,null,"-  režim prostega  hlajenja v prehodnem  in poletnem času pri pogoju, da je temperaturna razlika med zunanjim in notranjim zrakom dovolj velika,  "]
[null,null,"-  izpis dejanskih in želenih stanj,"]
[null,null,"-  vodenje žaluzij,"]
[null,null,"-  krmiljenje grelnega ventila,"]
[null,null,"-  protizmrzovalno zaščita,"]
[null,null,"-  nadzor nad čistočo filtrov,"]
[null,null,"-  diagnosticiranje alarmov,"]
[null,null,"-  kontakt za diagnosticiranje požarnih loput"]
[null,null,"-  brezpotencialni kontakt za daljinsko javljanje napake,"]
[null,null,"v kompletu z napravo se dobavi 2x zaporna žaluzija ter motorni pogon 230V z vzmetjo. Zaščitna streha ter zajemne haube "]
[null,null,"-  ModBus kominikacijski vmesnik,"]
[null,null,"OPOMBA: oprema mora ustrezati evropski derektivi ErP2018 Eco-Design EU No.1253/2014"]
[null,null,"Pred naročilom naprave je potrebno s skico definirati smer posluževanja naprave in velikost modulov zaradi vnosa naprave preko odprtin predvidenih za transport. "]
[null,null,null,null,null,null,{"$f":"E311*F311","v":0}]
[{"$f":"$B$281","v":"III."},{"$f":"COUNT($A$283:$B311)+1","v":2},"Dušilec zvoka",null,null,null,0]
[null,null,"Dobava in vgradnja dušilca zvoka, primernega za vgradnjo v kanalsko mrežo, izdelan iz pocinkane pločevine. V ohišje so vgrajene dušilne kulise pri katerih so v okvirje iz jeklene pocinkane pločevine vstavljena posebna polnila  iz učinkovitega absorbcijskega materijala. Komplet z tesnilnim in pritrdilnim materialom. Pred naročilom nujno preveriti dimenzije in akustične karaktersitike.",null,null,null,0]
[null,null,"Φ250x1000","kos",2,null,0]
[null,null,null,null,null,null,0]
[{"$f":"$B$281","v":"III."},{"$f":"COUNT($A$283:$B315)+1","v":3},"Požarna loputa",null,null,null,0]
[null,null,"Dobava in montaža dimotesne požarne lopute za preprečevanje širjenja požara skozi zračne kanale, izdelana iz jeklene pocinkane pločevine, z elektromotornim pogonom 230 V, termičnim sprožilom, končnimi stikali za detekcijo odprte in zaprte lege, komplet s spojnim, tesnilnim, pritrdilnim in ostalim montažnim materialom.",null,null,null,0]
[null,null,"Loputa  požarne odpornosti 60 minut. ",null,null,null,0]
[null,null,"Ustreza: proizvod Trox ali enakovredno",null,null,null,0]
[null,null,"dimenzij:",null,null,null,0]
[null,null,"Φ100","kos",13,null,0]
[null,null,"Φ125","kos",4,null,0]
[null,null,"Φ200","kos",2,null,0]
[null,null,null,null,null,null,0]
[{"$f":"$B$281","v":"III."},{"$f":"COUNT($A$283:$B324)+1","v":4},"Požarna tesnenje požarnih loput s požarno odpornostjo 60 minut",null,null,null,0]
[null,null,"Ivedba ognjevarne zažčite pob požarnih loputah, požarne odpornosti 60 minut komplet z dobavopotrebnega materiala, s potrebnimi certifikati in označitvijo s samolepilno nalepko.\n",null,null,null,0]
[null,null,"Ustreza: Promat Promatect AD ali enakovredno",null,null,null,0]
[null,null,"Za požarno loputo dimenzij:",null,null,null,0]
[null,null,"Φ100","kos",13,null,0]
[null,null,"Φ125","kos",4,null,0]
[null,null,"Φ200","kos",2,null,0]
[null,null,null,null,null,null,0]
[{"$f":"$B$281","v":"III."},{"$f":"COUNT($A$283:$B332)+1","v":5},"Prezračevalni ventil dovodni",null,null,null,0]
[null,null,"Dobava in montaža prezračevalnega ventila za dovod zraka s fiksnim difuzijskim obročem ter nastavljvim krožnikom za odpiranje in zapiranje ventila,  izdelan jeklene pločevine, pobarvan s prašno barvo v RAL 9010, ter vsem potrebnim pritrdilnim, tesnilnim, spojnim in montažnim materialom.\n",null,null,null,0]
[null,null,"Ustreza:  proizvod: Bossplast ali enakovredno\ntip: LVS",null,null,null,0]
[null,null,"Ventil za dovod zraka Φ100 mm","kos",8,null,0]
[null,null,"Ventil za dovod zraka Φ125 mm","kos",1,null,{"$f":"E337*F337","v":0}]
[null,null,null,null,null,null,0]
[{"$f":"$B$281","v":"III."},{"$f":"COUNT($A$283:$B338)+1","v":6},"Prezračevalni ventil odvodni",null,null,null,0]
[null,null,"Dobava in montaža prezračevalnega ventila za odvod zraka s fiksnim difuzijskim obročem ter nastavljvim krožnikom za odpiranje in zapiranje ventila,  izdelan jeklene pločevine, pobarvan s prašno barvo v RAL 9010, ter vsem potrebnim pritrdilnim, tesnilnim, spojnim in montažnim materialom.\n",null,null,null,0]
[null,null,"Ustreza:  proizvod: Bossplast ali enakovredno\ntip: LVS",null,null,null,0]
[null,null,"Ventil za odvod zraka Φ100 mm","kos",8,null,0]
[null,null,"Ventil za odvod zraka Φ125 mm","kos",1,null,0]
[]
[{"$f":"$B$281","v":"III."},{"$f":"COUNT($A$283:$B344)+1","v":7},"Okrogli prezračevalni kanali",null,null,null,0]
[null,null,"Dobava in montaža okroglih przračevalnih kanalov, izdelanih iz spiralno robljenih cevi, iz jeklene pocinkane pločevine, komplet s spojkami, ostalim spojnim, tesnilnim, vijačnim materialom ter dodatkom za razrez.",null,null,null,0]
[null,null,"Spiro kanal Φ100","m",104,null,0]
[null,null,"Spiro kanal Φ125","m",40,null,0]
[null,null,"Spiro kanal Φ160","m",14,null,0]
[null,null,"Spiro kanal Φ200","m",14,null,0]
[null,null,"Spiro kanal Φ250","m",44,null,{"$f":"E351*F351","v":0}]
[null,null,null,null,null,null,0]
[{"$f":"$B$281","v":"III."},{"$f":"COUNT($A$283:$B352)+1","v":8},"Fleksibilne cevi",null,null,null,0]
[null,null,"Dobava in montaža fleksibilnih cevi za povezavo zračnih kanalov in distribucijskih elementov, komplet s spojkami, ostalim spojnim, tesnilnim, vijačnim materialom ter dodatkom za razrez.",null,null,null,0]
[null,null,"Ustreza: Air Connections; tip ALUCONNECT ali enakovredno",null,null,null,0]
[null,null," Φ100","m",12,null,0]
[null,null," Φ125","m",2,null,0]
[null,null,null,null,null,null,0]
[{"$f":"$B$281","v":"III."},{"$f":"COUNT($A$283:$B358)+1","v":9},"Fleksibilne cevi izolirane",null,null,null,0]
[null,null,"Dobava in montaža fleksibilnih cevi za povezavo zračnih kanalov in distribucijskih elementov, komplet s spojkami, ostalim spojnim, tesnilnim, vijačnim materialom ter dodatkom za razrez.",null,null,null,0]
[null,null,"Ustreza: Sonodec Non-woven, 25mm, 100mm ali enakovredno",null,null,null,0]
[null,null," Φ100","m",12,null,0]
[null,null," Φ125","m",2,null,0]
[]
[{"$f":"$B$281","v":"III."},{"$f":"COUNT($A$283:$B363)+1","v":10},"Toplotna izolacija prezračevalnih kanalov","m2",68,null,0]
[null,null,"Dobava in montaža toplotne in protikondenzne izolacije prezračevalnih kanalov, ki se izvede s penasto toplotno izolacijo na bazi sintetičnega kavčuka.\nToplotna prevodnost λ ≤ 0,034 W/mK,\nParozapornostni koeficient μ ≥ 10.000,\nPožarna klasifikacija B-s3, d0 po DIN EN 13501.",null,null,null,0]
[null,null,"Ustreza: KAIFLEX ST - PL 19 / E ali enakovredno",null,null,null,0]
[null,null,null,null,null,null,0]
[{"$f":"$B$281","v":"III."},{"$f":"COUNT($A$283:$B368)+1","v":11},"Mertive in nastavitev","kpl",1,null,0]
[null,null,"Meritve in fina nastavitev dovodnih in odvodnih količin skladno s projektno dokumentacijo, regulacija sistema in naprav, izdelava zapisnika o opravljenih nastavitvah, izdelava poročila o izmerjenih količinah s strani pooblaščene organizacije.",null,null,null,0]
[null,null,null,null,null,null,0]
[{"$f":"$B$281","v":"III."},{"$f":"COUNT($A$283:$B371)+1","v":12},"Shema in označitev","klp",1,null,0]
[null,null,"Izdelava funcionalne sheme delovanja klimatske naprave, z vsemi podatki o periferni opremi, motorni pogoni, tipala, ipd. Fizična označitev vseh pogonov in tipal z oznakami iz sheme. Izdela se mapa z omenjeno shemo ter navodili za uporabo in vzdrževanje v slovenskem jeziku. En izvod sheme in navodil se vstavi v krmilno omaro naprave, en izvod se preda uporabiku.",null,null,null,0]
[]
[null,null,{"$f":"CONCATENATE($B$281,\" \",$C$281,\" - SKUPAJ:\")","v":"III. PREZRAČEVANJE SIVE CONE - SKUPAJ:"},null,null,null,{"$f":"SUM(G282:G374)","v":0}]
[]
[null,"IV.","PREZRAČEVANJE KUHINJE "]
[]
[{"$f":"$B$377","v":"IV."},{"$f":"1","v":1},"Dovodna klimatska naprava za kuhinjo DN1",null,null,null,{"$f":"E379*F379","v":0}]
[null,null,"Dobava in montaža kompaktne klimatske naprave vključno z krmilno avtomatiko, internimi kabelskimi povezavami in zagonom.  Napravo je potrbno dvigniti na streho ( višina cca. 12m)",null,null,null,{"$f":"E380*F380","v":0}]
[null,null,"SPLOŠNE INFORMACIJE",null,null,null,0]
[null,null,"Mehanske karakteristike ohišja morajo biti testirane s strani neodvisnega laboratorija in imeti Eurovent certifikat. Karakteristike ohišja morajo biti boljše ali enake, kot so navedene spodaj (na podlagi EN 1886):",null,null,null,0]
[null,null,"PLOŠČE",null,null,null,0]
[null,null,"Plošče morajo biti samonosne, dvoplastne, 50 mm debele, popolnoma zaprte ter toplotno in zvočno izolirane. ",null,null,null,0]
[null,null,"Plošče morajo biti zaščitene proti korozijo in izdelane iz:",null,null,null,0]
[null,null,"Pocinkanega jekla, 275gr/m² v skladu z EN 142-79.",null,null,null,0]
[null,null,"Notranji sloj ne sme biti tanjši kot 1.5 mm, zunanji sloj pa ne manj kot 1.0 mm.",null,null,null,0]
[null,null,"Notranja vodila morajo biti izdelana iz pocinkanega jekla.",null,null,null,0]
[null,null,"Zunanji sloj mora biti izdelan iz pocinkanega jekla (v skladu z EN 142-79 ) ter obdelan s PVC prevleko odporno na UV, vremenske vplive in praske. Zunanja PVC prevleka je bele barve, RAL9003 ali enakovredne druge barve in ne sme biti tanjša od 150 µm.",null,null,null,0]
[null,null,"Plošče morajo biti izolirane s 50 mm debelimi, nevnetljivimi mineralnimi vlakni. Izolacija ima največjo toplotno prevodnost 0.59 W/m²K v skladu z DIN 4108.",null,null,null,0]
[null,null,"Poliuretan ali kakršnikoli izolacija na osnovi pene ni dovoljena zaradi požarne varnosti.",null,null,null,0]
[null,null,"Plošče morajo dosegati naslednje ravni zmanjšanja zvoka:",null,null,null,0]
[null,null,"Industrijska izvedba ohišja: (1,0/1,5 mm)",null,null,null,0]
[null,null,"Rw = 41dB v skladu z DIN 52210-3",null,null,null,0]
[null,null,"NOSILNI (OSNOVNI) OKVIR ENOTE",null,null,null,0]
[null,null,"Zaradi doseganja trdnosti in stabilnosti, je vsak dostavljen modul podprt z okvirjem, zgrajenim iz enega kosa:",null,null,null,0]
[null,null,"Osnovni okvir je C profila, narejen iz Pocinkana pločevina, z višino 80 mm z minimalno debelino 3mm ali več.",null,null,null,0]
[null,null,"TEHNIČNI PODATKI",null,null,null,0]
[null,null,"Dovod",null,null,null,0]
[null,null,"Tip naprave in velikost:",null,null,null,0]
[null,null,"Dovodna enota:",null,null,null,0]
[null,null,"Notranja izvedba",null,null,null,0]
[null,null,"Dimezije ŠxVxD: 1.200 x 720,0 x 1850,0 mm",null,null,null,0]
[null,null,"Pretok zraka: 3520 m3/h",null,null,null,0]
[null,null,"Eurovent certificirani podatki",null,null,null,0]
[null,null,"Podatki o napravi:",null,null,null,0]
[null,null,"Energetski razred: C",null,null,null,0]
[null,null,"Projektna temperatura: 20,00 °C",null,null,null,0]
[null,null,"Tehnični podatki: Sekcije ter komponente v smeri tok zraka",null,null,null,0]
[null,null,"Vrečasti filter s predfiltrom",null,null,null,0]
[null,null,"Vrečasti filter",null,null,null,0]
[null,null,"Razred filtracije (EN779): G4",null,null,null,0]
[null,null,"Vrečasti filter",null,null,null,0]
[null,null,"Tehnični podatki: ",null,null,null,0]
[null,null,"Razred filtracije (EN779): F7",null,null,null,0]
[null,null,"Padec tlaka za izračun: 141 Pa",null,null,null,0]
[null,null," Dodatna oprema / Izvedba / Oznake",null,null,null,0]
[null,null,"1       Kos     Ključavnica na vratih",null,null,null,0]
[null,null," Žaluzija",null,null,null,0]
[null,null," Jadrovinasti nastavek",null,null,null,0]
[null,null,"Prostotekoči ventilator",null,null,null,0]
[null,null,"Visoko učinkoviti rotor z nazaj zakrivljenimi lopaticami , statično ter dinamično uravnotežen",null,null,null,0]
[null,null,"Tehnični podatki ventilatorja:",null,null,null,0]
[null,null,"Eksterni padec tlaka: 450 Pa",null,null,null,0]
[null,null,"Skupni padec tlaka: 1.012 Pa",null,null,null,0]
[null,null,"Število vrtljajev: 2.348 1/min",null,null,null,0]
[null,null," Dodatna oprema / Izvedba / Oznake",null,null,null,0]
[null,null,"Podatki motorja:",null,null,null,0]
[null,null,"Absorbirana el. moč: 1,34 kW",null,null,null,0]
[null,null,"Razred učinkovitosti motorja: analog to IEC60034: IE 5",null,null,null,0]
[null,null,"Dodatna oprema / Izvedba / Oznake",null,null,null,0]
[null,null,"1       Komplet     Motor predkabliran",null,null,null,0]
[null,null,"1       Komplet     Kabelska uvodnica",null,null,null,0]
[null,null,"Dodatna oprema / Izvedba / Oznake",null,null,null,0]
[null,null,"1       Kos     Ključavnica na vratih",null,null,null,0]
[null,null," Jadrovinasti nastavek",null,null,null,0]
[null,null," Zvočni podatki enote Dovod",null,null,null,0]
[null,null,"Zvočni podatki enote Dovod   Tot dB (A)       ",null,null,null,0]
[null,null,"1  Zvočna moč ohišje+/- 4 dB   64,9                ",null,null,null,0]
[null,null,"2  Zvočna moč vstop zraka +/- 4 dB   79,6               ",null,null,null,0]
[null,null,"3  Zvočna moč izstop zraka +/- 4 dB   68,2               ",null,null,null,0]
[null,null,"4  Zvočni tlak 1 m oddaljeno od naprave   49,4               ",null,null,null,0]
[null,null,"5  Zvočni tlak 1 m oddaljeno od vstopa zraka   74,2                ",null,null,null,0]
[null,null,"6  Zvočni tlak 1 m oddaljeno od izstopa zraka   63,0                ",null,null,null,{"$f":"E444*F444","v":0}]
[null,null,"1       Kos     Izolacija panel mineralna volna",null,null,null,0]
[null,null,"1       Komplet     Podstavek ZHK GR-LP80",null,null,null,0]
[null,null,"1            Truck - Transport",null,null,null,0]
[null,null,"1       Kos     Embaliranje z raztegljivo folijo",null,null,null,0]
[null,null,"1       Kos     Čelni pokrov",null,null,null,0]
[null,null,"Ustreza: KLIMOR EVO-S 0400 4245 ali enakovredno","kos",1,null,0]
[null,null,null,null,null,null,{"$f":"E451*F451","v":0}]
[{"$f":"$B$377","v":"IV."},{"$f":"COUNT($A$378:B451)+1","v":2},"Varčna kuhinjska napa nad termičnem blokom",null,null,null,0]
[null,null,"Dobava in montaža visoko učinkovite varčne nape, komplet s vsem spojnim pritrdilnim in nosilnim materialom. Varčna napa vsebuje vsebuje:",null,null,null,0]
[null,null,"Industrijski cevni prenosnik toplote namenjen za rekuperacijo zraka ( izkoristek nad 65% ) gladke površine  iz visokopoliranega inoxa in v skladu z ( VDI 2052 odstavek 6.4.4. ). Vgrajen tik nad izvorom toplote termičnega bloka. Prenosnik toplote mora biti v izvedbi  \"samočiščenja\" zaradi  preprečevanja povečanja padcov tlaka v sistemu ter nižanja izkoristka prenosnika. Interval čiščenja 1x letno. ",null,null,null,0]
[null,null,"Učinkovit sistem odvoda odpadnega zraka z namestitvijo visoučinkovitih multiciklonskih filtrov:",null,null,null,0]
[null,null,"Multiciklonski laberinti filter z stopnjo izločanja 100% pri velikosti delcev 4,870 μm po DMT . Filtri morajo imeti certifikat požarne odpornosti  DMT po smernicah VDI 2052-1 Možnost pranja v pomivalnem stroju. ",null,null,null,0]
[null,null,"By pass žaluzijo z regulacijo preko zveznega motornega pogona",null,null,null,0]
[null,null,"Integrirane svetilke nad lepljenim kaljenim steklom, kar omogoča enostavno čiščenje spodnje površine nape vključno s steklom",null,null,null,0]
[null,null,"Vodni dogrelnik",null,null,null,0]
[null,null,"Dolžina kuhinjske nape:4200 mm",null,null,null,0]
[null,null,"Širina kuhinjske nape: 1300 mm",null,null,null,0]
[null,null,"Ustreza: SÜDLUFT SL THERMO - AK 4200x1300 stenska izvedba ali enakovredno","kos",1,null,{"$f":"E462*F462","v":0}]
[null,null,null,null,null,null,0]
[{"$f":"$B$377","v":"IV."},{"$f":"COUNT($A$378:B463)+1","v":3},"Hidravlični modul za vodno gretje za varčno napo",null,null,null,0]
[null,null,"Dobav in montaža hidravličnega modula za vodno gretje varčne nape, komplet s vsem potrebnim spojnim tesnilnim in pritrdilnim materialom.",null,null,null,0]
[null,null,"Hidravlični modul sestavljajo: regulacijski ventil z motornim pogonom, črpalka, dušilni ventil, zapiralna ventila, izpustno-polnilni ventil in potopna temperaturna tipala za merjenje temperature dovedene in odvedene vode.\n",null,null,null,0]
[null,null,"Ustreza: SÜDLUFT PHT  ali enakovredno","kos",1,null,0]
[null,null,null,null,null,null,0]
[{"$f":"$B$377","v":"IV."},{"$f":"COUNT($A$378:B468)+1","v":4},"Regulacijska žaluzija z motornim pogonom ",null,null,null,0]
[null,null,"Dobava in montaža regulacijske žaluzije 400x400, komplet z motornim pogonom, vsem spojnim tesnilnim in pritrdilnim materialom.",null,null,null,0]
[null,null,"Ustreza: Tip: B REG ŽAL. 400x400 + belimo LMC 24 A SR ali enakovredno","kos",2,null,0]
[null,null,null,null,null,null,0]
[{"$f":"$B$377","v":"IV."},{"$f":"COUNT($A$378:B472)+1","v":5},"Avtomatska regulacija kuhinjskega sistema",null,null,null,0]
[null,null,"Dobava, montaža, povezava avtomatske regulacije kuhinjskega sistema komplet s vsem potrebnim spojnim in pritrdilnim materialom.",null,null,null,0]
[null,null,"V sklopu varčne kuhinjske nape Südluft  dobaviti vso funkcionalno potrebno periferno opremo za potrebe krmilno regulacijskega sistema celotnega sistema varčnih nap 1 in 2, prezračevalne naprave in prostorov, elektro komandno omara z DDC enotami in vsemi potrebnim regulacijskimi, krmilnimi, močnostnimi, zaščitnimi in signalizacijskimi elementi. Dobava zajema tudi kompleten pooblaščeni zagon in funkcionalni preizkus kompletnega prezračevalnega sistema. Kabliranje celtonega sistema v sklopu dobave krmilnega sistema. ",null,null,null,0]
[null,null,"Opis: Integriran krmilni sistem s krmilnikom DOMAT s Touch screenom za podometno montažo zaščite IP 66. Omogoča nadzor nad vsemi kuhinjskimi napami v kuhinji, ročno  nastavitev pretoka vseh kuhinjskih nap v 4 stopnjah na tabloju, nastavitev temperature, nastavitev tedenskega urnika delovanja z dvema dnevnima periodama. Krmilni sistem omogoča ročni ali avtomatični preklop med delovanjem z rekuperacijo toplote pozimi, poletnim delovanjem brez rekuperacije. Regulacijski sistem mora vsebovati oddaljen dostop preko IP naslova z izdelano spletno aplikacijo preko katere je možno spremljati vse ključne parametre delovanja ter \"zrceljenje\" le teh v servisno službo dobavilteja opreme. ",null,null,null,0]
[null,null,"Ustreza: BOSSPLAST EKO CONTROL ali enakovredno","kos",1,null,0]
[null,null,null,null,null,null,0]
[{"$f":"$B$377","v":"IV."},{"$f":"COUNT($A$378:B478)+1","v":6},"Klasična kuhinjska napa pomivanje posode",null,null,null,0]
[null,null,"Dobava in montaža klasična kuhinjska napa stenske izvedbe z žlebom po obodu nape, filtri, lučjo integrirano v ohišje nape za lažje čiščenje in izpustno pipico, priključki za z prezračevalne kanale. material: AISI304L.  ",null,null,null,0]
[null,null,"Ustreza: SÜDLUFT HK 1000x1000x450 ali enakovredno","kos",1,null,0]
[null,null,null,null,null,null,0]
[{"$f":"$B$377","v":"IV."},{"$f":"COUNT($A$378:B482)+1","v":7},"Regulacijska žaluzija z motornim pogonom ",null,null,null,0]
[null,null,"Dobava in montaža regulacijske žaluzije 500x300, komplet z motornim pogonom, vsem spojnim tesnilnim in pritrdilnim materialom.",null,null,null,0]
[null,null,"Ustreza: B REG ŽAL. 500x300 + belimo LMC 24 A SR ali enakovredno","kos",1,null,0]
[null,null,null,null,null,null,0]
[{"$f":"$B$377","v":"IV."},{"$f":"COUNT($A$378:B486)+1","v":8},"Ventilator za odvod iz kuhinjskih nap",null,null,null,0]
[null,null,"Dobava in montaža odvodnega kanalskega ventilatorja,  za odvod odpadnega zraka od  kuhinjske nape, odpornega na visoke temperature, (120 °C), z ločenim elekro motorjem od toka zraka, skladno z VDI 2052, komplet z:  \n∙ jadrovinastim nastavkom tip DAS 450,\nin z vsem ostalim potrebnim spojnim, tesnilnim in montažnim materialom",null,null,null,0]
[null,null,"q=3720 m3/h, dP=450Pa,\n",null,null,null,0]
[null,null,"Ustreza: RUCK VENTILATOREN MPC 355 EC T 30  ali enakovredno","kos",1,null,{"$f":"E490*F490","v":0}]
[null,null,null,null,null,null,0]
[{"$f":"$B$377","v":"IV."},{"$f":"COUNT($A$378:B491)+1","v":9},"Ventilator za dovod iz varčne nape v sosedni prostor",null,null,null,0]
[null,null,"Dobava in montaža kanalskega ventilatorja v izoliranem ohišju z EC motorjem, proizvod kot na primer oziroma enakovredno Ruck za dovod ogretega zraka iz varčne nape naprej v sosednje prostore, komplet z:  \n∙ jadrovinastim nastavkom\nin z vsem ostalim potrebnim spojnim, tesnilnim in montažnim materialom",null,null,null,0]
[null,null,"KVRI 5025 EC 30,\nq=900 m3/h, dP=250 Pa,\nel.p.: Pel=532 W, 1x 230 V, 50 Hz, \n",null,null,null,0]
[null,null,"Ustreza: RUCK KVRI 5025 EC 30 ali enakovredno","kos",1,null,0]
[null,null,null,null,null,null,0]
[{"$f":"$B$377","v":"IV."},{"$f":"COUNT($A$378:B496)+1","v":10},"Maščobolovilec",null,null,null,0]
[null,null,"Dobava in montaža lovilca maščobe, primernega za vgradnjo v stop. Ohišje in žleb sta izdelana iz jeklene pločevine, filter je sestavljen iz okvirja in polnila iz ekspandirane aluminjaste pločevine, komplet s vsem spojnim tesnilnim in pritrdilnim materialom.",null,null,null,0]
[null,null,"325x225","kos",2,null,0]
[null,null,null,null,null,null,0]
[{"$f":"$B$377","v":"IV."},{"$f":"COUNT($A$378:B500)+1","v":11},"Dušilec zvoka",null,null,null,0]
[null,null,"Dobava in vgradnja dušilca zvoka, primernega za vgradnjo v kanalsko mrežo, izdelan iz pocinkane pločevine. V ohišje so vgrajene dušilne kulise pri katerih so v okvirje iz jeklene pocinkane pločevine vstavljena posebna polnila  iz učinkovitega absorbcijskega materijala. Komplet z tesnilnim in pritrdilnim materialom. Pred naročilom nujno preveriti dimenzije in akustične karaktersitike.",null,null,null,0]
[null,null,"Ustreza: TROX MSA ali enakovredno",null,null,null,0]
[null,null,"500/450x1000","kos",1,null,0]
[null,null,null,null,null,null,0]
[{"$f":"$B$377","v":"IV."},{"$f":"COUNT($A$378:B505)+1","v":12},"Požarna loputa",null,null,null,0]
[null,null,"Dobava in montaža dimotesne požarne lopute za preprečevanje širjenja požara skozi zračne kanale, izdelana iz jeklene pocinkane pločevine, z elektromotornim pogonom 230 V, termičnim sprožilom, končnimi stikali za detekcijo odprte in zaprte lege, komplet s spojnim, tesnilnim, pritrdilnim in ostalim montažnim materialom.",null,null,null,0]
[null,null,"Loputa  požarne odpornosti 60 minut. ",null,null,null,0]
[null,null,"Ustreza: proizvod Trox ali enakovredno",null,null,null,0]
[null,null,"dimenzij:",null,null,null,0]
[null,null,"500x450","kos",4,null,0]
[null,null,null,null,null,null,0]
[{"$f":"$B$377","v":"IV."},{"$f":"COUNT($A$378:B512)+1","v":13},"Požarna tesnenje požarnih loput s požarno odpornostjo 60 minut",null,null,null,0]
[null,null,"Ivedba ognjevarne zažčite pob požarnih loputah, požarne odpornosti 60 minut komplet z dobavopotrebnega materiala, s potrebnimi certifikati in označitvijo s samolepilno nalepko.\n",null,null,null,0]
[null,null,"Ustreza: Promat Promatect AD ali enakovredno",null,null,null,0]
[null,null,"Za požarno loputo dimenzij:",null,null,null,0]
[null,null,"500x450x500","kos",4,null,0]
[null,null,null,null,null,null,0]
[{"$f":"$B$377","v":"IV."},{"$f":"COUNT($A$378:B518)+1","v":14},"Požarna obloga prezračevalnega kanala","m2",16,null,0]
[null,null,"Izdelava ognjevarne zažčite prezračevalnega kanala, požarne odpornosti 60 minut komplet z dobavo lahke samonosilne požarne plošče izdelane na silikatni osnovi s cementnim vezivom, neobčutljive na vlago,  odporna na razjedanje kislin in lugov, kopmplet z dobavo in montažo potrebnih ognjevarnih nosilnih podkonstrukcij, z vsem pritrdilnim in montažnim materialom, potrebnimi certifikati in označitvijo s samolepilno nalepko.",null,null,null,0]
[null,null,"Ustreza: Promat Promatect AD ali enakovredno",null,null,null,0]
[null,null,null,null,null,null,0]
[{"$f":"$B$377","v":"IV."},{"$f":"COUNT($A$378:B522)+1","v":15},"Prezračevalni ventil dovodni",null,null,null,0]
[null,null,"Dobava in montaža prezračevalnega ventila za dovod zraka s fiksnim difuzijskim obročem ter nastavljvim krožnikom za odpiranje in zapiranje ventila,  izdelan jeklene pločevine, pobarvan s prašno barvo v RAL 9010, ter vsem potrebnim pritrdilnim, tesnilnim, spojnim in montažnim materialom.\n",null,null,null,0]
[null,null,"Ustreza:  proizvod: Bossplast ali enakovredno\ntip: LVS",null,null,null,0]
[null,null,"Ventil za dovod zraka Φ100 mm","kos",1,null,0]
[null,null,null,null,null,null,0]
[{"$f":"$B$377","v":"IV."},{"$f":"COUNT($A$378:B527)+1","v":16},"Vrtinčni difuzor ",null,null,null,0]
[null,null,"Dobava in montaža kvadratnega stropnega difuzorja izdelanega iz jeklene pločevine, prašno barvan, komplet s komoro z regulacijsko loputo, priključnim nastavkom (dimenzijo preveriti na objektu pred naročilom) ter vsem potrebnim pritrdilnim, tesnilnim, spojnim in montažnim materialom.",null,null,null,0]
[null,null,"Ustreza: Bossplast tip: BD-9 ali enakovredno",null,null,null,0]
[null,null,"Dovodni difuzor",null,null,null,0]
[null,null,"400/270; priključnim nastavkom ɸ200","kos",5,null,0]
[null,null,null,null,null,null,0]
[{"$f":"$B$377","v":"IV."},{"$f":"COUNT($A$378:B533)+1","v":17},"Prezračevalni kanali in oblikovni kosi","kg",1810,null,0]
[null,null,"Dobava in montaža pravokotnih prezračevalnih kanalov, komor in oblikovnih kosov izdelanih  iz pocinkane pločevine skladno s standardom SIST EN 1505 oziroma 1506.  Komplet s spojnim, vijačnim, tesnilnim, obešalnim, materialom ter antivibracijskimi vložki.",null,null,null,0]
[null,null,null,null,null,null,0]
[{"$f":"$B$377","v":"IV."},{"$f":"COUNT($A$378:B536)+1","v":18},"Okrogli prezračevalni kanali",null,null,null,0]
[null,null,"Dobava in montaža okroglih przračevalnih kanalov, izdelanih iz spiralno robljenih cevi, iz jeklene pocinkane pločevine, komplet s spojkami, ostalim spojnim, tesnilnim, vijačnim materialom ter dodatkom za razrez.",null,null,null,0]
[null,null,"Spiro kanal Φ100","m",3,null,0]
[null,null,"Spiro kanal Φ200","m",16,null,{"$f":"E540*F540","v":0}]
[null,null,null,null,null,null,0]
[{"$f":"$B$377","v":"IV."},{"$f":"COUNT($A$378:B541)+1","v":19},"Fleksibilne cevi izolirane",null,null,null,0]
[null,null,"Dobava in montaža fleksibilnih cevi za povezavo zračnih kanalov in distribucijskih elementov, komplet s spojkami, ostalim spojnim, tesnilnim, vijačnim materialom ter dodatkom za razrez.",null,null,null,0]
[null,null,"Ustreza: Sonodec Non-woven, 25mm, 100mm ali enakovredno",null,null,null,0]
[null,null," Φ100","m",2,null,0]
[null,null," Φ200","m",8,null,0]
[null,null,null,null,null,null,0]
[{"$f":"$B$377","v":"IV."},{"$f":"COUNT($A$378:B547)+1","v":20},"Toplotna izolacija prezračevalnih kanalov","m2",162,null,0]
[null,null,"Dobava in montaža toplotne in protikondenzne izolacije prezračevalnih kanalov, ki se izvede s penasto toplotno izolacijo na bazi sintetičnega kavčuka.\nToplotna prevodnost λ ≤ 0,034 W/mK,\nParozapornostni koeficient μ ≥ 10.000,\nPožarna klasifikacija B-s3, d0 po DIN EN 13501.",null,null,null,0]
[null,null,"Ustreza: KAIFLEX ST - PL 19 / E ali enakovredno",null,null,null,0]
[null,null,null,null,null,null,0]
[{"$f":"$B$377","v":"IV."},{"$f":"COUNT($A$378:B551)+1","v":21},"Montažni material","kg",225,null,0]
[null,null,"Dobava in montaža montažnega in pritrdilnega materiala sestavljenega iz tipskih jeklenih vroče cinkanih konstrukcijskih elementov, s tipskimi spojnimi elementi z vijačnimi zvezami materiala 8.8. Kombinacije tipskih elementov se izbere skladno z navodili oz. priporočili proizvajalca o nosilnosti. Ves vgrajen montažni material mora imeti CE oznako.  VKLJUČENI ANTIVIBRACIJSKI VLOŽKI ZA PRITRJEVANJE. PREZRAČEVALNIH KANALOV",null,null,null,0]
[null,null,"Ustreza: HILTI ali enakovredno",null,null,null,0]
[null,null,null,null,null,null,0]
[{"$f":"$B$377","v":"IV."},{"$f":"COUNT($A$378:B555)+1","v":22},"Mertive in nastavitev","kpl",1,null,0]
[null,null,"Meritve in fina nastavitev dovodnih in odvodnih količin skladno s projektno dokumentacijo, regulacija sistema in naprav, izdelava zapisnika o opravljenih nastavitvah, izdelava poročila o izmerjenih količinah s strani pooblaščene organizacije.",null,null,null,0]
[null,null,null,null,null,null,0]
[{"$f":"$B$377","v":"IV."},{"$f":"COUNT($A$378:B558)+1","v":23},"Shema in označitev","klp",1,null,0]
[null,null,"Izdelava funcionalne sheme delovanja klimatske naprave, z vsemi podatki o periferni opremi, motorni pogoni, tipala, ipd. Fizična označitev vseh pogonov in tipal z oznakami iz sheme. Izdela se mapa z omenjeno shemo ter navodili za uporabo in vzdrževanje v slovenskem jeziku. En izvod sheme in navodil se vstavi v krmilno omaro naprave, en izvod se preda uporabiku.",null,null,null,0]
[null,null,null,null,null,null,0]
[null,null,{"$f":"CONCATENATE($B$377,\" \",$C$377,\" - SKUPAJ:\")","v":"IV. PREZRAČEVANJE KUHINJE  - SKUPAJ:"},null,null,null,{"$f":"SUM(G378:G561)","v":0}]
[]
[null,"V.","PREZRAČEVANJE SOBE VZHOD"]
[]
[{"$f":"$B$564","v":"V."},{"$f":"1","v":1},"Naprava KN3, sobe zahod",null,null,null,{"$f":"E566*F566","v":0}]
[null,null,"Dobava in montaža modulne klimatske naprave vključno z krmilno avtomatiko, internimi kabelskimi povezavami in zagonom. Napravo je potrbno dvigniti na streho ( višina cca. 12m)",null,null,null,{"$f":"E567*F567","v":0}]
[null,null,"SPLOŠNE INFORMACIJE:",null,null,null,0]
[null,null,"Kompaktna prezračevalna naprava skladna z EUROVENT cerifikatom za dovod in odvod zraka, v izoliranem ohišju 50mm, notranja izvedba, za montažo na tla z čelnimi priključki, z vsemi perifernimi elementi, ki so gotovo ožičeni. Presostati povezani z PVC cevkami. V enoto je vgrajena vsa avtomatika za avtonomno delovanje naprave, skupaj z elektro krmilno omaro. Prezračevalna naprava sestavljena iz naslednjih modulov:",null,null,null,0]
[null,null,"filter na dovodu F7, na odvodu M5, filtri so opremljeni s presostati za signalizacijo zamašenosti filtra. ",null,null,null,0]
[null,null,"prostotekoči EC ventilatorji IE5 s funkcijo konstantnega pretoka zraka. Pretok zraka dovod 1080 m3/h, dp ext=350 Pa, pretok zraka odvod 1080 m3/h, dp ext=350 Pa",null,null,null,0]
[null,null,"Ploščni Al izmenjevalnik toplote z izkoristkom nad 83,80% po EU regulation 1253/2014 - \"Suhi izkoristek\" Prenosnik je opremljen s presostatom, ki signalizira zamrzovanje prenosnika. Prenosnik je opremljen z banjo za odvod kondenza ter eliminatorjem vodnih kapljic. ",null,null,null,0]
[null,null,"Avtomatski by-pass 100%, skupaj z loputo in motornim pogonom",null,null,null,0]
[null,null,"Hladilni/Grelni register 3,5 kW 55°C/45°C  // 1,53 kW 7°C/12°C ",null,null,null,0]
[null,null,"Vgrajen kompleten krmilno-nadzorni sistem (plug&play, elektro-krmilna naprava), servisno stikalo, ožičeni vsi elementi.",null,null,null,0]
[null,null,"Sobni žični daljinski upravljalnik",null,null,null,0]
[null,null,"Regulacijske žaluzije na zajemu in izpuhu zraka z vzmetnimi motornimi pogoni ter zaščitnimi haubami. ",null,null,null,0]
[null,null,"Jadrovinasti nastavki na vseh priključkih naprave",null,null,null,0]
[null,null,"Gumi kompenzatorji na podnožju naprave",null,null,null,0]
[null,null,"Sifoni za odvod kondenzata ",null,null,null,0]
[null,null,"Temperaturno tipalo (zunaji zrak, dovodni zrak - konstantna temperatura vpiha).",null,null,null,0]
[null,null,"CO2 senzor ",null,null,null,0]
[null,null,"Vgrajena (plug&play) regulacija naprave omogoča:",null,null,null,0]
[null,null,"Delovanje ventilatorjev s konstantnim pretokom zraka (regulacija hitrosti EC ventilatorja preko diferenčnega tlačnega stikala na obroču ventilatorja), hitrost možno nastaviti v treh stopnjah regulacija na koncentracijo CO2",null,null,null,0]
[null,null,"Nastavljanje obratovalnih parametrov zimskega /poletnega (grelnega/hladilnega) režima delovanja,",null,null,null,0]
[null,null,"Ročna izbira delovanja ali avtomatski tedenski program delovanja,",null,null,null,0]
[null,null,"Spremljanje parametrov preko spletne aplikacije. ",null,null,null,0]
[null,null,"Režim prostega  hlajenja (free cooling) v prehodnem  in poletnem času pri pogoju, da je temperaturna razlika med zunanjim in notranjim zrakom dovolj velika,  ",null,null,null,0]
[null,null,"-  izpis dejanskih in želenih stanj,",null,null,null,0]
[null,null,"-  vodenje žaluzij,",null,null,null,0]
[null,null,"-  krmiljenje grelnega ventila,",null,null,null,0]
[null,null,"-  protizmrzovalno zaščita,",null,null,null,0]
[null,null,"-  nadzor nad čistočo filtrov,",null,null,null,0]
[null,null,"-  diagnosticiranje alarmov,",null,null,null,0]
[null,null,"-  kontakt za požarni alarm oz. sponko za priklop požarne centrale,",null,null,null,0]
[null,null,"-  brezpotencialni kontakt za daljinsko javljanje napake,",null,null,null,0]
[null,null,"-  omogoča kominikacijo z BAC NET",null,null,null,0]
[null,null,"Nastavitev parametrov naprave na projektne zahteve ter pooblaščen zagon z šolanjem uporabnika. ",null,null,null,0]
[null,null,"Pred naročilom naprave je potrebno s skico definirati smer posluževanja naprave in velikost modulov zaradi vnosa naprave preko odprtin predvidenih za transport. ",null,null,null,0]
[null,null,"Ustreza: Tip, KLIMOR EVO-S COMPACT 5100 1035 ali enakovreden proizvod.","kpl",1,null,0]
[null,null,null,null,null,null,0]
[{"$f":"$B$564","v":"V."},{"$f":"COUNT($A$565:B600)+1","v":2},"Dušilec zvoka",null,null,null,0]
[null,null,"Dobava in vgradnja dušilca zvoka, primernega za vgradnjo v kanalsko mrežo, izdelan iz pocinkane pločevine. V ohišje so vgrajene dušilne kulise pri katerih so v okvirje iz jeklene pocinkane pločevine vstavljena posebna polnila  iz učinkovitega absorbcijskega materijala. Komplet z tesnilnim in pritrdilnim materialom. Pred naročilom nujno preveriti dimenzije in akustične karaktersitike.",null,null,null,0]
[null,null,"Ustreza: TROX MSA ali enakovredno",null,null,null,0]
[null,null,"450/350x1250","kos",2,null,0]
[null,null,null,null,null,null,0]
["V.",{"$f":"COUNT($A$565:B606)+1","v":3},"Požarna loputa",null,null,null,0]
[null,null,"Dobava in montaža dimotesne požarne lopute za preprečevanje širjenja požara skozi zračne kanale, izdelana iz jeklene pocinkane pločevine, z elektromotornim pogonom 230 V, termičnim sprožilom, končnimi stikali za detekcijo odprte in zaprte lege, komplet s spojnim, tesnilnim, pritrdilnim in ostalim montažnim materialom.",null,null,null,0]
[null,null,"Loputa  požarne odpornosti 60 minut. ",null,null,null,0]
[null,null,"Ustreza: proizvod Trox ali enakovredno",null,null,null,0]
[null,null,"dimenzij:",null,null,null,0]
[null,null,"Φ100","kos",32,null,0]
[null,null,"Φ125","kos",10,null,0]
[null,null,"Φ200","kos",8,null,0]
[null,null,"400x250","kos",2,null,0]
[null,null,null,null,null,null,0]
["V.",{"$f":"COUNT($A$565:B616)+1","v":4},"Požarna tesnenje požarnih loput s požarno odpornostjo 60 minut",null,null,null,0]
[null,null,"Ivedba ognjevarne zažčite pob požarnih loputah, požarne odpornosti 60 minut komplet z dobavopotrebnega materiala, s potrebnimi certifikati in označitvijo s samolepilno nalepko.\n",null,null,null,0]
[null,null,"Ustreza: Promat Promatect AD ali enakovredno",null,null,null,0]
[null,null,"Za požarno loputo dimenzij:",null,null,null,0]
[null,null,"Φ100","kos",32,null,0]
[null,null,"Φ125","kos",10,null,0]
[null,null,"Φ200","kos",8,null,0]
[null,null,"400x250x500","kos",2,null,0]
[null,null,null,null,null,null,0]
["V.",{"$f":"COUNT($A$565:B625)+1","v":5},"Požarna obloga prezračevalnega kanala","m2",16,null,0]
[null,null,"Izdelava ognjevarne zažčite prezračevalnega kanala, požarne odpornosti 30 minut komplet z dobavo lahke samonosilne požarne plošče izdelane na silikatni osnovi s cementnim vezivom, neobčutljive na vlago,  odporna na razjedanje kislin in lugov, kopmplet z dobavo in montažo potrebnih ognjevarnih nosilnih podkonstrukcij, z vsem pritrdilnim in montažnim materialom, potrebnimi certifikati in označitvijo s samolepilno nalepko.",null,null,null,0]
[null,null,"Ustreza: Promat Promatect AD ali enakovredno",null,null,null,0]
[null,null,null,null,null,null,0]
["V.",{"$f":"COUNT($A$565:B629)+1","v":6},"Prezračevalni ventil odvodni",null,null,null,{"$f":"E630*F630","v":0}]
[null,null,"Dobava in montaža prezračevalnega ventila za odvod zraka s fiksnim difuzijskim obročem ter nastavljvim krožnikom za odpiranje in zapiranje ventila,  izdelan jeklene pločevine, pobarvan s prašno barvo v RAL 9010, ter vsem potrebnim pritrdilnim, tesnilnim, spojnim in montažnim materialom.\n",null,null,null,0]
[null,null,"Ustreza:  proizvod: Bossplast ali enakovredno\ntip: LVS",null,null,null,0]
[null,null,"Ventil za odvod zraka Φ100 mm","kos",18,null,0]
[null,null,null,null,null,null,0]
[{"$f":"$B$564","v":"V."},{"$f":"COUNT($A$565:B634)+1","v":7},"Prezračevalni ventil dovodni",null,null,null,0]
[null,null,"Dobava in montaža prezračevalnega ventila za dovod zraka s fiksnim difuzijskim obročem ter nastavljvim krožnikom za odpiranje in zapiranje ventila,  izdelan jeklene pločevine, pobarvan s prašno barvo v RAL 9010, ter vsem potrebnim pritrdilnim, tesnilnim, spojnim in montažnim materialom.\n",null,null,null,0]
[null,null,"Ustreza:  proizvod: Bossplast ali enakovredno\ntip: LVS",null,null,null,0]
[null,null,"Ventil za odvod zraka Φ100 mm","kos",18,null,0]
[null,null,null,null,null,null,0]
[{"$f":"$B$564","v":"V."},{"$f":"COUNT($A$565:B639)+1","v":8},"Prezračevalni kanali in oblikovni kosi","kg",1585,null,0]
[null,null,"Dobava in montaža pravokotnih prezračevalnih kanalov, komor in oblikovnih kosov izdelanih  iz pocinkane pločevine skladno s standardom SIST EN 1505 oziroma 1506.  Komplet s spojnim, vijačnim, tesnilnim, obešalnim, materialom ter antivibracijskimi vložki.",null,null,null,0]
[null,null,null,null,null,null,0]
[{"$f":"$B$564","v":"V."},{"$f":"COUNT($A$565:B642)+1","v":9},"Okrogli prezračevalni kanali",null,null,null,0]
[null,null,"Dobava in montaža okroglih przračevalnih kanalov, izdelanih iz spiralno robljenih cevi, iz jeklene pocinkane pločevine, komplet s spojkami, ostalim spojnim, tesnilnim, vijačnim materialom ter dodatkom za razrez.",null,null,null,0]
[null,null,"Spiro kanal Φ100","m",231,null,0]
[null,null,"Spiro kanal Φ125","m",70,null,0]
[null,null,"Spiro kanal Φ200","m",33,null,0]
[null,null,null,null,null,null,0]
[{"$f":"$B$564","v":"V."},{"$f":"COUNT($A$565:B648)+1","v":10},"Fleksibilne cevi",null,null,null,0]
[null,null,"Dobava in montaža fleksibilnih cevi za povezavo zračnih kanalov in distribucijskih elementov, komplet s spojkami, ostalim spojnim, tesnilnim, vijačnim materialom ter dodatkom za razrez.",null,null,null,0]
[null,null,"Ustreza: Air Connections; tip ALUCONNECT ali enakovredno",null,null,null,0]
[null,null," Φ100","m",27,null,0]
[null,null,null,null,null,null,0]
[{"$f":"$B$564","v":"V."},{"$f":"COUNT($A$565:B653)+1","v":11},"Fleksibilne cevi izolirane",null,null,null,0]
[null,null,"Dobava in montaža fleksibilnih cevi za povezavo zračnih kanalov in distribucijskih elementov, komplet s spojkami, ostalim spojnim, tesnilnim, vijačnim materialom ter dodatkom za razrez.",null,null,null,0]
[null,null,"Ustreza: Sonodec Non-woven, 25mm, 100mm ali enakovredno",null,null,null,0]
[null,null," Φ100","m",27,null,0]
[null,null,null,null,null,null,0]
[{"$f":"$B$564","v":"V."},{"$f":"COUNT($A$565:B658)+1","v":12},"Toplotna izolacija prezračevalnih kanalov","m2",196,null,0]
[null,null,"Dobava in montaža toplotne in protikondenzne izolacije prezračevalnih kanalov, ki se izvede s penasto toplotno izolacijo na bazi sintetičnega kavčuka.\nToplotna prevodnost λ ≤ 0,034 W/mK,\nParozapornostni koeficient μ ≥ 10.000,\nPožarna klasifikacija B-s3, d0 po DIN EN 13501.",null,null,null,0]
[null,null,"Ustreza: KAIFLEX ST - PL 19 / E ali enakovredno",null,null,null,0]
[null,null,null,null,null,null,0]
[{"$f":"$B$564","v":"V."},{"$f":"COUNT($A$565:B662)+1","v":13},"Montažni material","kg",191,null,0]
[null,null,"Dobava in montaža montažnega in pritrdilnega materiala sestavljenega iz tipskih jeklenih vroče cinkanih konstrukcijskih elementov, s tipskimi spojnimi elementi z vijačnimi zvezami materiala 8.8. Kombinacije tipskih elementov se izbere skladno z navodili oz. priporočili proizvajalca o nosilnosti. Ves vgrajen montažni material mora imeti CE oznako.  VKLJUČENI ANTIVIBRACIJSKI VLOŽKI ZA PRITRJEVANJE. PREZRAČEVALNIH KANALOV",null,null,null,0]
[null,null,"Ustreza: HILTI ali enakovredno",null,null,null,0]
[null,null,null,null,null,null,0]
[{"$f":"$B$564","v":"V."},{"$f":"COUNT($A$565:B666)+1","v":14},"Mertive in nastavitev","kpl",1,null,0]
[null,null,"Meritve in fina nastavitev dovodnih in odvodnih količin skladno s projektno dokumentacijo, regulacija sistema in naprav, izdelava zapisnika o opravljenih nastavitvah, izdelava poročila o izmerjenih količinah s strani pooblaščene organizacije.",null,null,null,0]
[null,null,null,null,null,null,0]
[{"$f":"$B$564","v":"V."},{"$f":"COUNT($A$565:B669)+1","v":15},"Shema in označitev","klp",1,null,0]
[null,null,"Izdelava funcionalne sheme delovanja klimatske naprave, z vsemi podatki o periferni opremi, motorni pogoni, tipala, ipd. Fizična označitev vseh pogonov in tipal z oznakami iz sheme. Izdela se mapa z omenjeno shemo ter navodili za uporabo in vzdrževanje v slovenskem jeziku. En izvod sheme in navodil se vstavi v krmilno omaro naprave, en izvod se preda uporabiku.",null,null,null,0]
[]
[null,null,{"$f":"CONCATENATE($B$564,\" \",$C$564,\" - SKUPAJ:\")","v":"V. PREZRAČEVANJE SOBE VZHOD - SKUPAJ:"},null,null,null,{"$f":"SUM(G565:G672)","v":0}]
[]
[null,"VI.","PREZRAČEVANJE SERVISNI PROSTORI VZHOD"]
[]
[{"$f":"$B$675","v":"VI."},{"$f":"1","v":1},"Naprava KN4, skupni prostori vzhod",null,null,null,{"$f":"E677*F677","v":0}]
[null,null,"Dobava in montaža modulne klimatske naprave vključno z krmilno avtomatiko, internimi kabelskimi povezavami in zagonom.  Napravo je potrbno dvigniti na streho ( višina cca. 12m)",null,null,null,{"$f":"E678*F678","v":0}]
[null,null,"SPLOŠNE INFORMACIJE:",null,null,null,0]
[null,null,"Kompaktna prezračevalna naprava skladna z EUROVENT cerifikatom za dovod in odvod zraka, v izoliranem ohišju 50mm, notranja izvedba, za montažo na tla z čelnimi priključki, z vsemi perifernimi elementi, ki so gotovo ožičeni. Presostati povezani z PVC cevkami. V enoto je vgrajena vsa avtomatika za avtonomno delovanje naprave, skupaj z elektro krmilno omaro. Prezračevalna naprava sestavljena iz naslednjih modulov:",null,null,null,0]
[null,null,"filter na dovodu F7, na odvodu M5, filtri so opremljeni s presostati za signalizacijo zamašenosti filtra. ",null,null,null,0]
[null,null,"prostotekoči EC ventilatorji IE5 s funkcijo konstantnega pretoka zraka. Pretok zraka dovod 4790 m3/h, dp ext=350 Pa, pretok zraka odvod 4790 m3/h, dp ext=350 Pa",null,null,null,0]
[null,null,"Ploščni Al izmenjevalnik toplote z izkoristkom nad 81,80% po EU regulation 1253/2014 - \"Suhi izkoristek\" Prenosnik je opremljen s presostatom, ki signalizira zamrzovanje prenosnika. Prenosnik je opremljen z banjo za odvod kondenza ter eliminatorjem vodnih kapljic. ",null,null,null,0]
[null,null,"Avtomatski by-pass 100%, skupaj z loputo in motornim pogonom",null,null,null,0]
[null,null,"Hladilni/Grelni register 15,99 kW 55°C/45°C  // 7,19 kW 7°C/12°C ",null,null,null,0]
[null,null,"Vgrajen kompleten krmilno-nadzorni sistem (plug&play, elektro-krmilna naprava), servisno stikalo, ožičeni vsi elementi.",null,null,null,0]
[null,null,"Sobni žični daljinski upravljalnik",null,null,null,0]
[null,null,"Regulacijske žaluzije na zajemu in izpuhu zraka z vzmetnimi motornimi pogoni ter zaščitnimi haubami. ",null,null,null,0]
[null,null,"Jadrovinasti nastavki na vseh priključkih naprave",null,null,null,0]
[null,null,"Gumi kompenzatorji na podnožju naprave",null,null,null,0]
[null,null,"Sifoni za odvod kondenzata ",null,null,null,0]
[null,null,"Temperaturno tipalo (zunaji zrak, dovodni zrak - konstantna temperatura vpiha).",null,null,null,0]
[null,null,"CO2 senzor ",null,null,null,0]
[null,null,"Vgrajena (plug&play) regulacija naprave omogoča:",null,null,null,0]
[null,null,"Delovanje ventilatorjev s konstantnim pretokom zraka (regulacija hitrosti EC ventilatorja preko diferenčnega tlačnega stikala na obroču ventilatorja), hitrost možno nastaviti v treh stopnjah regulacija na koncentracijo CO2",null,null,null,0]
[null,null,"Nastavljanje obratovalnih parametrov zimskega /poletnega (grelnega/hladilnega) režima delovanja,",null,null,null,0]
[null,null,"Ročna izbira delovanja ali avtomatski tedenski program delovanja,",null,null,null,0]
[null,null,"Spremljanje parametrov preko spletne aplikacije. ",null,null,null,0]
[null,null,"Režim prostega  hlajenja (free cooling) v prehodnem  in poletnem času pri pogoju, da je temperaturna razlika med zunanjim in notranjim zrakom dovolj velika,  ",null,null,null,0]
[null,null,"-  izpis dejanskih in želenih stanj,",null,null,null,0]
[null,null,"-  vodenje žaluzij,",null,null,null,0]
[null,null,"-  krmiljenje grelnega ventila,",null,null,null,0]
[null,null,"-  protizmrzovalno zaščita,",null,null,null,0]
[null,null,"-  nadzor nad čistočo filtrov,",null,null,null,0]
[null,null,"-  diagnosticiranje alarmov,",null,null,null,0]
[null,null,"-  kontakt za požarni alarm oz. sponko za priklop požarne centrale,",null,null,null,0]
[null,null,"-  brezpotencialni kontakt za daljinsko javljanje napake,",null,null,null,0]
[null,null,"-  omogoča kominikacijo z BAC NET",null,null,null,0]
[null,null,"Nastavitev parametrov naprave na projektne zahteve ter pooblaščen zagon z šolanjem uporabnika. ",null,null,null,0]
[null,null,"Pred naročilom naprave je potrebno s skico definirati smer posluževanja naprave in velikost modulov zaradi vnosa naprave preko odprtin predvidenih za transport. ",null,null,null,0]
[null,null,"Ustreza: Tip, KLIMOR EVO-S COMPACT 2500 4735 ali enakovreden proizvod.","kpl",1,null,0]
[null,null,null,null,null,null,0]
[{"$f":"$B$675","v":"VI."},{"$f":"COUNT($A$676:B712)+1","v":2},"Prestavitev jadrovinastega nastavka","kpl",2,null,0]
[null,null,"Demontaža jadrovinastega nastavka iz klimatske naprave in ponovna montaža na novo lokacijo na kanalski mreži, komplet s vsem spojnim, tesnilnim in pritrdilnim materialom.",null,null,null,0]
[null,null,null,null,null,null,0]
["VI.",{"$f":"COUNT($A$676:B715)+1","v":3},"Dušilec zvoka",null,null,null,0]
[null,null,"Dobava in vgradnja dušilca zvoka, primernega za vgradnjo v kanalsko mrežo, izdelan iz pocinkane pločevine. V ohišje so vgrajene dušilne kulise pri katerih so v okvirje iz jeklene pocinkane pločevine vstavljena posebna polnila  iz učinkovitega absorbcijskega materijala. Komplet z tesnilnim in pritrdilnim materialom. Pred naročilom nujno preveriti dimenzije in akustične karaktersitike.",null,null,null,0]
[null,null,"Ustreza: TROX MSA ali enakovredno",null,null,null,0]
[null,null,"500/500x1500","kos",2,null,0]
[null,null,"500/300x1500","kos",2,null,0]
[null,null,null,null,null,null,0]
["VI.",{"$f":"COUNT($A$676:B721)+1","v":4},"Požarna loputa",null,null,null,0]
[null,null,"Dobava in montaža dimotesne požarne lopute za preprečevanje širjenja požara skozi zračne kanale, izdelana iz jeklene pocinkane pločevine, z elektromotornim pogonom 230 V, termičnim sprožilom, končnimi stikali za detekcijo odprte in zaprte lege, komplet s spojnim, tesnilnim, pritrdilnim in ostalim montažnim materialom.",null,null,null,0]
[null,null,"Loputa  požarne odpornosti 60 minut. ",null,null,null,0]
[null,null,"Ustreza: proizvod Trox ali enakovredno",null,null,null,0]
[null,null,"dimenzij:",null,null,null,0]
[null,null,"Φ100","kos",1,null,0]
[null,null,"Φ125","kos",4,null,0]
[null,null,"Φ160","kos",3,null,0]
[null,null,"Φ200","kos",8,null,0]
[null,null,"Φ250","kos",1,null,{"$f":"E731*F731","v":0}]
[null,null,"250/200","kos",4,null,0]
[null,null,"250/250","kos",2,null,0]
[null,null,"350/300","kos",2,null,0]
[null,null,"400/400","kos",2,null,0]
[null,null,null,null,null,null,{"$f":"E736*F736","v":0}]
[{"$f":"$B$675","v":"VI."},{"$f":"COUNT($A$676:B736)+1","v":5},"Požarna tesnenje požarnih loput s požarno odpornostjo 60 minut",null,null,null,0]
[null,null,"Ivedba ognjevarne zažčite pob požarnih loputah, požarne odpornosti 60 minut komplet z dobavopotrebnega materiala, s potrebnimi certifikati in označitvijo s samolepilno nalepko.\n",null,null,null,0]
[null,null,"Ustreza: Promat Promatect AD ali enakovredno",null,null,null,0]
[null,null,"Za požarno loputo dimenzij:",null,null,null,0]
[null,null,"Φ100","kos",5,null,0]
[null,null,"Φ125","kos",4,null,0]
[null,null,"Φ160","kos",3,null,0]
[null,null,"Φ200","kos",8,null,0]
[null,null,"Φ250","kos",1,null,0]
[null,null,"250/200","kos",4,null,0]
[null,null,"250/250","kos",2,null,0]
[null,null,"350/300","kos",2,null,0]
[null,null,"400/400","kos",2,null,0]
[null,null,null,null,null,null,0]
["VI.",{"$f":"COUNT($A$676:B750)+1","v":6},"Požarna obloga prezračevalnega kanala","m2",36,null,0]
[null,null,"Izdelava ognjevarne zažčite prezračevalnega kanala, požarne odpornosti 30 minut komplet z dobavo lahke samonosilne požarne plošče izdelane na silikatni osnovi s cementnim vezivom, neobčutljive na vlago,  odporna na razjedanje kislin in lugov, kopmplet z dobavo in montažo potrebnih ognjevarnih nosilnih podkonstrukcij, z vsem pritrdilnim in montažnim materialom, potrebnimi certifikati in označitvijo s samolepilno nalepko.",null,null,null,0]
[null,null,"Ustreza: Promat Promatect AD ali enakovredno",null,null,null,0]
[null,null,null,null,null,null,0]
["VI.",{"$f":"COUNT($A$676:B754)+1","v":7},"Vrtinčni difuzor ",null,null,null,0]
[null,null,"Dobava in montaža kvadratnega stropnega difuzorja izdelanega iz jeklene pločevine, prašno barvan, komplet s komoro z regulacijsko loputo, priključnim nastavkom (dimenzijo preveriti na objektu pred naročilom) ter vsem potrebnim pritrdilnim, tesnilnim, spojnim in montažnim materialom.",null,null,null,0]
[null,null,"Ustreza: Bossplast tip: BD-9 ali enakovredno",null,null,null,0]
[null,null,"Dovodni difuzor",null,null,null,0]
[null,null,"500/270; priključnim nastavkom ɸ200","kos",4,null,0]
[null,null,"400/270; priključnim nastavkom ɸ160","kos",8,null,0]
[null,null,"odvodni difuzor",null,null,null,0]
[null,null,"500/270; priključnim nastavkom ɸ 200","kos",9,null,0]
[null,null,"400/270; priključnim nastavkom ɸ160","kos",7,null,0]
[null,null,null,null,null,null,0]
["VI.",{"$f":"COUNT($A$676:B764)+1","v":8},"Linijski difuzor",null,null,null,0]
[null,null,"Dobava in montaža dvorednega linijskega difuzorja, maska izdelana iz al profilov, barvana v Ral barvi, primernega za vgradnjo v strop, komplet s komoro s priključkom ɸ 200, z usmerjevalniki zraka, zaključnimi kotniki ter vsem spojnim, tesnilnim in pritrdilnim materialom.",null,null,null,0]
[null,null,"Ustreza: TROX tip: VSD35-2 ali enakovredno",null,null,null,0]
[null,null,"Dolžina 1950 mm","kos",6,null,0]
[null,null,null,null,null,null,0]
["VI.",{"$f":"COUNT($A$676:B769)+1","v":9},"Priključna komora za rešetko",null,null,null,0]
[null,null,"Dobava in montaža komore za vgradnjo rešetke z nastavkom za priključitev spiro cevi, izdelana iz pocinkane pločevine 0,8-1mm, komplet s tesnilnim in pritrdilnim materialom. Komora se izolira z izolacijo debeline 19 mm. Podane so okvirne dimenzije. Pred nabavo je potrebno preveriti dimenzije na objektu ter prilagoditi dejanskemu stanju in tipu vgrajenih rešetk.",null,null,null,0]
[null,null,"300x300x300 mm, 1x priključek ɸ160 mm","kos",1,null,0]
[null,null,null,null,null,null,0]
["VI.",{"$f":"COUNT($A$676:B773)+1","v":10},"Prezračevalna rešetka",null,null,null,0]
[null,null,"Dobava in montaža aluminijaste odvodne prezračevalne rešetke primerne za montažo na strop, z dvostransko nastavljivimi lamelami, z regulacijskim nastavkom za nastavitev zraka, komplet z vijačnim, spojnim in tesnilnim materialom. ",null,null,null,0]
[null,null,"200x200 mm","kos",1,null,0]
[null,null,null,null,null,null,0]
["VI.",{"$f":"COUNT($A$676:B777)+1","v":11},"Požarna loputa",null,null,null,0]
[null,null,"Dobava in montaža vstavljive okrogla požarne lopute z dvema polkrožnima lamelama, termičnim členom in intumescenčnim materialom v postelji lamel, ki tesno zapre prehod v primeru požara. Certificirano po EN 15650, vključno z materialom za vgradnjo (pritrdilni kotniki).\n\n",null,null,null,0]
[null,null,"Ustreza:  MANDIK tip: CFDM/100-.15/EI60S ali enakovredno.","kos",4,null,0]
[null,null,null,null,null,null,0]
["VI.",{"$f":"COUNT($A$676:B781)+1","v":12},"Okrogla rešetka",null,null,null,0]
[null,null,"Dobava in montaža aluminijaste fasadne rešetke, ter vsem potrebnim pritrdilnim, tesnilnim, spojnim in montažnim materialom. Pred nabavo se material  potrdi s strani arhitekta. Rešetka  barvanav RAL lestvici po izboru arhitekta arhitekta.",null,null,null,0]
[null,null,"Odvodna rešetka dimenzije Φ125 mm","kos",4,null,0]
[null,null,null,null,null,null,0]
["VI.",{"$f":"COUNT($A$676:B785)+1","v":13},"Prezračevalni ventil dovodni",null,null,null,0]
[null,null,"Dobava in montaža prezračevalnega ventila za dovod zraka s fiksnim difuzijskim obročem ter nastavljvim krožnikom za odpiranje in zapiranje ventila,  izdelan jeklene pločevine, pobarvan s prašno barvo v RAL 9010, ter vsem potrebnim pritrdilnim, tesnilnim, spojnim in montažnim materialom.\n",null,null,null,0]
[null,null,"Ustreza:  proizvod: Bossplast ali enakovredno\ntip: LVS",null,null,null,0]
[null,null,"Ventil za dovod zraka Φ100 mm","kos",8,null,0]
[null,null,null,null,null,null,0]
["VI.",{"$f":"COUNT($A$676:B790)+1","v":14},"Prezračevalni ventil odvodni",null,null,null,0]
[null,null,"Dobava in montaža prezračevalnega ventila za odvod zraka s fiksnim difuzijskim obročem ter nastavljvim krožnikom za odpiranje in zapiranje ventila,  izdelan jeklene pločevine, pobarvan s prašno barvo v RAL 9010, ter vsem potrebnim pritrdilnim, tesnilnim, spojnim in montažnim materialom.\n",null,null,null,0]
[null,null,"Ustreza:  proizvod: Bossplast ali enakovredno\ntip: LVS",null,null,null,0]
[null,null,"Ventil za odvod zraka Φ100 mm","kos",14,null,0]
[null,null,"Ventil za odvod zraka Φ125 mm","kos",2,null,0]
[null,null,null,null,null,null,0]
["VI.",{"$f":"COUNT($A$676:B796)+1","v":15},"Rešetka - fasadna",null,null,null,0]
[null,null,"Dobava in montaža aluminijaste fasadne rešetke, z mrežico proti mrčesu, ter vsem potrebnim pritrdilnim, tesnilnim, spojnim in montažnim materialom. Pred nabavo se material  potrdi s strani arhitekta. Rešetka  barvanav RAL lestvici po izboru arhitekta arhitekta.",null,null,null,0]
[null,null,"dimenzije 1200x600 mm","kos",1,null,0]
[null,null,"dimenzije 900 x 450 mm","kos",1,null,0]
[null,null,"dimenzije 600 x 600 mm","kos",1,null,0]
[null,null,null,null,null,null,0]
["VI.",{"$f":"COUNT($A$676:B802)+1","v":16},"Prezračevalni kanali in oblikovni kosi","kg",3930,null,0]
[null,null,"Dobava in montaža pravokotnih prezračevalnih kanalov, komor in oblikovnih kosov izdelanih  iz pocinkane pločevine skladno s standardom SIST EN 1505 oziroma 1506.  Komplet s spojnim, vijačnim, tesnilnim, obešalnim, materialom ter antivibracijskimi vložki.",null,null,null,0]
[null,null,null,null,null,null,0]
[{"$f":"$B$675","v":"VI."},{"$f":"COUNT($A$676:B805)+1","v":17},"Zaščita prezračevalnih kanalov ","m2",5,null,{"$f":"E806*F806","v":0}]
[null,null,"Dobava in montaža trde penaste obloge, primerne za zaščito kanalov, ki so montirani na višni, kjer lahko pride do potencialnega trka z glavo v kanalski razvod.",null,null,null,0]
[null,null,null,null,null,null,0]
["VI.",{"$f":"COUNT($A$676:B808)+1","v":18},"Okrogli prezračevalni kanali",null,null,null,0]
[null,null,"Dobava in montaža okroglih przračevalnih kanalov, izdelanih iz spiralno robljenih cevi, iz jeklene pocinkane pločevine, komplet s spojkami, ostalim spojnim, tesnilnim, vijačnim materialom ter dodatkom za razrez.",null,null,null,0]
[null,null,"Spiro kanal Φ100","m",45,null,0]
[null,null,"Spiro kanal Φ125","m",19,null,0]
[null,null,"Spiro kanal Φ160","m",43,null,0]
[null,null,"Spiro kanal Φ200","m",65,null,0]
[null,null,"Spiro kanal Φ225","m",5,null,0]
[null,null,"Spiro kanal Φ250","m",25,null,0]
[null,null,null,null,null,null,0]
["VI.",{"$f":"COUNT($A$676:B817)+1","v":19},"Fleksibilne cevi",null,null,null,0]
[null,null,"Dobava in montaža fleksibilnih cevi za povezavo zračnih kanalov in distribucijskih elementov, komplet s spojkami, ostalim spojnim, tesnilnim, vijačnim materialom ter dodatkom za razrez.",null,null,null,0]
[null,null,"Ustreza: Air Connections; tip ALUCONNECT ali enakovredno",null,null,null,0]
[null,null," Φ100","m",21,null,0]
[null,null," Φ125","m",3,null,0]
[null,null," Φ160","m",15,null,0]
[null,null," Φ200","m",14,null,0]
[null,null,null,null,null,null,0]
["VI.",{"$f":"COUNT($A$676:B825)+1","v":20},"Fleksibilne cevi izolirane",null,null,null,0]
[null,null,"Dobava in montaža fleksibilnih cevi za povezavo zračnih kanalov in distribucijskih elementov, komplet s spojkami, ostalim spojnim, tesnilnim, vijačnim materialom ter dodatkom za razrez.",null,null,null,0]
[null,null,"Ustreza: Sonodec Non-woven, 25mm, 100mm ali enakovredno",null,null,null,0]
[null,null," Φ100","m",12,null,0]
[null,null," Φ160","m",12,null,{"$f":"E830*F830","v":0}]
[null,null," Φ200","m",15,null,0]
[null,null,null,null,null,null,0]
["VI.",{"$f":"COUNT($A$676:B832)+1","v":21},"Toplotna izolacija prezračevalnih kanalov","m2",334,null,0]
[null,null,"Dobava in montaža toplotne in protikondenzne izolacije prezračevalnih kanalov, ki se izvede s penasto toplotno izolacijo na bazi sintetičnega kavčuka.\nToplotna prevodnost λ ≤ 0,034 W/mK,\nParozapornostni koeficient μ ≥ 10.000,\nPožarna klasifikacija B-s3, d0 po DIN EN 13501.",null,null,null,0]
[null,null,"Ustreza: KAIFLEX ST - PL 19 / E ali enakovredno",null,null,null,0]
[null,null,null,null,null,null,0]
["VI.",{"$f":"COUNT($A$676:B836)+1","v":22},"Montažni material","kg",475,null,0]
[null,null,"Dobava in montaža montažnega in pritrdilnega materiala sestavljenega iz tipskih jeklenih vroče cinkanih konstrukcijskih elementov, s tipskimi spojnimi elementi z vijačnimi zvezami materiala 8.8. Kombinacije tipskih elementov se izbere skladno z navodili oz. priporočili proizvajalca o nosilnosti. Ves vgrajen montažni material mora imeti CE oznako.  VKLJUČENI ANTIVIBRACIJSKI VLOŽKI ZA PRITRJEVANJE. PREZRAČEVALNIH KANALOV",null,null,null,0]
[null,null,"Ustreza: HILTI ali enakovredno",null,null,null,0]
[null,null,null,null,null,null,0]
["VI.",{"$f":"COUNT($A$676:B840)+1","v":23},"Mertive in nastavitev","kpl",1,null,0]
[null,null,"Meritve in fina nastavitev dovodnih in odvodnih količin skladno s projektno dokumentacijo, regulacija sistema in naprav, izdelava zapisnika o opravljenih nastavitvah, izdelava poročila o izmerjenih količinah s strani pooblaščene organizacije.",null,null,null,0]
[null,null,null,null,null,null,0]
["VI.",{"$f":"COUNT($A$676:B843)+1","v":24},"Shema in označitev","klp",1,null,0]
[null,null,"Izdelava funcionalne sheme delovanja klimatske naprave, z vsemi podatki o periferni opremi, motorni pogoni, tipala, ipd. Fizična označitev vseh pogonov in tipal z oznakami iz sheme. Izdela se mapa z omenjeno shemo ter navodili za uporabo in vzdrževanje v slovenskem jeziku. En izvod sheme in navodil se vstavi v krmilno omaro naprave, en izvod se preda uporabiku.",null,null,null,0]
[null,null,null,null,null,null,{"$f":"E846*F846","v":0}]
[null,null,{"$f":"CONCATENATE($B$675,\" \",$C$675,\" - SKUPAJ:\")","v":"VI. PREZRAČEVANJE SERVISNI PROSTORI VZHOD - SKUPAJ:"},null,null,null,{"$f":"SUM(G676:G846)","v":0}]
[]
[null,"VII.","PREZRAČEVANJE PISARN"]
[]
[{"$f":"$B$849","v":"VII."},{"$f":"1","v":1},"Naprava KN5, pisarne in ambulante",null,null,null,{"$f":"E851*F851","v":0}]
[null,null,"Dobava in montaža modulne klimatske naprave vključno z krmilno avtomatiko, internimi kabelskimi povezavami in zagonom.  Napravo je potrbno dvigniti na streho ( višina cca. 12m)",null,null,null,{"$f":"E852*F852","v":0}]
[null,null,"SPLOŠNE INFORMACIJE:",null,null,null,0]
[null,null,"Kompaktna prezračevalna naprava skladna z EUROVENT cerifikatom za dovod in odvod zraka, v izoliranem ohišju 50mm, notranja izvedba, za montažo na tla z čelnimi priključki, z vsemi perifernimi elementi, ki so gotovo ožičeni. Presostati povezani z PVC cevkami. V enoto je vgrajena vsa avtomatika za avtonomno delovanje naprave, skupaj z elektro krmilno omaro. Prezračevalna naprava sestavljena iz naslednjih modulov:",null,null,null,0]
[null,null,"filter na dovodu F7, na odvodu M5, filtri so opremljeni s presostati za signalizacijo zamašenosti filtra. ",null,null,null,0]
[null,null,"prostotekoči EC ventilatorji IE5 s funkcijo konstantnega pretoka zraka. Pretok zraka dovod 2270 m3/h, dp ext=350 Pa, pretok zraka odvod 2270 m3/h, dp ext=350 Pa",null,null,null,0]
[null,null,"Ploščni Al izmenjevalnik toplote z izkoristkom nad 81,70% po EU regulation 1253/2014 - \"Suhi izkoristek\" Prenosnik je opremljen s presostatom, ki signalizira zamrzovanje prenosnika. Prenosnik je opremljen z banjo za odvod kondenza ter eliminatorjem vodnih kapljic. ",null,null,null,0]
[null,null,"Avtomatski by-pass 100%, skupaj z loputo in motornim pogonom",null,null,null,0]
[null,null,"Hladilni/Grelni register 7,59 kW 55°C/45°C  // 3,42 kW 7°C/12°C ",null,null,null,0]
[null,null,"Vgrajen kompleten krmilno-nadzorni sistem (plug&play, elektro-krmilna naprava), servisno stikalo, ožičeni vsi elementi.",null,null,null,0]
[null,null,"Sobni žični daljinski upravljalnik",null,null,null,0]
[null,null,"Regulacijske žaluzije na zajemu in izpuhu zraka z vzmetnimi motornimi pogoni ter zaščitnimi haubami. ",null,null,null,0]
[null,null,"Jadrovinasti nastavki na vseh priključkih naprave",null,null,null,0]
[null,null,"Gumi kompenzatorji na podnožju naprave",null,null,null,0]
[null,null,"Sifoni za odvod kondenzata ",null,null,null,0]
[null,null,"Temperaturno tipalo (zunaji zrak, dovodni zrak - konstantna temperatura vpiha).",null,null,null,0]
[null,null,"CO2 senzor ",null,null,null,0]
[null,null,"Vgrajena (plug&play) regulacija naprave omogoča:",null,null,null,0]
[null,null,"Delovanje ventilatorjev s konstantnim pretokom zraka (regulacija hitrosti EC ventilatorja preko diferenčnega tlačnega stikala na obroču ventilatorja), hitrost možno nastaviti v treh stopnjah regulacija na koncentracijo CO2",null,null,null,0]
[null,null,"Nastavljanje obratovalnih parametrov zimskega /poletnega (grelnega/hladilnega) režima delovanja,",null,null,null,0]
[null,null,"Ročna izbira delovanja ali avtomatski tedenski program delovanja,",null,null,null,0]
[null,null,"Spremljanje parametrov preko spletne aplikacije. ",null,null,null,0]
[null,null,"Režim prostega  hlajenja (free cooling) v prehodnem  in poletnem času pri pogoju, da je temperaturna razlika med zunanjim in notranjim zrakom dovolj velika,  ",null,null,null,0]
[null,null,"-  izpis dejanskih in želenih stanj,",null,null,null,0]
[null,null,"-  vodenje žaluzij,",null,null,null,0]
[null,null,"-  krmiljenje grelnega ventila,",null,null,null,0]
[null,null,"-  protizmrzovalno zaščita,",null,null,null,0]
[null,null,"-  nadzor nad čistočo filtrov,",null,null,null,0]
[null,null,"-  diagnosticiranje alarmov,",null,null,null,0]
[null,null,"-  kontakt za požarni alarm oz. sponko za priklop požarne centrale,",null,null,null,0]
[null,null,"-  brezpotencialni kontakt za daljinsko javljanje napake,",null,null,null,0]
[null,null,"-  omogoča kominikacijo z BAC NET",null,null,null,0]
[null,null,"Nastavitev parametrov naprave na projektne zahteve ter pooblaščen zagon z šolanjem uporabnika. ",null,null,null,0]
[null,null,"Pred naročilom naprave je potrebno s skico definirati smer posluževanja naprave in velikost modulov zaradi vnosa naprave preko odprtin predvidenih za transport. ",null,null,null,0]
[null,null,"Ustreza: Tip, KLIMOR EVO-S COMPACT 3200 2235 ali enakovreden proizvod.","kpl",1,null,0]
[null,null,null,null,null,null,0]
[{"$f":"$B$849","v":"VII."},{"$f":"COUNT($A$850:B886)+1","v":2},"Dušilec zvoka",null,null,null,0]
[null,null,"Dobava in vgradnja dušilca zvoka, primernega za vgradnjo v kanalsko mrežo, izdelan iz pocinkane pločevine. V ohišje so vgrajene dušilne kulise pri katerih so v okvirje iz jeklene pocinkane pločevine vstavljena posebna polnila  iz učinkovitega absorbcijskega materijala. Komplet z tesnilnim in pritrdilnim materialom. Pred naročilom nujno preveriti dimenzije in akustične karaktersitike.",null,null,null,0]
[null,null,"Ustreza: TROX MSA ali enakovredno",null,null,null,0]
[null,null,"450/400x1250","kos",2,null,0]
[null,null,null,null,null,null,0]
["VII.",{"$f":"COUNT($A$850:B891)+1","v":3},"Požarna loputa",null,null,null,0]
[null,null,"Dobava in montaža dimotesne požarne lopute za preprečevanje širjenja požara skozi zračne kanale, izdelana iz jeklene pocinkane pločevine, z elektromotornim pogonom 230 V, termičnim sprožilom, končnimi stikali za detekcijo odprte in zaprte lege, komplet s spojnim, tesnilnim, pritrdilnim in ostalim montažnim materialom.",null,null,null,0]
[null,null,"Loputa  požarne odpornosti 60 minut. ",null,null,null,0]
[null,null,"Ustreza: proizvod Trox ali enakovredno",null,null,null,0]
[null,null,"dimenzij:",null,null,null,0]
[null,null,"Φ200","kos",2,null,0]
[null,null,"350/350","kos",4,null,0]
[null,null,"400/350","kos",2,null,0]
[null,null,null,null,null,null,0]
["VII.",{"$f":"COUNT($A$850:B900)+1","v":4},"Požarna tesnenje požarnih loput s požarno odpornostjo 60 minut",null,null,null,0]
[null,null,"Ivedba ognjevarne zažčite pob požarnih loputah, požarne odpornosti 60 minut komplet z dobavopotrebnega materiala, s potrebnimi certifikati in označitvijo s samolepilno nalepko.\n",null,null,null,0]
[null,null,"Ustreza: Promat Promatect AD ali enakovredno",null,null,null,0]
[null,null,"Za požarno loputo dimenzij:",null,null,null,0]
[null,null,"Φ200","kos",2,null,{"$f":"E905*F905","v":0}]
[null,null,"350/350","kos",2,null,0]
[null,null,"400/350","kos",2,null,0]
[null,null,null,null,null,null,0]
[{"$f":"$B$849","v":"VII."},{"$f":"COUNT($A$850:B908)+1","v":5},"Požarna obloga prezračevalnega kanala","m2",4,null,0]
[null,null,"Izdelava ognjevarne zažčite prezračevalnega kanala, požarne odpornosti 30 minut komplet z dobavo lahke samonosilne požarne plošče izdelane na silikatni osnovi s cementnim vezivom, neobčutljive na vlago,  odporna na razjedanje kislin in lugov, kopmplet z dobavo in montažo potrebnih ognjevarnih nosilnih podkonstrukcij, z vsem pritrdilnim in montažnim materialom, potrebnimi certifikati in označitvijo s samolepilno nalepko.",null,null,null,0]
[null,null,"Ustreza: Promat Promatect AD ali enakovredno",null,null,null,0]
[null,null,null,null,null,null,0]
[{"$f":"$B$849","v":"VII."},{"$f":"COUNT($A$850:B912)+1","v":6},"Vrtinčni difuzor ",null,null,null,0]
[null,null,"Dobava in montaža kvadratnega stropnega difuzorja izdelanega iz jeklene pločevine, prašno barvan, komplet s komoro z regulacijsko loputo, priključnim nastavkom (dimenzijo preveriti na objektu pred naročilom) ter vsem potrebnim pritrdilnim, tesnilnim, spojnim in montažnim materialom.",null,null,null,0]
[null,null,"Ustreza: Bossplast tip: BD-9 ali enakovredno",null,null,null,0]
[null,null,"Dovodni difuzor",null,null,null,0]
[null,null,"400/270; priključnim nastavkom ɸ200","kos",1,null,0]
[null,null,"400/270; priključnim nastavkom ɸ160","kos",7,null,0]
[null,null,"odvodni difuzor",null,null,null,0]
[null,null,"400/270; priključnim nastavkom ɸ 200","kos",2,null,0]
[null,null,"400/270; priključnim nastavkom ɸ160","kos",4,null,0]
[null,null,null,null,null,null,0]
[{"$f":"$B$849","v":"VII."},{"$f":"COUNT($A$850:B922)+1","v":7},"Prezračevalni ventil dovodni",null,null,null,0]
[null,null,"Dobava in montaža prezračevalnega ventila za dovod zraka s fiksnim difuzijskim obročem ter nastavljvim krožnikom za odpiranje in zapiranje ventila,  izdelan jeklene pločevine, pobarvan s prašno barvo v RAL 9010, ter vsem potrebnim pritrdilnim, tesnilnim, spojnim in montažnim materialom.\n",null,null,null,0]
[null,null,"Ustreza:  proizvod: Bossplast ali enakovredno\ntip: LVS",null,null,null,0]
[null,null,"Ventil za dovod zraka Φ100 mm","kos",5,null,0]
[null,null,"Ventil za dovod zraka Φ125 mm","kos",6,null,0]
[null,null,null,null,null,null,0]
[{"$f":"$B$849","v":"VII."},{"$f":"COUNT($A$850:B928)+1","v":8},"Prezračevalni ventil odvodni",null,null,null,0]
[null,null,"Dobava in montaža prezračevalnega ventila za odvod zraka s fiksnim difuzijskim obročem ter nastavljvim krožnikom za odpiranje in zapiranje ventila,  izdelan jeklene pločevine, pobarvan s prašno barvo v RAL 9010, ter vsem potrebnim pritrdilnim, tesnilnim, spojnim in montažnim materialom.\n",null,null,null,0]
[null,null,"Ustreza:  proizvod: Bossplast ali enakovredno\ntip: LVS",null,null,null,0]
[null,null,"Ventil za odvod zraka Φ100 mm","kos",20,null,0]
[null,null,null,null,null,null,0]
[{"$f":"$B$849","v":"VII."},{"$f":"COUNT($A$850:B933)+1","v":9},"Prezračevalni kanali in oblikovni kosi","kg",1425,null,0]
[null,null,"Dobava in montaža pravokotnih prezračevalnih kanalov, komor in oblikovnih kosov izdelanih  iz pocinkane pločevine skladno s standardom SIST EN 1505 oziroma 1506.  Komplet s spojnim, vijačnim, tesnilnim, obešalnim, materialom ter antivibracijskimi vložki.",null,null,null,0]
[null,null,null,null,null,null,{"$f":"E936*F936","v":0}]
[{"$f":"$B$849","v":"VII."},{"$f":"COUNT($A$850:B936)+1","v":10},"Okrogli prezračevalni kanali",null,null,null,0]
[null,null,"Dobava in montaža okroglih przračevalnih kanalov, izdelanih iz spiralno robljenih cevi, iz jeklene pocinkane pločevine, komplet s spojkami, ostalim spojnim, tesnilnim, vijačnim materialom ter dodatkom za razrez.",null,null,null,0]
[null,null,"Spiro kanal Φ100","m",56,null,0]
[null,null,"Spiro kanal Φ125","m",36,null,0]
[null,null,"Spiro kanal Φ160","m",43,null,0]
[null,null,"Spiro kanal Φ200","m",63,null,0]
[null,null,null,null,null,null,0]
[{"$f":"$B$849","v":"VII."},{"$f":"COUNT($A$850:B943)+1","v":11},"Fleksibilne cevi",null,null,null,0]
[null,null,"Dobava in montaža fleksibilnih cevi za povezavo zračnih kanalov in distribucijskih elementov, komplet s spojkami, ostalim spojnim, tesnilnim, vijačnim materialom ter dodatkom za razrez.",null,null,null,0]
[null,null,"Ustreza: Air Connections; tip ALUCONNECT ali enakovredno",null,null,null,0]
[null,null," Φ100","m",30,null,0]
[null,null," Φ160","m",6,null,0]
[null,null," Φ200","m",3,null,0]
[null,null,null,null,null,null,0]
["VII.",{"$f":"COUNT($A$850:B950)+1","v":12},"Fleksibilne cevi izolirane",null,null,null,0]
[null,null,"Dobava in montaža fleksibilnih cevi za povezavo zračnih kanalov in distribucijskih elementov, komplet s spojkami, ostalim spojnim, tesnilnim, vijačnim materialom ter dodatkom za razrez.",null,null,null,0]
[null,null,"Ustreza: Sonodec Non-woven, 25mm, 100mm ali enakovredno",null,null,null,0]
[null,null," Φ100","m",8,null,0]
[null,null," Φ125","m",9,null,0]
[null,null," Φ160","m",11,null,0]
[null,null," Φ200","m",2,null,0]
[null,null,null,null,null,null,0]
["VII.",{"$f":"COUNT($A$850:B958)+1","v":13},"Toplotna izolacija prezračevalnih kanalov","m2",196,null,0]
[null,null,"Dobava in montaža toplotne in protikondenzne izolacije prezračevalnih kanalov, ki se izvede s penasto toplotno izolacijo na bazi sintetičnega kavčuka.\nToplotna prevodnost λ ≤ 0,034 W/mK,\nParozapornostni koeficient μ ≥ 10.000,\nPožarna klasifikacija B-s3, d0 po DIN EN 13501.",null,null,null,0]
[null,null,"Ustreza: KAIFLEX ST - PL 19 / E ali enakovredno",null,null,null,0]
[null,null,null,null,null,null,0]
["VII.",{"$f":"COUNT($A$850:B962)+1","v":14},"Montažni material","kg",168,null,0]
[null,null,"Dobava in montaža montažnega in pritrdilnega materiala sestavljenega iz tipskih jeklenih vroče cinkanih konstrukcijskih elementov, s tipskimi spojnimi elementi z vijačnimi zvezami materiala 8.8. Kombinacije tipskih elementov se izbere skladno z navodili oz. priporočili proizvajalca o nosilnosti. Ves vgrajen montažni material mora imeti CE oznako.  VKLJUČENI ANTIVIBRACIJSKI VLOŽKI ZA PRITRJEVANJE. PREZRAČEVALNIH KANALOV",null,null,null,0]
[null,null,"Ustreza: HILTI ali enakovredno",null,null,null,0]
[null,null,null,null,null,null,0]
["VII.",{"$f":"COUNT($A$850:B966)+1","v":15},"Mertive in nastavitev","kpl",1,null,0]
[null,null,"Meritve in fina nastavitev dovodnih in odvodnih količin skladno s projektno dokumentacijo, regulacija sistema in naprav, izdelava zapisnika o opravljenih nastavitvah, izdelava poročila o izmerjenih količinah s strani pooblaščene organizacije.",null,null,null,0]
[null,null,null,null,null,null,0]
["VII.",{"$f":"COUNT($A$850:B969)+1","v":16},"Shema in označitev","klp",1,null,0]
[null,null,"Izdelava funcionalne sheme delovanja klimatske naprave, z vsemi podatki o periferni opremi, motorni pogoni, tipala, ipd. Fizična označitev vseh pogonov in tipal z oznakami iz sheme. Izdela se mapa z omenjeno shemo ter navodili za uporabo in vzdrževanje v slovenskem jeziku. En izvod sheme in navodil se vstavi v krmilno omaro naprave, en izvod se preda uporabiku.",null,null,null,0]
[]
[null,null,{"$f":"CONCATENATE($B$849,\" \",$C$849,\" - SKUPAJ:\")","v":"VII. PREZRAČEVANJE PISARN - SKUPAJ:"},null,null,null,{"$f":"SUM(G850:G972)","v":0}]
[]
[null,"VIII.","PREZRAČEVANJE OSTALIH PROSTOROV"]
[]
[{"$f":"$B$975","v":"VIII."},{"$f":"1","v":1},"Kompaktna prezračevalna naprava PN1","kos",1,null,{"$f":"E977*F977","v":0}]
[null,null,"Kompaktna prezračevalna naprava s protitočnim ploščnim rekuperatorjem toplote z by-passom v podstropni izvedbi. V napravo sta vgrajena: 2 EC ventilatorja, ki se odlikujeta z izredno visokim celotnim izkoristkom delovanja in s tem najmanjšo porabo električne energije. Filtracija zunanjega zraka je s filtrom G4, odtočni zrak se filtrira s filtrom G4. Na obeh filtrih je nameščeno tlačno stikalo, ki uporabniku javi ko je filter potrebno zamenjati. Vsi elementi regulacije delovanja naprave so vgrajeni v napravi in kompletno ožičeni. V sklopu regulacije je dobavljen tudi daljinski upravljalnik z displejem, kompletno s signalnim kablom in konektorjem za priključitev na regulacijo v napravi. Daljinski upravljalnik omogoča izbiro hitrosti ventilatorjev, regulacijo prostorske temperature z vgrajenim temperaturnim senzorjem in časovno programiranje delovanja naprave z vgrajeno uro.",null,null,null,{"$f":"E978*F978","v":0}]
[null,null,"Lastnosti:",null,null,null,0]
[null,null,"Pretok vtočnega zraka: 250 m³/h",null,null,null,0]
[null,null,"Eksterni statični tlak vtočnega zraka: 300 Pa",null,null,null,0]
[null,null,"Pretok odtočnega zraka: 250 m³/h",null,null,null,0]
[null,null,"Eksterni statični tlak odtočnega zraka: 300 Pa",null,null,null,0]
[null,null,"Temperaturni izkoristek glede na EN13141-7: 84.8 %",null,null,null,0]
[null,null,"Električni priključek: 230V 1~/50Hz",null,null,null,0]
[null,null,"Max. SPI: 0.278 W/(m³/h)",null,null,null,0]
[null,null,"Max. zunanje in notranje uhajanje zraka: 1,2 %",null,null,null,0]
[null,null,"Max. raven zvočne moči  ohišja: 44,1 dB(A)",null,null,null,0]
[null,null,"Dimenzije: dxšxv 1228x690x324 mm",null,null,null,0]
[null,null,"Filtracija zraka:  G4 (grobi delci 65%)",null,null,null,0]
[null,null,"Priključki za zrak: DN160",null,null,null,0]
[null,null,"Teža naprave: 62 kg",null,null,null,0]
[null,null,"Sestavljena iz:",null,null,null,0]
[null,null,"Prezračevalna naprava Smarty 3X P 1.1","kos",1,null,0]
[null,null,"Električni grelnik EKA 160-1.0-1 f (ACC000333)","kos",1,null,0]
[null,null,"Daljinski tablo SA-CONTROL","kos",1,null,0]
[null,null,"Komplet rezervnih filtrov G4 za odvod in F7 za dovod","kos",1,null,0]
[null,null,"Zagon naprave in šolanje uporabnika","kos",1,null,0]
[null,null,"Ustreza: Bossplast Salda Smarty 3X P 1.1 ali enakovredno",null,null,null,0]
[null,null,null,null,null,null,0]
[{"$f":"$B$975","v":"VIII."},{"$f":"COUNT($A$977:$B1000)+1","v":2},"Dušilec zvoka - frizer",null,null,null,0]
[null,null,"Dobava in vgradnja dušilca zvoka, primernega za vgradnjo v kanalsko mrežo, izdelan iz pocinkane pločevine. V ohišje so vgrajene dušilne kulise pri katerih so v okvirje iz jeklene pocinkane pločevine vstavljena posebna polnila  iz učinkovitega absorbcijskega materijala. Komplet z tesnilnim in pritrdilnim materialom. Pred naročilom nujno preveriti dimenzije in akustične karaktersitike.",null,null,null,0]
[null,null,"Φ160x1000","kos",2,null,0]
[null,null,null,null,null,null,0]
["VIII.",{"$f":"COUNT($A$977:$B1004)+1","v":3},"Vrtinčni difuzor - frizer",null,null,null,0]
[null,null,"Dobava in montaža kvadratnega stropnega difuzorja izdelanega iz jeklene pločevine, prašno barvan, komplet s komoro z regulacijsko loputo, priključnim nastavkom (dimenzijo preveriti na objektu pred naročilom) ter vsem potrebnim pritrdilnim, tesnilnim, spojnim in montažnim materialom.",null,null,null,0]
[null,null,"Ustreza: Bossplast tip: BD-9 ali enakovredno",null,null,null,0]
[null,null,"Dovodni difuzor",null,null,null,0]
[null,null,"400/270; priključnim nastavkom ɸ160","kos",1,null,0]
[null,null,"odvodni difuzor",null,null,null,{"$f":"E1010*F1010","v":0}]
[null,null,"400/270; priključnim nastavkom ɸ160","kos",1,null,0]
[null,null,null,null,null,null,0]
[{"$f":"$B$975","v":"VIII."},{"$f":"COUNT($A$977:$B1012)+1","v":4},"Okrogla fasadna rešetka - frizer",null,null,null,0]
[null,null,"Dobava in montaža aluminijaste fasadne rešetke vkjučno z mrežico proti mrčesom, ter vsem potrebnim pritrdilnim, tesnilnim, spojnim in montažnim materialom. Pred nabavo se material  potrdi s strani arhitekta. Rešetka  barvanav RAL lestvici po izboru arhitekta arhitekta.",null,null,null,0]
[null,null,"Dovodna rešetka dimenzije Φ 200mm","kos",1,null,0]
[null,null,"Odvodna rešetka dimenzije Φ 200mm","kos",1,null,0]
[null,null,null,null,null,null,0]
["VIII.",{"$f":"COUNT($A$977:$B1017)+1","v":5},"Fleksibilne cevi - frizer",null,null,null,0]
[null,null,"Dobava in montaža fleksibilnih cevi za povezavo zračnih kanalov in distribucijskih elementov, komplet s spojkami, ostalim spojnim, tesnilnim, vijačnim materialom ter dodatkom za razrez.",null,null,null,0]
[null,null,"Ustreza: Air Connections; tip ALUCONNECT ali enakovredno",null,null,null,0]
[null,null," Φ160","m",1,null,0]
[null,null," Φ200","m",1,null,0]
[null,null,null,null,null,null,0]
["VIII.",{"$f":"COUNT($A$977:$B1023)+1","v":6},"Fleksibilne cevi izolirane - frizer",null,null,null,0]
[null,null,"Dobava in montaža fleksibilnih cevi za povezavo zračnih kanalov in distribucijskih elementov, komplet s spojkami, ostalim spojnim, tesnilnim, vijačnim materialom ter dodatkom za razrez.",null,null,null,0]
[null,null,"Ustreza: Sonodec Non-woven, 25mm, 100mm ali enakovredno",null,null,null,0]
[null,null," Φ160","m",1,null,0]
[null,null," Φ200","m",1,null,0]
[null,null,null,null,null,null,0]
["VIII.",{"$f":"COUNT($A$977:$B1029)+1","v":7},"Okrogli prezračevalni kanali - frizer",null,null,null,0]
[null,null,"Dobava in montaža okroglih przračevalnih kanalov, izdelanih iz spiralno robljenih cevi, iz jeklene pocinkane pločevine, komplet s spojkami, ostalim spojnim, tesnilnim, vijačnim materialom ter dodatkom za razrez.",null,null,null,0]
[null,null,"Spiro kanal Φ160","m",30,null,0]
[null,null,"Spiro kanal Φ200","m",2,null,0]
[null,null,null,null,null,null,0]
["VIII.",{"$f":"COUNT($A$977:$B1034)+1","v":8},"Toplotna izolacija prezračevalnih kanalov - frizer","m2",5,null,0]
[null,null,"Dobava in montaža toplotne in protikondenzne izolacije prezračevalnih kanalov, ki se izvede s penasto toplotno izolacijo na bazi sintetičnega kavčuka.\nToplotna prevodnost λ ≤ 0,034 W/mK,\nParozapornostni koeficient μ ≥ 10.000,\nPožarna klasifikacija B-s3, d0 po DIN EN 13501.",null,null,null,0]
[null,null,"Ustreza: KAIFLEX ST - PL 19 / E ali enakovredno",null,null,null,0]
[null,null,null,null,null,null,{"$f":"E1038*F1038","v":0}]
["VIII.",{"$f":"COUNT($A$977:$B1038)+1","v":9},"Odvodni cevni ventilator - mrtvašnica in smeti",null,null,null,0]
[null,null,"Dobava in montaža odvodnega cevnega ventilatorja, komplet z antivibracijskimi kanalski priključki,  komplet z vsem spojnim, tesnilnim in pritrdilnim materialom.\nVentilator za naslednje parametre:\npretok: 150 m3/h,\ntlačni padec 100 Pa,\nnapajnje 230 V.",null,null,null,0]
[null,null,"Mrtvašnica:",null,null,null,0]
[null,null,"Ustreza: RS 125L 20  ali enakovreden proizvod.","kos",1,null,0]
[null,null,"Smeti:",null,null,null,0]
[null,null,"Ustreza: RS 125L 20  ali enakovreden proizvod.","kos",1,null,0]
[null,null,null,null,null,null,0]
[{"$f":"$B$975","v":"VIII."},{"$f":"COUNT($A$977:$B1045)+1","v":10},"Regulator hitrosti ventilatorja - mrtvašnica in smeti",null,null,null,{"$f":"E1046*F1046","v":0}]
[null,null,"Dobava in montaža napetostnega regulatorja hitrosti ventilatorja vgrajen v elekto omaro. Montažo in ožičenje izvede instalater elektro instalacij. Regulator hitrosti se vgradi v elektro omaro.",null,null,null,{"$f":"E1047*F1047","v":0}]
[null,null,"Mrtvašnica:",null,null,null,0]
[null,null,"Ustreza: Ruck MTY ali enakovreden proizvod.","kos",1,null,0]
[null,null,"Smeti:",null,null,null,0]
[null,null,"Ustreza: Ruck MTY ali enakovreden proizvod.","kos",1,null,0]
[null,null,null,null,null,null,0]
[{"$f":"$B$975","v":"VIII."},{"$f":"COUNT($A$977:$B1052)+1","v":11},"Časovni rele - mrtvašnica in smeti",null,null,null,0]
[null,null,"Dobava in montaža časovnega zakasnilnega releja za zakasnjen izklop ventilatorja, z možnostjo nastaviteve zakasnjenga izklopa od 2 do10 minut, za napetost 230 V, za vklop releja s senzorjem gibanja, komplet s pritrdilnim materialom.",null,null,null,0]
[null,null,"Mrtvašnica:","kos",1,null,0]
[null,null,"Smeti:","kos",1,null,0]
[null,null,null,null,null,null,0]
[{"$f":"$B$975","v":"VIII."},{"$f":"COUNT($A$977:$B1057)+1","v":12},"Prezračevalni ventil dovodni - mrtvašnica",null,null,null,0]
[null,null,"Dobava in montaža prezračevalnega ventila za dovod/odvod zraka s fiksnim difuzijskim obročem ter nastavljvim krožnikom za odpiranje in zapiranje ventila,  izdelan jeklene pločevine, pobarvan s prašno barvo v RAL 9010, ter vsem potrebnim pritrdilnim, tesnilnim, spojnim in montažnim materialom.\n",null,null,null,0]
[null,null,"Ustreza:  proizvod: Bossplast ali enakovredno\ntip: LVS",null,null,null,0]
[null,null,"Mrtvašnica: Ventil za dovod zraka Φ160 mm","kos",1,null,0]
[null,null,"Mrtvašnica: Ventil za odvod zraka Φ160 mm","kos",1,null,0]
[null,null,null,null,null,null,0]
[{"$f":"$B$975","v":"VIII."},{"$f":"COUNT($A$977:$B1063)+1","v":13},"Fasadna rešetka - okrogla - mrtvašnica in smeti",null,null,null,0]
[null,null,"Dobava in montaža aluminijaste fasadne rešetke vkjučno z mrežico proti mrčesom, ter vsem potrebnim pritrdilnim, tesnilnim, spojnim in montažnim materialom. Pred nabavo se material  potrdi s strani arhitekta. Rešetka  barvanav RAL lestvici po izboru arhitekta arhitekta.",null,null,null,0]
[null,null,"Dovodna rešetka dimenzije Φ 160mm","kos",2,null,0]
[null,null,"Odvodna rešetka dimenzije Φ 160mm","kos",2,null,0]
[null,null,null,null,null,null,0]
[{"$f":"$B$975","v":"VIII."},{"$f":"COUNT($A$977:$B1068)+1","v":14},"Mrežica proti mrčesu -  smeti",null,null,null,0]
[null,null,"Dobava in montaža pocinkane mrežice proti mrčesu, primerne za vgradnjo na konec spiro kanala, komplet s spojnim in pritrdilnim materialom.",null,null,null,0]
[null,null,"Smeti: dimenzije Φ 160mm","kos",2,null,0]
[null,null,null,null,null,null,0]
[{"$f":"$B$975","v":"VIII."},{"$f":"COUNT($A$977:$B1072)+1","v":15},"Okrogli prezračevalni kanali - mrtvašnica in smeti",null,null,null,0]
[null,null,"Dobava in montaža okroglih przračevalnih kanalov, izdelanih iz spiralno robljenih cevi, iz jeklene pocinkane pločevine, komplet s spojkami, ostalim spojnim, tesnilnim, vijačnim materialom ter dodatkom za razrez.",null,null,null,0]
[null,null,"Spiro kanal Φ125","m",10,null,0]
[null,null,"Spiro kanal Φ160","m",2,null,0]
[null,null,null,null,null,null,0]
[{"$f":"$B$975","v":"VIII."},{"$f":"COUNT($A$977:$B1077)+1","v":16},"Toplotna izolacija prezračevalnih kanalov - mrtvašnica in smeti","m2",7,null,0]
[null,null,"Dobava in montaža toplotne in protikondenzne izolacije prezračevalnih kanalov, ki se izvede s penasto toplotno izolacijo na bazi sintetičnega kavčuka.\nToplotna prevodnost λ ≤ 0,034 W/mK,\nParozapornostni koeficient μ ≥ 10.000,\nPožarna klasifikacija B-s3, d0 po DIN EN 13501."]
[null,null,"Ustreza: KAIFLEX ST - PL 19 / E ali enakovredno"]
[]
[{"$f":"$B$975","v":"VIII."},{"$f":"COUNT($A$977:$B1081)+1","v":17},"Odvodni ventilator s vklopom po urniku",null,null,null,{"$f":"E1082*F1082","v":0}]
[null,null,"Dobava in montaža stenskega odvodnega ventilatorja,  za namestitev na steno ali strop,vključno z nastavljivo zakasnitvijo delovanja in dekorativnim pokrovom, z enohitrostnim ventilatorjem z aktivnim prilagajanjem hitrosti motorja uporom v kanalu. Ventilator se dobavi komplet z vsem potrebnim pritrdilni, tesnilnim ter drobnim montažnim materialom.",null,null,null,{"$f":"E1083*F1083","v":0}]
[null,null,"Tehnični podatki:",null,null,null,0]
[null,null,"Napetost 230 VAC / 50 Hz",null,null,null,0]
[null,null,"Stopnja zaščite IPX5",null,null,null,0]
[null,null,"Nazivna moč 18 W.",null,null,null,0]
[null,null,"Zvočna moč LWA pri 100 m3/h LA 38 dB (A)",null,null,null,0]
[null,null,"Pretok zraka: 60 m³ / h",null,null,null,0]
[null,null,"Ustreza: proizvod Helios ELS V60 ali enakovredno.",null,null,null,0]
[null,null,"v prostoru Arhiv","kpl",1,null,0]
[null,null,"v prostoru Skladišče","kpl",1,null,0]
[null,null,"v prostoru Delavnica","kpl",1,null,0]
[null,null,"v prostoru Polnilnica vozičkov (siva cona)","kpl",1,null,0]
[null,null,null,null,null,null,0]
[{"$f":"$B$975","v":"VIII."},{"$f":"COUNT($A$977:$B1095)+1","v":18},"Okvir za nadometno vgradnjo ventilatorja skladišče za perilo",null,null,null,0]
[null,null,"Dobava in montaža ohišja okvirja za nadometno vgradnjo ventilatorja z vsem potrebnim tesnilnim, pritrdilnim in drobnim montažnim materialom.",null,null,null,0]
[null,null,"Ustreza: proizvod Helios ali enakovredno.",null,null,null,0]
[null,null,"v prostoru Arhiv","kpl",1,null,0]
[null,null,"v prostoru Skladišče","kpl",1,null,0]
[null,null,"v prostoru Skladišče","kpl",1,null,0]
[null,null,"v prostoru Polnilnica vozičkov (siva cona)","kpl",1,null,{"$f":"E1102*F1102","v":0}]
[null,null,null,null,null,null,0]
[{"$f":"$B$975","v":"VIII."},{"$f":"COUNT($A$977:$B1103)+1","v":19},"Lokalni rekuperator v prostoru CSD/pomoč na domu",null,null,null,0]
[null,null,"Dobava in montaža lokalnega rekumperatorja, primernega za montažo na steno, brez sistema zračnih kanalov, komplet s fasdno rešetko, vem spojnim tesnilnim in pritrdilnim materialom.",null,null,null,0]
[null,null,"Pretok zraka: 60 m³ / h",null,null,null,0]
[null,null,"Električna moč: 45W"]
[null,null,"Tok: 0,4A"]
[null,null,"Napetost: 220V, 50Hz"]
[null,null,"Območje delovanja: -15 do 40°C "]
[null,null,"Izolacija:  10mm"]
[null,null,"Učinkovitos rekumperacije: 83%"]
[null,null,"Vztopni filter: G4"]
[null,null,"Iztopni filter: G4"]
[null,null,"Priključek kanalov: Φ 100mm"]
[null,null,"Teža: 31 kg"]
[null,null,"Ustreza: proizvod VENTS tip: MICRA 100 E ERV ali enakovredno.","kpl",1,null,0]
[null,null,null,null,null,null,0]
[{"$f":"$B$975","v":"VIII."},{"$f":"COUNT($A$977:$B1118)+1","v":20},"Fasadna rešetka - okrogla",null,null,null,0]
[null,null,"Dobava in montaža aluminijaste fasadne rešetke vkjučno z mrežico proti mrčesom, ter vsem potrebnim pritrdilnim, tesnilnim, spojnim in montažnim materialom. Pred nabavo se material  potrdi s strani arhitekta. Rešetka  barvanav RAL lestvici po izboru arhitekta arhitekta.",null,null,null,0]
[null,null,"Dovodna rešetka dimenzije Φ 125mm","kos",5,null,0]
[null,null,"Dovodna rešetka dimenzije Φ 160mm","kos",2,null,0]
[null,null,"Odvodna rešetka dimenzije Φ 125mm","kos",4,null,0]
[null,null,"Dovodna rešetka dimenzije Φ 160mm","kos",2,null,0]
[null,null,null,null,null,null,0]
[{"$f":"$B$975","v":"VIII."},{"$f":"COUNT($A$977:$B1125)+1","v":21},"Rešetka - fasadna",null,null,null,0]
[null,null,"Dobava in montaža aluminijaste fasadne rešetke, z mrežico proti mrčesu, ter vsem potrebnim pritrdilnim, tesnilnim, spojnim in montažnim materialom. Pred nabavo se material  potrdi s strani arhitekta. Rešetka  barvanav RAL lestvici po izboru arhitekta arhitekta.",null,null,null,0]
[null,null,"dimenzije 300 x 200 mm","kos",1,null,0]
[null,null,null,null,null,null,0]
[{"$f":"$B$975","v":"VIII."},{"$f":"COUNT($A$977:$B1129)+1","v":22},"Odvodne rešetke",null,null,null,0]
[null,null,"Dobava in montaža aluminjaste odvodne rešetke, primerne za montažo v strop z možnostjo nastavitve pretoka zraka, komplet s montažnim okvirjem, vsem spojnim tesnilnim in pritrdilnim materialom. Rešetka barvana v RAL lestvici po izboru arhitekta.",null,null,null,0]
[null,null,"325x225","kos",1,null,0]
[null,null,null,null,null,null,0]
[{"$f":"$B$975","v":"VIII."},{"$f":"COUNT($A$977:$B1133)+1","v":23},"Prezračevalni ventil dovodni",null,null,null,0]
[null,null,"Dobava in montaža prezračevalnega ventila za dovod zraka s fiksnim difuzijskim obročem ter nastavljvim krožnikom za odpiranje in zapiranje ventila,  izdelan jeklene pločevine, pobarvan s prašno barvo v RAL 9010, ter vsem potrebnim pritrdilnim, tesnilnim, spojnim in montažnim materialom.\n",null,null,null,0]
[null,null,"Ustreza:  proizvod: Bossplast ali enakovredno\ntip: LVS",null,null,null,0]
[null,null,"Ventil za odovod zraka Φ125 mm","kos",1,null,0]
[null,null,"Ventil za odovod zraka Φ125 mm","kos",3,null,0]
[null,null,"Ventil za dovod zraka Φ160 mm","kos",1,null,0]
[null,null,null,null,null,null,0]
[{"$f":"$B$975","v":"VIII."},{"$f":"COUNT($A$977:$B1140)+1","v":24},"Požarna loputa",null,null,null,0]
[null,null,"Dobava in montaža vstavljive okrogla požarne lopute z dvema polkrožnima lamelama, termičnim členom in intumescenčnim materialom v postelji lamel, ki tesno zapre prehod v primeru požara. Certificirano po EN 15650, vključno z materialom za vgradnjo (pritrdilni kotniki).\n\n",null,null,null,0]
[null,null,"Ustreza:  MANDIK tip: CFDM/100-.15/EI60S ali enakovredno.","kos",1,null,0]
[null,null,null,null,null,null,0]
[{"$f":"$B$975","v":"VIII."},{"$f":"COUNT($A$977:$B1144)+1","v":25},"Požarna tesnenje požarnih loput s požarno odpornostjo 60 minut",null,null,null,0]
[null,null,"Ivedba ognjevarne zažčite pob požarnih loputah, požarne odpornosti 60 minut komplet z dobavopotrebnega materiala, s potrebnimi certifikati in označitvijo s samolepilno nalepko.\n",null,null,null,0]
[null,null,"Ustreza: Promat Promatect AD ali enakovredno",null,null,null,0]
[null,null,"Za požarno loputo dimenzij:",null,null,null,0]
[null,null,"Φ200","kos",1,null,0]
[null,null,null,null,null,null,0]
[{"$f":"$B$975","v":"VIII."},{"$f":"COUNT($A$977:$B1150)+1","v":26},"Prezračevalni kanali in oblikovni kosi","kg",10,null,0]
[null,null,"Dobava in montaža pravokotnih prezračevalnih kanalov, komor in oblikovnih kosov izdelanih  iz pocinkane pločevine skladno s standardom SIST EN 1505 oziroma 1506.  Komplet s spojnim, vijačnim, tesnilnim, obešalnim, materialom ter antivibracijskimi vložki.",null,null,null,0]
[null,null,null,null,null,null,0]
[{"$f":"$B$975","v":"VIII."},{"$f":"COUNT($A$977:$B1153)+1","v":27},"Okrogli prezračevalni kanali",null,null,null,0]
[null,null,"Dobava in montaža okroglih przračevalnih kanalov, izdelanih iz spiralno robljenih cevi, iz jeklene pocinkane pločevine, komplet s spojkami, ostalim spojnim, tesnilnim, vijačnim materialom ter dodatkom za razrez.",null,null,null,0]
[null,null,"Spiro kanal Φ125","m",3,null,0]
[null,null,"Spiro kanal Φ160","m",1,null,{"$f":"E1157*F1157","v":0}]
[null,null,null,null,null,null,0]
["VIII.",{"$f":"COUNT($A$977:$B1158)+1","v":28},"Toplotna izolacija prezračevalnih kanalov","m2",3,null,0]
[null,null,"Dobava in montaža toplotne in protikondenzne izolacije prezračevalnih kanalov, ki se izvede s penasto toplotno izolacijo na bazi sintetičnega kavčuka.\nToplotna prevodnost λ ≤ 0,034 W/mK,\nParozapornostni koeficient μ ≥ 10.000,\nPožarna klasifikacija B-s3, d0 po DIN EN 13501.",null,null,null,0]
[null,null,"Ustreza: KAIFLEX ST - PL 19 / E ali enakovredno",null,null,null,0]
[null,null,null,null,null,null,0]
["VIII.",{"$f":"COUNT($A$977:$B1162)+1","v":29},"Montažni material","kg",5,null,0]
[null,null,"Dobava in montaža montažnega in pritrdilnega materiala sestavljenega iz tipskih jeklenih vroče cinkanih konstrukcijskih elementov, s tipskimi spojnimi elementi z vijačnimi zvezami materiala 8.8. Kombinacije tipskih elementov se izbere skladno z navodili oz. priporočili proizvajalca o nosilnosti. Ves vgrajen montažni material mora imeti CE oznako.  VKLJUČENI ANTIVIBRACIJSKI VLOŽKI ZA PRITRJEVANJE. PREZRAČEVALNIH KANALOV",null,null,null,0]
[null,null,"Ustreza: HILTI ali enakovredno",null,null,null,0]
[null,null,null,null,null,null,0]
[null,null,{"$f":"CONCATENATE($B$849,\" \",$C$849,\" - SKUPAJ:\")","v":"VII. PREZRAČEVANJE PISARN - SKUPAJ:"},null,null,null,{"$f":"SUM(G976:G1166)","v":0}]
[]
[{"$f":"CONCATENATE(\"DELNA REKAPITULACIJA - \",A3,C3)","v":"DELNA REKAPITULACIJA - S4.PREZRAČEVANJE"}]
[null,null,null,null,null,{"$f":"H1170*DobMont","v":0}]
["Cena na enoto in znesek so v EUR brez DDV!",null,null,null,null,{"$f":"H1171*DobMont","v":0}]
[]
[null,{"$f":"$B$9","v":"I."},{"$f":"C9","v":"PREZRAČEVANJE SOBE ZAHOD"},null,null,{"$f":"H1173*DobMont","v":0},{"$f":"G119","v":0}]
[]
[null,{"$f":"B121","v":"II."},{"$f":"C121","v":"PREZRAČEVANJE SKUPNI PROSTORI ZAHOD"},null,null,null,{"$f":"G279","v":0}]
[]
[null,{"$f":"$B$281","v":"III."},{"$f":"C281","v":"PREZRAČEVANJE SIVE CONE"},null,null,null,{"$f":"G375","v":0}]
[]
[null,{"$f":"$B$377","v":"IV."},{"$f":"C377","v":"PREZRAČEVANJE KUHINJE "},null,null,null,{"$f":"G562","v":0}]
[]
[null,{"$f":"$B$564","v":"V."},{"$f":"C564","v":"PREZRAČEVANJE SOBE VZHOD"},null,null,null,{"$f":"G673","v":0}]
[]
[null,{"$f":"$B$675","v":"VI."},{"$f":"C675","v":"PREZRAČEVANJE SERVISNI PROSTORI VZHOD"},null,null,null,{"$f":"G847","v":0}]
[]
[null,{"$f":"$B$849","v":"VII."},{"$f":"C849","v":"PREZRAČEVANJE PISARN"},null,null,null,{"$f":"G973","v":0}]
[]
[null,{"$f":"B975","v":"VIII."},{"$f":"C975","v":"PREZRAČEVANJE OSTALIH PROSTOROV"},null,null,null,{"$f":"G1167","v":0}]
[]
[null,null,{"$f":"CONCATENATE(A3,\"\",C3,\" - SKUPAJ:\")","v":"S4.PREZRAČEVANJE - SKUPAJ:"},null,null,null,{"$f":"SUM(G1172:G1188)","v":0}]
[null,null,null,null,null,{"$f":"H1190*DobMont","v":0}]

{"sheet":"HPR_SD_stara verzija","index":7,"n_rows":142,"n_cols":7,"rows_kept":142,"cut":false,"hidden":true,"merged":[[4,2,4,3]]}
[null,"POPIS MATERIALA IN DEL S PREDRAČUNOM "]
[null,"HIŠNI PRIKLJUČKI - STROJNA DELA  (N)"]
[]
[]
["Z. ŠT.","VRSTA DELA","KOS",null,null,"CENA/ENOTO SIT/ENOTO","CENA SIT"]
[1]
[{"$f":"COUNT(A6+1)","v":1},"Cev iz PE - SDR 11\nCev iz PE, po DIN8074 in ISO/DIS 4437, SDR 11 (serija 5) skupaj z dodatkom  za razrez.\n"]
[null,"PE 32x3,0    ",null,"m",1.06463,{"$f":"ROUND(#REF!*#REF!*E8,-1)","v":{"$error":"#REF!"}},{"$f":"C8*F8","v":{"$error":"#REF!"}}]
[null,"PE 63x5,8    ",null,"m",7.2395100000000001,{"$f":"ROUND(#REF!*#REF!*E9,-1)","v":{"$error":"#REF!"}},{"$f":"C9*F9","v":{"$error":"#REF!"}}]
[]
[{"$f":"COUNT(A7:A10)+1","v":2},"Cevi iz jekla:\nJeklena  brezšivna  srednjetežka črna cev po JUS C.B5.225, material Č.1212, skupaj z loki, varilnim, tesnilnim in pritrdilnim materialom in dodatkom za razrez."]
[null,"DN 25 (33,7x3,25)",null,"m",4.3375599999999999,{"$f":"ROUND(#REF!*#REF!*E12,-1)","v":{"$error":"#REF!"}},{"$f":"C12*F12","v":{"$error":"#REF!"}}]
[null,"DN 50 (60,3x3,65)",null,"m",5.8534199999999998,{"$f":"ROUND(#REF!*#REF!*E13,-1)","v":{"$error":"#REF!"}},{"$f":"C13*F13","v":{"$error":"#REF!"}}]
[]
[{"$f":"COUNT(A7:A14)+1","v":3},"Uvodnice:\nSklop  sestavljen  iz prehodnega kosa PE/jeklo,      jeklene      brezšivne srednjetežke   črne   cevi   po   JUS C.B5.225,  material  Č.1212,  zaščitne"]
[null,"cevi in krogelne pipe s termičnim varovalom (ali posebej prigrajenim zapornim elementom s termičnim varovalom) in s čepom. Pipa oziroma zaporni element morata biti skladna z VP 301."]
[null,"V ceni  sklopa  je zajeta vgradnja skupaj z  vrtanjem  zidu in vzpostavitvijo  v prvotno stanje."]
[null,"DN 25    (izvedba A)",null,"kos",245.12195,{"$f":"ROUND(#REF!*#REF!*E18,-1)","v":{"$error":"#REF!"}},{"$f":"C18*F18","v":{"$error":"#REF!"}}]
[null,"DN 25    (izvedba C)",null,"kos",292.68293,{"$f":"ROUND(#REF!*#REF!*E19,-1)","v":{"$error":"#REF!"}},{"$f":"C19*F19","v":{"$error":"#REF!"}}]
[null,"DN 50    (izvedba A)",null,"kos",392.68293,{"$f":"ROUND(#REF!*#REF!*E20,-1)","v":{"$error":"#REF!"}},{"$f":"C20*F20","v":{"$error":"#REF!"}}]
[null,"DN 50    (izvedba C)",null,"kos",507.31707,{"$f":"ROUND(#REF!*#REF!*E21,-1)","v":{"$error":"#REF!"}},{"$f":"C21*F21","v":{"$error":"#REF!"}}]
[]
[{"$f":"COUNT(A7:A22)+1","v":4},"Uvodnica - D2:\nSklop  sestavljen  iz prehodnega kosa PE/jeklo,      jeklene      brezšivne srednjetežke   črne   cevi   po   JUS C.B5.225,  material  Č.1212, zaščitne cevi, krogelne pipe s čepom in iz  omarice za požarno pipo,  izdelane iz"]
[null,"nerjaveče pločevine po delavniški risbi proizvajalca, prirejene za pritrditev na zid dimenzije 250x300x200 mm  z napisom: GLAVNA PLINSKA POŽARNA PIPA. V ceni  sklopa  je zajeta vgradnja."]
[null,"DN 25    (izvedba D)",null,"kos",206,{"$f":"ROUND(#REF!*#REF!*E25,-1)","v":{"$error":"#REF!"}},{"$f":"C25*F25","v":{"$error":"#REF!"}}]
[]
[{"$f":"COUNT(A7:A26)+1","v":5},"Lok 450\nLok iz trdega PE, 450."]
[null,"PE 32",null,"kos",7.0057299999999998,{"$f":"ROUND(#REF!*#REF!*E28,-1)","v":{"$error":"#REF!"}},{"$f":"C28*F28","v":{"$error":"#REF!"}}]
[null,"PE 63",null,"kos",27.877359999999999,{"$f":"ROUND(#REF!*#REF!*E29,-1)","v":{"$error":"#REF!"}},{"$f":"C29*F29","v":{"$error":"#REF!"}}]
[]
[{"$f":"COUNT(A7:A30)+1","v":6},"Lok  900\nLok iz trdega PE, 900."]
[null,"PE 32",null,"kos",6.1565899999999996,{"$f":"ROUND(#REF!*#REF!*E32,-1)","v":{"$error":"#REF!"}},{"$f":"C32*F32","v":{"$error":"#REF!"}}]
[null,"PE 63",null,"kos",24.131830000000001,{"$f":"ROUND(#REF!*#REF!*E33,-1)","v":{"$error":"#REF!"}},{"$f":"C33*F33","v":{"$error":"#REF!"}}]
[null," "]
[{"$f":"COUNT(A7:A34)+1","v":7},"T-kos\nOdcepni T-kos iz trdega PE."]
[null,"PE 32/32      ",null,"kos",17.05799,{"$f":"ROUND(#REF!*#REF!*E36,-1)","v":{"$error":"#REF!"}},{"$f":"C36*F36","v":{"$error":"#REF!"}}]
[null,"PE 63/63      ",null,"kos",30.713460000000001,{"$f":"ROUND(#REF!*#REF!*E37,-1)","v":{"$error":"#REF!"}},{"$f":"C37*F37","v":{"$error":"#REF!"}}]
[null," "]
[{"$f":"COUNT(A7:A38)+1","v":8},"Cevna kapa\nCevna kapa iz trdega PE."]
[null,"PE 32           ",null,"kos",5.7279299999999997,{"$f":"ROUND(#REF!*#REF!*E40,-1)","v":{"$error":"#REF!"}},{"$f":"C40*F40","v":{"$error":"#REF!"}}]
[null,"PE 63           ",null,"kos",18.417200000000001,{"$f":"ROUND(#REF!*#REF!*E41,-1)","v":{"$error":"#REF!"}},{"$f":"C41*F41","v":{"$error":"#REF!"}}]
[null," "]
[{"$f":"COUNT(A7:A42)+1","v":9},"Reducirni kos\nReducirni kos iz trdega PE."]
[null,"PE 63/32      ",null,"kos",10.40244,{"$f":"ROUND(#REF!*#REF!*E44,-1)","v":{"$error":"#REF!"}},{"$f":"C44*F44","v":{"$error":"#REF!"}}]
[null," "]
[{"$f":"COUNT(A7:A45)+1","v":10},"Prehodni kos\nPrehodni kos PE/jeklo."]
[null,"PE 32/DN 25",null,"kos",21.919509999999999,{"$f":"ROUND(#REF!*#REF!*E47,-1)","v":{"$error":"#REF!"}},{"$f":"C47*F47","v":{"$error":"#REF!"}}]
[null,"PE 63/DN 50",null,"kos",34.28293,{"$f":"ROUND(#REF!*#REF!*E48,-1)","v":{"$error":"#REF!"}},{"$f":"C48*F48","v":{"$error":"#REF!"}}]
[null," "]
[{"$f":"COUNT($A$7:A49)+1","v":11},"Jekleni  izolirni  kos\nJekleni  izolirni  kos  po  DIN 3389, z navojnima priključkoma, material  Č.1212,  skupaj  s tesnilnim materialom."]
[null,"DN 25",null,"kos",45.731707319999998,{"$f":"ROUND(#REF!*#REF!*E51,-1)","v":{"$error":"#REF!"}},{"$f":"C51*F51","v":{"$error":"#REF!"}}]
[]
[{"$f":"COUNT($A$7:A52)+1","v":12},"Obojka\nElektrovarilna obojka  iz  trdega PE, skupaj z varjenjem."]
[null,"PE 32           ",null,"kos",8.5442699999999991,{"$f":"ROUND(#REF!*#REF!*E54,-1)","v":{"$error":"#REF!"}},{"$f":"C54*F54","v":{"$error":"#REF!"}}]
[null,"PE 63           ",null,"kos",19.240410000000001,{"$f":"ROUND(#REF!*#REF!*E55,-1)","v":{"$error":"#REF!"}},{"$f":"C55*F55","v":{"$error":"#REF!"}}]
[null," "]
[{"$f":"COUNT($A$7:A56)+1","v":13},"Sedlo\nElektrovarilno  sedlo   z  obojko  iz trdega PE, skupaj z varjenjem."]
[null,"PE 110/63    ",null,"kos",65.609759999999994,{"$f":"ROUND(#REF!*#REF!*E58,-1)","v":{"$error":"#REF!"}},{"$f":"C58*F58","v":{"$error":"#REF!"}}]
[null,"PE 160/63    ",null,"kos",null,{"$f":"ROUND(#REF!*#REF!*E59,-1)","v":{"$error":"#REF!"}},{"$f":"C59*F59","v":{"$error":"#REF!"}}]
[null,"PE 225/63    ",null,"kos",43.256100000000004,{"$f":"ROUND(#REF!*#REF!*E60,-1)","v":{"$error":"#REF!"}},{"$f":"C60*F60","v":{"$error":"#REF!"}}]
[null," "]
[{"$f":"COUNT($A$7:A61)+1","v":14},"Navrtalno   sedlo\nElektrovarilno  navrtalno   sedlo  iz trdega PE, skupaj z varjenjem."]
[null,"PE 63/32      ",null,"kos",51.432679999999998,{"$f":"ROUND(#REF!*#REF!*E63,-1)","v":{"$error":"#REF!"}},{"$f":"C63*F63","v":{"$error":"#REF!"}}]
[null,"PE 110/32    ",null,"kos",67.316339999999997,{"$f":"ROUND(#REF!*#REF!*E64,-1)","v":{"$error":"#REF!"}},{"$error":"#REF!"}]
[null,"PE 160/32    ",null,"kos",114.29512,{"$f":"ROUND(#REF!*#REF!*E65,-1)","v":{"$error":"#REF!"}},{"$error":"#REF!"}]
[null,"PE 225/32    ",null,"kos",179.10975999999999,{"$f":"ROUND(#REF!*#REF!*E66,-1)","v":{"$error":"#REF!"}},{"$error":"#REF!"}]
[null,"PE 110/63    ",null,"kos",108.33317,{"$f":"ROUND(#REF!*#REF!*E67,-1)","v":{"$error":"#REF!"}},{"$error":"#REF!"}]
[null,"PE 160/63    ",null,"kos",140.23645999999999,{"$f":"ROUND(#REF!*#REF!*E68,-1)","v":{"$error":"#REF!"}},{"$error":"#REF!"}]
[null,"PE 225/63    ",null,"kos",169.68293,{"$f":"ROUND(#REF!*#REF!*E69,-1)","v":{"$error":"#REF!"}},{"$error":"#REF!"}]
[null," "]
[{"$f":"COUNT($A$7:A70)+1","v":15},"Navrtalna ogrlica\nCevna navrtalna ogrlica iz trdega PE za izvedbo odcepa na  PVC plinovodu z vgradbilno garnituro."]
[null,"PVC 50 / PE 32    ",null,"kos",59.4,{"$f":"ROUND(#REF!*#REF!*E72,-1)","v":{"$error":"#REF!"}},{"$f":"C72*F72","v":{"$error":"#REF!"}}]
[null,"PVC 100 / PE 32    ",null,"kos",77.7,{"$f":"ROUND(#REF!*#REF!*E73,-1)","v":{"$error":"#REF!"}},{"$f":"C73*F73","v":{"$error":"#REF!"}}]
[null,"PVC 100 / PE 63    ",null,"kos",125,{"$f":"ROUND(#REF!*#REF!*E74,-1)","v":{"$error":"#REF!"}},{"$f":"C74*F74","v":{"$error":"#REF!"}}]
[]
[{"$f":"COUNT($A$7:A75)+1","v":16},"Ogrlica\nCevna ogrlica iz trdega PE za izvedbo odcepa na  PVC plinovodu z vgradbilno garnituro."]
[null,"PVC 50 / PE 32    ",null,"kos",59.4,{"$f":"ROUND(#REF!*#REF!*E77,-1)","v":{"$error":"#REF!"}},{"$f":"C77*F77","v":{"$error":"#REF!"}}]
[null,"PVC 100 / PE 32    ",null,"kos",77.7,{"$f":"ROUND(#REF!*#REF!*E78,-1)","v":{"$error":"#REF!"}},{"$f":"C78*F78","v":{"$error":"#REF!"}}]
[null,"PVC 100 / PE 63    ",null,"kos",125,{"$f":"ROUND(#REF!*#REF!*E79,-1)","v":{"$error":"#REF!"}},{"$f":"C79*F79","v":{"$error":"#REF!"}}]
[]
[{"$f":"COUNT($A$7:A80)+1","v":17},"Krogelna pipa PE - vgradna\nKrogelna pipa iz trdega  PE tlačne stopnje NP 4, z vgradbilno   garnituro  in  prilagoditvijo dolžine   vgradbilne   garniture   na terenu, skupaj z varjenjem."]
[null,"DN 50          ",null,"kos",409.96138000000002,{"$f":"ROUND(#REF!*#REF!*E82,-1)","v":{"$error":"#REF!"}},{"$f":"C82*F82","v":{"$error":"#REF!"}}]
[]
[{"$f":"COUNT($A$7:A83)+1","v":18},"Omarica - D:\nOmarica za požarno pipo,  izdelana iz nerjaveče pločevine po delavniški risbi proizvajalca, prirejena za pritrditev na zid s pocinkano zaščitno cevjo in z napisom: GLAVNA PLINSKA POŽARNA PIPA."]
[null,"250x300x200 mm  ",null,"kos",54.878050000000002,{"$f":"ROUND(#REF!*#REF!*E85,-1)","v":{"$error":"#REF!"}},{"$f":"C85*F85","v":{"$error":"#REF!"}}]
[null,"350x400x250 mm  ",null,"kos",67.073170000000005,{"$f":"ROUND(#REF!*#REF!*E86,-1)","v":{"$error":"#REF!"}},{"$f":"C86*F86","v":{"$error":"#REF!"}}]
[]
[{"$f":"COUNT($A$7:A87)+1","v":19},"Omarica - E:\nOmarica za požarno pipo,  izdelana iz nerjaveče pločevine po delavniški risbi proizvajalca, prirejena za pritrditev na zid  in z napisom: \nGLAVNA PLINSKA POŽARNA PIPA."]
[null,"250x300x200 mm  ",null,"kos",54.878050000000002,{"$f":"ROUND(#REF!*#REF!*E89,-1)","v":{"$error":"#REF!"}},{"$f":"C89*F89","v":{"$error":"#REF!"}}]
[null,"350x400x250 mm  ",null,"kos",67.073170000000005,{"$f":"ROUND(#REF!*#REF!*E90,-1)","v":{"$error":"#REF!"}},{"$f":"C90*F90","v":{"$error":"#REF!"}}]
[]
[{"$f":"COUNT($A$7:A91)+1","v":20},"Krogelna     pipa - jeklo:\nKrogelna     pipa     z     navojnima priključkoma,  tlačne  stopnje NP 4, standardne  dolžine,   atestirana  za zemeljski    plin,    z    ročko   za posluževanje,  skupaj z izolirnim kosom in tesnilnim materialom."]
[null,"DN 25          ",null,"kos",20.50244,{"$f":"ROUND(#REF!*#REF!*E93,-1)","v":{"$error":"#REF!"}},{"$f":"C93*F93","v":{"$error":"#REF!"}}]
[null,"DN 50          ",null,"kos",72.718779999999995,{"$f":"ROUND(#REF!*#REF!*E94,-1)","v":{"$error":"#REF!"}},{"$f":"C94*F94","v":{"$error":"#REF!"}}]
[]
[{"$f":"COUNT($A$7:A95)+1","v":21},"Izpihovalna  cev v omarici\nIzpihovalna  cev, izdelana iz jeklene cevi 21,3x2,65  zaprto z navojnim čepom DN 15, skupaj z varilnim, tesnilnim in vijačnim materialom."]
[null,"(izdelano po priloženi skici).\n"]
[null,null,null,"kos",43,{"$f":"ROUND((#REF!*#REF!*E98),-1)","v":{"$error":"#REF!"}},{"$f":"C98*F98","v":{"$error":"#REF!"}}]
[]
[{"$f":"COUNT($A$7:A99)+1","v":22},"Cestna  kapa:\nLitoželezna   zaščitna  cestna  kapa, material  SL  18,  z  napisom plin na pokrovu, zaščitena z bitumnom."]
[null,"DN 190        ",null,"kos",101.14646,{"$f":"ROUND(#REF!*#REF!*E101,-1)","v":{"$error":"#REF!"}},{"$f":"C101*F101","v":{"$error":"#REF!"}}]
[]
[{"$f":"COUNT($A$7:A102)+1","v":23},"Prirobnica:\nJeklena prirobnica z  grlom, izdelana po  JUS  M.B6.163,  NP  16,  material Č.0361,  skupaj z varilnim, tesnilnim in vijačnim materialom."]
[null,"50/60,3        ",null,"kos",12.855980000000001,{"$f":"ROUND(#REF!*#REF!*E104,-1)","v":{"$error":"#REF!"}},{"$f":"C104*F104","v":{"$error":"#REF!"}}]
[null,"80/88,9        ",null,"kos",17.883659999999999,{"$f":"ROUND(#REF!*#REF!*E105,-1)","v":{"$error":"#REF!"}},{"$f":"C105*F105","v":{"$error":"#REF!"}}]
[null,"100/114,3     ",null,"kos",39.268659999999997,{"$f":"ROUND(#REF!*#REF!*E106,-1)","v":{"$error":"#REF!"}},{"$f":"C106*F106","v":{"$error":"#REF!"}}]
[]
[{"$f":"COUNT($A$7:A107)+1","v":24},"Slepa prirobnica:\nJeklena slepa prirobnica, izdelana po JUS M.B6.191, NP 16, material Č.0361, oblika  B,   skupaj  s  tesnilnim  in vijačnim materialom."]
[null,"B 50             ",null,"kos",39.678130000000003,{"$f":"ROUND(#REF!*#REF!*E109,-1)","v":{"$error":"#REF!"}},{"$f":"C109*F109","v":{"$error":"#REF!"}}]
[null,"B 80             ",null,"kos",52.73171,{"$f":"ROUND(#REF!*#REF!*E110,-1)","v":{"$error":"#REF!"}},{"$f":"C110*F110","v":{"$error":"#REF!"}}]
[null,"B 100           ",null,"kos",64.451220000000006,{"$f":"ROUND(#REF!*#REF!*E111,-1)","v":{"$error":"#REF!"}},{"$f":"C111*F111","v":{"$error":"#REF!"}}]
[]
[{"$f":"COUNT($A$7:A112)+1","v":25},"Podpore:\nCevne podpore,  izdelane iz jeklenih profilov in  cevnih  objemk, skupaj z montažo   v  zid   ali  varjenjem  na nosilno konstrukcijo in  opleskane po predhodnem  čiščenju  in  pleskanju s temeljno barvo."]
[null,null,null,"kg",4.5243900000000004,{"$f":"ROUND(#REF!*#REF!*E114,-1)","v":{"$error":"#REF!"}},{"$f":"C114*F114","v":{"$error":"#REF!"}}]
[]
[{"$f":"COUNT($A$7:A115)+1","v":26},"Preboj:\nZaščitna cev pri  preboju  skozi zid, zaščitena pred korozijo in zatesnjena s   trajno   elastičnim   materialom, izdelana po priloženi skici."]
[null,"DN 40",null,"kos",49.146340000000002,{"$f":"ROUND(#REF!*#REF!*E117,-1)","v":{"$error":"#REF!"}},{"$f":"C117*F117","v":{"$error":"#REF!"}}]
[null,"DN 65",null,"kos",65,{"$f":"ROUND(#REF!*#REF!*E118,-1)","v":{"$error":"#REF!"}},{"$f":"C118*F118","v":{"$error":"#REF!"}}]
[]
[{"$f":"COUNT($A$7:A119)+1","v":27},"Zaščitna cev:\nZaščitna cev  pri  omarici  za glavno plinsko požarno  pipo, zaščitena pred korozijo  in   zatesnjena   s  trajno elastičnim  materialom,  izdelana  po priloženi skici."]
[null,"DN 40",null,"kos",49.146340000000002,{"$f":"ROUND(#REF!*#REF!*E121,-1)","v":{"$error":"#REF!"}},{"$f":"C121*F121","v":{"$error":"#REF!"}}]
[null,"DN 65",null,"kos",65,{"$f":"ROUND(#REF!*#REF!*E122,-1)","v":{"$error":"#REF!"}},{"$f":"C122*F122","v":{"$error":"#REF!"}}]
[]
[{"$f":"COUNT($A$7:A123)+1","v":28},"Zaščita vidnih cevi:\nZaščita  vidnih cevi s  pleskanjem po predhodnem  čiščenju  in  pleskanju s temeljno barvo."]
[null,null,null,"m2",7.5365799999999998,{"$f":"ROUND(#REF!*#REF!*E125,-1)","v":{"$error":"#REF!"}},{"$f":"C125*F125","v":{"$error":"#REF!"}}]
[]
[{"$f":"COUNT($A$7:A126)+1","v":29},"Izolacija podometnih cevi:\nIzolacija     podometnih    cevi    z izolacijskim in  zaščitnim  trakom po predhodnem   čiščenju  do  kovinskega sijaja in premazu s prajmerjem."]
[null,null,null,"m2",14.03659,{"$f":"ROUND(#REF!*#REF!*E128,-1)","v":{"$error":"#REF!"}},{"$f":"C128*F128","v":{"$error":"#REF!"}}]
[]
[{"$f":"COUNT($A$7:A129)+1","v":30},"Pozicijska tablica:\nPozicijska tablica za  oznako armatur hišnega  priključka,  skupaj  s  pritrdilnim materialom in izmero."]
[null,null,null,"kos",35.814959999999999,{"$f":"ROUND(#REF!*#REF!*E131,-1)","v":{"$error":"#REF!"}},{"$f":"C131*F131","v":{"$error":"#REF!"}}]
[]
[{"$f":"COUNT($A$7:A132)+1","v":31},"Tlačni  preizkus\nTlačni  preizkus  hišnih  priključkov izvedenih  po  navodilih iz projekta, izdaja atesta."]
[null,null,null,"m",3.2317100000000001,{"$f":"ROUND(#REF!*#REF!*E134,-1)","v":{"$error":"#REF!"}},{"$f":"C134*F134","v":{"$error":"#REF!"}}]
[]
[{"$f":"COUNT($A$7:A135)+1","v":32},"Pomožna  gradbena  dela:\nPomožna  gradbena  dela, zarisovanje, vrtanje zidov,  beljenje zidov, vzpostavitev v prvotno stanje."]
[null,null,null,"ocena",null,null,{"$f":"ROUND(0.03*(SUM(G8:G134)),-1)","v":{"$error":"#REF!"}}]
[]
[{"$f":"COUNT($A$7:A138)+1","v":33},"Nepredvidena  dela:\nNepredvidena dela, stroški nadzora, splošni, manipulativni, transportni in zavarovalni stroški."]
[null,null,null,0.06,null,null,{"$f":"ROUND(D140*(SUM(G8:G134)),-1)","v":{"$error":"#REF!"}}]
[]
[null,"SKUPAJ",null,null,"                       SIT",null,{"$f":"SUM(G8:G140)","v":{"$error":"#REF!"}}]